Workbook

Sheet анализ (hidden)

Sheet Загальний ввод
A19: № | B19: Свердловина | C19: Початок експлуатації приладу | F19: Кінець експлуатації приладу | I19: Час експлуатації, год | J19: Час циркуляції, год | K19: Інтервал роботи, м | L19: Відмітка про проведення ремонту | M19: Примітки(дата, вид роботи) | N19: Циркуляція | O19: Час нижче ротора | P19: Механічні пульсатори | R19: НОБТ 203мм | U19: НОБТ 171,5 мм | X19: НОБТ 127 мм
C20: Дата | D20: Час, год | E20: Глибина, м | F20: Дата | G20: Час, год | H20: Глибина, м | I20: =SUM(I21:I38) -> 160.2930556 | J20: =IF(SUM(J21:J38)>0,SUM(J21:J38),0) -> 86.20555556 | K20: =SUM(K21:K38) -> 2518.3 | P20: Пульсатор СР0551 | Q20: Пульсатор СР0552 | R20: NMDC 203001 | S20: NMDC 203002 | T20: NMDC 203003 | U20: NMDC 1338 | V20: NMDC 1339 | W20: NMDC 1341 | X20: NMDC 127001 | Y20: NMDC 127002 | Z20: NMDC 127003
A21: 1 | B21: 300 Опішня | C21: 2018-10-03 | D21: 01:30:00 | E21: 3188.9 | F21: 2018-10-13 | G21: 08:00:00 | H21: 3314.8 | I21: =IF(F21>0,(F21+G21)-(C21+D21)," ") -> 10.27083333 | J21: 5.279166667 | K21: =IF(H21>0,H21-E21," ") -> 125.9 | Q21: 1 | T21: 1 | AA21: =IF(SUM(R21:Z21)>0,ROW(),"") -> 21
A22: 2 | B22: 525 Кегичівка | C22: 2018-10-16 | D22: 08:18:00 | E22: 2055.4 | F22: 2018-10-25 | G22: 04:00:00 | H22: 2163.5 | I22: 8.820833333 | J22: 4.763888889 | K22: =IF(H22>0,H22-E22," ") -> 108.1 | Q22: 1 | AA22: =IF(SUM(R22:Z22)>0,ROW(),"") -> 
A23: 3 | B23: 33 Краснокутська | C23: 2018-11-28 | D23: 08:00:00 | E23: 3545 | F23: 2018-12-13 | G23: 12:45:00 | H23: 3623.1 | I23: 15.19791667 | J23: 8.743055556 | K23: =IF(H23>0,H23-E23," ") -> 78.1 | L23: Сервіс | M23: Проводили сервіс, замінили полипак смолл, ризинки в незадовільному стані, а саме, якісь дубові, тим самим вони пропустили невелику кількість бруду, на роботу пульсатора це ніяким чином не вплинуло. Сервіс провили при напрацюванні 450:52 годни циркуляції | N23: 11.20833333 | O23: 15.07638889 | Q23: 1 | S23: 1 | T23: 1 | AA23: 23
A24: 4 | B24: 22 Зах Борисівська | C24: 2019-01-04 | D24: 16:00:00 | E24: 926 | Q24: 1
A25: 7 | B25: 26 Червоноярська | C25: 2018-06-16 | D25: 03:00:00 | E25: 1080 | F25: 2018-06-22 | G25: 10:00:00 | H25: 1333.8 | I25: =IF(F25>0,(F25+G25)-(C25+D25)," ") -> 6.291666667 | J25: 4.625 | K25: =IF(H25>0,H25-E25," ") -> 253.8 | N25: 4.625 | O25: 6.291666667 | S25: 1 | T25: 1 | AA25: 25
A26: 8 | B26: 117 Медведівка | C26: 2018-06-29 | D26: 12:30:00 | E26: 1120.6 | F26: 2018-07-07 | G26: 05:00:00 | H26: 1458.5 | I26: 7.6875 | J26: 3.638888889 | K26: =IF(H26>0,H26-E26," ") -> 337.9 | L26: Сервіс | M26: Порушення цілісності мембрани сервоклапана, выкревлений вал сервоклапана | N26: 3.638888889 | O26: 7.6875 | S26: 1 | T26: 1 | AA26: 26
A27: 9 | K27: =IF(H27>0,H27-E27," ") -> 
A28: 1 | B28: 117 Медведівка | C28: 2018-07-18 | D28: 04:20:00 | E28: 2080 | F28: 2018-07-22 | G28: 12:30:00 | H28: 2247 | I28: =IF(F28>0,(F28+G28)-(C28+D28)," ") -> 4.340277778 | J28: 1.84375 | K28: 167 | N28: 1.84375 | O28: 3.180555556 | S28: 1 | T28: 1 | AA28: 28
A29: 2 | B29: 85 сх.Медведівка | C29: 2018-07-30 | D29: 11:35:00 | E29: 1774 | F29: 2018-08-05 | G29: 12:00:00 | H29: 2008.7 | I29: 6.017361111 | J29: 3.104166667 | K29: 234.7 | N29: 3.104166667 | O29: 5.395833333 | S29: 1 | T29: 1 | AA29: 29
B30: 73 Зах.Соснівська | C30: 2018-08-13 | D30: 16:30:00 | E30: 3430 | F30: 2018-09-01 | G30: 08:00:00 | H30: 3660 | I30: =IF(F30>0,F30-C30," ") -> 19 | J30: 10.89791667 | K30: =IF(H30>0,H30-E30," ") -> 230 | N30: 10.89791667 | O30: 17.22916667 | U30: 1 | V30: 1 | AA30: 30
B31: 300 Опішня | C31: 2018-09-16 | D31: 09:30:00 | E31: 3095 | F31: 2018-10-13 | G31: 08:00:00 | H31: 3314.8 | I31: 27 | J31: 11.78125 | K31: 219.8 | N31: 11.78125 | O31: 22.24305556 | S31: 1 | T31: 1 | AA31: 31
B32: 525 Кегичівка | C32: 2018-10-16 | D32: 08:18:00 | E32: 2055.4 | F32: 2018-10-25 | G32: 04:00:00 | H32: 2163.5 | I32: 9 | J32: 4.763888889 | K32: 108.1 | N32: 4.763888889 | O32: 9.125 | S32: 1 | T32: 1 | AA32: 32
B33: 33 Краснокутська | C33: 2018-11-28 | D33: 05:00:00 | E33: 3545 | F33: 2018-12-17 | G33: 18:00:00 | H33: 3679.3 | I33: =IF(F33>0,F33-C33," ") -> 19 | J33: 11.12152778 | K33: 134.3 | L33: Сервіс | M33: Сервіс ролл тесту проводили більш менш з меншими похибками біля прачечной на вході ПВБР | N33: 11.20833333 | O33: 15.07638889 | S33: 1 | T33: 1 | AA33: 33
B34: 22 Зах Борисівська | C34: 2019-01-04 | D34: 16:00:00 | E34: 926
B35: 117Медведівка | C35: 2018-10-20 | D35: 08:00:00 | E35: 3380 | F35: 2018-10-29 | G35: 08:00:00 | H35: 3521.7 | I35: =IF(F35>0,(F35+G35)-(C35+D35)," ") -> 9 | J35: 5.770833333 | K35: 141.7 | N35: 5.770833333 | O35: 8.083333333 | U35: 1 | V35: 1 | AA35: 35
B36: 160 Гадяч | C36: 2018-11-03 | D36: 08:00:00 | E36: 3073 | F36: 2018-11-14 | G36: 00:00:00 | H36: 3296 | I36: 10.66666667 | J36: 6.648611111 | K36: 223 | N36: 6.648611111 | O36: 9.895833333 | V36: 1 | W36: 1 | AA36: 36
B37: 50 Абазівка | C37: 2018-11-24 | D37: 08:00:00 | E37: 4005.6 | F37: 2018-12-02 | G37: 08:00:00 | H37: 4161.5 | I37: 8 | J37: 3.223611111 | K37: 155.9 | M37: 05-12-18 , переповнення пом'яті, зтирання пам'яті. | N37: 3.223611111 | O37: 10.1875 | V37: 1 | W37: 1 | AA37: 37
B39: РОБОТИ з 01.01.2019 р.
B40: 410 Біляївська | C40: 2019-01-06 | D40: 08:30:00 | E40: 3400.7 | I40: =IF(F40>0,(F40+G40)-(C40+D40)," ") ->  | V40: 1 | W40: 1 | AA40: 40
B41: 22 Зах Борисівська | C41: 2019-01-04 | D41: 16:00:00 | E41: 926 | S41: 1 | T41: 1 | AA41: 41
AA53: =IF(SUM(R53:Z53)>0,ROW(),"") -> 
AA85: =IF(SUM(R85:Z85)>0,ROW(),"") -> 

Sheet NMDC
B1: NMDC 203 | G1: NMDC 171 | L1: NMDC 127
B2: НОБТ | C2: Дифектоскопія | D2: Інтервал робіт | E2: Час Н.Р. | F2: Циркуляція | G2: НОБТ | H2: Дифектоскопія | I2: Інтервал робіт | J2: Час Н.Р. | K2: Циркуляція | L2: НОБТ | M2: Дифектоскопія | N2: Інтервал робіт | O2: Час Н.Р. | P2: Циркуляція
B3: NMDC 203 | C3: 25 | F3: 41.66666667 | G3: NMDC 171 | H3: 25 | K3: 41.66666667 | L3: NMDC 127 | M3: 25 | P3: 41.66666667
B4: NMDC 203001 | C4: =C3-SUMIF(INDEX(B11:B983,IF(ISNA(MATCH("дифектоскопія203001",V11:V983,)),1,SUMPRODUCT(MAX((V11:V983="дифектоскопія203001")*ROW(M11:M983)))-10)):B983,B12,INDEX(M11:M983,IF(ISNA(MATCH("дифектоскопія203001",V11:V983,)),1,SUMPRODUCT(MAX((V11:V983="дифектоскопія203001")*ROW(M11:M983)))-10)):M983) ->  | D4: =SUMIF(B11:B63,B13,M11:M63) -> 0 | E4: =SUMIF(B11:B63,B13,M11:M63) -> 0 | F4: =M10 -> 41.66666667 | G4: NMDC 1338 | H4: =H3-SUMIF(INDEX(B11:B983,IF(ISNA(MATCH("дифектоскопія1338",W11:W983,)),1,SUMPRODUCT(MAX((W11:W983="дифектоскопія1338")*ROW(J11:J983)))-10)):B983,B12,INDEX(J11:J983,IF(ISNA(MATCH("дифектоскопія1338",W11:W983,)),1,SUMPRODUCT(MAX((W11:W983="дифектоскопія1338")*ROW(J11:J983)))-2)):J983) ->  | I4: =SUMIF(B11:B63,B13,J11:J63) -> 0 | J4: =SUMIF(B11:B63,B12,J11:J63) ->  | K4: =J10 -> 41.66666667 | L4: NMDC 127001 | M4: =M3-SUMIF(INDEX(B11:B983,IF(ISNA(MATCH("дифектоскопія127001",X11:X983,)),1,SUMPRODUCT(MAX((X11:X983="дифектоскопія127001")*ROW(P11:P983)))-10)):B983,B12,INDEX(P11:P983,IF(ISNA(MATCH("дифектоскопія127001",X11:X983,)),1,SUMPRODUCT(MAX((X11:X983="дифектоскопія127001")*ROW(P11:P983)))-2)):P983) ->  | N4: =SUMIF(B11:B63,B13,P11:P63) -> 0 | O4: =SUMIF(B11:B63,B14,P11:P63) -> 0 | P4: =P10 -> 41.66666667
B5: NMDC 203002 | C5: =C3-SUMIF(INDEX(B11:B983,IF(ISNA(MATCH("дифектоскопія203002",V11:V983,)),1,SUMPRODUCT(MAX((V11:V983="дифектоскопія203002")*ROW(N11:N983)))-10)):B983,B12,INDEX(N11:N55,IF(ISNA(MATCH("дифектоскопія203002",V11:V983,)),1,SUMPRODUCT(MAX((V11:V983="дифектоскопія203002")*ROW(N11:N983)))-10)):N983) ->  | D5: =SUMIF(B11:B63,B13,N11:N63) -> 0 | E5: =SUMIF(B11:B63,B14,N11:N63) -> 52.17361111 | F5: =N10 -> 41.66666667 | G5: NMDC 1339 | H5: =H3-SUMIF(INDEX(B11:B983,IF(ISNA(MATCH("дифектоскопія1339",W11:W983,)),1,SUMPRODUCT(MAX((W11:W983="дифектоскопія1339")*ROW(K11:K983)))-10)):B983,B12,INDEX(K11:K983,IF(ISNA(MATCH("дифектоскопія1339",W11:W983,)),1,SUMPRODUCT(MAX((W11:W983="дифектоскопія1339")*ROW(K11:K983)))-2)):K983) ->  | I5: =SUMIF(B11:B63,B13,K11:K63) -> 0 | J5: =SUMIF(B11:B63,B12,K11:K63) ->  | K5: =K10 -> 41.66666667 | L5: NMDC 127002 | M5: =M3-SUMIF(INDEX(B11:B983,IF(ISNA(MATCH("дифектоскопія127002",X11:X983,)),1,SUMPRODUCT(MAX((X11:X983="дифектоскопія127002")*ROW(Q11:Q983)))-10)):B983,B12,INDEX(Q11:Q983,IF(ISNA(MATCH("дифектоскопія127002",X11:X983,)),1,SUMPRODUCT(MAX((X11:X983="дифектоскопія127002")*ROW(Q11:Q983)))-2)):Q983) ->  | N5: =SUMIF(B11:B63,B13,Q11:Q63) -> 0 | O5: =SUMIF(B11:B63,B14,Q11:Q63) -> 0 | P5: =Q10 -> 41.66666667
B6: NMDC 203003 | C6: =C3-SUMIF(INDEX(B11:B983,IF(ISNA(MATCH("дифектоскопія203003",V11:V983,)),1,SUMPRODUCT(MAX((V11:V983="дифектоскопія203003")*ROW(O11:O983)))-10)):B983,B12,INDEX(O11:O983,IF(ISNA(MATCH("дифектоскопія203003",V11:V983,)),1,SUMPRODUCT(MAX((V11:V983="дифектоскопія203003")*ROW(O11:O983)))-2)):O983) ->  | D6: =SUMIF(B11:B63,B13,O11:O63) -> 0 | E6: =SUMIF(B11:B63,B14,O11:O63) -> 52.17361111 | F6: =O10 -> 41.66666667 | G6: NMDC 1341 | H6: =H3-SUMIF(INDEX(B11:B983,IF(ISNA(MATCH("дифектоскопія1341",W11:W983,)),1,SUMPRODUCT(MAX((W11:W983="дифектоскопія1341")*ROW(L11:L983)))-10)):B983,B12,INDEX(L11:L983,IF(ISNA(MATCH("дифектоскопія1341",W11:W983,)),1,SUMPRODUCT(MAX((W11:W983="дифектоскопія1341")*ROW(L11:L983)))-2)):L983) ->  | I6: =SUMIF(B11:B63,B13,L11:L63) -> 0 | J6: =SUMIF(B11:B63,B12,L11:L63) ->  | K6: =L10 -> 41.66666667 | L6: NMDC 127003 | M6: =M3-SUMIF(INDEX(B11:B983,IF(ISNA(MATCH("дифектоскопія127003",X11:X983,)),1,SUMPRODUCT(MAX((X11:X983="дифектоскопія127003")*ROW(R11:R983)))-10)):B983,B12,INDEX(R11:R983,IF(ISNA(MATCH("дифектоскопія127003",X11:X983,)),1,SUMPRODUCT(MAX((X11:X983="дифектоскопія127003")*ROW(R11:R983)))-2)):R983) ->  | N6: =SUMIF(B11:B63,B13,R11:R63) -> 0 | O6: =SUMIF(B11:B63,B14,R11:R63) -> 0 | P6: =R10 -> 41.66666667
K7: 41.66666667 | N7: 41.66666667 | Q7: 41.66666667
A8: N п/п | B8: Свердловина | C8: Дата початку експлуатації | F8: Дата кінця експлуатації | I8: Інтервал роботи, м | K8: NMDC 171 | N8: NMDC 203 | Q8: NMDC 127 | S8: сервіс NMDC | T8: сервіс NMDC | U8: сервіс NMDC | V8: Дифектоскопія NMDC | W8: Дифектоскопія NMDC | X8: Дифектоскопія NMDC
C9: Дата | D9: Час, год | E9: Глибина, м | F9: Дата | G9: Час, год | H9: Глибина, м | I9: =SUM(I10:I47) -> 1755.3 | J9: NMDC 1338 | K9: NMDC 1339 | L9: NMDC 1341 | M9: NMDC 203001 | N9: NMDC 203002 | O9: NMDC 203003 | P9: NMDC 127001 | Q9: NMDC 127002 | R9: NMDC 127003 | S9: 203 | T9: 171 | U9: 127 | V9: 203 | W9: 171 | X9: 127
B10: Заг.напр.циркуляція | J10: =K7-SUMIF(INDEX(B11:B456,IF(ISNA(MATCH("сервіс1338",T11:T456,)),1,SUMPRODUCT(MAX((T11:T456="сервіс1338")*ROW(J11:J456)))-10)):B456,#REF!,INDEX(J11:J456,IF(ISNA(MATCH("сервіс1338",T11:T456,)),1,SUMPRODUCT(MAX((T11:T456="сервіс1338")*ROW(J11:J456)))-10)):J456) -> 41.66666667 | K10: =K7-SUMIF(INDEX(B11:B456,IF(ISNA(MATCH("сервіс1339",T11:T456,)),1,SUMPRODUCT(MAX((T11:T456="сервіс1339")*ROW(K11:K456)))-10)):B456,#REF!,INDEX(K11:K456,IF(ISNA(MATCH("сервіс1339",T11:T456,)),1,SUMPRODUCT(MAX((T11:T456="сервіс1339")*ROW(K11:K456)))-10)):K456) -> 41.66666667 | L10: =K7-SUMIF(INDEX(B11:B456,IF(ISNA(MATCH("сервіс1341",T11:T456,)),1,SUMPRODUCT(MAX((T11:T456="сервіс1341")*ROW(L11:L456)))-10)):B456,#REF!,INDEX(L11:L456,IF(ISNA(MATCH("сервіс1341",T11:T456,)),1,SUMPRODUCT(MAX((T11:T456="сервіс1341")*ROW(L11:L456)))-10)):L456) -> 41.66666667 | M10: =N7-SUMIF(INDEX(B11:B456,IF(ISNA(MATCH("сервіс203001",S11:S456,)),1,SUMPRODUCT(MAX((S11:S456="сервіс203001")*ROW(M11:M456)))-10)):B456,#REF!,INDEX(M11:M456,IF(ISNA(MATCH("сервіс203001",S11:S456,)),1,SUMPRODUCT(MAX((S11:S456="сервіс203001")*ROW(M11:M456)))-10)):M456) -> 41.66666667 | N10: =N7-SUMIF(INDEX(B11:B456,IF(ISNA(MATCH("сервіс203002",S11:S456,)),1,SUMPRODUCT(MAX((S11:S456="сервіс203002")*ROW(N11:N456)))-10)):B456,#REF!,INDEX(N11:N456,IF(ISNA(MATCH("сервіс203002",S11:S456,)),1,SUMPRODUCT(MAX((S11:S456="сервіс203002")*ROW(N11:N456)))-10)):N456) -> 41.66666667 | O10: =N7-SUMIF(INDEX(B11:B456,IF(ISNA(MATCH("сервіс203003",S11:S456,)),1,SUMPRODUCT(MAX((S11:S456="сервіс203003")*ROW(O11:O456)))-10)):B456,#REF!,INDEX(O11:O456,IF(ISNA(MATCH("сервіс203003",S11:S456,)),1,SUMPRODUCT(MAX((S11:S456="сервіс203003")*ROW(O11:O456)))-10)):O456) -> 41.66666667 | P10: =Q7-SUMIF(INDEX(B11:B456,IF(ISNA(MATCH("сервіс127001",U11:U456,)),1,SUMPRODUCT(MAX((U11:U456="сервіс127001")*ROW(P11:P456)))-10)):B456,#REF!,INDEX(P11:P456,IF(ISNA(MATCH("сервіс127001",U11:U456,)),1,SUMPRODUCT(MAX((U11:U456="сервіс127001")*ROW(P11:P456)))-10)):P456) -> 41.66666667 | Q10: =Q7-SUMIF(INDEX(B11:B456,IF(ISNA(MATCH("сервіс127002",U11:U456,)),1,SUMPRODUCT(MAX((U11:U456="сервіс127002")*ROW(Q11:Q456)))-10)):B456,#REF!,INDEX(Q11:Q456,IF(ISNA(MATCH("сервіс127002",U11:U456,)),1,SUMPRODUCT(MAX((U11:U456="сервіс127002")*ROW(Q11:Q456)))-10)):Q456) -> 41.66666667 | R10: =Q7-SUMIF(INDEX(B11:B456,IF(ISNA(MATCH("сервіс127003",U11:U456,)),1,SUMPRODUCT(MAX((U11:U456="сервіс127003")*ROW(R11:R456)))-10)):B456,#REF!,INDEX(R11:R456,IF(ISNA(MATCH("сервіс127003",U11:U456,)),1,SUMPRODUCT(MAX((U11:U456="сервіс127003")*ROW(R11:R456)))-10)):R456) -> 41.66666667
A11: =IF(B11="","",IF(MOD(ROW()-1,4),"",COUNT(A$10:A10)+1)) ->  | B11: =IF(MOD(ROW()-1,4),IF(B16="","",INDEX({"Циркуляція";"Інтервал роботи";"Час нижче ротора"},MOD(ROW()-1,4))),IFERROR(INDEX('Загальний ввод'!B:B,SMALL('Загальний ввод'!AA$21:AA$999,(ROW()-1)/4)),"")) -> Інтервал роботи | C11: =IF($A11="","",INDEX('Загальний ввод'!C$21:C$999,MATCH(SMALL('Загальний ввод'!$AA$21:$AA$999,SUM($A8:$A11)),'Загальний ввод'!$AA$21:$AA$999,))) ->  | D11: =IF($A11="","",INDEX('Загальний ввод'!D$21:D$999,MATCH(SMALL('Загальний ввод'!$AA$21:$AA$999,SUM($A8:$A11)),'Загальний ввод'!$AA$21:$AA$999,))) ->  | E11: =IF($A11="","",INDEX('Загальний ввод'!E$21:E$999,MATCH(SMALL('Загальний ввод'!$AA$21:$AA$999,SUM($A8:$A11)),'Загальний ввод'!$AA$21:$AA$999,))) ->  | F11: =IF($A11="","",INDEX('Загальний ввод'!F$21:F$999,MATCH(SMALL('Загальний ввод'!$AA$21:$AA$999,SUM($A8:$A11)),'Загальний ввод'!$AA$21:$AA$999,))) ->  | G11: =IF($A11="","",INDEX('Загальний ввод'!G$21:G$999,MATCH(SMALL('Загальний ввод'!$AA$21:$AA$999,SUM($A8:$A11)),'Загальний ввод'!$AA$21:$AA$999,))) ->  | H11: =IF($A11="","",INDEX('Загальний ввод'!H$21:H$999,MATCH(SMALL('Загальний ввод'!$AA$21:$AA$999,SUM($A8:$A11)),'Загальний ввод'!$AA$21:$AA$999,))) ->  | I11: =IF($A11="","",H11-E11) ->  | J11: =IF(($A11="")*($B11<>""),INDEX('Загальний ввод'!$R$21:$Z$999,MATCH(SMALL('Загальний ввод'!$AA$21:$AA$999,SUM($A8:$A11)),'Загальний ввод'!$AA$21:$AA$999,),MATCH(J$9,'Загальний ввод'!$R$20:$Z$20,))*INDEX('Загальний ввод'!$K$21:$O$999,MATCH(SMALL('Загальний ввод'!$AA$21:$AA$999,SUM($A8:$A11)),'Загальний ввод'!$AA$21:$AA$999,),MATCH($B11&"*",'Загальний ввод'!$K$19:$O$19,)),"") ->  | K11: =IF(($A11="")*($B11<>""),INDEX('Загальний ввод'!$R$21:$Z$999,MATCH(SMALL('Загальний ввод'!$AA$21:$AA$999,SUM($A8:$A11)),'Загальний ввод'!$AA$21:$AA$999,),MATCH(K$9,'Загальний ввод'!$R$20:$Z$20,))*INDEX('Загальний ввод'!$K$21:$O$999,MATCH(SMALL('Загальний ввод'!$AA$21:$AA$999,SUM($A8:$A11)),'Загальний ввод'!$AA$21:$AA$999,),MATCH($B11&"*",'Загальний ввод'!$K$19:$O$19,)),"") ->  | L11: =IF(($A11="")*($B11<>""),INDEX('Загальний ввод'!$R$21:$Z$999,MATCH(SMALL('Загальний ввод'!$AA$21:$AA$999,SUM($A8:$A11)),'Загальний ввод'!$AA$21:$AA$999,),MATCH(L$9,'Загальний ввод'!$R$20:$Z$20,))*INDEX('Загальний ввод'!$K$21:$O$999,MATCH(SMALL('Загальний ввод'!$AA$21:$AA$999,SUM($A8:$A11)),'Загальний ввод'!$AA$21:$AA$999,),MATCH($B11&"*",'Загальний ввод'!$K$19:$O$19,)),"") ->  | M11: =IF(($A11="")*($B11<>""),INDEX('Загальний ввод'!$R$21:$Z$999,MATCH(SMALL('Загальний ввод'!$AA$21:$AA$999,SUM($A8:$A11)),'Загальний ввод'!$AA$21:$AA$999,),MATCH(M$9,'Загальний ввод'!$R$20:$Z$20,))*INDEX('Загальний ввод'!$K$21:$O$999,MATCH(SMALL('Загальний ввод'!$AA$21:$AA$999,SUM($A8:$A11)),'Загальний ввод'!$AA$21:$AA$999,),MATCH($B11&"*",'Загальний ввод'!$K$19:$O$19,)),"") ->  | N11: =IF(($A11="")*($B11<>""),INDEX('Загальний ввод'!$R$21:$Z$999,MATCH(SMALL('Загальний ввод'!$AA$21:$AA$999,SUM($A8:$A11)),'Загальний ввод'!$AA$21:$AA$999,),MATCH(N$9,'Загальний ввод'!$R$20:$Z$20,))*INDEX('Загальний ввод'!$K$21:$O$999,MATCH(SMALL('Загальний ввод'!$AA$21:$AA$999,SUM($A8:$A11)),'Загальний ввод'!$AA$21:$AA$999,),MATCH($B11&"*",'Загальний ввод'!$K$19:$O$19,)),"") ->  | O11: =IF(($A11="")*($B11<>""),INDEX('Загальний ввод'!$R$21:$Z$999,MATCH(SMALL('Загальний ввод'!$AA$21:$AA$999,SUM($A8:$A11)),'Загальний ввод'!$AA$21:$AA$999,),MATCH(O$9,'Загальний ввод'!$R$20:$Z$20,))*INDEX('Загальний ввод'!$K$21:$O$999,MATCH(SMALL('Загальний ввод'!$AA$21:$AA$999,SUM($A8:$A11)),'Загальний ввод'!$AA$21:$AA$999,),MATCH($B11&"*",'Загальний ввод'!$K$19:$O$19,)),"") ->  | P11: =IF(($A11="")*($B11<>""),INDEX('Загальний ввод'!$R$21:$Z$999,MATCH(SMALL('Загальний ввод'!$AA$21:$AA$999,SUM($A8:$A11)),'Загальний ввод'!$AA$21:$AA$999,),MATCH(P$9,'Загальний ввод'!$R$20:$Z$20,))*INDEX('Загальний ввод'!$K$21:$O$999,MATCH(SMALL('Загальний ввод'!$AA$21:$AA$999,SUM($A8:$A11)),'Загальний ввод'!$AA$21:$AA$999,),MATCH($B11&"*",'Загальний ввод'!$K$19:$O$19,)),"") ->  | Q11: =IF(($A11="")*($B11<>""),INDEX('Загальний ввод'!$R$21:$Z$999,MATCH(SMALL('Загальний ввод'!$AA$21:$AA$999,SUM($A8:$A11)),'Загальний ввод'!$AA$21:$AA$999,),MATCH(Q$9,'Загальний ввод'!$R$20:$Z$20,))*INDEX('Загальний ввод'!$K$21:$O$999,MATCH(SMALL('Загальний ввод'!$AA$21:$AA$999,SUM($A8:$A11)),'Загальний ввод'!$AA$21:$AA$999,),MATCH($B11&"*",'Загальний ввод'!$K$19:$O$19,)),"") ->  | R11: =IF(($A11="")*($B11<>""),INDEX('Загальний ввод'!$R$21:$Z$999,MATCH(SMALL('Загальний ввод'!$AA$21:$AA$999,SUM($A8:$A11)),'Загальний ввод'!$AA$21:$AA$999,),MATCH(R$9,'Загальний ввод'!$R$20:$Z$20,))*INDEX('Загальний ввод'!$K$21:$O$999,MATCH(SMALL('Загальний ввод'!$AA$21:$AA$999,SUM($A8:$A11)),'Загальний ввод'!$AA$21:$AA$999,),MATCH($B11&"*",'Загальний ввод'!$K$19:$O$19,)),"") -> 
A12: =IF(B12="","",IF(MOD(ROW()-1,4),"",COUNT(A$10:A11)+1)) ->  | B12: =IF(MOD(ROW()-1,4),IF(B11="","",INDEX({"Циркуляція";"Інтервал роботи";"Час нижче ротора"},MOD(ROW()-1,4))),IFERROR(INDEX('Загальний ввод'!B:B,SMALL('Загальний ввод'!AA$21:AA$999,(ROW()-1)/4)),"")) -> Час нижче ротора | C12: =IF($A12="","",INDEX('Загальний ввод'!C$21:C$999,MATCH(SMALL('Загальний ввод'!$AA$21:$AA$999,SUM($A9:$A12)),'Загальний ввод'!$AA$21:$AA$999,))) ->  | D12: =IF($A12="","",INDEX('Загальний ввод'!D$21:D$999,MATCH(SMALL('Загальний ввод'!$AA$21:$AA$999,SUM($A9:$A12)),'Загальний ввод'!$AA$21:$AA$999,))) ->  | E12: =IF($A12="","",INDEX('Загальний ввод'!E$21:E$999,MATCH(SMALL('Загальний ввод'!$AA$21:$AA$999,SUM($A9:$A12)),'Загальний ввод'!$AA$21:$AA$999,))) ->  | F12: =IF($A12="","",INDEX('Загальний ввод'!F$21:F$999,MATCH(SMALL('Загальний ввод'!$AA$21:$AA$999,SUM($A9:$A12)),'Загальний ввод'!$AA$21:$AA$999,))) ->  | G12: =IF($A12="","",INDEX('Загальний ввод'!G$21:G$999,MATCH(SMALL('Загальний ввод'!$AA$21:$AA$999,SUM($A9:$A12)),'Загальний ввод'!$AA$21:$AA$999,))) ->  | H12: =IF($A12="","",INDEX('Загальний ввод'!H$21:H$999,MATCH(SMALL('Загальний ввод'!$AA$21:$AA$999,SUM($A9:$A12)),'Загальний ввод'!$AA$21:$AA$999,))) ->  | I12: =IF($A12="","",H12-E12) ->  | J12: =IF(($A12="")*($B12<>""),INDEX('Загальний ввод'!$R$21:$Z$999,MATCH(SMALL('Загальний ввод'!$AA$21:$AA$999,SUM($A9:$A12)),'Загальний ввод'!$AA$21:$AA$999,),MATCH(J$9,'Загальний ввод'!$R$20:$Z$20,))*INDEX('Загальний ввод'!$K$21:$O$999,MATCH(SMALL('Загальний ввод'!$AA$21:$AA$999,SUM($A9:$A12)),'Загальний ввод'!$AA$21:$AA$999,),MATCH($B12&"*",'Загальний ввод'!$K$19:$O$19,)),"") ->  | K12: =IF(($A12="")*($B12<>""),INDEX('Загальний ввод'!$R$21:$Z$999,MATCH(SMALL('Загальний ввод'!$AA$21:$AA$999,SUM($A9:$A12)),'Загальний ввод'!$AA$21:$AA$999,),MATCH(K$9,'Загальний ввод'!$R$20:$Z$20,))*INDEX('Загальний ввод'!$K$21:$O$999,MATCH(SMALL('Загальний ввод'!$AA$21:$AA$999,SUM($A9:$A12)),'Загальний ввод'!$AA$21:$AA$999,),MATCH($B12&"*",'Загальний ввод'!$K$19:$O$19,)),"") ->  | L12: =IF(($A12="")*($B12<>""),INDEX('Загальний ввод'!$R$21:$Z$999,MATCH(SMALL('Загальний ввод'!$AA$21:$AA$999,SUM($A9:$A12)),'Загальний ввод'!$AA$21:$AA$999,),MATCH(L$9,'Загальний ввод'!$R$20:$Z$20,))*INDEX('Загальний ввод'!$K$21:$O$999,MATCH(SMALL('Загальний ввод'!$AA$21:$AA$999,SUM($A9:$A12)),'Загальний ввод'!$AA$21:$AA$999,),MATCH($B12&"*",'Загальний ввод'!$K$19:$O$19,)),"") ->  | M12: =IF(($A12="")*($B12<>""),INDEX('Загальний ввод'!$R$21:$Z$999,MATCH(SMALL('Загальний ввод'!$AA$21:$AA$999,SUM($A9:$A12)),'Загальний ввод'!$AA$21:$AA$999,),MATCH(M$9,'Загальний ввод'!$R$20:$Z$20,))*INDEX('Загальний ввод'!$K$21:$O$999,MATCH(SMALL('Загальний ввод'!$AA$21:$AA$999,SUM($A9:$A12)),'Загальний ввод'!$AA$21:$AA$999,),MATCH($B12&"*",'Загальний ввод'!$K$19:$O$19,)),"") ->  | N12: =IF(($A12="")*($B12<>""),INDEX('Загальний ввод'!$R$21:$Z$999,MATCH(SMALL('Загальний ввод'!$AA$21:$AA$999,SUM($A9:$A12)),'Загальний ввод'!$AA$21:$AA$999,),MATCH(N$9,'Загальний ввод'!$R$20:$Z$20,))*INDEX('Загальний ввод'!$K$21:$O$999,MATCH(SMALL('Загальний ввод'!$AA$21:$AA$999,SUM($A9:$A12)),'Загальний ввод'!$AA$21:$AA$999,),MATCH($B12&"*",'Загальний ввод'!$K$19:$O$19,)),"") ->  | O12: =IF(($A12="")*($B12<>""),INDEX('Загальний ввод'!$R$21:$Z$999,MATCH(SMALL('Загальний ввод'!$AA$21:$AA$999,SUM($A9:$A12)),'Загальний ввод'!$AA$21:$AA$999,),MATCH(O$9,'Загальний ввод'!$R$20:$Z$20,))*INDEX('Загальний ввод'!$K$21:$O$999,MATCH(SMALL('Загальний ввод'!$AA$21:$AA$999,SUM($A9:$A12)),'Загальний ввод'!$AA$21:$AA$999,),MATCH($B12&"*",'Загальний ввод'!$K$19:$O$19,)),"") ->  | P12: =IF(($A12="")*($B12<>""),INDEX('Загальний ввод'!$R$21:$Z$999,MATCH(SMALL('Загальний ввод'!$AA$21:$AA$999,SUM($A9:$A12)),'Загальний ввод'!$AA$21:$AA$999,),MATCH(P$9,'Загальний ввод'!$R$20:$Z$20,))*INDEX('Загальний ввод'!$K$21:$O$999,MATCH(SMALL('Загальний ввод'!$AA$21:$AA$999,SUM($A9:$A12)),'Загальний ввод'!$AA$21:$AA$999,),MATCH($B12&"*",'Загальний ввод'!$K$19:$O$19,)),"") ->  | Q12: =IF(($A12="")*($B12<>""),INDEX('Загальний ввод'!$R$21:$Z$999,MATCH(SMALL('Загальний ввод'!$AA$21:$AA$999,SUM($A9:$A12)),'Загальний ввод'!$AA$21:$AA$999,),MATCH(Q$9,'Загальний ввод'!$R$20:$Z$20,))*INDEX('Загальний ввод'!$K$21:$O$999,MATCH(SMALL('Загальний ввод'!$AA$21:$AA$999,SUM($A9:$A12)),'Загальний ввод'!$AA$21:$AA$999,),MATCH($B12&"*",'Загальний ввод'!$K$19:$O$19,)),"") ->  | R12: =IF(($A12="")*($B12<>""),INDEX('Загальний ввод'!$R$21:$Z$999,MATCH(SMALL('Загальний ввод'!$AA$21:$AA$999,SUM($A9:$A12)),'Загальний ввод'!$AA$21:$AA$999,),MATCH(R$9,'Загальний ввод'!$R$20:$Z$20,))*INDEX('Загальний ввод'!$K$21:$O$999,MATCH(SMALL('Загальний ввод'!$AA$21:$AA$999,SUM($A9:$A12)),'Загальний ввод'!$AA$21:$AA$999,),MATCH($B12&"*",'Загальний ввод'!$K$19:$O$19,)),"") -> 
A13: =IF(B13="","",IF(MOD(ROW()-1,4),"",COUNT(A$10:A12)+1)) -> 1 | B13: =IF(MOD(ROW()-1,4),IF(B12="","",INDEX({"Циркуляція";"Інтервал роботи";"Час нижче ротора"},MOD(ROW()-1,4))),IFERROR(INDEX('Загальний ввод'!B:B,SMALL('Загальний ввод'!AA$21:AA$999,(ROW()-1)/4)),"")) -> 26 Червоноярська | C13: =IF($A13="","",INDEX('Загальний ввод'!C$21:C$999,MATCH(SMALL('Загальний ввод'!$AA$21:$AA$999,SUM($A10:$A13)),'Загальний ввод'!$AA$21:$AA$999,))) -> 2018-10-03 | D13: =IF($A13="","",INDEX('Загальний ввод'!D$21:D$999,MATCH(SMALL('Загальний ввод'!$AA$21:$AA$999,SUM($A10:$A13)),'Загальний ввод'!$AA$21:$AA$999,))) -> 01:30:00 | E13: =IF($A13="","",INDEX('Загальний ввод'!E$21:E$999,MATCH(SMALL('Загальний ввод'!$AA$21:$AA$999,SUM($A10:$A13)),'Загальний ввод'!$AA$21:$AA$999,))) -> 3188.9 | F13: =IF($A13="","",INDEX('Загальний ввод'!F$21:F$999,MATCH(SMALL('Загальний ввод'!$AA$21:$AA$999,SUM($A10:$A13)),'Загальний ввод'!$AA$21:$AA$999,))) -> 2018-10-13 | G13: =IF($A13="","",INDEX('Загальний ввод'!G$21:G$999,MATCH(SMALL('Загальний ввод'!$AA$21:$AA$999,SUM($A10:$A13)),'Загальний ввод'!$AA$21:$AA$999,))) -> 08:00:00 | H13: =IF($A13="","",INDEX('Загальний ввод'!H$21:H$999,MATCH(SMALL('Загальний ввод'!$AA$21:$AA$999,SUM($A10:$A13)),'Загальний ввод'!$AA$21:$AA$999,))) -> 3314.8 | I13: 125.9 | J13: =IF(($A13="")*($B13<>""),INDEX('Загальний ввод'!$R$21:$Z$999,MATCH(SMALL('Загальний ввод'!$AA$21:$AA$999,SUM($A10:$A13)),'Загальний ввод'!$AA$21:$AA$999,),MATCH(J$9,'Загальний ввод'!$R$20:$Z$20,))*INDEX('Загальний ввод'!$K$21:$O$999,MATCH(SMALL('Загальний ввод'!$AA$21:$AA$999,SUM($A10:$A13)),'Загальний ввод'!$AA$21:$AA$999,),MATCH($B13&"*",'Загальний ввод'!$K$19:$O$19,)),"") ->  | K13: =IF(($A13="")*($B13<>""),INDEX('Загальний ввод'!$R$21:$Z$999,MATCH(SMALL('Загальний ввод'!$AA$21:$AA$999,SUM($A10:$A13)),'Загальний ввод'!$AA$21:$AA$999,),MATCH(K$9,'Загальний ввод'!$R$20:$Z$20,))*INDEX('Загальний ввод'!$K$21:$O$999,MATCH(SMALL('Загальний ввод'!$AA$21:$AA$999,SUM($A10:$A13)),'Загальний ввод'!$AA$21:$AA$999,),MATCH($B13&"*",'Загальний ввод'!$K$19:$O$19,)),"") ->  | L13: =IF(($A13="")*($B13<>""),INDEX('Загальний ввод'!$R$21:$Z$999,MATCH(SMALL('Загальний ввод'!$AA$21:$AA$999,SUM($A10:$A13)),'Загальний ввод'!$AA$21:$AA$999,),MATCH(L$9,'Загальний ввод'!$R$20:$Z$20,))*INDEX('Загальний ввод'!$K$21:$O$999,MATCH(SMALL('Загальний ввод'!$AA$21:$AA$999,SUM($A10:$A13)),'Загальний ввод'!$AA$21:$AA$999,),MATCH($B13&"*",'Загальний ввод'!$K$19:$O$19,)),"") ->  | M13: =IF(($A13="")*($B13<>""),INDEX('Загальний ввод'!$R$21:$Z$999,MATCH(SMALL('Загальний ввод'!$AA$21:$AA$999,SUM($A10:$A13)),'Загальний ввод'!$AA$21:$AA$999,),MATCH(M$9,'Загальний ввод'!$R$20:$Z$20,))*INDEX('Загальний ввод'!$K$21:$O$999,MATCH(SMALL('Загальний ввод'!$AA$21:$AA$999,SUM($A10:$A13)),'Загальний ввод'!$AA$21:$AA$999,),MATCH($B13&"*",'Загальний ввод'!$K$19:$O$19,)),"") ->  | N13: =IF(($A13="")*($B13<>""),INDEX('Загальний ввод'!$R$21:$Z$999,MATCH(SMALL('Загальний ввод'!$AA$21:$AA$999,SUM($A10:$A13)),'Загальний ввод'!$AA$21:$AA$999,),MATCH(N$9,'Загальний ввод'!$R$20:$Z$20,))*INDEX('Загальний ввод'!$K$21:$O$999,MATCH(SMALL('Загальний ввод'!$AA$21:$AA$999,SUM($A10:$A13)),'Загальний ввод'!$AA$21:$AA$999,),MATCH($B13&"*",'Загальний ввод'!$K$19:$O$19,)),"") ->  | O13: =IF(($A13="")*($B13<>""),INDEX('Загальний ввод'!$R$21:$Z$999,MATCH(SMALL('Загальний ввод'!$AA$21:$AA$999,SUM($A10:$A13)),'Загальний ввод'!$AA$21:$AA$999,),MATCH(O$9,'Загальний ввод'!$R$20:$Z$20,))*INDEX('Загальний ввод'!$K$21:$O$999,MATCH(SMALL('Загальний ввод'!$AA$21:$AA$999,SUM($A10:$A13)),'Загальний ввод'!$AA$21:$AA$999,),MATCH($B13&"*",'Загальний ввод'!$K$19:$O$19,)),"") ->  | P13: =IF(($A13="")*($B13<>""),INDEX('Загальний ввод'!$R$21:$Z$999,MATCH(SMALL('Загальний ввод'!$AA$21:$AA$999,SUM($A10:$A13)),'Загальний ввод'!$AA$21:$AA$999,),MATCH(P$9,'Загальний ввод'!$R$20:$Z$20,))*INDEX('Загальний ввод'!$K$21:$O$999,MATCH(SMALL('Загальний ввод'!$AA$21:$AA$999,SUM($A10:$A13)),'Загальний ввод'!$AA$21:$AA$999,),MATCH($B13&"*",'Загальний ввод'!$K$19:$O$19,)),"") ->  | Q13: =IF(($A13="")*($B13<>""),INDEX('Загальний ввод'!$R$21:$Z$999,MATCH(SMALL('Загальний ввод'!$AA$21:$AA$999,SUM($A10:$A13)),'Загальний ввод'!$AA$21:$AA$999,),MATCH(Q$9,'Загальний ввод'!$R$20:$Z$20,))*INDEX('Загальний ввод'!$K$21:$O$999,MATCH(SMALL('Загальний ввод'!$AA$21:$AA$999,SUM($A10:$A13)),'Загальний ввод'!$AA$21:$AA$999,),MATCH($B13&"*",'Загальний ввод'!$K$19:$O$19,)),"") ->  | R13: =IF(($A13="")*($B13<>""),INDEX('Загальний ввод'!$R$21:$Z$999,MATCH(SMALL('Загальний ввод'!$AA$21:$AA$999,SUM($A10:$A13)),'Загальний ввод'!$AA$21:$AA$999,),MATCH(R$9,'Загальний ввод'!$R$20:$Z$20,))*INDEX('Загальний ввод'!$K$21:$O$999,MATCH(SMALL('Загальний ввод'!$AA$21:$AA$999,SUM($A10:$A13)),'Загальний ввод'!$AA$21:$AA$999,),MATCH($B13&"*",'Загальний ввод'!$K$19:$O$19,)),"") -> 
A14: =IF(B14="","",IF(MOD(ROW()-1,4),"",COUNT(A$10:A13)+1)) ->  | B14: =IF(MOD(ROW()-1,4),IF(B13="","",INDEX({"Циркуляція";"Інтервал роботи";"Час нижче ротора"},MOD(ROW()-1,4))),IFERROR(INDEX('Загальний ввод'!B:B,SMALL('Загальний ввод'!AA$21:AA$999,(ROW()-1)/4)),"")) -> Циркуляція | C14: =IF($A14="","",INDEX('Загальний ввод'!C$21:C$999,MATCH(SMALL('Загальний ввод'!$AA$21:$AA$999,SUM($A11:$A14)),'Загальний ввод'!$AA$21:$AA$999,))) ->  | D14: =IF($A14="","",INDEX('Загальний ввод'!D$21:D$999,MATCH(SMALL('Загальний ввод'!$AA$21:$AA$999,SUM($A11:$A14)),'Загальний ввод'!$AA$21:$AA$999,))) ->  | E14: =IF($A14="","",INDEX('Загальний ввод'!E$21:E$999,MATCH(SMALL('Загальний ввод'!$AA$21:$AA$999,SUM($A11:$A14)),'Загальний ввод'!$AA$21:$AA$999,))) ->  | F14: =IF($A14="","",INDEX('Загальний ввод'!F$21:F$999,MATCH(SMALL('Загальний ввод'!$AA$21:$AA$999,SUM($A11:$A14)),'Загальний ввод'!$AA$21:$AA$999,))) ->  | G14: =IF($A14="","",INDEX('Загальний ввод'!G$21:G$999,MATCH(SMALL('Загальний ввод'!$AA$21:$AA$999,SUM($A11:$A14)),'Загальний ввод'!$AA$21:$AA$999,))) ->  | H14: =IF($A14="","",INDEX('Загальний ввод'!H$21:H$999,MATCH(SMALL('Загальний ввод'!$AA$21:$AA$999,SUM($A11:$A14)),'Загальний ввод'!$AA$21:$AA$999,))) ->  | J14: =IF(($A14="")*($B14<>""),INDEX('Загальний ввод'!$R$21:$Z$999,MATCH(SMALL('Загальний ввод'!$AA$21:$AA$999,SUM($A11:$A14)),'Загальний ввод'!$AA$21:$AA$999,),MATCH(J$9,'Загальний ввод'!$R$20:$Z$20,))*INDEX('Загальний ввод'!$K$21:$O$999,MATCH(SMALL('Загальний ввод'!$AA$21:$AA$999,SUM($A11:$A14)),'Загальний ввод'!$AA$21:$AA$999,),MATCH($B14&"*",'Загальний ввод'!$K$19:$O$19,)),"") -> 0 | K14: =IF(($A14="")*($B14<>""),INDEX('Загальний ввод'!$R$21:$Z$999,MATCH(SMALL('Загальний ввод'!$AA$21:$AA$999,SUM($A11:$A14)),'Загальний ввод'!$AA$21:$AA$999,),MATCH(K$9,'Загальний ввод'!$R$20:$Z$20,))*INDEX('Загальний ввод'!$K$21:$O$999,MATCH(SMALL('Загальний ввод'!$AA$21:$AA$999,SUM($A11:$A14)),'Загальний ввод'!$AA$21:$AA$999,),MATCH($B14&"*",'Загальний ввод'!$K$19:$O$19,)),"") -> 0 | L14: =IF(($A14="")*($B14<>""),INDEX('Загальний ввод'!$R$21:$Z$999,MATCH(SMALL('Загальний ввод'!$AA$21:$AA$999,SUM($A11:$A14)),'Загальний ввод'!$AA$21:$AA$999,),MATCH(L$9,'Загальний ввод'!$R$20:$Z$20,))*INDEX('Загальний ввод'!$K$21:$O$999,MATCH(SMALL('Загальний ввод'!$AA$21:$AA$999,SUM($A11:$A14)),'Загальний ввод'!$AA$21:$AA$999,),MATCH($B14&"*",'Загальний ввод'!$K$19:$O$19,)),"") -> 0 | M14: =IF(($A14="")*($B14<>""),INDEX('Загальний ввод'!$R$21:$Z$999,MATCH(SMALL('Загальний ввод'!$AA$21:$AA$999,SUM($A11:$A14)),'Загальний ввод'!$AA$21:$AA$999,),MATCH(M$9,'Загальний ввод'!$R$20:$Z$20,))*INDEX('Загальний ввод'!$K$21:$O$999,MATCH(SMALL('Загальний ввод'!$AA$21:$AA$999,SUM($A11:$A14)),'Загальний ввод'!$AA$21:$AA$999,),MATCH($B14&"*",'Загальний ввод'!$K$19:$O$19,)),"") -> 0 | N14: =IF(($A14="")*($B14<>""),INDEX('Загальний ввод'!$R$21:$Z$999,MATCH(SMALL('Загальний ввод'!$AA$21:$AA$999,SUM($A11:$A14)),'Загальний ввод'!$AA$21:$AA$999,),MATCH(N$9,'Загальний ввод'!$R$20:$Z$20,))*INDEX('Загальний ввод'!$K$21:$O$999,MATCH(SMALL('Загальний ввод'!$AA$21:$AA$999,SUM($A11:$A14)),'Загальний ввод'!$AA$21:$AA$999,),MATCH($B14&"*",'Загальний ввод'!$K$19:$O$19,)),"") -> 0 | O14: =IF(($A14="")*($B14<>""),INDEX('Загальний ввод'!$R$21:$Z$999,MATCH(SMALL('Загальний ввод'!$AA$21:$AA$999,SUM($A11:$A14)),'Загальний ввод'!$AA$21:$AA$999,),MATCH(O$9,'Загальний ввод'!$R$20:$Z$20,))*INDEX('Загальний ввод'!$K$21:$O$999,MATCH(SMALL('Загальний ввод'!$AA$21:$AA$999,SUM($A11:$A14)),'Загальний ввод'!$AA$21:$AA$999,),MATCH($B14&"*",'Загальний ввод'!$K$19:$O$19,)),"") -> 0 | P14: =IF(($A14="")*($B14<>""),INDEX('Загальний ввод'!$R$21:$Z$999,MATCH(SMALL('Загальний ввод'!$AA$21:$AA$999,SUM($A11:$A14)),'Загальний ввод'!$AA$21:$AA$999,),MATCH(P$9,'Загальний ввод'!$R$20:$Z$20,))*INDEX('Загальний ввод'!$K$21:$O$999,MATCH(SMALL('Загальний ввод'!$AA$21:$AA$999,SUM($A11:$A14)),'Загальний ввод'!$AA$21:$AA$999,),MATCH($B14&"*",'Загальний ввод'!$K$19:$O$19,)),"") -> 0 | Q14: =IF(($A14="")*($B14<>""),INDEX('Загальний ввод'!$R$21:$Z$999,MATCH(SMALL('Загальний ввод'!$AA$21:$AA$999,SUM($A11:$A14)),'Загальний ввод'!$AA$21:$AA$999,),MATCH(Q$9,'Загальний ввод'!$R$20:$Z$20,))*INDEX('Загальний ввод'!$K$21:$O$999,MATCH(SMALL('Загальний ввод'!$AA$21:$AA$999,SUM($A11:$A14)),'Загальний ввод'!$AA$21:$AA$999,),MATCH($B14&"*",'Загальний ввод'!$K$19:$O$19,)),"") -> 0 | R14: =IF(($A14="")*($B14<>""),INDEX('Загальний ввод'!$R$21:$Z$999,MATCH(SMALL('Загальний ввод'!$AA$21:$AA$999,SUM($A11:$A14)),'Загальний ввод'!$AA$21:$AA$999,),MATCH(R$9,'Загальний ввод'!$R$20:$Z$20,))*INDEX('Загальний ввод'!$K$21:$O$999,MATCH(SMALL('Загальний ввод'!$AA$21:$AA$999,SUM($A11:$A14)),'Загальний ввод'!$AA$21:$AA$999,),MATCH($B14&"*",'Загальний ввод'!$K$19:$O$19,)),"") -> 0
A15: =IF(B15="","",IF(MOD(ROW()-1,4),"",COUNT(A$10:A14)+1)) ->  | B15: =IF(MOD(ROW()-1,4),IF(B14="","",INDEX({"Циркуляція";"Інтервал роботи";"Час нижче ротора"},MOD(ROW()-1,4))),IFERROR(INDEX('Загальний ввод'!B:B,SMALL('Загальний ввод'!AA$21:AA$999,(ROW()-1)/4)),"")) -> Інтервал роботи | C15: =IF($A15="","",INDEX('Загальний ввод'!C$21:C$999,MATCH(SMALL('Загальний ввод'!$AA$21:$AA$999,SUM($A12:$A15)),'Загальний ввод'!$AA$21:$AA$999,))) ->  | D15: =IF($A15="","",INDEX('Загальний ввод'!D$21:D$999,MATCH(SMALL('Загальний ввод'!$AA$21:$AA$999,SUM($A12:$A15)),'Загальний ввод'!$AA$21:$AA$999,))) ->  | E15: =IF($A15="","",INDEX('Загальний ввод'!E$21:E$999,MATCH(SMALL('Загальний ввод'!$AA$21:$AA$999,SUM($A12:$A15)),'Загальний ввод'!$AA$21:$AA$999,))) ->  | F15: =IF($A15="","",INDEX('Загальний ввод'!F$21:F$999,MATCH(SMALL('Загальний ввод'!$AA$21:$AA$999,SUM($A12:$A15)),'Загальний ввод'!$AA$21:$AA$999,))) ->  | G15: =IF($A15="","",INDEX('Загальний ввод'!G$21:G$999,MATCH(SMALL('Загальний ввод'!$AA$21:$AA$999,SUM($A12:$A15)),'Загальний ввод'!$AA$21:$AA$999,))) ->  | H15: =IF($A15="","",INDEX('Загальний ввод'!H$21:H$999,MATCH(SMALL('Загальний ввод'!$AA$21:$AA$999,SUM($A12:$A15)),'Загальний ввод'!$AA$21:$AA$999,))) ->  | J15: =IF(($A15="")*($B15<>""),INDEX('Загальний ввод'!$R$21:$Z$999,MATCH(SMALL('Загальний ввод'!$AA$21:$AA$999,SUM($A12:$A15)),'Загальний ввод'!$AA$21:$AA$999,),MATCH(J$9,'Загальний ввод'!$R$20:$Z$20,))*INDEX('Загальний ввод'!$K$21:$O$999,MATCH(SMALL('Загальний ввод'!$AA$21:$AA$999,SUM($A12:$A15)),'Загальний ввод'!$AA$21:$AA$999,),MATCH($B15&"*",'Загальний ввод'!$K$19:$O$19,)),"") -> 0 | K15: =IF(($A15="")*($B15<>""),INDEX('Загальний ввод'!$R$21:$Z$999,MATCH(SMALL('Загальний ввод'!$AA$21:$AA$999,SUM($A12:$A15)),'Загальний ввод'!$AA$21:$AA$999,),MATCH(K$9,'Загальний ввод'!$R$20:$Z$20,))*INDEX('Загальний ввод'!$K$21:$O$999,MATCH(SMALL('Загальний ввод'!$AA$21:$AA$999,SUM($A12:$A15)),'Загальний ввод'!$AA$21:$AA$999,),MATCH($B15&"*",'Загальний ввод'!$K$19:$O$19,)),"") -> 0 | L15: =IF(($A15="")*($B15<>""),INDEX('Загальний ввод'!$R$21:$Z$999,MATCH(SMALL('Загальний ввод'!$AA$21:$AA$999,SUM($A12:$A15)),'Загальний ввод'!$AA$21:$AA$999,),MATCH(L$9,'Загальний ввод'!$R$20:$Z$20,))*INDEX('Загальний ввод'!$K$21:$O$999,MATCH(SMALL('Загальний ввод'!$AA$21:$AA$999,SUM($A12:$A15)),'Загальний ввод'!$AA$21:$AA$999,),MATCH($B15&"*",'Загальний ввод'!$K$19:$O$19,)),"") -> 0 | M15: =IF(($A15="")*($B15<>""),INDEX('Загальний ввод'!$R$21:$Z$999,MATCH(SMALL('Загальний ввод'!$AA$21:$AA$999,SUM($A12:$A15)),'Загальний ввод'!$AA$21:$AA$999,),MATCH(M$9,'Загальний ввод'!$R$20:$Z$20,))*INDEX('Загальний ввод'!$K$21:$O$999,MATCH(SMALL('Загальний ввод'!$AA$21:$AA$999,SUM($A12:$A15)),'Загальний ввод'!$AA$21:$AA$999,),MATCH($B15&"*",'Загальний ввод'!$K$19:$O$19,)),"") -> 0 | N15: =IF(($A15="")*($B15<>""),INDEX('Загальний ввод'!$R$21:$Z$999,MATCH(SMALL('Загальний ввод'!$AA$21:$AA$999,SUM($A12:$A15)),'Загальний ввод'!$AA$21:$AA$999,),MATCH(N$9,'Загальний ввод'!$R$20:$Z$20,))*INDEX('Загальний ввод'!$K$21:$O$999,MATCH(SMALL('Загальний ввод'!$AA$21:$AA$999,SUM($A12:$A15)),'Загальний ввод'!$AA$21:$AA$999,),MATCH($B15&"*",'Загальний ввод'!$K$19:$O$19,)),"") -> 0 | O15: =IF(($A15="")*($B15<>""),INDEX('Загальний ввод'!$R$21:$Z$999,MATCH(SMALL('Загальний ввод'!$AA$21:$AA$999,SUM($A12:$A15)),'Загальний ввод'!$AA$21:$AA$999,),MATCH(O$9,'Загальний ввод'!$R$20:$Z$20,))*INDEX('Загальний ввод'!$K$21:$O$999,MATCH(SMALL('Загальний ввод'!$AA$21:$AA$999,SUM($A12:$A15)),'Загальний ввод'!$AA$21:$AA$999,),MATCH($B15&"*",'Загальний ввод'!$K$19:$O$19,)),"") -> 125.9 | P15: =IF(($A15="")*($B15<>""),INDEX('Загальний ввод'!$R$21:$Z$999,MATCH(SMALL('Загальний ввод'!$AA$21:$AA$999,SUM($A12:$A15)),'Загальний ввод'!$AA$21:$AA$999,),MATCH(P$9,'Загальний ввод'!$R$20:$Z$20,))*INDEX('Загальний ввод'!$K$21:$O$999,MATCH(SMALL('Загальний ввод'!$AA$21:$AA$999,SUM($A12:$A15)),'Загальний ввод'!$AA$21:$AA$999,),MATCH($B15&"*",'Загальний ввод'!$K$19:$O$19,)),"") -> 0 | Q15: =IF(($A15="")*($B15<>""),INDEX('Загальний ввод'!$R$21:$Z$999,MATCH(SMALL('Загальний ввод'!$AA$21:$AA$999,SUM($A12:$A15)),'Загальний ввод'!$AA$21:$AA$999,),MATCH(Q$9,'Загальний ввод'!$R$20:$Z$20,))*INDEX('Загальний ввод'!$K$21:$O$999,MATCH(SMALL('Загальний ввод'!$AA$21:$AA$999,SUM($A12:$A15)),'Загальний ввод'!$AA$21:$AA$999,),MATCH($B15&"*",'Загальний ввод'!$K$19:$O$19,)),"") -> 0 | R15: =IF(($A15="")*($B15<>""),INDEX('Загальний ввод'!$R$21:$Z$999,MATCH(SMALL('Загальний ввод'!$AA$21:$AA$999,SUM($A12:$A15)),'Загальний ввод'!$AA$21:$AA$999,),MATCH(R$9,'Загальний ввод'!$R$20:$Z$20,))*INDEX('Загальний ввод'!$K$21:$O$999,MATCH(SMALL('Загальний ввод'!$AA$21:$AA$999,SUM($A12:$A15)),'Загальний ввод'!$AA$21:$AA$999,),MATCH($B15&"*",'Загальний ввод'!$K$19:$O$19,)),"") -> 0
A16: =IF(B16="","",IF(MOD(ROW()-1,4),"",COUNT(A$10:A15)+1)) ->  | B16: =IF(MOD(ROW()-1,4),IF(B15="","",INDEX({"Циркуляція";"Інтервал роботи";"Час нижче ротора"},MOD(ROW()-1,4))),IFERROR(INDEX('Загальний ввод'!B:B,SMALL('Загальний ввод'!AA$21:AA$999,(ROW()-1)/4)),"")) -> Час нижче ротора | C16: =IF($A16="","",INDEX('Загальний ввод'!C$21:C$999,MATCH(SMALL('Загальний ввод'!$AA$21:$AA$999,SUM($A13:$A16)),'Загальний ввод'!$AA$21:$AA$999,))) ->  | D16: =IF($A16="","",INDEX('Загальний ввод'!D$21:D$999,MATCH(SMALL('Загальний ввод'!$AA$21:$AA$999,SUM($A13:$A16)),'Загальний ввод'!$AA$21:$AA$999,))) ->  | E16: =IF($A16="","",INDEX('Загальний ввод'!E$21:E$999,MATCH(SMALL('Загальний ввод'!$AA$21:$AA$999,SUM($A13:$A16)),'Загальний ввод'!$AA$21:$AA$999,))) ->  | F16: =IF($A16="","",INDEX('Загальний ввод'!F$21:F$999,MATCH(SMALL('Загальний ввод'!$AA$21:$AA$999,SUM($A13:$A16)),'Загальний ввод'!$AA$21:$AA$999,))) ->  | G16: =IF($A16="","",INDEX('Загальний ввод'!G$21:G$999,MATCH(SMALL('Загальний ввод'!$AA$21:$AA$999,SUM($A13:$A16)),'Загальний ввод'!$AA$21:$AA$999,))) ->  | H16: =IF($A16="","",INDEX('Загальний ввод'!H$21:H$999,MATCH(SMALL('Загальний ввод'!$AA$21:$AA$999,SUM($A13:$A16)),'Загальний ввод'!$AA$21:$AA$999,))) ->  | J16: =IF(($A16="")*($B16<>""),INDEX('Загальний ввод'!$R$21:$Z$999,MATCH(SMALL('Загальний ввод'!$AA$21:$AA$999,SUM($A13:$A16)),'Загальний ввод'!$AA$21:$AA$999,),MATCH(J$9,'Загальний ввод'!$R$20:$Z$20,))*INDEX('Загальний ввод'!$K$21:$O$999,MATCH(SMALL('Загальний ввод'!$AA$21:$AA$999,SUM($A13:$A16)),'Загальний ввод'!$AA$21:$AA$999,),MATCH($B16&"*",'Загальний ввод'!$K$19:$O$19,)),"") -> 0 | K16: =IF(($A16="")*($B16<>""),INDEX('Загальний ввод'!$R$21:$Z$999,MATCH(SMALL('Загальний ввод'!$AA$21:$AA$999,SUM($A13:$A16)),'Загальний ввод'!$AA$21:$AA$999,),MATCH(K$9,'Загальний ввод'!$R$20:$Z$20,))*INDEX('Загальний ввод'!$K$21:$O$999,MATCH(SMALL('Загальний ввод'!$AA$21:$AA$999,SUM($A13:$A16)),'Загальний ввод'!$AA$21:$AA$999,),MATCH($B16&"*",'Загальний ввод'!$K$19:$O$19,)),"") -> 0 | L16: =IF(($A16="")*($B16<>""),INDEX('Загальний ввод'!$R$21:$Z$999,MATCH(SMALL('Загальний ввод'!$AA$21:$AA$999,SUM($A13:$A16)),'Загальний ввод'!$AA$21:$AA$999,),MATCH(L$9,'Загальний ввод'!$R$20:$Z$20,))*INDEX('Загальний ввод'!$K$21:$O$999,MATCH(SMALL('Загальний ввод'!$AA$21:$AA$999,SUM($A13:$A16)),'Загальний ввод'!$AA$21:$AA$999,),MATCH($B16&"*",'Загальний ввод'!$K$19:$O$19,)),"") -> 0 | M16: =IF(($A16="")*($B16<>""),INDEX('Загальний ввод'!$R$21:$Z$999,MATCH(SMALL('Загальний ввод'!$AA$21:$AA$999,SUM($A13:$A16)),'Загальний ввод'!$AA$21:$AA$999,),MATCH(M$9,'Загальний ввод'!$R$20:$Z$20,))*INDEX('Загальний ввод'!$K$21:$O$999,MATCH(SMALL('Загальний ввод'!$AA$21:$AA$999,SUM($A13:$A16)),'Загальний ввод'!$AA$21:$AA$999,),MATCH($B16&"*",'Загальний ввод'!$K$19:$O$19,)),"") -> 0 | N16: =IF(($A16="")*($B16<>""),INDEX('Загальний ввод'!$R$21:$Z$999,MATCH(SMALL('Загальний ввод'!$AA$21:$AA$999,SUM($A13:$A16)),'Загальний ввод'!$AA$21:$AA$999,),MATCH(N$9,'Загальний ввод'!$R$20:$Z$20,))*INDEX('Загальний ввод'!$K$21:$O$999,MATCH(SMALL('Загальний ввод'!$AA$21:$AA$999,SUM($A13:$A16)),'Загальний ввод'!$AA$21:$AA$999,),MATCH($B16&"*",'Загальний ввод'!$K$19:$O$19,)),"") -> 0 | O16: =IF(($A16="")*($B16<>""),INDEX('Загальний ввод'!$R$21:$Z$999,MATCH(SMALL('Загальний ввод'!$AA$21:$AA$999,SUM($A13:$A16)),'Загальний ввод'!$AA$21:$AA$999,),MATCH(O$9,'Загальний ввод'!$R$20:$Z$20,))*INDEX('Загальний ввод'!$K$21:$O$999,MATCH(SMALL('Загальний ввод'!$AA$21:$AA$999,SUM($A13:$A16)),'Загальний ввод'!$AA$21:$AA$999,),MATCH($B16&"*",'Загальний ввод'!$K$19:$O$19,)),"") -> 0 | P16: =IF(($A16="")*($B16<>""),INDEX('Загальний ввод'!$R$21:$Z$999,MATCH(SMALL('Загальний ввод'!$AA$21:$AA$999,SUM($A13:$A16)),'Загальний ввод'!$AA$21:$AA$999,),MATCH(P$9,'Загальний ввод'!$R$20:$Z$20,))*INDEX('Загальний ввод'!$K$21:$O$999,MATCH(SMALL('Загальний ввод'!$AA$21:$AA$999,SUM($A13:$A16)),'Загальний ввод'!$AA$21:$AA$999,),MATCH($B16&"*",'Загальний ввод'!$K$19:$O$19,)),"") -> 0 | Q16: =IF(($A16="")*($B16<>""),INDEX('Загальний ввод'!$R$21:$Z$999,MATCH(SMALL('Загальний ввод'!$AA$21:$AA$999,SUM($A13:$A16)),'Загальний ввод'!$AA$21:$AA$999,),MATCH(Q$9,'Загальний ввод'!$R$20:$Z$20,))*INDEX('Загальний ввод'!$K$21:$O$999,MATCH(SMALL('Загальний ввод'!$AA$21:$AA$999,SUM($A13:$A16)),'Загальний ввод'!$AA$21:$AA$999,),MATCH($B16&"*",'Загальний ввод'!$K$19:$O$19,)),"") -> 0 | R16: =IF(($A16="")*($B16<>""),INDEX('Загальний ввод'!$R$21:$Z$999,MATCH(SMALL('Загальний ввод'!$AA$21:$AA$999,SUM($A13:$A16)),'Загальний ввод'!$AA$21:$AA$999,),MATCH(R$9,'Загальний ввод'!$R$20:$Z$20,))*INDEX('Загальний ввод'!$K$21:$O$999,MATCH(SMALL('Загальний ввод'!$AA$21:$AA$999,SUM($A13:$A16)),'Загальний ввод'!$AA$21:$AA$999,),MATCH($B16&"*",'Загальний ввод'!$K$19:$O$19,)),"") -> 0
A17: =IF(B17="","",IF(MOD(ROW()-1,4),"",COUNT(A$10:A16)+1)) -> 2 | B17: =IF(MOD(ROW()-1,4),IF(B16="","",INDEX({"Циркуляція";"Інтервал роботи";"Час нижче ротора"},MOD(ROW()-1,4))),IFERROR(INDEX('Загальний ввод'!B:B,SMALL('Загальний ввод'!AA$21:AA$999,(ROW()-1)/4)),"")) -> 117 Медведівка | C17: =IF($A17="","",INDEX('Загальний ввод'!C$21:C$999,MATCH(SMALL('Загальний ввод'!$AA$21:$AA$999,SUM($A14:$A17)),'Загальний ввод'!$AA$21:$AA$999,))) -> 2018-11-28 | D17: =IF($A17="","",INDEX('Загальний ввод'!D$21:D$999,MATCH(SMALL('Загальний ввод'!$AA$21:$AA$999,SUM($A14:$A17)),'Загальний ввод'!$AA$21:$AA$999,))) -> 08:00:00 | E17: =IF($A17="","",INDEX('Загальний ввод'!E$21:E$999,MATCH(SMALL('Загальний ввод'!$AA$21:$AA$999,SUM($A14:$A17)),'Загальний ввод'!$AA$21:$AA$999,))) -> 3545 | F17: =IF($A17="","",INDEX('Загальний ввод'!F$21:F$999,MATCH(SMALL('Загальний ввод'!$AA$21:$AA$999,SUM($A14:$A17)),'Загальний ввод'!$AA$21:$AA$999,))) -> 2018-12-13 | G17: =IF($A17="","",INDEX('Загальний ввод'!G$21:G$999,MATCH(SMALL('Загальний ввод'!$AA$21:$AA$999,SUM($A14:$A17)),'Загальний ввод'!$AA$21:$AA$999,))) -> 12:45:00 | H17: =IF($A17="","",INDEX('Загальний ввод'!H$21:H$999,MATCH(SMALL('Загальний ввод'!$AA$21:$AA$999,SUM($A14:$A17)),'Загальний ввод'!$AA$21:$AA$999,))) -> 3623.1 | I17: 78.1 | J17: =IF(($A17="")*($B17<>""),INDEX('Загальний ввод'!$R$21:$Z$999,MATCH(SMALL('Загальний ввод'!$AA$21:$AA$999,SUM($A14:$A17)),'Загальний ввод'!$AA$21:$AA$999,),MATCH(J$9,'Загальний ввод'!$R$20:$Z$20,))*INDEX('Загальний ввод'!$K$21:$O$999,MATCH(SMALL('Загальний ввод'!$AA$21:$AA$999,SUM($A14:$A17)),'Загальний ввод'!$AA$21:$AA$999,),MATCH($B17&"*",'Загальний ввод'!$K$19:$O$19,)),"") ->  | K17: =IF(($A17="")*($B17<>""),INDEX('Загальний ввод'!$R$21:$Z$999,MATCH(SMALL('Загальний ввод'!$AA$21:$AA$999,SUM($A14:$A17)),'Загальний ввод'!$AA$21:$AA$999,),MATCH(K$9,'Загальний ввод'!$R$20:$Z$20,))*INDEX('Загальний ввод'!$K$21:$O$999,MATCH(SMALL('Загальний ввод'!$AA$21:$AA$999,SUM($A14:$A17)),'Загальний ввод'!$AA$21:$AA$999,),MATCH($B17&"*",'Загальний ввод'!$K$19:$O$19,)),"") ->  | L17: =IF(($A17="")*($B17<>""),INDEX('Загальний ввод'!$R$21:$Z$999,MATCH(SMALL('Загальний ввод'!$AA$21:$AA$999,SUM($A14:$A17)),'Загальний ввод'!$AA$21:$AA$999,),MATCH(L$9,'Загальний ввод'!$R$20:$Z$20,))*INDEX('Загальний ввод'!$K$21:$O$999,MATCH(SMALL('Загальний ввод'!$AA$21:$AA$999,SUM($A14:$A17)),'Загальний ввод'!$AA$21:$AA$999,),MATCH($B17&"*",'Загальний ввод'!$K$19:$O$19,)),"") ->  | M17: =IF(($A17="")*($B17<>""),INDEX('Загальний ввод'!$R$21:$Z$999,MATCH(SMALL('Загальний ввод'!$AA$21:$AA$999,SUM($A14:$A17)),'Загальний ввод'!$AA$21:$AA$999,),MATCH(M$9,'Загальний ввод'!$R$20:$Z$20,))*INDEX('Загальний ввод'!$K$21:$O$999,MATCH(SMALL('Загальний ввод'!$AA$21:$AA$999,SUM($A14:$A17)),'Загальний ввод'!$AA$21:$AA$999,),MATCH($B17&"*",'Загальний ввод'!$K$19:$O$19,)),"") ->  | N17: =IF(($A17="")*($B17<>""),INDEX('Загальний ввод'!$R$21:$Z$999,MATCH(SMALL('Загальний ввод'!$AA$21:$AA$999,SUM($A14:$A17)),'Загальний ввод'!$AA$21:$AA$999,),MATCH(N$9,'Загальний ввод'!$R$20:$Z$20,))*INDEX('Загальний ввод'!$K$21:$O$999,MATCH(SMALL('Загальний ввод'!$AA$21:$AA$999,SUM($A14:$A17)),'Загальний ввод'!$AA$21:$AA$999,),MATCH($B17&"*",'Загальний ввод'!$K$19:$O$19,)),"") ->  | O17: =IF(($A17="")*($B17<>""),INDEX('Загальний ввод'!$R$21:$Z$999,MATCH(SMALL('Загальний ввод'!$AA$21:$AA$999,SUM($A14:$A17)),'Загальний ввод'!$AA$21:$AA$999,),MATCH(O$9,'Загальний ввод'!$R$20:$Z$20,))*INDEX('Загальний ввод'!$K$21:$O$999,MATCH(SMALL('Загальний ввод'!$AA$21:$AA$999,SUM($A14:$A17)),'Загальний ввод'!$AA$21:$AA$999,),MATCH($B17&"*",'Загальний ввод'!$K$19:$O$19,)),"") ->  | P17: =IF(($A17="")*($B17<>""),INDEX('Загальний ввод'!$R$21:$Z$999,MATCH(SMALL('Загальний ввод'!$AA$21:$AA$999,SUM($A14:$A17)),'Загальний ввод'!$AA$21:$AA$999,),MATCH(P$9,'Загальний ввод'!$R$20:$Z$20,))*INDEX('Загальний ввод'!$K$21:$O$999,MATCH(SMALL('Загальний ввод'!$AA$21:$AA$999,SUM($A14:$A17)),'Загальний ввод'!$AA$21:$AA$999,),MATCH($B17&"*",'Загальний ввод'!$K$19:$O$19,)),"") ->  | Q17: =IF(($A17="")*($B17<>""),INDEX('Загальний ввод'!$R$21:$Z$999,MATCH(SMALL('Загальний ввод'!$AA$21:$AA$999,SUM($A14:$A17)),'Загальний ввод'!$AA$21:$AA$999,),MATCH(Q$9,'Загальний ввод'!$R$20:$Z$20,))*INDEX('Загальний ввод'!$K$21:$O$999,MATCH(SMALL('Загальний ввод'!$AA$21:$AA$999,SUM($A14:$A17)),'Загальний ввод'!$AA$21:$AA$999,),MATCH($B17&"*",'Загальний ввод'!$K$19:$O$19,)),"") ->  | R17: =IF(($A17="")*($B17<>""),INDEX('Загальний ввод'!$R$21:$Z$999,MATCH(SMALL('Загальний ввод'!$AA$21:$AA$999,SUM($A14:$A17)),'Загальний ввод'!$AA$21:$AA$999,),MATCH(R$9,'Загальний ввод'!$R$20:$Z$20,))*INDEX('Загальний ввод'!$K$21:$O$999,MATCH(SMALL('Загальний ввод'!$AA$21:$AA$999,SUM($A14:$A17)),'Загальний ввод'!$AA$21:$AA$999,),MATCH($B17&"*",'Загальний ввод'!$K$19:$O$19,)),"") -> 
A18: =IF(B18="","",IF(MOD(ROW()-1,4),"",COUNT(A$10:A17)+1)) ->  | B18: =IF(MOD(ROW()-1,4),IF(B17="","",INDEX({"Циркуляція";"Інтервал роботи";"Час нижче ротора"},MOD(ROW()-1,4))),IFERROR(INDEX('Загальний ввод'!B:B,SMALL('Загальний ввод'!AA$21:AA$999,(ROW()-1)/4)),"")) -> Циркуляція | C18: =IF($A18="","",INDEX('Загальний ввод'!C$21:C$999,MATCH(SMALL('Загальний ввод'!$AA$21:$AA$999,SUM($A15:$A18)),'Загальний ввод'!$AA$21:$AA$999,))) ->  | D18: =IF($A18="","",INDEX('Загальний ввод'!D$21:D$999,MATCH(SMALL('Загальний ввод'!$AA$21:$AA$999,SUM($A15:$A18)),'Загальний ввод'!$AA$21:$AA$999,))) ->  | E18: =IF($A18="","",INDEX('Загальний ввод'!E$21:E$999,MATCH(SMALL('Загальний ввод'!$AA$21:$AA$999,SUM($A15:$A18)),'Загальний ввод'!$AA$21:$AA$999,))) ->  | F18: =IF($A18="","",INDEX('Загальний ввод'!F$21:F$999,MATCH(SMALL('Загальний ввод'!$AA$21:$AA$999,SUM($A15:$A18)),'Загальний ввод'!$AA$21:$AA$999,))) ->  | G18: =IF($A18="","",INDEX('Загальний ввод'!G$21:G$999,MATCH(SMALL('Загальний ввод'!$AA$21:$AA$999,SUM($A15:$A18)),'Загальний ввод'!$AA$21:$AA$999,))) ->  | H18: =IF($A18="","",INDEX('Загальний ввод'!H$21:H$999,MATCH(SMALL('Загальний ввод'!$AA$21:$AA$999,SUM($A15:$A18)),'Загальний ввод'!$AA$21:$AA$999,))) ->  | J18: =IF(($A18="")*($B18<>""),INDEX('Загальний ввод'!$R$21:$Z$999,MATCH(SMALL('Загальний ввод'!$AA$21:$AA$999,SUM($A15:$A18)),'Загальний ввод'!$AA$21:$AA$999,),MATCH(J$9,'Загальний ввод'!$R$20:$Z$20,))*INDEX('Загальний ввод'!$K$21:$O$999,MATCH(SMALL('Загальний ввод'!$AA$21:$AA$999,SUM($A15:$A18)),'Загальний ввод'!$AA$21:$AA$999,),MATCH($B18&"*",'Загальний ввод'!$K$19:$O$19,)),"") -> 0 | K18: =IF(($A18="")*($B18<>""),INDEX('Загальний ввод'!$R$21:$Z$999,MATCH(SMALL('Загальний ввод'!$AA$21:$AA$999,SUM($A15:$A18)),'Загальний ввод'!$AA$21:$AA$999,),MATCH(K$9,'Загальний ввод'!$R$20:$Z$20,))*INDEX('Загальний ввод'!$K$21:$O$999,MATCH(SMALL('Загальний ввод'!$AA$21:$AA$999,SUM($A15:$A18)),'Загальний ввод'!$AA$21:$AA$999,),MATCH($B18&"*",'Загальний ввод'!$K$19:$O$19,)),"") -> 0 | L18: =IF(($A18="")*($B18<>""),INDEX('Загальний ввод'!$R$21:$Z$999,MATCH(SMALL('Загальний ввод'!$AA$21:$AA$999,SUM($A15:$A18)),'Загальний ввод'!$AA$21:$AA$999,),MATCH(L$9,'Загальний ввод'!$R$20:$Z$20,))*INDEX('Загальний ввод'!$K$21:$O$999,MATCH(SMALL('Загальний ввод'!$AA$21:$AA$999,SUM($A15:$A18)),'Загальний ввод'!$AA$21:$AA$999,),MATCH($B18&"*",'Загальний ввод'!$K$19:$O$19,)),"") -> 0 | M18: =IF(($A18="")*($B18<>""),INDEX('Загальний ввод'!$R$21:$Z$999,MATCH(SMALL('Загальний ввод'!$AA$21:$AA$999,SUM($A15:$A18)),'Загальний ввод'!$AA$21:$AA$999,),MATCH(M$9,'Загальний ввод'!$R$20:$Z$20,))*INDEX('Загальний ввод'!$K$21:$O$999,MATCH(SMALL('Загальний ввод'!$AA$21:$AA$999,SUM($A15:$A18)),'Загальний ввод'!$AA$21:$AA$999,),MATCH($B18&"*",'Загальний ввод'!$K$19:$O$19,)),"") -> 0 | N18: =IF(($A18="")*($B18<>""),INDEX('Загальний ввод'!$R$21:$Z$999,MATCH(SMALL('Загальний ввод'!$AA$21:$AA$999,SUM($A15:$A18)),'Загальний ввод'!$AA$21:$AA$999,),MATCH(N$9,'Загальний ввод'!$R$20:$Z$20,))*INDEX('Загальний ввод'!$K$21:$O$999,MATCH(SMALL('Загальний ввод'!$AA$21:$AA$999,SUM($A15:$A18)),'Загальний ввод'!$AA$21:$AA$999,),MATCH($B18&"*",'Загальний ввод'!$K$19:$O$19,)),"") -> 11.20833333 | O18: =IF(($A18="")*($B18<>""),INDEX('Загальний ввод'!$R$21:$Z$999,MATCH(SMALL('Загальний ввод'!$AA$21:$AA$999,SUM($A15:$A18)),'Загальний ввод'!$AA$21:$AA$999,),MATCH(O$9,'Загальний ввод'!$R$20:$Z$20,))*INDEX('Загальний ввод'!$K$21:$O$999,MATCH(SMALL('Загальний ввод'!$AA$21:$AA$999,SUM($A15:$A18)),'Загальний ввод'!$AA$21:$AA$999,),MATCH($B18&"*",'Загальний ввод'!$K$19:$O$19,)),"") -> 11.20833333 | P18: =IF(($A18="")*($B18<>""),INDEX('Загальний ввод'!$R$21:$Z$999,MATCH(SMALL('Загальний ввод'!$AA$21:$AA$999,SUM($A15:$A18)),'Загальний ввод'!$AA$21:$AA$999,),MATCH(P$9,'Загальний ввод'!$R$20:$Z$20,))*INDEX('Загальний ввод'!$K$21:$O$999,MATCH(SMALL('Загальний ввод'!$AA$21:$AA$999,SUM($A15:$A18)),'Загальний ввод'!$AA$21:$AA$999,),MATCH($B18&"*",'Загальний ввод'!$K$19:$O$19,)),"") -> 0 | Q18: =IF(($A18="")*($B18<>""),INDEX('Загальний ввод'!$R$21:$Z$999,MATCH(SMALL('Загальний ввод'!$AA$21:$AA$999,SUM($A15:$A18)),'Загальний ввод'!$AA$21:$AA$999,),MATCH(Q$9,'Загальний ввод'!$R$20:$Z$20,))*INDEX('Загальний ввод'!$K$21:$O$999,MATCH(SMALL('Загальний ввод'!$AA$21:$AA$999,SUM($A15:$A18)),'Загальний ввод'!$AA$21:$AA$999,),MATCH($B18&"*",'Загальний ввод'!$K$19:$O$19,)),"") -> 0 | R18: =IF(($A18="")*($B18<>""),INDEX('Загальний ввод'!$R$21:$Z$999,MATCH(SMALL('Загальний ввод'!$AA$21:$AA$999,SUM($A15:$A18)),'Загальний ввод'!$AA$21:$AA$999,),MATCH(R$9,'Загальний ввод'!$R$20:$Z$20,))*INDEX('Загальний ввод'!$K$21:$O$999,MATCH(SMALL('Загальний ввод'!$AA$21:$AA$999,SUM($A15:$A18)),'Загальний ввод'!$AA$21:$AA$999,),MATCH($B18&"*",'Загальний ввод'!$K$19:$O$19,)),"") -> 0
A19: =IF(B19="","",IF(MOD(ROW()-1,4),"",COUNT(A$10:A18)+1)) ->  | B19: =IF(MOD(ROW()-1,4),IF(B18="","",INDEX({"Циркуляція";"Інтервал роботи";"Час нижче ротора"},MOD(ROW()-1,4))),IFERROR(INDEX('Загальний ввод'!B:B,SMALL('Загальний ввод'!AA$21:AA$999,(ROW()-1)/4)),"")) -> Інтервал роботи | C19: =IF($A19="","",INDEX('Загальний ввод'!C$21:C$999,MATCH(SMALL('Загальний ввод'!$AA$21:$AA$999,SUM($A16:$A19)),'Загальний ввод'!$AA$21:$AA$999,))) ->  | D19: =IF($A19="","",INDEX('Загальний ввод'!D$21:D$999,MATCH(SMALL('Загальний ввод'!$AA$21:$AA$999,SUM($A16:$A19)),'Загальний ввод'!$AA$21:$AA$999,))) ->  | E19: =IF($A19="","",INDEX('Загальний ввод'!E$21:E$999,MATCH(SMALL('Загальний ввод'!$AA$21:$AA$999,SUM($A16:$A19)),'Загальний ввод'!$AA$21:$AA$999,))) ->  | F19: =IF($A19="","",INDEX('Загальний ввод'!F$21:F$999,MATCH(SMALL('Загальний ввод'!$AA$21:$AA$999,SUM($A16:$A19)),'Загальний ввод'!$AA$21:$AA$999,))) ->  | G19: =IF($A19="","",INDEX('Загальний ввод'!G$21:G$999,MATCH(SMALL('Загальний ввод'!$AA$21:$AA$999,SUM($A16:$A19)),'Загальний ввод'!$AA$21:$AA$999,))) ->  | H19: =IF($A19="","",INDEX('Загальний ввод'!H$21:H$999,MATCH(SMALL('Загальний ввод'!$AA$21:$AA$999,SUM($A16:$A19)),'Загальний ввод'!$AA$21:$AA$999,))) ->  | J19: =IF(($A19="")*($B19<>""),INDEX('Загальний ввод'!$R$21:$Z$999,MATCH(SMALL('Загальний ввод'!$AA$21:$AA$999,SUM($A16:$A19)),'Загальний ввод'!$AA$21:$AA$999,),MATCH(J$9,'Загальний ввод'!$R$20:$Z$20,))*INDEX('Загальний ввод'!$K$21:$O$999,MATCH(SMALL('Загальний ввод'!$AA$21:$AA$999,SUM($A16:$A19)),'Загальний ввод'!$AA$21:$AA$999,),MATCH($B19&"*",'Загальний ввод'!$K$19:$O$19,)),"") -> 0 | K19: =IF(($A19="")*($B19<>""),INDEX('Загальний ввод'!$R$21:$Z$999,MATCH(SMALL('Загальний ввод'!$AA$21:$AA$999,SUM($A16:$A19)),'Загальний ввод'!$AA$21:$AA$999,),MATCH(K$9,'Загальний ввод'!$R$20:$Z$20,))*INDEX('Загальний ввод'!$K$21:$O$999,MATCH(SMALL('Загальний ввод'!$AA$21:$AA$999,SUM($A16:$A19)),'Загальний ввод'!$AA$21:$AA$999,),MATCH($B19&"*",'Загальний ввод'!$K$19:$O$19,)),"") -> 0 | L19: =IF(($A19="")*($B19<>""),INDEX('Загальний ввод'!$R$21:$Z$999,MATCH(SMALL('Загальний ввод'!$AA$21:$AA$999,SUM($A16:$A19)),'Загальний ввод'!$AA$21:$AA$999,),MATCH(L$9,'Загальний ввод'!$R$20:$Z$20,))*INDEX('Загальний ввод'!$K$21:$O$999,MATCH(SMALL('Загальний ввод'!$AA$21:$AA$999,SUM($A16:$A19)),'Загальний ввод'!$AA$21:$AA$999,),MATCH($B19&"*",'Загальний ввод'!$K$19:$O$19,)),"") -> 0 | M19: =IF(($A19="")*($B19<>""),INDEX('Загальний ввод'!$R$21:$Z$999,MATCH(SMALL('Загальний ввод'!$AA$21:$AA$999,SUM($A16:$A19)),'Загальний ввод'!$AA$21:$AA$999,),MATCH(M$9,'Загальний ввод'!$R$20:$Z$20,))*INDEX('Загальний ввод'!$K$21:$O$999,MATCH(SMALL('Загальний ввод'!$AA$21:$AA$999,SUM($A16:$A19)),'Загальний ввод'!$AA$21:$AA$999,),MATCH($B19&"*",'Загальний ввод'!$K$19:$O$19,)),"") -> 0 | N19: =IF(($A19="")*($B19<>""),INDEX('Загальний ввод'!$R$21:$Z$999,MATCH(SMALL('Загальний ввод'!$AA$21:$AA$999,SUM($A16:$A19)),'Загальний ввод'!$AA$21:$AA$999,),MATCH(N$9,'Загальний ввод'!$R$20:$Z$20,))*INDEX('Загальний ввод'!$K$21:$O$999,MATCH(SMALL('Загальний ввод'!$AA$21:$AA$999,SUM($A16:$A19)),'Загальний ввод'!$AA$21:$AA$999,),MATCH($B19&"*",'Загальний ввод'!$K$19:$O$19,)),"") -> 78.1 | O19: =IF(($A19="")*($B19<>""),INDEX('Загальний ввод'!$R$21:$Z$999,MATCH(SMALL('Загальний ввод'!$AA$21:$AA$999,SUM($A16:$A19)),'Загальний ввод'!$AA$21:$AA$999,),MATCH(O$9,'Загальний ввод'!$R$20:$Z$20,))*INDEX('Загальний ввод'!$K$21:$O$999,MATCH(SMALL('Загальний ввод'!$AA$21:$AA$999,SUM($A16:$A19)),'Загальний ввод'!$AA$21:$AA$999,),MATCH($B19&"*",'Загальний ввод'!$K$19:$O$19,)),"") -> 78.1 | P19: =IF(($A19="")*($B19<>""),INDEX('Загальний ввод'!$R$21:$Z$999,MATCH(SMALL('Загальний ввод'!$AA$21:$AA$999,SUM($A16:$A19)),'Загальний ввод'!$AA$21:$AA$999,),MATCH(P$9,'Загальний ввод'!$R$20:$Z$20,))*INDEX('Загальний ввод'!$K$21:$O$999,MATCH(SMALL('Загальний ввод'!$AA$21:$AA$999,SUM($A16:$A19)),'Загальний ввод'!$AA$21:$AA$999,),MATCH($B19&"*",'Загальний ввод'!$K$19:$O$19,)),"") -> 0 | Q19: =IF(($A19="")*($B19<>""),INDEX('Загальний ввод'!$R$21:$Z$999,MATCH(SMALL('Загальний ввод'!$AA$21:$AA$999,SUM($A16:$A19)),'Загальний ввод'!$AA$21:$AA$999,),MATCH(Q$9,'Загальний ввод'!$R$20:$Z$20,))*INDEX('Загальний ввод'!$K$21:$O$999,MATCH(SMALL('Загальний ввод'!$AA$21:$AA$999,SUM($A16:$A19)),'Загальний ввод'!$AA$21:$AA$999,),MATCH($B19&"*",'Загальний ввод'!$K$19:$O$19,)),"") -> 0 | R19: =IF(($A19="")*($B19<>""),INDEX('Загальний ввод'!$R$21:$Z$999,MATCH(SMALL('Загальний ввод'!$AA$21:$AA$999,SUM($A16:$A19)),'Загальний ввод'!$AA$21:$AA$999,),MATCH(R$9,'Загальний ввод'!$R$20:$Z$20,))*INDEX('Загальний ввод'!$K$21:$O$999,MATCH(SMALL('Загальний ввод'!$AA$21:$AA$999,SUM($A16:$A19)),'Загальний ввод'!$AA$21:$AA$999,),MATCH($B19&"*",'Загальний ввод'!$K$19:$O$19,)),"") -> 0
A20: =IF(B20="","",IF(MOD(ROW()-1,4),"",COUNT(A$10:A19)+1)) ->  | B20: =IF(MOD(ROW()-1,4),IF(B19="","",INDEX({"Циркуляція";"Інтервал роботи";"Час нижче ротора"},MOD(ROW()-1,4))),IFERROR(INDEX('Загальний ввод'!B:B,SMALL('Загальний ввод'!AA$21:AA$999,(ROW()-1)/4)),"")) -> Час нижче ротора | C20: =IF($A20="","",INDEX('Загальний ввод'!C$21:C$999,MATCH(SMALL('Загальний ввод'!$AA$21:$AA$999,SUM($A17:$A20)),'Загальний ввод'!$AA$21:$AA$999,))) ->  | D20: =IF($A20="","",INDEX('Загальний ввод'!D$21:D$999,MATCH(SMALL('Загальний ввод'!$AA$21:$AA$999,SUM($A17:$A20)),'Загальний ввод'!$AA$21:$AA$999,))) ->  | E20: =IF($A20="","",INDEX('Загальний ввод'!E$21:E$999,MATCH(SMALL('Загальний ввод'!$AA$21:$AA$999,SUM($A17:$A20)),'Загальний ввод'!$AA$21:$AA$999,))) ->  | F20: =IF($A20="","",INDEX('Загальний ввод'!F$21:F$999,MATCH(SMALL('Загальний ввод'!$AA$21:$AA$999,SUM($A17:$A20)),'Загальний ввод'!$AA$21:$AA$999,))) ->  | G20: =IF($A20="","",INDEX('Загальний ввод'!G$21:G$999,MATCH(SMALL('Загальний ввод'!$AA$21:$AA$999,SUM($A17:$A20)),'Загальний ввод'!$AA$21:$AA$999,))) ->  | H20: =IF($A20="","",INDEX('Загальний ввод'!H$21:H$999,MATCH(SMALL('Загальний ввод'!$AA$21:$AA$999,SUM($A17:$A20)),'Загальний ввод'!$AA$21:$AA$999,))) ->  | J20: =IF(($A20="")*($B20<>""),INDEX('Загальний ввод'!$R$21:$Z$999,MATCH(SMALL('Загальний ввод'!$AA$21:$AA$999,SUM($A17:$A20)),'Загальний ввод'!$AA$21:$AA$999,),MATCH(J$9,'Загальний ввод'!$R$20:$Z$20,))*INDEX('Загальний ввод'!$K$21:$O$999,MATCH(SMALL('Загальний ввод'!$AA$21:$AA$999,SUM($A17:$A20)),'Загальний ввод'!$AA$21:$AA$999,),MATCH($B20&"*",'Загальний ввод'!$K$19:$O$19,)),"") -> 0 | K20: =IF(($A20="")*($B20<>""),INDEX('Загальний ввод'!$R$21:$Z$999,MATCH(SMALL('Загальний ввод'!$AA$21:$AA$999,SUM($A17:$A20)),'Загальний ввод'!$AA$21:$AA$999,),MATCH(K$9,'Загальний ввод'!$R$20:$Z$20,))*INDEX('Загальний ввод'!$K$21:$O$999,MATCH(SMALL('Загальний ввод'!$AA$21:$AA$999,SUM($A17:$A20)),'Загальний ввод'!$AA$21:$AA$999,),MATCH($B20&"*",'Загальний ввод'!$K$19:$O$19,)),"") -> 0 | L20: =IF(($A20="")*($B20<>""),INDEX('Загальний ввод'!$R$21:$Z$999,MATCH(SMALL('Загальний ввод'!$AA$21:$AA$999,SUM($A17:$A20)),'Загальний ввод'!$AA$21:$AA$999,),MATCH(L$9,'Загальний ввод'!$R$20:$Z$20,))*INDEX('Загальний ввод'!$K$21:$O$999,MATCH(SMALL('Загальний ввод'!$AA$21:$AA$999,SUM($A17:$A20)),'Загальний ввод'!$AA$21:$AA$999,),MATCH($B20&"*",'Загальний ввод'!$K$19:$O$19,)),"") -> 0 | M20: =IF(($A20="")*($B20<>""),INDEX('Загальний ввод'!$R$21:$Z$999,MATCH(SMALL('Загальний ввод'!$AA$21:$AA$999,SUM($A17:$A20)),'Загальний ввод'!$AA$21:$AA$999,),MATCH(M$9,'Загальний ввод'!$R$20:$Z$20,))*INDEX('Загальний ввод'!$K$21:$O$999,MATCH(SMALL('Загальний ввод'!$AA$21:$AA$999,SUM($A17:$A20)),'Загальний ввод'!$AA$21:$AA$999,),MATCH($B20&"*",'Загальний ввод'!$K$19:$O$19,)),"") -> 0 | N20: =IF(($A20="")*($B20<>""),INDEX('Загальний ввод'!$R$21:$Z$999,MATCH(SMALL('Загальний ввод'!$AA$21:$AA$999,SUM($A17:$A20)),'Загальний ввод'!$AA$21:$AA$999,),MATCH(N$9,'Загальний ввод'!$R$20:$Z$20,))*INDEX('Загальний ввод'!$K$21:$O$999,MATCH(SMALL('Загальний ввод'!$AA$21:$AA$999,SUM($A17:$A20)),'Загальний ввод'!$AA$21:$AA$999,),MATCH($B20&"*",'Загальний ввод'!$K$19:$O$19,)),"") -> 15.07638889 | O20: =IF(($A20="")*($B20<>""),INDEX('Загальний ввод'!$R$21:$Z$999,MATCH(SMALL('Загальний ввод'!$AA$21:$AA$999,SUM($A17:$A20)),'Загальний ввод'!$AA$21:$AA$999,),MATCH(O$9,'Загальний ввод'!$R$20:$Z$20,))*INDEX('Загальний ввод'!$K$21:$O$999,MATCH(SMALL('Загальний ввод'!$AA$21:$AA$999,SUM($A17:$A20)),'Загальний ввод'!$AA$21:$AA$999,),MATCH($B20&"*",'Загальний ввод'!$K$19:$O$19,)),"") -> 15.07638889 | P20: =IF(($A20="")*($B20<>""),INDEX('Загальний ввод'!$R$21:$Z$999,MATCH(SMALL('Загальний ввод'!$AA$21:$AA$999,SUM($A17:$A20)),'Загальний ввод'!$AA$21:$AA$999,),MATCH(P$9,'Загальний ввод'!$R$20:$Z$20,))*INDEX('Загальний ввод'!$K$21:$O$999,MATCH(SMALL('Загальний ввод'!$AA$21:$AA$999,SUM($A17:$A20)),'Загальний ввод'!$AA$21:$AA$999,),MATCH($B20&"*",'Загальний ввод'!$K$19:$O$19,)),"") -> 0 | Q20: =IF(($A20="")*($B20<>""),INDEX('Загальний ввод'!$R$21:$Z$999,MATCH(SMALL('Загальний ввод'!$AA$21:$AA$999,SUM($A17:$A20)),'Загальний ввод'!$AA$21:$AA$999,),MATCH(Q$9,'Загальний ввод'!$R$20:$Z$20,))*INDEX('Загальний ввод'!$K$21:$O$999,MATCH(SMALL('Загальний ввод'!$AA$21:$AA$999,SUM($A17:$A20)),'Загальний ввод'!$AA$21:$AA$999,),MATCH($B20&"*",'Загальний ввод'!$K$19:$O$19,)),"") -> 0 | R20: =IF(($A20="")*($B20<>""),INDEX('Загальний ввод'!$R$21:$Z$999,MATCH(SMALL('Загальний ввод'!$AA$21:$AA$999,SUM($A17:$A20)),'Загальний ввод'!$AA$21:$AA$999,),MATCH(R$9,'Загальний ввод'!$R$20:$Z$20,))*INDEX('Загальний ввод'!$K$21:$O$999,MATCH(SMALL('Загальний ввод'!$AA$21:$AA$999,SUM($A17:$A20)),'Загальний ввод'!$AA$21:$AA$999,),MATCH($B20&"*",'Загальний ввод'!$K$19:$O$19,)),"") -> 0
A21: =IF(B21="","",IF(MOD(ROW()-1,4),"",COUNT(A$10:A20)+1)) -> 3 | B21: =IF(MOD(ROW()-1,4),IF(B20="","",INDEX({"Циркуляція";"Інтервал роботи";"Час нижче ротора"},MOD(ROW()-1,4))),IFERROR(INDEX('Загальний ввод'!B:B,SMALL('Загальний ввод'!AA$21:AA$999,(ROW()-1)/4)),"")) -> 117 Медведівка | C21: =IF($A21="","",INDEX('Загальний ввод'!C$21:C$999,MATCH(SMALL('Загальний ввод'!$AA$21:$AA$999,SUM($A18:$A21)),'Загальний ввод'!$AA$21:$AA$999,))) -> 2018-06-16 | D21: =IF($A21="","",INDEX('Загальний ввод'!D$21:D$999,MATCH(SMALL('Загальний ввод'!$AA$21:$AA$999,SUM($A18:$A21)),'Загальний ввод'!$AA$21:$AA$999,))) -> 03:00:00 | E21: =IF($A21="","",INDEX('Загальний ввод'!E$21:E$999,MATCH(SMALL('Загальний ввод'!$AA$21:$AA$999,SUM($A18:$A21)),'Загальний ввод'!$AA$21:$AA$999,))) -> 1080 | F21: =IF($A21="","",INDEX('Загальний ввод'!F$21:F$999,MATCH(SMALL('Загальний ввод'!$AA$21:$AA$999,SUM($A18:$A21)),'Загальний ввод'!$AA$21:$AA$999,))) -> 2018-06-22 | G21: =IF($A21="","",INDEX('Загальний ввод'!G$21:G$999,MATCH(SMALL('Загальний ввод'!$AA$21:$AA$999,SUM($A18:$A21)),'Загальний ввод'!$AA$21:$AA$999,))) -> 10:00:00 | H21: =IF($A21="","",INDEX('Загальний ввод'!H$21:H$999,MATCH(SMALL('Загальний ввод'!$AA$21:$AA$999,SUM($A18:$A21)),'Загальний ввод'!$AA$21:$AA$999,))) -> 1333.8 | I21: 253.8 | J21: =IF(($A21="")*($B21<>""),INDEX('Загальний ввод'!$R$21:$Z$999,MATCH(SMALL('Загальний ввод'!$AA$21:$AA$999,SUM($A18:$A21)),'Загальний ввод'!$AA$21:$AA$999,),MATCH(J$9,'Загальний ввод'!$R$20:$Z$20,))*INDEX('Загальний ввод'!$K$21:$O$999,MATCH(SMALL('Загальний ввод'!$AA$21:$AA$999,SUM($A18:$A21)),'Загальний ввод'!$AA$21:$AA$999,),MATCH($B21&"*",'Загальний ввод'!$K$19:$O$19,)),"") ->  | K21: =IF(($A21="")*($B21<>""),INDEX('Загальний ввод'!$R$21:$Z$999,MATCH(SMALL('Загальний ввод'!$AA$21:$AA$999,SUM($A18:$A21)),'Загальний ввод'!$AA$21:$AA$999,),MATCH(K$9,'Загальний ввод'!$R$20:$Z$20,))*INDEX('Загальний ввод'!$K$21:$O$999,MATCH(SMALL('Загальний ввод'!$AA$21:$AA$999,SUM($A18:$A21)),'Загальний ввод'!$AA$21:$AA$999,),MATCH($B21&"*",'Загальний ввод'!$K$19:$O$19,)),"") ->  | L21: =IF(($A21="")*($B21<>""),INDEX('Загальний ввод'!$R$21:$Z$999,MATCH(SMALL('Загальний ввод'!$AA$21:$AA$999,SUM($A18:$A21)),'Загальний ввод'!$AA$21:$AA$999,),MATCH(L$9,'Загальний ввод'!$R$20:$Z$20,))*INDEX('Загальний ввод'!$K$21:$O$999,MATCH(SMALL('Загальний ввод'!$AA$21:$AA$999,SUM($A18:$A21)),'Загальний ввод'!$AA$21:$AA$999,),MATCH($B21&"*",'Загальний ввод'!$K$19:$O$19,)),"") ->  | M21: =IF(($A21="")*($B21<>""),INDEX('Загальний ввод'!$R$21:$Z$999,MATCH(SMALL('Загальний ввод'!$AA$21:$AA$999,SUM($A18:$A21)),'Загальний ввод'!$AA$21:$AA$999,),MATCH(M$9,'Загальний ввод'!$R$20:$Z$20,))*INDEX('Загальний ввод'!$K$21:$O$999,MATCH(SMALL('Загальний ввод'!$AA$21:$AA$999,SUM($A18:$A21)),'Загальний ввод'!$AA$21:$AA$999,),MATCH($B21&"*",'Загальний ввод'!$K$19:$O$19,)),"") ->  | N21: =IF(($A21="")*($B21<>""),INDEX('Загальний ввод'!$R$21:$Z$999,MATCH(SMALL('Загальний ввод'!$AA$21:$AA$999,SUM($A18:$A21)),'Загальний ввод'!$AA$21:$AA$999,),MATCH(N$9,'Загальний ввод'!$R$20:$Z$20,))*INDEX('Загальний ввод'!$K$21:$O$999,MATCH(SMALL('Загальний ввод'!$AA$21:$AA$999,SUM($A18:$A21)),'Загальний ввод'!$AA$21:$AA$999,),MATCH($B21&"*",'Загальний ввод'!$K$19:$O$19,)),"") ->  | O21: =IF(($A21="")*($B21<>""),INDEX('Загальний ввод'!$R$21:$Z$999,MATCH(SMALL('Загальний ввод'!$AA$21:$AA$999,SUM($A18:$A21)),'Загальний ввод'!$AA$21:$AA$999,),MATCH(O$9,'Загальний ввод'!$R$20:$Z$20,))*INDEX('Загальний ввод'!$K$21:$O$999,MATCH(SMALL('Загальний ввод'!$AA$21:$AA$999,SUM($A18:$A21)),'Загальний ввод'!$AA$21:$AA$999,),MATCH($B21&"*",'Загальний ввод'!$K$19:$O$19,)),"") ->  | P21: =IF(($A21="")*($B21<>""),INDEX('Загальний ввод'!$R$21:$Z$999,MATCH(SMALL('Загальний ввод'!$AA$21:$AA$999,SUM($A18:$A21)),'Загальний ввод'!$AA$21:$AA$999,),MATCH(P$9,'Загальний ввод'!$R$20:$Z$20,))*INDEX('Загальний ввод'!$K$21:$O$999,MATCH(SMALL('Загальний ввод'!$AA$21:$AA$999,SUM($A18:$A21)),'Загальний ввод'!$AA$21:$AA$999,),MATCH($B21&"*",'Загальний ввод'!$K$19:$O$19,)),"") ->  | Q21: =IF(($A21="")*($B21<>""),INDEX('Загальний ввод'!$R$21:$Z$999,MATCH(SMALL('Загальний ввод'!$AA$21:$AA$999,SUM($A18:$A21)),'Загальний ввод'!$AA$21:$AA$999,),MATCH(Q$9,'Загальний ввод'!$R$20:$Z$20,))*INDEX('Загальний ввод'!$K$21:$O$999,MATCH(SMALL('Загальний ввод'!$AA$21:$AA$999,SUM($A18:$A21)),'Загальний ввод'!$AA$21:$AA$999,),MATCH($B21&"*",'Загальний ввод'!$K$19:$O$19,)),"") ->  | R21: =IF(($A21="")*($B21<>""),INDEX('Загальний ввод'!$R$21:$Z$999,MATCH(SMALL('Загальний ввод'!$AA$21:$AA$999,SUM($A18:$A21)),'Загальний ввод'!$AA$21:$AA$999,),MATCH(R$9,'Загальний ввод'!$R$20:$Z$20,))*INDEX('Загальний ввод'!$K$21:$O$999,MATCH(SMALL('Загальний ввод'!$AA$21:$AA$999,SUM($A18:$A21)),'Загальний ввод'!$AA$21:$AA$999,),MATCH($B21&"*",'Загальний ввод'!$K$19:$O$19,)),"") -> 
A22: =IF(B22="","",IF(MOD(ROW()-1,4),"",COUNT(A$10:A21)+1)) ->  | B22: =IF(MOD(ROW()-1,4),IF(B21="","",INDEX({"Циркуляція";"Інтервал роботи";"Час нижче ротора"},MOD(ROW()-1,4))),IFERROR(INDEX('Загальний ввод'!B:B,SMALL('Загальний ввод'!AA$21:AA$999,(ROW()-1)/4)),"")) -> Циркуляція | C22: =IF($A22="","",INDEX('Загальний ввод'!C$21:C$999,MATCH(SMALL('Загальний ввод'!$AA$21:$AA$999,SUM($A19:$A22)),'Загальний ввод'!$AA$21:$AA$999,))) ->  | D22: =IF($A22="","",INDEX('Загальний ввод'!D$21:D$999,MATCH(SMALL('Загальний ввод'!$AA$21:$AA$999,SUM($A19:$A22)),'Загальний ввод'!$AA$21:$AA$999,))) ->  | E22: =IF($A22="","",INDEX('Загальний ввод'!E$21:E$999,MATCH(SMALL('Загальний ввод'!$AA$21:$AA$999,SUM($A19:$A22)),'Загальний ввод'!$AA$21:$AA$999,))) ->  | F22: =IF($A22="","",INDEX('Загальний ввод'!F$21:F$999,MATCH(SMALL('Загальний ввод'!$AA$21:$AA$999,SUM($A19:$A22)),'Загальний ввод'!$AA$21:$AA$999,))) ->  | G22: =IF($A22="","",INDEX('Загальний ввод'!G$21:G$999,MATCH(SMALL('Загальний ввод'!$AA$21:$AA$999,SUM($A19:$A22)),'Загальний ввод'!$AA$21:$AA$999,))) ->  | H22: =IF($A22="","",INDEX('Загальний ввод'!H$21:H$999,MATCH(SMALL('Загальний ввод'!$AA$21:$AA$999,SUM($A19:$A22)),'Загальний ввод'!$AA$21:$AA$999,))) ->  | J22: =IF(($A22="")*($B22<>""),INDEX('Загальний ввод'!$R$21:$Z$999,MATCH(SMALL('Загальний ввод'!$AA$21:$AA$999,SUM($A19:$A22)),'Загальний ввод'!$AA$21:$AA$999,),MATCH(J$9,'Загальний ввод'!$R$20:$Z$20,))*INDEX('Загальний ввод'!$K$21:$O$999,MATCH(SMALL('Загальний ввод'!$AA$21:$AA$999,SUM($A19:$A22)),'Загальний ввод'!$AA$21:$AA$999,),MATCH($B22&"*",'Загальний ввод'!$K$19:$O$19,)),"") -> 0 | K22: =IF(($A22="")*($B22<>""),INDEX('Загальний ввод'!$R$21:$Z$999,MATCH(SMALL('Загальний ввод'!$AA$21:$AA$999,SUM($A19:$A22)),'Загальний ввод'!$AA$21:$AA$999,),MATCH(K$9,'Загальний ввод'!$R$20:$Z$20,))*INDEX('Загальний ввод'!$K$21:$O$999,MATCH(SMALL('Загальний ввод'!$AA$21:$AA$999,SUM($A19:$A22)),'Загальний ввод'!$AA$21:$AA$999,),MATCH($B22&"*",'Загальний ввод'!$K$19:$O$19,)),"") -> 0 | L22: =IF(($A22="")*($B22<>""),INDEX('Загальний ввод'!$R$21:$Z$999,MATCH(SMALL('Загальний ввод'!$AA$21:$AA$999,SUM($A19:$A22)),'Загальний ввод'!$AA$21:$AA$999,),MATCH(L$9,'Загальний ввод'!$R$20:$Z$20,))*INDEX('Загальний ввод'!$K$21:$O$999,MATCH(SMALL('Загальний ввод'!$AA$21:$AA$999,SUM($A19:$A22)),'Загальний ввод'!$AA$21:$AA$999,),MATCH($B22&"*",'Загальний ввод'!$K$19:$O$19,)),"") -> 0 | M22: =IF(($A22="")*($B22<>""),INDEX('Загальний ввод'!$R$21:$Z$999,MATCH(SMALL('Загальний ввод'!$AA$21:$AA$999,SUM($A19:$A22)),'Загальний ввод'!$AA$21:$AA$999,),MATCH(M$9,'Загальний ввод'!$R$20:$Z$20,))*INDEX('Загальний ввод'!$K$21:$O$999,MATCH(SMALL('Загальний ввод'!$AA$21:$AA$999,SUM($A19:$A22)),'Загальний ввод'!$AA$21:$AA$999,),MATCH($B22&"*",'Загальний ввод'!$K$19:$O$19,)),"") -> 0 | N22: =IF(($A22="")*($B22<>""),INDEX('Загальний ввод'!$R$21:$Z$999,MATCH(SMALL('Загальний ввод'!$AA$21:$AA$999,SUM($A19:$A22)),'Загальний ввод'!$AA$21:$AA$999,),MATCH(N$9,'Загальний ввод'!$R$20:$Z$20,))*INDEX('Загальний ввод'!$K$21:$O$999,MATCH(SMALL('Загальний ввод'!$AA$21:$AA$999,SUM($A19:$A22)),'Загальний ввод'!$AA$21:$AA$999,),MATCH($B22&"*",'Загальний ввод'!$K$19:$O$19,)),"") -> 4.625 | O22: =IF(($A22="")*($B22<>""),INDEX('Загальний ввод'!$R$21:$Z$999,MATCH(SMALL('Загальний ввод'!$AA$21:$AA$999,SUM($A19:$A22)),'Загальний ввод'!$AA$21:$AA$999,),MATCH(O$9,'Загальний ввод'!$R$20:$Z$20,))*INDEX('Загальний ввод'!$K$21:$O$999,MATCH(SMALL('Загальний ввод'!$AA$21:$AA$999,SUM($A19:$A22)),'Загальний ввод'!$AA$21:$AA$999,),MATCH($B22&"*",'Загальний ввод'!$K$19:$O$19,)),"") -> 4.625 | P22: =IF(($A22="")*($B22<>""),INDEX('Загальний ввод'!$R$21:$Z$999,MATCH(SMALL('Загальний ввод'!$AA$21:$AA$999,SUM($A19:$A22)),'Загальний ввод'!$AA$21:$AA$999,),MATCH(P$9,'Загальний ввод'!$R$20:$Z$20,))*INDEX('Загальний ввод'!$K$21:$O$999,MATCH(SMALL('Загальний ввод'!$AA$21:$AA$999,SUM($A19:$A22)),'Загальний ввод'!$AA$21:$AA$999,),MATCH($B22&"*",'Загальний ввод'!$K$19:$O$19,)),"") -> 0 | Q22: =IF(($A22="")*($B22<>""),INDEX('Загальний ввод'!$R$21:$Z$999,MATCH(SMALL('Загальний ввод'!$AA$21:$AA$999,SUM($A19:$A22)),'Загальний ввод'!$AA$21:$AA$999,),MATCH(Q$9,'Загальний ввод'!$R$20:$Z$20,))*INDEX('Загальний ввод'!$K$21:$O$999,MATCH(SMALL('Загальний ввод'!$AA$21:$AA$999,SUM($A19:$A22)),'Загальний ввод'!$AA$21:$AA$999,),MATCH($B22&"*",'Загальний ввод'!$K$19:$O$19,)),"") -> 0 | R22: =IF(($A22="")*($B22<>""),INDEX('Загальний ввод'!$R$21:$Z$999,MATCH(SMALL('Загальний ввод'!$AA$21:$AA$999,SUM($A19:$A22)),'Загальний ввод'!$AA$21:$AA$999,),MATCH(R$9,'Загальний ввод'!$R$20:$Z$20,))*INDEX('Загальний ввод'!$K$21:$O$999,MATCH(SMALL('Загальний ввод'!$AA$21:$AA$999,SUM($A19:$A22)),'Загальний ввод'!$AA$21:$AA$999,),MATCH($B22&"*",'Загальний ввод'!$K$19:$O$19,)),"") -> 0
A23: =IF(B23="","",IF(MOD(ROW()-1,4),"",COUNT(A$10:A22)+1)) ->  | B23: =IF(MOD(ROW()-1,4),IF(B22="","",INDEX({"Циркуляція";"Інтервал роботи";"Час нижче ротора"},MOD(ROW()-1,4))),IFERROR(INDEX('Загальний ввод'!B:B,SMALL('Загальний ввод'!AA$21:AA$999,(ROW()-1)/4)),"")) -> Інтервал роботи | C23: =IF($A23="","",INDEX('Загальний ввод'!C$21:C$999,MATCH(SMALL('Загальний ввод'!$AA$21:$AA$999,SUM($A20:$A23)),'Загальний ввод'!$AA$21:$AA$999,))) ->  | D23: =IF($A23="","",INDEX('Загальний ввод'!D$21:D$999,MATCH(SMALL('Загальний ввод'!$AA$21:$AA$999,SUM($A20:$A23)),'Загальний ввод'!$AA$21:$AA$999,))) ->  | E23: =IF($A23="","",INDEX('Загальний ввод'!E$21:E$999,MATCH(SMALL('Загальний ввод'!$AA$21:$AA$999,SUM($A20:$A23)),'Загальний ввод'!$AA$21:$AA$999,))) ->  | F23: =IF($A23="","",INDEX('Загальний ввод'!F$21:F$999,MATCH(SMALL('Загальний ввод'!$AA$21:$AA$999,SUM($A20:$A23)),'Загальний ввод'!$AA$21:$AA$999,))) ->  | G23: =IF($A23="","",INDEX('Загальний ввод'!G$21:G$999,MATCH(SMALL('Загальний ввод'!$AA$21:$AA$999,SUM($A20:$A23)),'Загальний ввод'!$AA$21:$AA$999,))) ->  | H23: =IF($A23="","",INDEX('Загальний ввод'!H$21:H$999,MATCH(SMALL('Загальний ввод'!$AA$21:$AA$999,SUM($A20:$A23)),'Загальний ввод'!$AA$21:$AA$999,))) ->  | J23: =IF(($A23="")*($B23<>""),INDEX('Загальний ввод'!$R$21:$Z$999,MATCH(SMALL('Загальний ввод'!$AA$21:$AA$999,SUM($A20:$A23)),'Загальний ввод'!$AA$21:$AA$999,),MATCH(J$9,'Загальний ввод'!$R$20:$Z$20,))*INDEX('Загальний ввод'!$K$21:$O$999,MATCH(SMALL('Загальний ввод'!$AA$21:$AA$999,SUM($A20:$A23)),'Загальний ввод'!$AA$21:$AA$999,),MATCH($B23&"*",'Загальний ввод'!$K$19:$O$19,)),"") -> 0 | K23: =IF(($A23="")*($B23<>""),INDEX('Загальний ввод'!$R$21:$Z$999,MATCH(SMALL('Загальний ввод'!$AA$21:$AA$999,SUM($A20:$A23)),'Загальний ввод'!$AA$21:$AA$999,),MATCH(K$9,'Загальний ввод'!$R$20:$Z$20,))*INDEX('Загальний ввод'!$K$21:$O$999,MATCH(SMALL('Загальний ввод'!$AA$21:$AA$999,SUM($A20:$A23)),'Загальний ввод'!$AA$21:$AA$999,),MATCH($B23&"*",'Загальний ввод'!$K$19:$O$19,)),"") -> 0 | L23: =IF(($A23="")*($B23<>""),INDEX('Загальний ввод'!$R$21:$Z$999,MATCH(SMALL('Загальний ввод'!$AA$21:$AA$999,SUM($A20:$A23)),'Загальний ввод'!$AA$21:$AA$999,),MATCH(L$9,'Загальний ввод'!$R$20:$Z$20,))*INDEX('Загальний ввод'!$K$21:$O$999,MATCH(SMALL('Загальний ввод'!$AA$21:$AA$999,SUM($A20:$A23)),'Загальний ввод'!$AA$21:$AA$999,),MATCH($B23&"*",'Загальний ввод'!$K$19:$O$19,)),"") -> 0 | M23: =IF(($A23="")*($B23<>""),INDEX('Загальний ввод'!$R$21:$Z$999,MATCH(SMALL('Загальний ввод'!$AA$21:$AA$999,SUM($A20:$A23)),'Загальний ввод'!$AA$21:$AA$999,),MATCH(M$9,'Загальний ввод'!$R$20:$Z$20,))*INDEX('Загальний ввод'!$K$21:$O$999,MATCH(SMALL('Загальний ввод'!$AA$21:$AA$999,SUM($A20:$A23)),'Загальний ввод'!$AA$21:$AA$999,),MATCH($B23&"*",'Загальний ввод'!$K$19:$O$19,)),"") -> 0 | N23: =IF(($A23="")*($B23<>""),INDEX('Загальний ввод'!$R$21:$Z$999,MATCH(SMALL('Загальний ввод'!$AA$21:$AA$999,SUM($A20:$A23)),'Загальний ввод'!$AA$21:$AA$999,),MATCH(N$9,'Загальний ввод'!$R$20:$Z$20,))*INDEX('Загальний ввод'!$K$21:$O$999,MATCH(SMALL('Загальний ввод'!$AA$21:$AA$999,SUM($A20:$A23)),'Загальний ввод'!$AA$21:$AA$999,),MATCH($B23&"*",'Загальний ввод'!$K$19:$O$19,)),"") -> 253.8 | O23: =IF(($A23="")*($B23<>""),INDEX('Загальний ввод'!$R$21:$Z$999,MATCH(SMALL('Загальний ввод'!$AA$21:$AA$999,SUM($A20:$A23)),'Загальний ввод'!$AA$21:$AA$999,),MATCH(O$9,'Загальний ввод'!$R$20:$Z$20,))*INDEX('Загальний ввод'!$K$21:$O$999,MATCH(SMALL('Загальний ввод'!$AA$21:$AA$999,SUM($A20:$A23)),'Загальний ввод'!$AA$21:$AA$999,),MATCH($B23&"*",'Загальний ввод'!$K$19:$O$19,)),"") -> 253.8 | P23: =IF(($A23="")*($B23<>""),INDEX('Загальний ввод'!$R$21:$Z$999,MATCH(SMALL('Загальний ввод'!$AA$21:$AA$999,SUM($A20:$A23)),'Загальний ввод'!$AA$21:$AA$999,),MATCH(P$9,'Загальний ввод'!$R$20:$Z$20,))*INDEX('Загальний ввод'!$K$21:$O$999,MATCH(SMALL('Загальний ввод'!$AA$21:$AA$999,SUM($A20:$A23)),'Загальний ввод'!$AA$21:$AA$999,),MATCH($B23&"*",'Загальний ввод'!$K$19:$O$19,)),"") -> 0 | Q23: =IF(($A23="")*($B23<>""),INDEX('Загальний ввод'!$R$21:$Z$999,MATCH(SMALL('Загальний ввод'!$AA$21:$AA$999,SUM($A20:$A23)),'Загальний ввод'!$AA$21:$AA$999,),MATCH(Q$9,'Загальний ввод'!$R$20:$Z$20,))*INDEX('Загальний ввод'!$K$21:$O$999,MATCH(SMALL('Загальний ввод'!$AA$21:$AA$999,SUM($A20:$A23)),'Загальний ввод'!$AA$21:$AA$999,),MATCH($B23&"*",'Загальний ввод'!$K$19:$O$19,)),"") -> 0 | R23: =IF(($A23="")*($B23<>""),INDEX('Загальний ввод'!$R$21:$Z$999,MATCH(SMALL('Загальний ввод'!$AA$21:$AA$999,SUM($A20:$A23)),'Загальний ввод'!$AA$21:$AA$999,),MATCH(R$9,'Загальний ввод'!$R$20:$Z$20,))*INDEX('Загальний ввод'!$K$21:$O$999,MATCH(SMALL('Загальний ввод'!$AA$21:$AA$999,SUM($A20:$A23)),'Загальний ввод'!$AA$21:$AA$999,),MATCH($B23&"*",'Загальний ввод'!$K$19:$O$19,)),"") -> 0
A24: =IF(B24="","",IF(MOD(ROW()-1,4),"",COUNT(A$10:A23)+1)) ->  | B24: =IF(MOD(ROW()-1,4),IF(B23="","",INDEX({"Циркуляція";"Інтервал роботи";"Час нижче ротора"},MOD(ROW()-1,4))),IFERROR(INDEX('Загальний ввод'!B:B,SMALL('Загальний ввод'!AA$21:AA$999,(ROW()-1)/4)),"")) -> Час нижче ротора | C24: =IF($A24="","",INDEX('Загальний ввод'!C$21:C$999,MATCH(SMALL('Загальний ввод'!$AA$21:$AA$999,SUM($A21:$A24)),'Загальний ввод'!$AA$21:$AA$999,))) ->  | D24: =IF($A24="","",INDEX('Загальний ввод'!D$21:D$999,MATCH(SMALL('Загальний ввод'!$AA$21:$AA$999,SUM($A21:$A24)),'Загальний ввод'!$AA$21:$AA$999,))) ->  | E24: =IF($A24="","",INDEX('Загальний ввод'!E$21:E$999,MATCH(SMALL('Загальний ввод'!$AA$21:$AA$999,SUM($A21:$A24)),'Загальний ввод'!$AA$21:$AA$999,))) ->  | F24: =IF($A24="","",INDEX('Загальний ввод'!F$21:F$999,MATCH(SMALL('Загальний ввод'!$AA$21:$AA$999,SUM($A21:$A24)),'Загальний ввод'!$AA$21:$AA$999,))) ->  | G24: =IF($A24="","",INDEX('Загальний ввод'!G$21:G$999,MATCH(SMALL('Загальний ввод'!$AA$21:$AA$999,SUM($A21:$A24)),'Загальний ввод'!$AA$21:$AA$999,))) ->  | H24: =IF($A24="","",INDEX('Загальний ввод'!H$21:H$999,MATCH(SMALL('Загальний ввод'!$AA$21:$AA$999,SUM($A21:$A24)),'Загальний ввод'!$AA$21:$AA$999,))) ->  | J24: =IF(($A24="")*($B24<>""),INDEX('Загальний ввод'!$R$21:$Z$999,MATCH(SMALL('Загальний ввод'!$AA$21:$AA$999,SUM($A21:$A24)),'Загальний ввод'!$AA$21:$AA$999,),MATCH(J$9,'Загальний ввод'!$R$20:$Z$20,))*INDEX('Загальний ввод'!$K$21:$O$999,MATCH(SMALL('Загальний ввод'!$AA$21:$AA$999,SUM($A21:$A24)),'Загальний ввод'!$AA$21:$AA$999,),MATCH($B24&"*",'Загальний ввод'!$K$19:$O$19,)),"") -> 0 | K24: =IF(($A24="")*($B24<>""),INDEX('Загальний ввод'!$R$21:$Z$999,MATCH(SMALL('Загальний ввод'!$AA$21:$AA$999,SUM($A21:$A24)),'Загальний ввод'!$AA$21:$AA$999,),MATCH(K$9,'Загальний ввод'!$R$20:$Z$20,))*INDEX('Загальний ввод'!$K$21:$O$999,MATCH(SMALL('Загальний ввод'!$AA$21:$AA$999,SUM($A21:$A24)),'Загальний ввод'!$AA$21:$AA$999,),MATCH($B24&"*",'Загальний ввод'!$K$19:$O$19,)),"") -> 0 | L24: =IF(($A24="")*($B24<>""),INDEX('Загальний ввод'!$R$21:$Z$999,MATCH(SMALL('Загальний ввод'!$AA$21:$AA$999,SUM($A21:$A24)),'Загальний ввод'!$AA$21:$AA$999,),MATCH(L$9,'Загальний ввод'!$R$20:$Z$20,))*INDEX('Загальний ввод'!$K$21:$O$999,MATCH(SMALL('Загальний ввод'!$AA$21:$AA$999,SUM($A21:$A24)),'Загальний ввод'!$AA$21:$AA$999,),MATCH($B24&"*",'Загальний ввод'!$K$19:$O$19,)),"") -> 0 | M24: =IF(($A24="")*($B24<>""),INDEX('Загальний ввод'!$R$21:$Z$999,MATCH(SMALL('Загальний ввод'!$AA$21:$AA$999,SUM($A21:$A24)),'Загальний ввод'!$AA$21:$AA$999,),MATCH(M$9,'Загальний ввод'!$R$20:$Z$20,))*INDEX('Загальний ввод'!$K$21:$O$999,MATCH(SMALL('Загальний ввод'!$AA$21:$AA$999,SUM($A21:$A24)),'Загальний ввод'!$AA$21:$AA$999,),MATCH($B24&"*",'Загальний ввод'!$K$19:$O$19,)),"") -> 0 | N24: =IF(($A24="")*($B24<>""),INDEX('Загальний ввод'!$R$21:$Z$999,MATCH(SMALL('Загальний ввод'!$AA$21:$AA$999,SUM($A21:$A24)),'Загальний ввод'!$AA$21:$AA$999,),MATCH(N$9,'Загальний ввод'!$R$20:$Z$20,))*INDEX('Загальний ввод'!$K$21:$O$999,MATCH(SMALL('Загальний ввод'!$AA$21:$AA$999,SUM($A21:$A24)),'Загальний ввод'!$AA$21:$AA$999,),MATCH($B24&"*",'Загальний ввод'!$K$19:$O$19,)),"") -> 6.291666667 | O24: =IF(($A24="")*($B24<>""),INDEX('Загальний ввод'!$R$21:$Z$999,MATCH(SMALL('Загальний ввод'!$AA$21:$AA$999,SUM($A21:$A24)),'Загальний ввод'!$AA$21:$AA$999,),MATCH(O$9,'Загальний ввод'!$R$20:$Z$20,))*INDEX('Загальний ввод'!$K$21:$O$999,MATCH(SMALL('Загальний ввод'!$AA$21:$AA$999,SUM($A21:$A24)),'Загальний ввод'!$AA$21:$AA$999,),MATCH($B24&"*",'Загальний ввод'!$K$19:$O$19,)),"") -> 6.291666667 | P24: =IF(($A24="")*($B24<>""),INDEX('Загальний ввод'!$R$21:$Z$999,MATCH(SMALL('Загальний ввод'!$AA$21:$AA$999,SUM($A21:$A24)),'Загальний ввод'!$AA$21:$AA$999,),MATCH(P$9,'Загальний ввод'!$R$20:$Z$20,))*INDEX('Загальний ввод'!$K$21:$O$999,MATCH(SMALL('Загальний ввод'!$AA$21:$AA$999,SUM($A21:$A24)),'Загальний ввод'!$AA$21:$AA$999,),MATCH($B24&"*",'Загальний ввод'!$K$19:$O$19,)),"") -> 0 | Q24: =IF(($A24="")*($B24<>""),INDEX('Загальний ввод'!$R$21:$Z$999,MATCH(SMALL('Загальний ввод'!$AA$21:$AA$999,SUM($A21:$A24)),'Загальний ввод'!$AA$21:$AA$999,),MATCH(Q$9,'Загальний ввод'!$R$20:$Z$20,))*INDEX('Загальний ввод'!$K$21:$O$999,MATCH(SMALL('Загальний ввод'!$AA$21:$AA$999,SUM($A21:$A24)),'Загальний ввод'!$AA$21:$AA$999,),MATCH($B24&"*",'Загальний ввод'!$K$19:$O$19,)),"") -> 0 | R24: =IF(($A24="")*($B24<>""),INDEX('Загальний ввод'!$R$21:$Z$999,MATCH(SMALL('Загальний ввод'!$AA$21:$AA$999,SUM($A21:$A24)),'Загальний ввод'!$AA$21:$AA$999,),MATCH(R$9,'Загальний ввод'!$R$20:$Z$20,))*INDEX('Загальний ввод'!$K$21:$O$999,MATCH(SMALL('Загальний ввод'!$AA$21:$AA$999,SUM($A21:$A24)),'Загальний ввод'!$AA$21:$AA$999,),MATCH($B24&"*",'Загальний ввод'!$K$19:$O$19,)),"") -> 0
A25: =IF(B25="","",IF(MOD(ROW()-1,4),"",COUNT(A$10:A24)+1)) -> 4 | B25: =IF(MOD(ROW()-1,4),IF(B24="","",INDEX({"Циркуляція";"Інтервал роботи";"Час нижче ротора"},MOD(ROW()-1,4))),IFERROR(INDEX('Загальний ввод'!B:B,SMALL('Загальний ввод'!AA$21:AA$999,(ROW()-1)/4)),"")) -> 85 сх.Медведівка | C25: =IF($A25="","",INDEX('Загальний ввод'!C$21:C$999,MATCH(SMALL('Загальний ввод'!$AA$21:$AA$999,SUM($A22:$A25)),'Загальний ввод'!$AA$21:$AA$999,))) -> 2018-06-29 | D25: =IF($A25="","",INDEX('Загальний ввод'!D$21:D$999,MATCH(SMALL('Загальний ввод'!$AA$21:$AA$999,SUM($A22:$A25)),'Загальний ввод'!$AA$21:$AA$999,))) -> 12:30:00 | E25: =IF($A25="","",INDEX('Загальний ввод'!E$21:E$999,MATCH(SMALL('Загальний ввод'!$AA$21:$AA$999,SUM($A22:$A25)),'Загальний ввод'!$AA$21:$AA$999,))) -> 1120.6 | F25: =IF($A25="","",INDEX('Загальний ввод'!F$21:F$999,MATCH(SMALL('Загальний ввод'!$AA$21:$AA$999,SUM($A22:$A25)),'Загальний ввод'!$AA$21:$AA$999,))) -> 2018-07-07 | G25: =IF($A25="","",INDEX('Загальний ввод'!G$21:G$999,MATCH(SMALL('Загальний ввод'!$AA$21:$AA$999,SUM($A22:$A25)),'Загальний ввод'!$AA$21:$AA$999,))) -> 05:00:00 | H25: =IF($A25="","",INDEX('Загальний ввод'!H$21:H$999,MATCH(SMALL('Загальний ввод'!$AA$21:$AA$999,SUM($A22:$A25)),'Загальний ввод'!$AA$21:$AA$999,))) -> 1458.5 | I25: 337.9 | J25: =IF(($A25="")*($B25<>""),INDEX('Загальний ввод'!$R$21:$Z$999,MATCH(SMALL('Загальний ввод'!$AA$21:$AA$999,SUM($A22:$A25)),'Загальний ввод'!$AA$21:$AA$999,),MATCH(J$9,'Загальний ввод'!$R$20:$Z$20,))*INDEX('Загальний ввод'!$K$21:$O$999,MATCH(SMALL('Загальний ввод'!$AA$21:$AA$999,SUM($A22:$A25)),'Загальний ввод'!$AA$21:$AA$999,),MATCH($B25&"*",'Загальний ввод'!$K$19:$O$19,)),"") ->  | K25: =IF(($A25="")*($B25<>""),INDEX('Загальний ввод'!$R$21:$Z$999,MATCH(SMALL('Загальний ввод'!$AA$21:$AA$999,SUM($A22:$A25)),'Загальний ввод'!$AA$21:$AA$999,),MATCH(K$9,'Загальний ввод'!$R$20:$Z$20,))*INDEX('Загальний ввод'!$K$21:$O$999,MATCH(SMALL('Загальний ввод'!$AA$21:$AA$999,SUM($A22:$A25)),'Загальний ввод'!$AA$21:$AA$999,),MATCH($B25&"*",'Загальний ввод'!$K$19:$O$19,)),"") ->  | L25: =IF(($A25="")*($B25<>""),INDEX('Загальний ввод'!$R$21:$Z$999,MATCH(SMALL('Загальний ввод'!$AA$21:$AA$999,SUM($A22:$A25)),'Загальний ввод'!$AA$21:$AA$999,),MATCH(L$9,'Загальний ввод'!$R$20:$Z$20,))*INDEX('Загальний ввод'!$K$21:$O$999,MATCH(SMALL('Загальний ввод'!$AA$21:$AA$999,SUM($A22:$A25)),'Загальний ввод'!$AA$21:$AA$999,),MATCH($B25&"*",'Загальний ввод'!$K$19:$O$19,)),"") ->  | M25: =IF(($A25="")*($B25<>""),INDEX('Загальний ввод'!$R$21:$Z$999,MATCH(SMALL('Загальний ввод'!$AA$21:$AA$999,SUM($A22:$A25)),'Загальний ввод'!$AA$21:$AA$999,),MATCH(M$9,'Загальний ввод'!$R$20:$Z$20,))*INDEX('Загальний ввод'!$K$21:$O$999,MATCH(SMALL('Загальний ввод'!$AA$21:$AA$999,SUM($A22:$A25)),'Загальний ввод'!$AA$21:$AA$999,),MATCH($B25&"*",'Загальний ввод'!$K$19:$O$19,)),"") ->  | N25: =IF(($A25="")*($B25<>""),INDEX('Загальний ввод'!$R$21:$Z$999,MATCH(SMALL('Загальний ввод'!$AA$21:$AA$999,SUM($A22:$A25)),'Загальний ввод'!$AA$21:$AA$999,),MATCH(N$9,'Загальний ввод'!$R$20:$Z$20,))*INDEX('Загальний ввод'!$K$21:$O$999,MATCH(SMALL('Загальний ввод'!$AA$21:$AA$999,SUM($A22:$A25)),'Загальний ввод'!$AA$21:$AA$999,),MATCH($B25&"*",'Загальний ввод'!$K$19:$O$19,)),"") ->  | O25: =IF(($A25="")*($B25<>""),INDEX('Загальний ввод'!$R$21:$Z$999,MATCH(SMALL('Загальний ввод'!$AA$21:$AA$999,SUM($A22:$A25)),'Загальний ввод'!$AA$21:$AA$999,),MATCH(O$9,'Загальний ввод'!$R$20:$Z$20,))*INDEX('Загальний ввод'!$K$21:$O$999,MATCH(SMALL('Загальний ввод'!$AA$21:$AA$999,SUM($A22:$A25)),'Загальний ввод'!$AA$21:$AA$999,),MATCH($B25&"*",'Загальний ввод'!$K$19:$O$19,)),"") ->  | P25: =IF(($A25="")*($B25<>""),INDEX('Загальний ввод'!$R$21:$Z$999,MATCH(SMALL('Загальний ввод'!$AA$21:$AA$999,SUM($A22:$A25)),'Загальний ввод'!$AA$21:$AA$999,),MATCH(P$9,'Загальний ввод'!$R$20:$Z$20,))*INDEX('Загальний ввод'!$K$21:$O$999,MATCH(SMALL('Загальний ввод'!$AA$21:$AA$999,SUM($A22:$A25)),'Загальний ввод'!$AA$21:$AA$999,),MATCH($B25&"*",'Загальний ввод'!$K$19:$O$19,)),"") ->  | Q25: =IF(($A25="")*($B25<>""),INDEX('Загальний ввод'!$R$21:$Z$999,MATCH(SMALL('Загальний ввод'!$AA$21:$AA$999,SUM($A22:$A25)),'Загальний ввод'!$AA$21:$AA$999,),MATCH(Q$9,'Загальний ввод'!$R$20:$Z$20,))*INDEX('Загальний ввод'!$K$21:$O$999,MATCH(SMALL('Загальний ввод'!$AA$21:$AA$999,SUM($A22:$A25)),'Загальний ввод'!$AA$21:$AA$999,),MATCH($B25&"*",'Загальний ввод'!$K$19:$O$19,)),"") ->  | R25: =IF(($A25="")*($B25<>""),INDEX('Загальний ввод'!$R$21:$Z$999,MATCH(SMALL('Загальний ввод'!$AA$21:$AA$999,SUM($A22:$A25)),'Загальний ввод'!$AA$21:$AA$999,),MATCH(R$9,'Загальний ввод'!$R$20:$Z$20,))*INDEX('Загальний ввод'!$K$21:$O$999,MATCH(SMALL('Загальний ввод'!$AA$21:$AA$999,SUM($A22:$A25)),'Загальний ввод'!$AA$21:$AA$999,),MATCH($B25&"*",'Загальний ввод'!$K$19:$O$19,)),"") -> 
A26: =IF(B26="","",IF(MOD(ROW()-1,4),"",COUNT(A$10:A25)+1)) ->  | B26: =IF(MOD(ROW()-1,4),IF(B25="","",INDEX({"Циркуляція";"Інтервал роботи";"Час нижче ротора"},MOD(ROW()-1,4))),IFERROR(INDEX('Загальний ввод'!B:B,SMALL('Загальний ввод'!AA$21:AA$999,(ROW()-1)/4)),"")) -> Циркуляція | C26: =IF($A26="","",INDEX('Загальний ввод'!C$21:C$999,MATCH(SMALL('Загальний ввод'!$AA$21:$AA$999,SUM($A23:$A26)),'Загальний ввод'!$AA$21:$AA$999,))) ->  | D26: =IF($A26="","",INDEX('Загальний ввод'!D$21:D$999,MATCH(SMALL('Загальний ввод'!$AA$21:$AA$999,SUM($A23:$A26)),'Загальний ввод'!$AA$21:$AA$999,))) ->  | E26: =IF($A26="","",INDEX('Загальний ввод'!E$21:E$999,MATCH(SMALL('Загальний ввод'!$AA$21:$AA$999,SUM($A23:$A26)),'Загальний ввод'!$AA$21:$AA$999,))) ->  | F26: =IF($A26="","",INDEX('Загальний ввод'!F$21:F$999,MATCH(SMALL('Загальний ввод'!$AA$21:$AA$999,SUM($A23:$A26)),'Загальний ввод'!$AA$21:$AA$999,))) ->  | G26: =IF($A26="","",INDEX('Загальний ввод'!G$21:G$999,MATCH(SMALL('Загальний ввод'!$AA$21:$AA$999,SUM($A23:$A26)),'Загальний ввод'!$AA$21:$AA$999,))) ->  | H26: =IF($A26="","",INDEX('Загальний ввод'!H$21:H$999,MATCH(SMALL('Загальний ввод'!$AA$21:$AA$999,SUM($A23:$A26)),'Загальний ввод'!$AA$21:$AA$999,))) ->  | J26: =IF(($A26="")*($B26<>""),INDEX('Загальний ввод'!$R$21:$Z$999,MATCH(SMALL('Загальний ввод'!$AA$21:$AA$999,SUM($A23:$A26)),'Загальний ввод'!$AA$21:$AA$999,),MATCH(J$9,'Загальний ввод'!$R$20:$Z$20,))*INDEX('Загальний ввод'!$K$21:$O$999,MATCH(SMALL('Загальний ввод'!$AA$21:$AA$999,SUM($A23:$A26)),'Загальний ввод'!$AA$21:$AA$999,),MATCH($B26&"*",'Загальний ввод'!$K$19:$O$19,)),"") -> 0 | K26: =IF(($A26="")*($B26<>""),INDEX('Загальний ввод'!$R$21:$Z$999,MATCH(SMALL('Загальний ввод'!$AA$21:$AA$999,SUM($A23:$A26)),'Загальний ввод'!$AA$21:$AA$999,),MATCH(K$9,'Загальний ввод'!$R$20:$Z$20,))*INDEX('Загальний ввод'!$K$21:$O$999,MATCH(SMALL('Загальний ввод'!$AA$21:$AA$999,SUM($A23:$A26)),'Загальний ввод'!$AA$21:$AA$999,),MATCH($B26&"*",'Загальний ввод'!$K$19:$O$19,)),"") -> 0 | L26: =IF(($A26="")*($B26<>""),INDEX('Загальний ввод'!$R$21:$Z$999,MATCH(SMALL('Загальний ввод'!$AA$21:$AA$999,SUM($A23:$A26)),'Загальний ввод'!$AA$21:$AA$999,),MATCH(L$9,'Загальний ввод'!$R$20:$Z$20,))*INDEX('Загальний ввод'!$K$21:$O$999,MATCH(SMALL('Загальний ввод'!$AA$21:$AA$999,SUM($A23:$A26)),'Загальний ввод'!$AA$21:$AA$999,),MATCH($B26&"*",'Загальний ввод'!$K$19:$O$19,)),"") -> 0 | M26: =IF(($A26="")*($B26<>""),INDEX('Загальний ввод'!$R$21:$Z$999,MATCH(SMALL('Загальний ввод'!$AA$21:$AA$999,SUM($A23:$A26)),'Загальний ввод'!$AA$21:$AA$999,),MATCH(M$9,'Загальний ввод'!$R$20:$Z$20,))*INDEX('Загальний ввод'!$K$21:$O$999,MATCH(SMALL('Загальний ввод'!$AA$21:$AA$999,SUM($A23:$A26)),'Загальний ввод'!$AA$21:$AA$999,),MATCH($B26&"*",'Загальний ввод'!$K$19:$O$19,)),"") -> 0 | N26: =IF(($A26="")*($B26<>""),INDEX('Загальний ввод'!$R$21:$Z$999,MATCH(SMALL('Загальний ввод'!$AA$21:$AA$999,SUM($A23:$A26)),'Загальний ввод'!$AA$21:$AA$999,),MATCH(N$9,'Загальний ввод'!$R$20:$Z$20,))*INDEX('Загальний ввод'!$K$21:$O$999,MATCH(SMALL('Загальний ввод'!$AA$21:$AA$999,SUM($A23:$A26)),'Загальний ввод'!$AA$21:$AA$999,),MATCH($B26&"*",'Загальний ввод'!$K$19:$O$19,)),"") -> 3.638888889 | O26: =IF(($A26="")*($B26<>""),INDEX('Загальний ввод'!$R$21:$Z$999,MATCH(SMALL('Загальний ввод'!$AA$21:$AA$999,SUM($A23:$A26)),'Загальний ввод'!$AA$21:$AA$999,),MATCH(O$9,'Загальний ввод'!$R$20:$Z$20,))*INDEX('Загальний ввод'!$K$21:$O$999,MATCH(SMALL('Загальний ввод'!$AA$21:$AA$999,SUM($A23:$A26)),'Загальний ввод'!$AA$21:$AA$999,),MATCH($B26&"*",'Загальний ввод'!$K$19:$O$19,)),"") -> 3.638888889 | P26: =IF(($A26="")*($B26<>""),INDEX('Загальний ввод'!$R$21:$Z$999,MATCH(SMALL('Загальний ввод'!$AA$21:$AA$999,SUM($A23:$A26)),'Загальний ввод'!$AA$21:$AA$999,),MATCH(P$9,'Загальний ввод'!$R$20:$Z$20,))*INDEX('Загальний ввод'!$K$21:$O$999,MATCH(SMALL('Загальний ввод'!$AA$21:$AA$999,SUM($A23:$A26)),'Загальний ввод'!$AA$21:$AA$999,),MATCH($B26&"*",'Загальний ввод'!$K$19:$O$19,)),"") -> 0 | Q26: =IF(($A26="")*($B26<>""),INDEX('Загальний ввод'!$R$21:$Z$999,MATCH(SMALL('Загальний ввод'!$AA$21:$AA$999,SUM($A23:$A26)),'Загальний ввод'!$AA$21:$AA$999,),MATCH(Q$9,'Загальний ввод'!$R$20:$Z$20,))*INDEX('Загальний ввод'!$K$21:$O$999,MATCH(SMALL('Загальний ввод'!$AA$21:$AA$999,SUM($A23:$A26)),'Загальний ввод'!$AA$21:$AA$999,),MATCH($B26&"*",'Загальний ввод'!$K$19:$O$19,)),"") -> 0 | R26: =IF(($A26="")*($B26<>""),INDEX('Загальний ввод'!$R$21:$Z$999,MATCH(SMALL('Загальний ввод'!$AA$21:$AA$999,SUM($A23:$A26)),'Загальний ввод'!$AA$21:$AA$999,),MATCH(R$9,'Загальний ввод'!$R$20:$Z$20,))*INDEX('Загальний ввод'!$K$21:$O$999,MATCH(SMALL('Загальний ввод'!$AA$21:$AA$999,SUM($A23:$A26)),'Загальний ввод'!$AA$21:$AA$999,),MATCH($B26&"*",'Загальний ввод'!$K$19:$O$19,)),"") -> 0
A27: =IF(B27="","",IF(MOD(ROW()-1,4),"",COUNT(A$10:A26)+1)) ->  | B27: =IF(MOD(ROW()-1,4),IF(B26="","",INDEX({"Циркуляція";"Інтервал роботи";"Час нижче ротора"},MOD(ROW()-1,4))),IFERROR(INDEX('Загальний ввод'!B:B,SMALL('Загальний ввод'!AA$21:AA$999,(ROW()-1)/4)),"")) -> Інтервал роботи | C27: =IF($A27="","",INDEX('Загальний ввод'!C$21:C$999,MATCH(SMALL('Загальний ввод'!$AA$21:$AA$999,SUM($A24:$A27)),'Загальний ввод'!$AA$21:$AA$999,))) ->  | D27: =IF($A27="","",INDEX('Загальний ввод'!D$21:D$999,MATCH(SMALL('Загальний ввод'!$AA$21:$AA$999,SUM($A24:$A27)),'Загальний ввод'!$AA$21:$AA$999,))) ->  | E27: =IF($A27="","",INDEX('Загальний ввод'!E$21:E$999,MATCH(SMALL('Загальний ввод'!$AA$21:$AA$999,SUM($A24:$A27)),'Загальний ввод'!$AA$21:$AA$999,))) ->  | F27: =IF($A27="","",INDEX('Загальний ввод'!F$21:F$999,MATCH(SMALL('Загальний ввод'!$AA$21:$AA$999,SUM($A24:$A27)),'Загальний ввод'!$AA$21:$AA$999,))) ->  | G27: =IF($A27="","",INDEX('Загальний ввод'!G$21:G$999,MATCH(SMALL('Загальний ввод'!$AA$21:$AA$999,SUM($A24:$A27)),'Загальний ввод'!$AA$21:$AA$999,))) ->  | H27: =IF($A27="","",INDEX('Загальний ввод'!H$21:H$999,MATCH(SMALL('Загальний ввод'!$AA$21:$AA$999,SUM($A24:$A27)),'Загальний ввод'!$AA$21:$AA$999,))) ->  | J27: =IF(($A27="")*($B27<>""),INDEX('Загальний ввод'!$R$21:$Z$999,MATCH(SMALL('Загальний ввод'!$AA$21:$AA$999,SUM($A24:$A27)),'Загальний ввод'!$AA$21:$AA$999,),MATCH(J$9,'Загальний ввод'!$R$20:$Z$20,))*INDEX('Загальний ввод'!$K$21:$O$999,MATCH(SMALL('Загальний ввод'!$AA$21:$AA$999,SUM($A24:$A27)),'Загальний ввод'!$AA$21:$AA$999,),MATCH($B27&"*",'Загальний ввод'!$K$19:$O$19,)),"") -> 0 | K27: =IF(($A27="")*($B27<>""),INDEX('Загальний ввод'!$R$21:$Z$999,MATCH(SMALL('Загальний ввод'!$AA$21:$AA$999,SUM($A24:$A27)),'Загальний ввод'!$AA$21:$AA$999,),MATCH(K$9,'Загальний ввод'!$R$20:$Z$20,))*INDEX('Загальний ввод'!$K$21:$O$999,MATCH(SMALL('Загальний ввод'!$AA$21:$AA$999,SUM($A24:$A27)),'Загальний ввод'!$AA$21:$AA$999,),MATCH($B27&"*",'Загальний ввод'!$K$19:$O$19,)),"") -> 0 | L27: =IF(($A27="")*($B27<>""),INDEX('Загальний ввод'!$R$21:$Z$999,MATCH(SMALL('Загальний ввод'!$AA$21:$AA$999,SUM($A24:$A27)),'Загальний ввод'!$AA$21:$AA$999,),MATCH(L$9,'Загальний ввод'!$R$20:$Z$20,))*INDEX('Загальний ввод'!$K$21:$O$999,MATCH(SMALL('Загальний ввод'!$AA$21:$AA$999,SUM($A24:$A27)),'Загальний ввод'!$AA$21:$AA$999,),MATCH($B27&"*",'Загальний ввод'!$K$19:$O$19,)),"") -> 0 | M27: =IF(($A27="")*($B27<>""),INDEX('Загальний ввод'!$R$21:$Z$999,MATCH(SMALL('Загальний ввод'!$AA$21:$AA$999,SUM($A24:$A27)),'Загальний ввод'!$AA$21:$AA$999,),MATCH(M$9,'Загальний ввод'!$R$20:$Z$20,))*INDEX('Загальний ввод'!$K$21:$O$999,MATCH(SMALL('Загальний ввод'!$AA$21:$AA$999,SUM($A24:$A27)),'Загальний ввод'!$AA$21:$AA$999,),MATCH($B27&"*",'Загальний ввод'!$K$19:$O$19,)),"") -> 0 | N27: =IF(($A27="")*($B27<>""),INDEX('Загальний ввод'!$R$21:$Z$999,MATCH(SMALL('Загальний ввод'!$AA$21:$AA$999,SUM($A24:$A27)),'Загальний ввод'!$AA$21:$AA$999,),MATCH(N$9,'Загальний ввод'!$R$20:$Z$20,))*INDEX('Загальний ввод'!$K$21:$O$999,MATCH(SMALL('Загальний ввод'!$AA$21:$AA$999,SUM($A24:$A27)),'Загальний ввод'!$AA$21:$AA$999,),MATCH($B27&"*",'Загальний ввод'!$K$19:$O$19,)),"") -> 337.9 | O27: =IF(($A27="")*($B27<>""),INDEX('Загальний ввод'!$R$21:$Z$999,MATCH(SMALL('Загальний ввод'!$AA$21:$AA$999,SUM($A24:$A27)),'Загальний ввод'!$AA$21:$AA$999,),MATCH(O$9,'Загальний ввод'!$R$20:$Z$20,))*INDEX('Загальний ввод'!$K$21:$O$999,MATCH(SMALL('Загальний ввод'!$AA$21:$AA$999,SUM($A24:$A27)),'Загальний ввод'!$AA$21:$AA$999,),MATCH($B27&"*",'Загальний ввод'!$K$19:$O$19,)),"") -> 337.9 | P27: =IF(($A27="")*($B27<>""),INDEX('Загальний ввод'!$R$21:$Z$999,MATCH(SMALL('Загальний ввод'!$AA$21:$AA$999,SUM($A24:$A27)),'Загальний ввод'!$AA$21:$AA$999,),MATCH(P$9,'Загальний ввод'!$R$20:$Z$20,))*INDEX('Загальний ввод'!$K$21:$O$999,MATCH(SMALL('Загальний ввод'!$AA$21:$AA$999,SUM($A24:$A27)),'Загальний ввод'!$AA$21:$AA$999,),MATCH($B27&"*",'Загальний ввод'!$K$19:$O$19,)),"") -> 0 | Q27: =IF(($A27="")*($B27<>""),INDEX('Загальний ввод'!$R$21:$Z$999,MATCH(SMALL('Загальний ввод'!$AA$21:$AA$999,SUM($A24:$A27)),'Загальний ввод'!$AA$21:$AA$999,),MATCH(Q$9,'Загальний ввод'!$R$20:$Z$20,))*INDEX('Загальний ввод'!$K$21:$O$999,MATCH(SMALL('Загальний ввод'!$AA$21:$AA$999,SUM($A24:$A27)),'Загальний ввод'!$AA$21:$AA$999,),MATCH($B27&"*",'Загальний ввод'!$K$19:$O$19,)),"") -> 0 | R27: =IF(($A27="")*($B27<>""),INDEX('Загальний ввод'!$R$21:$Z$999,MATCH(SMALL('Загальний ввод'!$AA$21:$AA$999,SUM($A24:$A27)),'Загальний ввод'!$AA$21:$AA$999,),MATCH(R$9,'Загальний ввод'!$R$20:$Z$20,))*INDEX('Загальний ввод'!$K$21:$O$999,MATCH(SMALL('Загальний ввод'!$AA$21:$AA$999,SUM($A24:$A27)),'Загальний ввод'!$AA$21:$AA$999,),MATCH($B27&"*",'Загальний ввод'!$K$19:$O$19,)),"") -> 0
A28: =IF(B28="","",IF(MOD(ROW()-1,4),"",COUNT(A$10:A27)+1)) ->  | B28: =IF(MOD(ROW()-1,4),IF(B27="","",INDEX({"Циркуляція";"Інтервал роботи";"Час нижче ротора"},MOD(ROW()-1,4))),IFERROR(INDEX('Загальний ввод'!B:B,SMALL('Загальний ввод'!AA$21:AA$999,(ROW()-1)/4)),"")) -> Час нижче ротора | C28: =IF($A28="","",INDEX('Загальний ввод'!C$21:C$999,MATCH(SMALL('Загальний ввод'!$AA$21:$AA$999,SUM($A25:$A28)),'Загальний ввод'!$AA$21:$AA$999,))) ->  | D28: =IF($A28="","",INDEX('Загальний ввод'!D$21:D$999,MATCH(SMALL('Загальний ввод'!$AA$21:$AA$999,SUM($A25:$A28)),'Загальний ввод'!$AA$21:$AA$999,))) ->  | E28: =IF($A28="","",INDEX('Загальний ввод'!E$21:E$999,MATCH(SMALL('Загальний ввод'!$AA$21:$AA$999,SUM($A25:$A28)),'Загальний ввод'!$AA$21:$AA$999,))) ->  | F28: =IF($A28="","",INDEX('Загальний ввод'!F$21:F$999,MATCH(SMALL('Загальний ввод'!$AA$21:$AA$999,SUM($A25:$A28)),'Загальний ввод'!$AA$21:$AA$999,))) ->  | G28: =IF($A28="","",INDEX('Загальний ввод'!G$21:G$999,MATCH(SMALL('Загальний ввод'!$AA$21:$AA$999,SUM($A25:$A28)),'Загальний ввод'!$AA$21:$AA$999,))) ->  | H28: =IF($A28="","",INDEX('Загальний ввод'!H$21:H$999,MATCH(SMALL('Загальний ввод'!$AA$21:$AA$999,SUM($A25:$A28)),'Загальний ввод'!$AA$21:$AA$999,))) ->  | J28: =IF(($A28="")*($B28<>""),INDEX('Загальний ввод'!$R$21:$Z$999,MATCH(SMALL('Загальний ввод'!$AA$21:$AA$999,SUM($A25:$A28)),'Загальний ввод'!$AA$21:$AA$999,),MATCH(J$9,'Загальний ввод'!$R$20:$Z$20,))*INDEX('Загальний ввод'!$K$21:$O$999,MATCH(SMALL('Загальний ввод'!$AA$21:$AA$999,SUM($A25:$A28)),'Загальний ввод'!$AA$21:$AA$999,),MATCH($B28&"*",'Загальний ввод'!$K$19:$O$19,)),"") -> 0 | K28: =IF(($A28="")*($B28<>""),INDEX('Загальний ввод'!$R$21:$Z$999,MATCH(SMALL('Загальний ввод'!$AA$21:$AA$999,SUM($A25:$A28)),'Загальний ввод'!$AA$21:$AA$999,),MATCH(K$9,'Загальний ввод'!$R$20:$Z$20,))*INDEX('Загальний ввод'!$K$21:$O$999,MATCH(SMALL('Загальний ввод'!$AA$21:$AA$999,SUM($A25:$A28)),'Загальний ввод'!$AA$21:$AA$999,),MATCH($B28&"*",'Загальний ввод'!$K$19:$O$19,)),"") -> 0 | L28: =IF(($A28="")*($B28<>""),INDEX('Загальний ввод'!$R$21:$Z$999,MATCH(SMALL('Загальний ввод'!$AA$21:$AA$999,SUM($A25:$A28)),'Загальний ввод'!$AA$21:$AA$999,),MATCH(L$9,'Загальний ввод'!$R$20:$Z$20,))*INDEX('Загальний ввод'!$K$21:$O$999,MATCH(SMALL('Загальний ввод'!$AA$21:$AA$999,SUM($A25:$A28)),'Загальний ввод'!$AA$21:$AA$999,),MATCH($B28&"*",'Загальний ввод'!$K$19:$O$19,)),"") -> 0 | M28: =IF(($A28="")*($B28<>""),INDEX('Загальний ввод'!$R$21:$Z$999,MATCH(SMALL('Загальний ввод'!$AA$21:$AA$999,SUM($A25:$A28)),'Загальний ввод'!$AA$21:$AA$999,),MATCH(M$9,'Загальний ввод'!$R$20:$Z$20,))*INDEX('Загальний ввод'!$K$21:$O$999,MATCH(SMALL('Загальний ввод'!$AA$21:$AA$999,SUM($A25:$A28)),'Загальний ввод'!$AA$21:$AA$999,),MATCH($B28&"*",'Загальний ввод'!$K$19:$O$19,)),"") -> 0 | N28: =IF(($A28="")*($B28<>""),INDEX('Загальний ввод'!$R$21:$Z$999,MATCH(SMALL('Загальний ввод'!$AA$21:$AA$999,SUM($A25:$A28)),'Загальний ввод'!$AA$21:$AA$999,),MATCH(N$9,'Загальний ввод'!$R$20:$Z$20,))*INDEX('Загальний ввод'!$K$21:$O$999,MATCH(SMALL('Загальний ввод'!$AA$21:$AA$999,SUM($A25:$A28)),'Загальний ввод'!$AA$21:$AA$999,),MATCH($B28&"*",'Загальний ввод'!$K$19:$O$19,)),"") -> 7.6875 | O28: =IF(($A28="")*($B28<>""),INDEX('Загальний ввод'!$R$21:$Z$999,MATCH(SMALL('Загальний ввод'!$AA$21:$AA$999,SUM($A25:$A28)),'Загальний ввод'!$AA$21:$AA$999,),MATCH(O$9,'Загальний ввод'!$R$20:$Z$20,))*INDEX('Загальний ввод'!$K$21:$O$999,MATCH(SMALL('Загальний ввод'!$AA$21:$AA$999,SUM($A25:$A28)),'Загальний ввод'!$AA$21:$AA$999,),MATCH($B28&"*",'Загальний ввод'!$K$19:$O$19,)),"") -> 7.6875 | P28: =IF(($A28="")*($B28<>""),INDEX('Загальний ввод'!$R$21:$Z$999,MATCH(SMALL('Загальний ввод'!$AA$21:$AA$999,SUM($A25:$A28)),'Загальний ввод'!$AA$21:$AA$999,),MATCH(P$9,'Загальний ввод'!$R$20:$Z$20,))*INDEX('Загальний ввод'!$K$21:$O$999,MATCH(SMALL('Загальний ввод'!$AA$21:$AA$999,SUM($A25:$A28)),'Загальний ввод'!$AA$21:$AA$999,),MATCH($B28&"*",'Загальний ввод'!$K$19:$O$19,)),"") -> 0 | Q28: =IF(($A28="")*($B28<>""),INDEX('Загальний ввод'!$R$21:$Z$999,MATCH(SMALL('Загальний ввод'!$AA$21:$AA$999,SUM($A25:$A28)),'Загальний ввод'!$AA$21:$AA$999,),MATCH(Q$9,'Загальний ввод'!$R$20:$Z$20,))*INDEX('Загальний ввод'!$K$21:$O$999,MATCH(SMALL('Загальний ввод'!$AA$21:$AA$999,SUM($A25:$A28)),'Загальний ввод'!$AA$21:$AA$999,),MATCH($B28&"*",'Загальний ввод'!$K$19:$O$19,)),"") -> 0 | R28: =IF(($A28="")*($B28<>""),INDEX('Загальний ввод'!$R$21:$Z$999,MATCH(SMALL('Загальний ввод'!$AA$21:$AA$999,SUM($A25:$A28)),'Загальний ввод'!$AA$21:$AA$999,),MATCH(R$9,'Загальний ввод'!$R$20:$Z$20,))*INDEX('Загальний ввод'!$K$21:$O$999,MATCH(SMALL('Загальний ввод'!$AA$21:$AA$999,SUM($A25:$A28)),'Загальний ввод'!$AA$21:$AA$999,),MATCH($B28&"*",'Загальний ввод'!$K$19:$O$19,)),"") -> 0
A29: =IF(B29="","",IF(MOD(ROW()-1,4),"",COUNT(A$10:A28)+1)) -> 5 | B29: =IF(MOD(ROW()-1,4),IF(B28="","",INDEX({"Циркуляція";"Інтервал роботи";"Час нижче ротора"},MOD(ROW()-1,4))),IFERROR(INDEX('Загальний ввод'!B:B,SMALL('Загальний ввод'!AA$21:AA$999,(ROW()-1)/4)),"")) -> 73 Зах.Соснівська | C29: =IF($A29="","",INDEX('Загальний ввод'!C$21:C$999,MATCH(SMALL('Загальний ввод'!$AA$21:$AA$999,SUM($A26:$A29)),'Загальний ввод'!$AA$21:$AA$999,))) -> 2018-07-18 | D29: =IF($A29="","",INDEX('Загальний ввод'!D$21:D$999,MATCH(SMALL('Загальний ввод'!$AA$21:$AA$999,SUM($A26:$A29)),'Загальний ввод'!$AA$21:$AA$999,))) -> 04:20:00 | E29: =IF($A29="","",INDEX('Загальний ввод'!E$21:E$999,MATCH(SMALL('Загальний ввод'!$AA$21:$AA$999,SUM($A26:$A29)),'Загальний ввод'!$AA$21:$AA$999,))) -> 2080 | F29: =IF($A29="","",INDEX('Загальний ввод'!F$21:F$999,MATCH(SMALL('Загальний ввод'!$AA$21:$AA$999,SUM($A26:$A29)),'Загальний ввод'!$AA$21:$AA$999,))) -> 2018-07-22 | G29: =IF($A29="","",INDEX('Загальний ввод'!G$21:G$999,MATCH(SMALL('Загальний ввод'!$AA$21:$AA$999,SUM($A26:$A29)),'Загальний ввод'!$AA$21:$AA$999,))) -> 12:30:00 | H29: =IF($A29="","",INDEX('Загальний ввод'!H$21:H$999,MATCH(SMALL('Загальний ввод'!$AA$21:$AA$999,SUM($A26:$A29)),'Загальний ввод'!$AA$21:$AA$999,))) -> 2247 | I29: 167 | J29: =IF(($A29="")*($B29<>""),INDEX('Загальний ввод'!$R$21:$Z$999,MATCH(SMALL('Загальний ввод'!$AA$21:$AA$999,SUM($A26:$A29)),'Загальний ввод'!$AA$21:$AA$999,),MATCH(J$9,'Загальний ввод'!$R$20:$Z$20,))*INDEX('Загальний ввод'!$K$21:$O$999,MATCH(SMALL('Загальний ввод'!$AA$21:$AA$999,SUM($A26:$A29)),'Загальний ввод'!$AA$21:$AA$999,),MATCH($B29&"*",'Загальний ввод'!$K$19:$O$19,)),"") ->  | K29: =IF(($A29="")*($B29<>""),INDEX('Загальний ввод'!$R$21:$Z$999,MATCH(SMALL('Загальний ввод'!$AA$21:$AA$999,SUM($A26:$A29)),'Загальний ввод'!$AA$21:$AA$999,),MATCH(K$9,'Загальний ввод'!$R$20:$Z$20,))*INDEX('Загальний ввод'!$K$21:$O$999,MATCH(SMALL('Загальний ввод'!$AA$21:$AA$999,SUM($A26:$A29)),'Загальний ввод'!$AA$21:$AA$999,),MATCH($B29&"*",'Загальний ввод'!$K$19:$O$19,)),"") ->  | L29: =IF(($A29="")*($B29<>""),INDEX('Загальний ввод'!$R$21:$Z$999,MATCH(SMALL('Загальний ввод'!$AA$21:$AA$999,SUM($A26:$A29)),'Загальний ввод'!$AA$21:$AA$999,),MATCH(L$9,'Загальний ввод'!$R$20:$Z$20,))*INDEX('Загальний ввод'!$K$21:$O$999,MATCH(SMALL('Загальний ввод'!$AA$21:$AA$999,SUM($A26:$A29)),'Загальний ввод'!$AA$21:$AA$999,),MATCH($B29&"*",'Загальний ввод'!$K$19:$O$19,)),"") ->  | M29: =IF(($A29="")*($B29<>""),INDEX('Загальний ввод'!$R$21:$Z$999,MATCH(SMALL('Загальний ввод'!$AA$21:$AA$999,SUM($A26:$A29)),'Загальний ввод'!$AA$21:$AA$999,),MATCH(M$9,'Загальний ввод'!$R$20:$Z$20,))*INDEX('Загальний ввод'!$K$21:$O$999,MATCH(SMALL('Загальний ввод'!$AA$21:$AA$999,SUM($A26:$A29)),'Загальний ввод'!$AA$21:$AA$999,),MATCH($B29&"*",'Загальний ввод'!$K$19:$O$19,)),"") ->  | N29: =IF(($A29="")*($B29<>""),INDEX('Загальний ввод'!$R$21:$Z$999,MATCH(SMALL('Загальний ввод'!$AA$21:$AA$999,SUM($A26:$A29)),'Загальний ввод'!$AA$21:$AA$999,),MATCH(N$9,'Загальний ввод'!$R$20:$Z$20,))*INDEX('Загальний ввод'!$K$21:$O$999,MATCH(SMALL('Загальний ввод'!$AA$21:$AA$999,SUM($A26:$A29)),'Загальний ввод'!$AA$21:$AA$999,),MATCH($B29&"*",'Загальний ввод'!$K$19:$O$19,)),"") ->  | O29: =IF(($A29="")*($B29<>""),INDEX('Загальний ввод'!$R$21:$Z$999,MATCH(SMALL('Загальний ввод'!$AA$21:$AA$999,SUM($A26:$A29)),'Загальний ввод'!$AA$21:$AA$999,),MATCH(O$9,'Загальний ввод'!$R$20:$Z$20,))*INDEX('Загальний ввод'!$K$21:$O$999,MATCH(SMALL('Загальний ввод'!$AA$21:$AA$999,SUM($A26:$A29)),'Загальний ввод'!$AA$21:$AA$999,),MATCH($B29&"*",'Загальний ввод'!$K$19:$O$19,)),"") ->  | P29: =IF(($A29="")*($B29<>""),INDEX('Загальний ввод'!$R$21:$Z$999,MATCH(SMALL('Загальний ввод'!$AA$21:$AA$999,SUM($A26:$A29)),'Загальний ввод'!$AA$21:$AA$999,),MATCH(P$9,'Загальний ввод'!$R$20:$Z$20,))*INDEX('Загальний ввод'!$K$21:$O$999,MATCH(SMALL('Загальний ввод'!$AA$21:$AA$999,SUM($A26:$A29)),'Загальний ввод'!$AA$21:$AA$999,),MATCH($B29&"*",'Загальний ввод'!$K$19:$O$19,)),"") ->  | Q29: =IF(($A29="")*($B29<>""),INDEX('Загальний ввод'!$R$21:$Z$999,MATCH(SMALL('Загальний ввод'!$AA$21:$AA$999,SUM($A26:$A29)),'Загальний ввод'!$AA$21:$AA$999,),MATCH(Q$9,'Загальний ввод'!$R$20:$Z$20,))*INDEX('Загальний ввод'!$K$21:$O$999,MATCH(SMALL('Загальний ввод'!$AA$21:$AA$999,SUM($A26:$A29)),'Загальний ввод'!$AA$21:$AA$999,),MATCH($B29&"*",'Загальний ввод'!$K$19:$O$19,)),"") ->  | R29: =IF(($A29="")*($B29<>""),INDEX('Загальний ввод'!$R$21:$Z$999,MATCH(SMALL('Загальний ввод'!$AA$21:$AA$999,SUM($A26:$A29)),'Загальний ввод'!$AA$21:$AA$999,),MATCH(R$9,'Загальний ввод'!$R$20:$Z$20,))*INDEX('Загальний ввод'!$K$21:$O$999,MATCH(SMALL('Загальний ввод'!$AA$21:$AA$999,SUM($A26:$A29)),'Загальний ввод'!$AA$21:$AA$999,),MATCH($B29&"*",'Загальний ввод'!$K$19:$O$19,)),"") -> 
A30: =IF(B30="","",IF(MOD(ROW()-1,4),"",COUNT(A$10:A29)+1)) ->  | B30: =IF(MOD(ROW()-1,4),IF(B29="","",INDEX({"Циркуляція";"Інтервал роботи";"Час нижче ротора"},MOD(ROW()-1,4))),IFERROR(INDEX('Загальний ввод'!B:B,SMALL('Загальний ввод'!AA$21:AA$999,(ROW()-1)/4)),"")) -> Циркуляція | C30: =IF($A30="","",INDEX('Загальний ввод'!C$21:C$999,MATCH(SMALL('Загальний ввод'!$AA$21:$AA$999,SUM($A27:$A30)),'Загальний ввод'!$AA$21:$AA$999,))) ->  | D30: =IF($A30="","",INDEX('Загальний ввод'!D$21:D$999,MATCH(SMALL('Загальний ввод'!$AA$21:$AA$999,SUM($A27:$A30)),'Загальний ввод'!$AA$21:$AA$999,))) ->  | E30: =IF($A30="","",INDEX('Загальний ввод'!E$21:E$999,MATCH(SMALL('Загальний ввод'!$AA$21:$AA$999,SUM($A27:$A30)),'Загальний ввод'!$AA$21:$AA$999,))) ->  | F30: =IF($A30="","",INDEX('Загальний ввод'!F$21:F$999,MATCH(SMALL('Загальний ввод'!$AA$21:$AA$999,SUM($A27:$A30)),'Загальний ввод'!$AA$21:$AA$999,))) ->  | G30: =IF($A30="","",INDEX('Загальний ввод'!G$21:G$999,MATCH(SMALL('Загальний ввод'!$AA$21:$AA$999,SUM($A27:$A30)),'Загальний ввод'!$AA$21:$AA$999,))) ->  | H30: =IF($A30="","",INDEX('Загальний ввод'!H$21:H$999,MATCH(SMALL('Загальний ввод'!$AA$21:$AA$999,SUM($A27:$A30)),'Загальний ввод'!$AA$21:$AA$999,))) ->  | J30: =IF(($A30="")*($B30<>""),INDEX('Загальний ввод'!$R$21:$Z$999,MATCH(SMALL('Загальний ввод'!$AA$21:$AA$999,SUM($A27:$A30)),'Загальний ввод'!$AA$21:$AA$999,),MATCH(J$9,'Загальний ввод'!$R$20:$Z$20,))*INDEX('Загальний ввод'!$K$21:$O$999,MATCH(SMALL('Загальний ввод'!$AA$21:$AA$999,SUM($A27:$A30)),'Загальний ввод'!$AA$21:$AA$999,),MATCH($B30&"*",'Загальний ввод'!$K$19:$O$19,)),"") -> 0 | K30: =IF(($A30="")*($B30<>""),INDEX('Загальний ввод'!$R$21:$Z$999,MATCH(SMALL('Загальний ввод'!$AA$21:$AA$999,SUM($A27:$A30)),'Загальний ввод'!$AA$21:$AA$999,),MATCH(K$9,'Загальний ввод'!$R$20:$Z$20,))*INDEX('Загальний ввод'!$K$21:$O$999,MATCH(SMALL('Загальний ввод'!$AA$21:$AA$999,SUM($A27:$A30)),'Загальний ввод'!$AA$21:$AA$999,),MATCH($B30&"*",'Загальний ввод'!$K$19:$O$19,)),"") -> 0 | L30: =IF(($A30="")*($B30<>""),INDEX('Загальний ввод'!$R$21:$Z$999,MATCH(SMALL('Загальний ввод'!$AA$21:$AA$999,SUM($A27:$A30)),'Загальний ввод'!$AA$21:$AA$999,),MATCH(L$9,'Загальний ввод'!$R$20:$Z$20,))*INDEX('Загальний ввод'!$K$21:$O$999,MATCH(SMALL('Загальний ввод'!$AA$21:$AA$999,SUM($A27:$A30)),'Загальний ввод'!$AA$21:$AA$999,),MATCH($B30&"*",'Загальний ввод'!$K$19:$O$19,)),"") -> 0 | M30: =IF(($A30="")*($B30<>""),INDEX('Загальний ввод'!$R$21:$Z$999,MATCH(SMALL('Загальний ввод'!$AA$21:$AA$999,SUM($A27:$A30)),'Загальний ввод'!$AA$21:$AA$999,),MATCH(M$9,'Загальний ввод'!$R$20:$Z$20,))*INDEX('Загальний ввод'!$K$21:$O$999,MATCH(SMALL('Загальний ввод'!$AA$21:$AA$999,SUM($A27:$A30)),'Загальний ввод'!$AA$21:$AA$999,),MATCH($B30&"*",'Загальний ввод'!$K$19:$O$19,)),"") -> 0 | N30: =IF(($A30="")*($B30<>""),INDEX('Загальний ввод'!$R$21:$Z$999,MATCH(SMALL('Загальний ввод'!$AA$21:$AA$999,SUM($A27:$A30)),'Загальний ввод'!$AA$21:$AA$999,),MATCH(N$9,'Загальний ввод'!$R$20:$Z$20,))*INDEX('Загальний ввод'!$K$21:$O$999,MATCH(SMALL('Загальний ввод'!$AA$21:$AA$999,SUM($A27:$A30)),'Загальний ввод'!$AA$21:$AA$999,),MATCH($B30&"*",'Загальний ввод'!$K$19:$O$19,)),"") -> 1.84375 | O30: =IF(($A30="")*($B30<>""),INDEX('Загальний ввод'!$R$21:$Z$999,MATCH(SMALL('Загальний ввод'!$AA$21:$AA$999,SUM($A27:$A30)),'Загальний ввод'!$AA$21:$AA$999,),MATCH(O$9,'Загальний ввод'!$R$20:$Z$20,))*INDEX('Загальний ввод'!$K$21:$O$999,MATCH(SMALL('Загальний ввод'!$AA$21:$AA$999,SUM($A27:$A30)),'Загальний ввод'!$AA$21:$AA$999,),MATCH($B30&"*",'Загальний ввод'!$K$19:$O$19,)),"") -> 1.84375 | P30: =IF(($A30="")*($B30<>""),INDEX('Загальний ввод'!$R$21:$Z$999,MATCH(SMALL('Загальний ввод'!$AA$21:$AA$999,SUM($A27:$A30)),'Загальний ввод'!$AA$21:$AA$999,),MATCH(P$9,'Загальний ввод'!$R$20:$Z$20,))*INDEX('Загальний ввод'!$K$21:$O$999,MATCH(SMALL('Загальний ввод'!$AA$21:$AA$999,SUM($A27:$A30)),'Загальний ввод'!$AA$21:$AA$999,),MATCH($B30&"*",'Загальний ввод'!$K$19:$O$19,)),"") -> 0 | Q30: =IF(($A30="")*($B30<>""),INDEX('Загальний ввод'!$R$21:$Z$999,MATCH(SMALL('Загальний ввод'!$AA$21:$AA$999,SUM($A27:$A30)),'Загальний ввод'!$AA$21:$AA$999,),MATCH(Q$9,'Загальний ввод'!$R$20:$Z$20,))*INDEX('Загальний ввод'!$K$21:$O$999,MATCH(SMALL('Загальний ввод'!$AA$21:$AA$999,SUM($A27:$A30)),'Загальний ввод'!$AA$21:$AA$999,),MATCH($B30&"*",'Загальний ввод'!$K$19:$O$19,)),"") -> 0 | R30: =IF(($A30="")*($B30<>""),INDEX('Загальний ввод'!$R$21:$Z$999,MATCH(SMALL('Загальний ввод'!$AA$21:$AA$999,SUM($A27:$A30)),'Загальний ввод'!$AA$21:$AA$999,),MATCH(R$9,'Загальний ввод'!$R$20:$Z$20,))*INDEX('Загальний ввод'!$K$21:$O$999,MATCH(SMALL('Загальний ввод'!$AA$21:$AA$999,SUM($A27:$A30)),'Загальний ввод'!$AA$21:$AA$999,),MATCH($B30&"*",'Загальний ввод'!$K$19:$O$19,)),"") -> 0
A31: =IF(B31="","",IF(MOD(ROW()-1,4),"",COUNT(A$10:A30)+1)) ->  | B31: =IF(MOD(ROW()-1,4),IF(B30="","",INDEX({"Циркуляція";"Інтервал роботи";"Час нижче ротора"},MOD(ROW()-1,4))),IFERROR(INDEX('Загальний ввод'!B:B,SMALL('Загальний ввод'!AA$21:AA$999,(ROW()-1)/4)),"")) -> Інтервал роботи | C31: =IF($A31="","",INDEX('Загальний ввод'!C$21:C$999,MATCH(SMALL('Загальний ввод'!$AA$21:$AA$999,SUM($A28:$A31)),'Загальний ввод'!$AA$21:$AA$999,))) ->  | D31: =IF($A31="","",INDEX('Загальний ввод'!D$21:D$999,MATCH(SMALL('Загальний ввод'!$AA$21:$AA$999,SUM($A28:$A31)),'Загальний ввод'!$AA$21:$AA$999,))) ->  | E31: =IF($A31="","",INDEX('Загальний ввод'!E$21:E$999,MATCH(SMALL('Загальний ввод'!$AA$21:$AA$999,SUM($A28:$A31)),'Загальний ввод'!$AA$21:$AA$999,))) ->  | F31: =IF($A31="","",INDEX('Загальний ввод'!F$21:F$999,MATCH(SMALL('Загальний ввод'!$AA$21:$AA$999,SUM($A28:$A31)),'Загальний ввод'!$AA$21:$AA$999,))) ->  | G31: =IF($A31="","",INDEX('Загальний ввод'!G$21:G$999,MATCH(SMALL('Загальний ввод'!$AA$21:$AA$999,SUM($A28:$A31)),'Загальний ввод'!$AA$21:$AA$999,))) ->  | H31: =IF($A31="","",INDEX('Загальний ввод'!H$21:H$999,MATCH(SMALL('Загальний ввод'!$AA$21:$AA$999,SUM($A28:$A31)),'Загальний ввод'!$AA$21:$AA$999,))) ->  | J31: =IF(($A31="")*($B31<>""),INDEX('Загальний ввод'!$R$21:$Z$999,MATCH(SMALL('Загальний ввод'!$AA$21:$AA$999,SUM($A28:$A31)),'Загальний ввод'!$AA$21:$AA$999,),MATCH(J$9,'Загальний ввод'!$R$20:$Z$20,))*INDEX('Загальний ввод'!$K$21:$O$999,MATCH(SMALL('Загальний ввод'!$AA$21:$AA$999,SUM($A28:$A31)),'Загальний ввод'!$AA$21:$AA$999,),MATCH($B31&"*",'Загальний ввод'!$K$19:$O$19,)),"") -> 0 | K31: =IF(($A31="")*($B31<>""),INDEX('Загальний ввод'!$R$21:$Z$999,MATCH(SMALL('Загальний ввод'!$AA$21:$AA$999,SUM($A28:$A31)),'Загальний ввод'!$AA$21:$AA$999,),MATCH(K$9,'Загальний ввод'!$R$20:$Z$20,))*INDEX('Загальний ввод'!$K$21:$O$999,MATCH(SMALL('Загальний ввод'!$AA$21:$AA$999,SUM($A28:$A31)),'Загальний ввод'!$AA$21:$AA$999,),MATCH($B31&"*",'Загальний ввод'!$K$19:$O$19,)),"") -> 0 | L31: =IF(($A31="")*($B31<>""),INDEX('Загальний ввод'!$R$21:$Z$999,MATCH(SMALL('Загальний ввод'!$AA$21:$AA$999,SUM($A28:$A31)),'Загальний ввод'!$AA$21:$AA$999,),MATCH(L$9,'Загальний ввод'!$R$20:$Z$20,))*INDEX('Загальний ввод'!$K$21:$O$999,MATCH(SMALL('Загальний ввод'!$AA$21:$AA$999,SUM($A28:$A31)),'Загальний ввод'!$AA$21:$AA$999,),MATCH($B31&"*",'Загальний ввод'!$K$19:$O$19,)),"") -> 0 | M31: =IF(($A31="")*($B31<>""),INDEX('Загальний ввод'!$R$21:$Z$999,MATCH(SMALL('Загальний ввод'!$AA$21:$AA$999,SUM($A28:$A31)),'Загальний ввод'!$AA$21:$AA$999,),MATCH(M$9,'Загальний ввод'!$R$20:$Z$20,))*INDEX('Загальний ввод'!$K$21:$O$999,MATCH(SMALL('Загальний ввод'!$AA$21:$AA$999,SUM($A28:$A31)),'Загальний ввод'!$AA$21:$AA$999,),MATCH($B31&"*",'Загальний ввод'!$K$19:$O$19,)),"") -> 0 | N31: =IF(($A31="")*($B31<>""),INDEX('Загальний ввод'!$R$21:$Z$999,MATCH(SMALL('Загальний ввод'!$AA$21:$AA$999,SUM($A28:$A31)),'Загальний ввод'!$AA$21:$AA$999,),MATCH(N$9,'Загальний ввод'!$R$20:$Z$20,))*INDEX('Загальний ввод'!$K$21:$O$999,MATCH(SMALL('Загальний ввод'!$AA$21:$AA$999,SUM($A28:$A31)),'Загальний ввод'!$AA$21:$AA$999,),MATCH($B31&"*",'Загальний ввод'!$K$19:$O$19,)),"") -> 167 | O31: =IF(($A31="")*($B31<>""),INDEX('Загальний ввод'!$R$21:$Z$999,MATCH(SMALL('Загальний ввод'!$AA$21:$AA$999,SUM($A28:$A31)),'Загальний ввод'!$AA$21:$AA$999,),MATCH(O$9,'Загальний ввод'!$R$20:$Z$20,))*INDEX('Загальний ввод'!$K$21:$O$999,MATCH(SMALL('Загальний ввод'!$AA$21:$AA$999,SUM($A28:$A31)),'Загальний ввод'!$AA$21:$AA$999,),MATCH($B31&"*",'Загальний ввод'!$K$19:$O$19,)),"") -> 167 | P31: =IF(($A31="")*($B31<>""),INDEX('Загальний ввод'!$R$21:$Z$999,MATCH(SMALL('Загальний ввод'!$AA$21:$AA$999,SUM($A28:$A31)),'Загальний ввод'!$AA$21:$AA$999,),MATCH(P$9,'Загальний ввод'!$R$20:$Z$20,))*INDEX('Загальний ввод'!$K$21:$O$999,MATCH(SMALL('Загальний ввод'!$AA$21:$AA$999,SUM($A28:$A31)),'Загальний ввод'!$AA$21:$AA$999,),MATCH($B31&"*",'Загальний ввод'!$K$19:$O$19,)),"") -> 0 | Q31: =IF(($A31="")*($B31<>""),INDEX('Загальний ввод'!$R$21:$Z$999,MATCH(SMALL('Загальний ввод'!$AA$21:$AA$999,SUM($A28:$A31)),'Загальний ввод'!$AA$21:$AA$999,),MATCH(Q$9,'Загальний ввод'!$R$20:$Z$20,))*INDEX('Загальний ввод'!$K$21:$O$999,MATCH(SMALL('Загальний ввод'!$AA$21:$AA$999,SUM($A28:$A31)),'Загальний ввод'!$AA$21:$AA$999,),MATCH($B31&"*",'Загальний ввод'!$K$19:$O$19,)),"") -> 0 | R31: =IF(($A31="")*($B31<>""),INDEX('Загальний ввод'!$R$21:$Z$999,MATCH(SMALL('Загальний ввод'!$AA$21:$AA$999,SUM($A28:$A31)),'Загальний ввод'!$AA$21:$AA$999,),MATCH(R$9,'Загальний ввод'!$R$20:$Z$20,))*INDEX('Загальний ввод'!$K$21:$O$999,MATCH(SMALL('Загальний ввод'!$AA$21:$AA$999,SUM($A28:$A31)),'Загальний ввод'!$AA$21:$AA$999,),MATCH($B31&"*",'Загальний ввод'!$K$19:$O$19,)),"") -> 0
A32: =IF(B32="","",IF(MOD(ROW()-1,4),"",COUNT(A$10:A31)+1)) ->  | B32: =IF(MOD(ROW()-1,4),IF(B31="","",INDEX({"Циркуляція";"Інтервал роботи";"Час нижче ротора"},MOD(ROW()-1,4))),IFERROR(INDEX('Загальний ввод'!B:B,SMALL('Загальний ввод'!AA$21:AA$999,(ROW()-1)/4)),"")) -> Час нижче ротора | C32: =IF($A32="","",INDEX('Загальний ввод'!C$21:C$999,MATCH(SMALL('Загальний ввод'!$AA$21:$AA$999,SUM($A29:$A32)),'Загальний ввод'!$AA$21:$AA$999,))) ->  | D32: =IF($A32="","",INDEX('Загальний ввод'!D$21:D$999,MATCH(SMALL('Загальний ввод'!$AA$21:$AA$999,SUM($A29:$A32)),'Загальний ввод'!$AA$21:$AA$999,))) ->  | E32: =IF($A32="","",INDEX('Загальний ввод'!E$21:E$999,MATCH(SMALL('Загальний ввод'!$AA$21:$AA$999,SUM($A29:$A32)),'Загальний ввод'!$AA$21:$AA$999,))) ->  | F32: =IF($A32="","",INDEX('Загальний ввод'!F$21:F$999,MATCH(SMALL('Загальний ввод'!$AA$21:$AA$999,SUM($A29:$A32)),'Загальний ввод'!$AA$21:$AA$999,))) ->  | G32: =IF($A32="","",INDEX('Загальний ввод'!G$21:G$999,MATCH(SMALL('Загальний ввод'!$AA$21:$AA$999,SUM($A29:$A32)),'Загальний ввод'!$AA$21:$AA$999,))) ->  | H32: =IF($A32="","",INDEX('Загальний ввод'!H$21:H$999,MATCH(SMALL('Загальний ввод'!$AA$21:$AA$999,SUM($A29:$A32)),'Загальний ввод'!$AA$21:$AA$999,))) ->  | J32: =IF(($A32="")*($B32<>""),INDEX('Загальний ввод'!$R$21:$Z$999,MATCH(SMALL('Загальний ввод'!$AA$21:$AA$999,SUM($A29:$A32)),'Загальний ввод'!$AA$21:$AA$999,),MATCH(J$9,'Загальний ввод'!$R$20:$Z$20,))*INDEX('Загальний ввод'!$K$21:$O$999,MATCH(SMALL('Загальний ввод'!$AA$21:$AA$999,SUM($A29:$A32)),'Загальний ввод'!$AA$21:$AA$999,),MATCH($B32&"*",'Загальний ввод'!$K$19:$O$19,)),"") -> 0 | K32: =IF(($A32="")*($B32<>""),INDEX('Загальний ввод'!$R$21:$Z$999,MATCH(SMALL('Загальний ввод'!$AA$21:$AA$999,SUM($A29:$A32)),'Загальний ввод'!$AA$21:$AA$999,),MATCH(K$9,'Загальний ввод'!$R$20:$Z$20,))*INDEX('Загальний ввод'!$K$21:$O$999,MATCH(SMALL('Загальний ввод'!$AA$21:$AA$999,SUM($A29:$A32)),'Загальний ввод'!$AA$21:$AA$999,),MATCH($B32&"*",'Загальний ввод'!$K$19:$O$19,)),"") -> 0 | L32: =IF(($A32="")*($B32<>""),INDEX('Загальний ввод'!$R$21:$Z$999,MATCH(SMALL('Загальний ввод'!$AA$21:$AA$999,SUM($A29:$A32)),'Загальний ввод'!$AA$21:$AA$999,),MATCH(L$9,'Загальний ввод'!$R$20:$Z$20,))*INDEX('Загальний ввод'!$K$21:$O$999,MATCH(SMALL('Загальний ввод'!$AA$21:$AA$999,SUM($A29:$A32)),'Загальний ввод'!$AA$21:$AA$999,),MATCH($B32&"*",'Загальний ввод'!$K$19:$O$19,)),"") -> 0 | M32: =IF(($A32="")*($B32<>""),INDEX('Загальний ввод'!$R$21:$Z$999,MATCH(SMALL('Загальний ввод'!$AA$21:$AA$999,SUM($A29:$A32)),'Загальний ввод'!$AA$21:$AA$999,),MATCH(M$9,'Загальний ввод'!$R$20:$Z$20,))*INDEX('Загальний ввод'!$K$21:$O$999,MATCH(SMALL('Загальний ввод'!$AA$21:$AA$999,SUM($A29:$A32)),'Загальний ввод'!$AA$21:$AA$999,),MATCH($B32&"*",'Загальний ввод'!$K$19:$O$19,)),"") -> 0 | N32: =IF(($A32="")*($B32<>""),INDEX('Загальний ввод'!$R$21:$Z$999,MATCH(SMALL('Загальний ввод'!$AA$21:$AA$999,SUM($A29:$A32)),'Загальний ввод'!$AA$21:$AA$999,),MATCH(N$9,'Загальний ввод'!$R$20:$Z$20,))*INDEX('Загальний ввод'!$K$21:$O$999,MATCH(SMALL('Загальний ввод'!$AA$21:$AA$999,SUM($A29:$A32)),'Загальний ввод'!$AA$21:$AA$999,),MATCH($B32&"*",'Загальний ввод'!$K$19:$O$19,)),"") -> 3.180555556 | O32: =IF(($A32="")*($B32<>""),INDEX('Загальний ввод'!$R$21:$Z$999,MATCH(SMALL('Загальний ввод'!$AA$21:$AA$999,SUM($A29:$A32)),'Загальний ввод'!$AA$21:$AA$999,),MATCH(O$9,'Загальний ввод'!$R$20:$Z$20,))*INDEX('Загальний ввод'!$K$21:$O$999,MATCH(SMALL('Загальний ввод'!$AA$21:$AA$999,SUM($A29:$A32)),'Загальний ввод'!$AA$21:$AA$999,),MATCH($B32&"*",'Загальний ввод'!$K$19:$O$19,)),"") -> 3.180555556 | P32: =IF(($A32="")*($B32<>""),INDEX('Загальний ввод'!$R$21:$Z$999,MATCH(SMALL('Загальний ввод'!$AA$21:$AA$999,SUM($A29:$A32)),'Загальний ввод'!$AA$21:$AA$999,),MATCH(P$9,'Загальний ввод'!$R$20:$Z$20,))*INDEX('Загальний ввод'!$K$21:$O$999,MATCH(SMALL('Загальний ввод'!$AA$21:$AA$999,SUM($A29:$A32)),'Загальний ввод'!$AA$21:$AA$999,),MATCH($B32&"*",'Загальний ввод'!$K$19:$O$19,)),"") -> 0 | Q32: =IF(($A32="")*($B32<>""),INDEX('Загальний ввод'!$R$21:$Z$999,MATCH(SMALL('Загальний ввод'!$AA$21:$AA$999,SUM($A29:$A32)),'Загальний ввод'!$AA$21:$AA$999,),MATCH(Q$9,'Загальний ввод'!$R$20:$Z$20,))*INDEX('Загальний ввод'!$K$21:$O$999,MATCH(SMALL('Загальний ввод'!$AA$21:$AA$999,SUM($A29:$A32)),'Загальний ввод'!$AA$21:$AA$999,),MATCH($B32&"*",'Загальний ввод'!$K$19:$O$19,)),"") -> 0 | R32: =IF(($A32="")*($B32<>""),INDEX('Загальний ввод'!$R$21:$Z$999,MATCH(SMALL('Загальний ввод'!$AA$21:$AA$999,SUM($A29:$A32)),'Загальний ввод'!$AA$21:$AA$999,),MATCH(R$9,'Загальний ввод'!$R$20:$Z$20,))*INDEX('Загальний ввод'!$K$21:$O$999,MATCH(SMALL('Загальний ввод'!$AA$21:$AA$999,SUM($A29:$A32)),'Загальний ввод'!$AA$21:$AA$999,),MATCH($B32&"*",'Загальний ввод'!$K$19:$O$19,)),"") -> 0
A33: =IF(B33="","",IF(MOD(ROW()-1,4),"",COUNT(A$10:A32)+1)) -> 6 | B33: =IF(MOD(ROW()-1,4),IF(B32="","",INDEX({"Циркуляція";"Інтервал роботи";"Час нижче ротора"},MOD(ROW()-1,4))),IFERROR(INDEX('Загальний ввод'!B:B,SMALL('Загальний ввод'!AA$21:AA$999,(ROW()-1)/4)),"")) -> 300 Опішня | C33: =IF($A33="","",INDEX('Загальний ввод'!C$21:C$999,MATCH(SMALL('Загальний ввод'!$AA$21:$AA$999,SUM($A30:$A33)),'Загальний ввод'!$AA$21:$AA$999,))) -> 2018-07-30 | D33: =IF($A33="","",INDEX('Загальний ввод'!D$21:D$999,MATCH(SMALL('Загальний ввод'!$AA$21:$AA$999,SUM($A30:$A33)),'Загальний ввод'!$AA$21:$AA$999,))) -> 11:35:00 | E33: =IF($A33="","",INDEX('Загальний ввод'!E$21:E$999,MATCH(SMALL('Загальний ввод'!$AA$21:$AA$999,SUM($A30:$A33)),'Загальний ввод'!$AA$21:$AA$999,))) -> 1774 | F33: =IF($A33="","",INDEX('Загальний ввод'!F$21:F$999,MATCH(SMALL('Загальний ввод'!$AA$21:$AA$999,SUM($A30:$A33)),'Загальний ввод'!$AA$21:$AA$999,))) -> 2018-08-05 | G33: =IF($A33="","",INDEX('Загальний ввод'!G$21:G$999,MATCH(SMALL('Загальний ввод'!$AA$21:$AA$999,SUM($A30:$A33)),'Загальний ввод'!$AA$21:$AA$999,))) -> 12:00:00 | H33: =IF($A33="","",INDEX('Загальний ввод'!H$21:H$999,MATCH(SMALL('Загальний ввод'!$AA$21:$AA$999,SUM($A30:$A33)),'Загальний ввод'!$AA$21:$AA$999,))) -> 2008.7 | I33: 234.7 | J33: =IF(($A33="")*($B33<>""),INDEX('Загальний ввод'!$R$21:$Z$999,MATCH(SMALL('Загальний ввод'!$AA$21:$AA$999,SUM($A30:$A33)),'Загальний ввод'!$AA$21:$AA$999,),MATCH(J$9,'Загальний ввод'!$R$20:$Z$20,))*INDEX('Загальний ввод'!$K$21:$O$999,MATCH(SMALL('Загальний ввод'!$AA$21:$AA$999,SUM($A30:$A33)),'Загальний ввод'!$AA$21:$AA$999,),MATCH($B33&"*",'Загальний ввод'!$K$19:$O$19,)),"") ->  | K33: =IF(($A33="")*($B33<>""),INDEX('Загальний ввод'!$R$21:$Z$999,MATCH(SMALL('Загальний ввод'!$AA$21:$AA$999,SUM($A30:$A33)),'Загальний ввод'!$AA$21:$AA$999,),MATCH(K$9,'Загальний ввод'!$R$20:$Z$20,))*INDEX('Загальний ввод'!$K$21:$O$999,MATCH(SMALL('Загальний ввод'!$AA$21:$AA$999,SUM($A30:$A33)),'Загальний ввод'!$AA$21:$AA$999,),MATCH($B33&"*",'Загальний ввод'!$K$19:$O$19,)),"") ->  | L33: =IF(($A33="")*($B33<>""),INDEX('Загальний ввод'!$R$21:$Z$999,MATCH(SMALL('Загальний ввод'!$AA$21:$AA$999,SUM($A30:$A33)),'Загальний ввод'!$AA$21:$AA$999,),MATCH(L$9,'Загальний ввод'!$R$20:$Z$20,))*INDEX('Загальний ввод'!$K$21:$O$999,MATCH(SMALL('Загальний ввод'!$AA$21:$AA$999,SUM($A30:$A33)),'Загальний ввод'!$AA$21:$AA$999,),MATCH($B33&"*",'Загальний ввод'!$K$19:$O$19,)),"") ->  | M33: =IF(($A33="")*($B33<>""),INDEX('Загальний ввод'!$R$21:$Z$999,MATCH(SMALL('Загальний ввод'!$AA$21:$AA$999,SUM($A30:$A33)),'Загальний ввод'!$AA$21:$AA$999,),MATCH(M$9,'Загальний ввод'!$R$20:$Z$20,))*INDEX('Загальний ввод'!$K$21:$O$999,MATCH(SMALL('Загальний ввод'!$AA$21:$AA$999,SUM($A30:$A33)),'Загальний ввод'!$AA$21:$AA$999,),MATCH($B33&"*",'Загальний ввод'!$K$19:$O$19,)),"") ->  | N33: =IF(($A33="")*($B33<>""),INDEX('Загальний ввод'!$R$21:$Z$999,MATCH(SMALL('Загальний ввод'!$AA$21:$AA$999,SUM($A30:$A33)),'Загальний ввод'!$AA$21:$AA$999,),MATCH(N$9,'Загальний ввод'!$R$20:$Z$20,))*INDEX('Загальний ввод'!$K$21:$O$999,MATCH(SMALL('Загальний ввод'!$AA$21:$AA$999,SUM($A30:$A33)),'Загальний ввод'!$AA$21:$AA$999,),MATCH($B33&"*",'Загальний ввод'!$K$19:$O$19,)),"") ->  | O33: =IF(($A33="")*($B33<>""),INDEX('Загальний ввод'!$R$21:$Z$999,MATCH(SMALL('Загальний ввод'!$AA$21:$AA$999,SUM($A30:$A33)),'Загальний ввод'!$AA$21:$AA$999,),MATCH(O$9,'Загальний ввод'!$R$20:$Z$20,))*INDEX('Загальний ввод'!$K$21:$O$999,MATCH(SMALL('Загальний ввод'!$AA$21:$AA$999,SUM($A30:$A33)),'Загальний ввод'!$AA$21:$AA$999,),MATCH($B33&"*",'Загальний ввод'!$K$19:$O$19,)),"") ->  | P33: =IF(($A33="")*($B33<>""),INDEX('Загальний ввод'!$R$21:$Z$999,MATCH(SMALL('Загальний ввод'!$AA$21:$AA$999,SUM($A30:$A33)),'Загальний ввод'!$AA$21:$AA$999,),MATCH(P$9,'Загальний ввод'!$R$20:$Z$20,))*INDEX('Загальний ввод'!$K$21:$O$999,MATCH(SMALL('Загальний ввод'!$AA$21:$AA$999,SUM($A30:$A33)),'Загальний ввод'!$AA$21:$AA$999,),MATCH($B33&"*",'Загальний ввод'!$K$19:$O$19,)),"") ->  | Q33: =IF(($A33="")*($B33<>""),INDEX('Загальний ввод'!$R$21:$Z$999,MATCH(SMALL('Загальний ввод'!$AA$21:$AA$999,SUM($A30:$A33)),'Загальний ввод'!$AA$21:$AA$999,),MATCH(Q$9,'Загальний ввод'!$R$20:$Z$20,))*INDEX('Загальний ввод'!$K$21:$O$999,MATCH(SMALL('Загальний ввод'!$AA$21:$AA$999,SUM($A30:$A33)),'Загальний ввод'!$AA$21:$AA$999,),MATCH($B33&"*",'Загальний ввод'!$K$19:$O$19,)),"") ->  | R33: =IF(($A33="")*($B33<>""),INDEX('Загальний ввод'!$R$21:$Z$999,MATCH(SMALL('Загальний ввод'!$AA$21:$AA$999,SUM($A30:$A33)),'Загальний ввод'!$AA$21:$AA$999,),MATCH(R$9,'Загальний ввод'!$R$20:$Z$20,))*INDEX('Загальний ввод'!$K$21:$O$999,MATCH(SMALL('Загальний ввод'!$AA$21:$AA$999,SUM($A30:$A33)),'Загальний ввод'!$AA$21:$AA$999,),MATCH($B33&"*",'Загальний ввод'!$K$19:$O$19,)),"") -> 
A34: =IF(B34="","",IF(MOD(ROW()-1,4),"",COUNT(A$10:A33)+1)) ->  | B34: =IF(MOD(ROW()-1,4),IF(B33="","",INDEX({"Циркуляція";"Інтервал роботи";"Час нижче ротора"},MOD(ROW()-1,4))),IFERROR(INDEX('Загальний ввод'!B:B,SMALL('Загальний ввод'!AA$21:AA$999,(ROW()-1)/4)),"")) -> Циркуляція | C34: =IF($A34="","",INDEX('Загальний ввод'!C$21:C$999,MATCH(SMALL('Загальний ввод'!$AA$21:$AA$999,SUM($A31:$A34)),'Загальний ввод'!$AA$21:$AA$999,))) ->  | D34: =IF($A34="","",INDEX('Загальний ввод'!D$21:D$999,MATCH(SMALL('Загальний ввод'!$AA$21:$AA$999,SUM($A31:$A34)),'Загальний ввод'!$AA$21:$AA$999,))) ->  | E34: =IF($A34="","",INDEX('Загальний ввод'!E$21:E$999,MATCH(SMALL('Загальний ввод'!$AA$21:$AA$999,SUM($A31:$A34)),'Загальний ввод'!$AA$21:$AA$999,))) ->  | F34: =IF($A34="","",INDEX('Загальний ввод'!F$21:F$999,MATCH(SMALL('Загальний ввод'!$AA$21:$AA$999,SUM($A31:$A34)),'Загальний ввод'!$AA$21:$AA$999,))) ->  | G34: =IF($A34="","",INDEX('Загальний ввод'!G$21:G$999,MATCH(SMALL('Загальний ввод'!$AA$21:$AA$999,SUM($A31:$A34)),'Загальний ввод'!$AA$21:$AA$999,))) ->  | H34: =IF($A34="","",INDEX('Загальний ввод'!H$21:H$999,MATCH(SMALL('Загальний ввод'!$AA$21:$AA$999,SUM($A31:$A34)),'Загальний ввод'!$AA$21:$AA$999,))) ->  | J34: =IF(($A34="")*($B34<>""),INDEX('Загальний ввод'!$R$21:$Z$999,MATCH(SMALL('Загальний ввод'!$AA$21:$AA$999,SUM($A31:$A34)),'Загальний ввод'!$AA$21:$AA$999,),MATCH(J$9,'Загальний ввод'!$R$20:$Z$20,))*INDEX('Загальний ввод'!$K$21:$O$999,MATCH(SMALL('Загальний ввод'!$AA$21:$AA$999,SUM($A31:$A34)),'Загальний ввод'!$AA$21:$AA$999,),MATCH($B34&"*",'Загальний ввод'!$K$19:$O$19,)),"") -> 0 | K34: =IF(($A34="")*($B34<>""),INDEX('Загальний ввод'!$R$21:$Z$999,MATCH(SMALL('Загальний ввод'!$AA$21:$AA$999,SUM($A31:$A34)),'Загальний ввод'!$AA$21:$AA$999,),MATCH(K$9,'Загальний ввод'!$R$20:$Z$20,))*INDEX('Загальний ввод'!$K$21:$O$999,MATCH(SMALL('Загальний ввод'!$AA$21:$AA$999,SUM($A31:$A34)),'Загальний ввод'!$AA$21:$AA$999,),MATCH($B34&"*",'Загальний ввод'!$K$19:$O$19,)),"") -> 0 | L34: =IF(($A34="")*($B34<>""),INDEX('Загальний ввод'!$R$21:$Z$999,MATCH(SMALL('Загальний ввод'!$AA$21:$AA$999,SUM($A31:$A34)),'Загальний ввод'!$AA$21:$AA$999,),MATCH(L$9,'Загальний ввод'!$R$20:$Z$20,))*INDEX('Загальний ввод'!$K$21:$O$999,MATCH(SMALL('Загальний ввод'!$AA$21:$AA$999,SUM($A31:$A34)),'Загальний ввод'!$AA$21:$AA$999,),MATCH($B34&"*",'Загальний ввод'!$K$19:$O$19,)),"") -> 0 | M34: =IF(($A34="")*($B34<>""),INDEX('Загальний ввод'!$R$21:$Z$999,MATCH(SMALL('Загальний ввод'!$AA$21:$AA$999,SUM($A31:$A34)),'Загальний ввод'!$AA$21:$AA$999,),MATCH(M$9,'Загальний ввод'!$R$20:$Z$20,))*INDEX('Загальний ввод'!$K$21:$O$999,MATCH(SMALL('Загальний ввод'!$AA$21:$AA$999,SUM($A31:$A34)),'Загальний ввод'!$AA$21:$AA$999,),MATCH($B34&"*",'Загальний ввод'!$K$19:$O$19,)),"") -> 0 | N34: =IF(($A34="")*($B34<>""),INDEX('Загальний ввод'!$R$21:$Z$999,MATCH(SMALL('Загальний ввод'!$AA$21:$AA$999,SUM($A31:$A34)),'Загальний ввод'!$AA$21:$AA$999,),MATCH(N$9,'Загальний ввод'!$R$20:$Z$20,))*INDEX('Загальний ввод'!$K$21:$O$999,MATCH(SMALL('Загальний ввод'!$AA$21:$AA$999,SUM($A31:$A34)),'Загальний ввод'!$AA$21:$AA$999,),MATCH($B34&"*",'Загальний ввод'!$K$19:$O$19,)),"") -> 3.104166667 | O34: =IF(($A34="")*($B34<>""),INDEX('Загальний ввод'!$R$21:$Z$999,MATCH(SMALL('Загальний ввод'!$AA$21:$AA$999,SUM($A31:$A34)),'Загальний ввод'!$AA$21:$AA$999,),MATCH(O$9,'Загальний ввод'!$R$20:$Z$20,))*INDEX('Загальний ввод'!$K$21:$O$999,MATCH(SMALL('Загальний ввод'!$AA$21:$AA$999,SUM($A31:$A34)),'Загальний ввод'!$AA$21:$AA$999,),MATCH($B34&"*",'Загальний ввод'!$K$19:$O$19,)),"") -> 3.104166667 | P34: =IF(($A34="")*($B34<>""),INDEX('Загальний ввод'!$R$21:$Z$999,MATCH(SMALL('Загальний ввод'!$AA$21:$AA$999,SUM($A31:$A34)),'Загальний ввод'!$AA$21:$AA$999,),MATCH(P$9,'Загальний ввод'!$R$20:$Z$20,))*INDEX('Загальний ввод'!$K$21:$O$999,MATCH(SMALL('Загальний ввод'!$AA$21:$AA$999,SUM($A31:$A34)),'Загальний ввод'!$AA$21:$AA$999,),MATCH($B34&"*",'Загальний ввод'!$K$19:$O$19,)),"") -> 0 | Q34: =IF(($A34="")*($B34<>""),INDEX('Загальний ввод'!$R$21:$Z$999,MATCH(SMALL('Загальний ввод'!$AA$21:$AA$999,SUM($A31:$A34)),'Загальний ввод'!$AA$21:$AA$999,),MATCH(Q$9,'Загальний ввод'!$R$20:$Z$20,))*INDEX('Загальний ввод'!$K$21:$O$999,MATCH(SMALL('Загальний ввод'!$AA$21:$AA$999,SUM($A31:$A34)),'Загальний ввод'!$AA$21:$AA$999,),MATCH($B34&"*",'Загальний ввод'!$K$19:$O$19,)),"") -> 0 | R34: =IF(($A34="")*($B34<>""),INDEX('Загальний ввод'!$R$21:$Z$999,MATCH(SMALL('Загальний ввод'!$AA$21:$AA$999,SUM($A31:$A34)),'Загальний ввод'!$AA$21:$AA$999,),MATCH(R$9,'Загальний ввод'!$R$20:$Z$20,))*INDEX('Загальний ввод'!$K$21:$O$999,MATCH(SMALL('Загальний ввод'!$AA$21:$AA$999,SUM($A31:$A34)),'Загальний ввод'!$AA$21:$AA$999,),MATCH($B34&"*",'Загальний ввод'!$K$19:$O$19,)),"") -> 0
A35: =IF(B35="","",IF(MOD(ROW()-1,4),"",COUNT(A$10:A34)+1)) ->  | B35: =IF(MOD(ROW()-1,4),IF(B34="","",INDEX({"Циркуляція";"Інтервал роботи";"Час нижче ротора"},MOD(ROW()-1,4))),IFERROR(INDEX('Загальний ввод'!B:B,SMALL('Загальний ввод'!AA$21:AA$999,(ROW()-1)/4)),"")) -> Інтервал роботи | C35: =IF($A35="","",INDEX('Загальний ввод'!C$21:C$999,MATCH(SMALL('Загальний ввод'!$AA$21:$AA$999,SUM($A32:$A35)),'Загальний ввод'!$AA$21:$AA$999,))) ->  | D35: =IF($A35="","",INDEX('Загальний ввод'!D$21:D$999,MATCH(SMALL('Загальний ввод'!$AA$21:$AA$999,SUM($A32:$A35)),'Загальний ввод'!$AA$21:$AA$999,))) ->  | E35: =IF($A35="","",INDEX('Загальний ввод'!E$21:E$999,MATCH(SMALL('Загальний ввод'!$AA$21:$AA$999,SUM($A32:$A35)),'Загальний ввод'!$AA$21:$AA$999,))) ->  | F35: =IF($A35="","",INDEX('Загальний ввод'!F$21:F$999,MATCH(SMALL('Загальний ввод'!$AA$21:$AA$999,SUM($A32:$A35)),'Загальний ввод'!$AA$21:$AA$999,))) ->  | G35: =IF($A35="","",INDEX('Загальний ввод'!G$21:G$999,MATCH(SMALL('Загальний ввод'!$AA$21:$AA$999,SUM($A32:$A35)),'Загальний ввод'!$AA$21:$AA$999,))) ->  | H35: =IF($A35="","",INDEX('Загальний ввод'!H$21:H$999,MATCH(SMALL('Загальний ввод'!$AA$21:$AA$999,SUM($A32:$A35)),'Загальний ввод'!$AA$21:$AA$999,))) ->  | J35: =IF(($A35="")*($B35<>""),INDEX('Загальний ввод'!$R$21:$Z$999,MATCH(SMALL('Загальний ввод'!$AA$21:$AA$999,SUM($A32:$A35)),'Загальний ввод'!$AA$21:$AA$999,),MATCH(J$9,'Загальний ввод'!$R$20:$Z$20,))*INDEX('Загальний ввод'!$K$21:$O$999,MATCH(SMALL('Загальний ввод'!$AA$21:$AA$999,SUM($A32:$A35)),'Загальний ввод'!$AA$21:$AA$999,),MATCH($B35&"*",'Загальний ввод'!$K$19:$O$19,)),"") -> 0 | K35: =IF(($A35="")*($B35<>""),INDEX('Загальний ввод'!$R$21:$Z$999,MATCH(SMALL('Загальний ввод'!$AA$21:$AA$999,SUM($A32:$A35)),'Загальний ввод'!$AA$21:$AA$999,),MATCH(K$9,'Загальний ввод'!$R$20:$Z$20,))*INDEX('Загальний ввод'!$K$21:$O$999,MATCH(SMALL('Загальний ввод'!$AA$21:$AA$999,SUM($A32:$A35)),'Загальний ввод'!$AA$21:$AA$999,),MATCH($B35&"*",'Загальний ввод'!$K$19:$O$19,)),"") -> 0 | L35: =IF(($A35="")*($B35<>""),INDEX('Загальний ввод'!$R$21:$Z$999,MATCH(SMALL('Загальний ввод'!$AA$21:$AA$999,SUM($A32:$A35)),'Загальний ввод'!$AA$21:$AA$999,),MATCH(L$9,'Загальний ввод'!$R$20:$Z$20,))*INDEX('Загальний ввод'!$K$21:$O$999,MATCH(SMALL('Загальний ввод'!$AA$21:$AA$999,SUM($A32:$A35)),'Загальний ввод'!$AA$21:$AA$999,),MATCH($B35&"*",'Загальний ввод'!$K$19:$O$19,)),"") -> 0 | M35: =IF(($A35="")*($B35<>""),INDEX('Загальний ввод'!$R$21:$Z$999,MATCH(SMALL('Загальний ввод'!$AA$21:$AA$999,SUM($A32:$A35)),'Загальний ввод'!$AA$21:$AA$999,),MATCH(M$9,'Загальний ввод'!$R$20:$Z$20,))*INDEX('Загальний ввод'!$K$21:$O$999,MATCH(SMALL('Загальний ввод'!$AA$21:$AA$999,SUM($A32:$A35)),'Загальний ввод'!$AA$21:$AA$999,),MATCH($B35&"*",'Загальний ввод'!$K$19:$O$19,)),"") -> 0 | N35: =IF(($A35="")*($B35<>""),INDEX('Загальний ввод'!$R$21:$Z$999,MATCH(SMALL('Загальний ввод'!$AA$21:$AA$999,SUM($A32:$A35)),'Загальний ввод'!$AA$21:$AA$999,),MATCH(N$9,'Загальний ввод'!$R$20:$Z$20,))*INDEX('Загальний ввод'!$K$21:$O$999,MATCH(SMALL('Загальний ввод'!$AA$21:$AA$999,SUM($A32:$A35)),'Загальний ввод'!$AA$21:$AA$999,),MATCH($B35&"*",'Загальний ввод'!$K$19:$O$19,)),"") -> 234.7 | O35: =IF(($A35="")*($B35<>""),INDEX('Загальний ввод'!$R$21:$Z$999,MATCH(SMALL('Загальний ввод'!$AA$21:$AA$999,SUM($A32:$A35)),'Загальний ввод'!$AA$21:$AA$999,),MATCH(O$9,'Загальний ввод'!$R$20:$Z$20,))*INDEX('Загальний ввод'!$K$21:$O$999,MATCH(SMALL('Загальний ввод'!$AA$21:$AA$999,SUM($A32:$A35)),'Загальний ввод'!$AA$21:$AA$999,),MATCH($B35&"*",'Загальний ввод'!$K$19:$O$19,)),"") -> 234.7 | P35: =IF(($A35="")*($B35<>""),INDEX('Загальний ввод'!$R$21:$Z$999,MATCH(SMALL('Загальний ввод'!$AA$21:$AA$999,SUM($A32:$A35)),'Загальний ввод'!$AA$21:$AA$999,),MATCH(P$9,'Загальний ввод'!$R$20:$Z$20,))*INDEX('Загальний ввод'!$K$21:$O$999,MATCH(SMALL('Загальний ввод'!$AA$21:$AA$999,SUM($A32:$A35)),'Загальний ввод'!$AA$21:$AA$999,),MATCH($B35&"*",'Загальний ввод'!$K$19:$O$19,)),"") -> 0 | Q35: =IF(($A35="")*($B35<>""),INDEX('Загальний ввод'!$R$21:$Z$999,MATCH(SMALL('Загальний ввод'!$AA$21:$AA$999,SUM($A32:$A35)),'Загальний ввод'!$AA$21:$AA$999,),MATCH(Q$9,'Загальний ввод'!$R$20:$Z$20,))*INDEX('Загальний ввод'!$K$21:$O$999,MATCH(SMALL('Загальний ввод'!$AA$21:$AA$999,SUM($A32:$A35)),'Загальний ввод'!$AA$21:$AA$999,),MATCH($B35&"*",'Загальний ввод'!$K$19:$O$19,)),"") -> 0 | R35: =IF(($A35="")*($B35<>""),INDEX('Загальний ввод'!$R$21:$Z$999,MATCH(SMALL('Загальний ввод'!$AA$21:$AA$999,SUM($A32:$A35)),'Загальний ввод'!$AA$21:$AA$999,),MATCH(R$9,'Загальний ввод'!$R$20:$Z$20,))*INDEX('Загальний ввод'!$K$21:$O$999,MATCH(SMALL('Загальний ввод'!$AA$21:$AA$999,SUM($A32:$A35)),'Загальний ввод'!$AA$21:$AA$999,),MATCH($B35&"*",'Загальний ввод'!$K$19:$O$19,)),"") -> 0
A36: =IF(B36="","",IF(MOD(ROW()-1,4),"",COUNT(A$10:A35)+1)) ->  | B36: =IF(MOD(ROW()-1,4),IF(B35="","",INDEX({"Циркуляція";"Інтервал роботи";"Час нижче ротора"},MOD(ROW()-1,4))),IFERROR(INDEX('Загальний ввод'!B:B,SMALL('Загальний ввод'!AA$21:AA$999,(ROW()-1)/4)),"")) -> Час нижче ротора | C36: =IF($A36="","",INDEX('Загальний ввод'!C$21:C$999,MATCH(SMALL('Загальний ввод'!$AA$21:$AA$999,SUM($A33:$A36)),'Загальний ввод'!$AA$21:$AA$999,))) ->  | D36: =IF($A36="","",INDEX('Загальний ввод'!D$21:D$999,MATCH(SMALL('Загальний ввод'!$AA$21:$AA$999,SUM($A33:$A36)),'Загальний ввод'!$AA$21:$AA$999,))) ->  | E36: =IF($A36="","",INDEX('Загальний ввод'!E$21:E$999,MATCH(SMALL('Загальний ввод'!$AA$21:$AA$999,SUM($A33:$A36)),'Загальний ввод'!$AA$21:$AA$999,))) ->  | F36: =IF($A36="","",INDEX('Загальний ввод'!F$21:F$999,MATCH(SMALL('Загальний ввод'!$AA$21:$AA$999,SUM($A33:$A36)),'Загальний ввод'!$AA$21:$AA$999,))) ->  | G36: =IF($A36="","",INDEX('Загальний ввод'!G$21:G$999,MATCH(SMALL('Загальний ввод'!$AA$21:$AA$999,SUM($A33:$A36)),'Загальний ввод'!$AA$21:$AA$999,))) ->  | H36: =IF($A36="","",INDEX('Загальний ввод'!H$21:H$999,MATCH(SMALL('Загальний ввод'!$AA$21:$AA$999,SUM($A33:$A36)),'Загальний ввод'!$AA$21:$AA$999,))) ->  | J36: =IF(($A36="")*($B36<>""),INDEX('Загальний ввод'!$R$21:$Z$999,MATCH(SMALL('Загальний ввод'!$AA$21:$AA$999,SUM($A33:$A36)),'Загальний ввод'!$AA$21:$AA$999,),MATCH(J$9,'Загальний ввод'!$R$20:$Z$20,))*INDEX('Загальний ввод'!$K$21:$O$999,MATCH(SMALL('Загальний ввод'!$AA$21:$AA$999,SUM($A33:$A36)),'Загальний ввод'!$AA$21:$AA$999,),MATCH($B36&"*",'Загальний ввод'!$K$19:$O$19,)),"") -> 0 | K36: =IF(($A36="")*($B36<>""),INDEX('Загальний ввод'!$R$21:$Z$999,MATCH(SMALL('Загальний ввод'!$AA$21:$AA$999,SUM($A33:$A36)),'Загальний ввод'!$AA$21:$AA$999,),MATCH(K$9,'Загальний ввод'!$R$20:$Z$20,))*INDEX('Загальний ввод'!$K$21:$O$999,MATCH(SMALL('Загальний ввод'!$AA$21:$AA$999,SUM($A33:$A36)),'Загальний ввод'!$AA$21:$AA$999,),MATCH($B36&"*",'Загальний ввод'!$K$19:$O$19,)),"") -> 0 | L36: =IF(($A36="")*($B36<>""),INDEX('Загальний ввод'!$R$21:$Z$999,MATCH(SMALL('Загальний ввод'!$AA$21:$AA$999,SUM($A33:$A36)),'Загальний ввод'!$AA$21:$AA$999,),MATCH(L$9,'Загальний ввод'!$R$20:$Z$20,))*INDEX('Загальний ввод'!$K$21:$O$999,MATCH(SMALL('Загальний ввод'!$AA$21:$AA$999,SUM($A33:$A36)),'Загальний ввод'!$AA$21:$AA$999,),MATCH($B36&"*",'Загальний ввод'!$K$19:$O$19,)),"") -> 0 | M36: =IF(($A36="")*($B36<>""),INDEX('Загальний ввод'!$R$21:$Z$999,MATCH(SMALL('Загальний ввод'!$AA$21:$AA$999,SUM($A33:$A36)),'Загальний ввод'!$AA$21:$AA$999,),MATCH(M$9,'Загальний ввод'!$R$20:$Z$20,))*INDEX('Загальний ввод'!$K$21:$O$999,MATCH(SMALL('Загальний ввод'!$AA$21:$AA$999,SUM($A33:$A36)),'Загальний ввод'!$AA$21:$AA$999,),MATCH($B36&"*",'Загальний ввод'!$K$19:$O$19,)),"") -> 0 | N36: =IF(($A36="")*($B36<>""),INDEX('Загальний ввод'!$R$21:$Z$999,MATCH(SMALL('Загальний ввод'!$AA$21:$AA$999,SUM($A33:$A36)),'Загальний ввод'!$AA$21:$AA$999,),MATCH(N$9,'Загальний ввод'!$R$20:$Z$20,))*INDEX('Загальний ввод'!$K$21:$O$999,MATCH(SMALL('Загальний ввод'!$AA$21:$AA$999,SUM($A33:$A36)),'Загальний ввод'!$AA$21:$AA$999,),MATCH($B36&"*",'Загальний ввод'!$K$19:$O$19,)),"") -> 5.395833333 | O36: =IF(($A36="")*($B36<>""),INDEX('Загальний ввод'!$R$21:$Z$999,MATCH(SMALL('Загальний ввод'!$AA$21:$AA$999,SUM($A33:$A36)),'Загальний ввод'!$AA$21:$AA$999,),MATCH(O$9,'Загальний ввод'!$R$20:$Z$20,))*INDEX('Загальний ввод'!$K$21:$O$999,MATCH(SMALL('Загальний ввод'!$AA$21:$AA$999,SUM($A33:$A36)),'Загальний ввод'!$AA$21:$AA$999,),MATCH($B36&"*",'Загальний ввод'!$K$19:$O$19,)),"") -> 5.395833333 | P36: =IF(($A36="")*($B36<>""),INDEX('Загальний ввод'!$R$21:$Z$999,MATCH(SMALL('Загальний ввод'!$AA$21:$AA$999,SUM($A33:$A36)),'Загальний ввод'!$AA$21:$AA$999,),MATCH(P$9,'Загальний ввод'!$R$20:$Z$20,))*INDEX('Загальний ввод'!$K$21:$O$999,MATCH(SMALL('Загальний ввод'!$AA$21:$AA$999,SUM($A33:$A36)),'Загальний ввод'!$AA$21:$AA$999,),MATCH($B36&"*",'Загальний ввод'!$K$19:$O$19,)),"") -> 0 | Q36: =IF(($A36="")*($B36<>""),INDEX('Загальний ввод'!$R$21:$Z$999,MATCH(SMALL('Загальний ввод'!$AA$21:$AA$999,SUM($A33:$A36)),'Загальний ввод'!$AA$21:$AA$999,),MATCH(Q$9,'Загальний ввод'!$R$20:$Z$20,))*INDEX('Загальний ввод'!$K$21:$O$999,MATCH(SMALL('Загальний ввод'!$AA$21:$AA$999,SUM($A33:$A36)),'Загальний ввод'!$AA$21:$AA$999,),MATCH($B36&"*",'Загальний ввод'!$K$19:$O$19,)),"") -> 0 | R36: =IF(($A36="")*($B36<>""),INDEX('Загальний ввод'!$R$21:$Z$999,MATCH(SMALL('Загальний ввод'!$AA$21:$AA$999,SUM($A33:$A36)),'Загальний ввод'!$AA$21:$AA$999,),MATCH(R$9,'Загальний ввод'!$R$20:$Z$20,))*INDEX('Загальний ввод'!$K$21:$O$999,MATCH(SMALL('Загальний ввод'!$AA$21:$AA$999,SUM($A33:$A36)),'Загальний ввод'!$AA$21:$AA$999,),MATCH($B36&"*",'Загальний ввод'!$K$19:$O$19,)),"") -> 0
A37: =IF(B37="","",IF(MOD(ROW()-1,4),"",COUNT(A$10:A36)+1)) -> 7 | B37: =IF(MOD(ROW()-1,4),IF(B36="","",INDEX({"Циркуляція";"Інтервал роботи";"Час нижче ротора"},MOD(ROW()-1,4))),IFERROR(INDEX('Загальний ввод'!B:B,SMALL('Загальний ввод'!AA$21:AA$999,(ROW()-1)/4)),"")) -> 525 Кегичівка | C37: =IF($A37="","",INDEX('Загальний ввод'!C$21:C$999,MATCH(SMALL('Загальний ввод'!$AA$21:$AA$999,SUM($A34:$A37)),'Загальний ввод'!$AA$21:$AA$999,))) -> 2018-08-13 | D37: =IF($A37="","",INDEX('Загальний ввод'!D$21:D$999,MATCH(SMALL('Загальний ввод'!$AA$21:$AA$999,SUM($A34:$A37)),'Загальний ввод'!$AA$21:$AA$999,))) -> 16:30:00 | E37: =IF($A37="","",INDEX('Загальний ввод'!E$21:E$999,MATCH(SMALL('Загальний ввод'!$AA$21:$AA$999,SUM($A34:$A37)),'Загальний ввод'!$AA$21:$AA$999,))) -> 3430 | F37: =IF($A37="","",INDEX('Загальний ввод'!F$21:F$999,MATCH(SMALL('Загальний ввод'!$AA$21:$AA$999,SUM($A34:$A37)),'Загальний ввод'!$AA$21:$AA$999,))) -> 2018-09-01 | G37: =IF($A37="","",INDEX('Загальний ввод'!G$21:G$999,MATCH(SMALL('Загальний ввод'!$AA$21:$AA$999,SUM($A34:$A37)),'Загальний ввод'!$AA$21:$AA$999,))) -> 08:00:00 | H37: =IF($A37="","",INDEX('Загальний ввод'!H$21:H$999,MATCH(SMALL('Загальний ввод'!$AA$21:$AA$999,SUM($A34:$A37)),'Загальний ввод'!$AA$21:$AA$999,))) -> 3660 | I37: 230 | J37: =IF(($A37="")*($B37<>""),INDEX('Загальний ввод'!$R$21:$Z$999,MATCH(SMALL('Загальний ввод'!$AA$21:$AA$999,SUM($A34:$A37)),'Загальний ввод'!$AA$21:$AA$999,),MATCH(J$9,'Загальний ввод'!$R$20:$Z$20,))*INDEX('Загальний ввод'!$K$21:$O$999,MATCH(SMALL('Загальний ввод'!$AA$21:$AA$999,SUM($A34:$A37)),'Загальний ввод'!$AA$21:$AA$999,),MATCH($B37&"*",'Загальний ввод'!$K$19:$O$19,)),"") ->  | K37: =IF(($A37="")*($B37<>""),INDEX('Загальний ввод'!$R$21:$Z$999,MATCH(SMALL('Загальний ввод'!$AA$21:$AA$999,SUM($A34:$A37)),'Загальний ввод'!$AA$21:$AA$999,),MATCH(K$9,'Загальний ввод'!$R$20:$Z$20,))*INDEX('Загальний ввод'!$K$21:$O$999,MATCH(SMALL('Загальний ввод'!$AA$21:$AA$999,SUM($A34:$A37)),'Загальний ввод'!$AA$21:$AA$999,),MATCH($B37&"*",'Загальний ввод'!$K$19:$O$19,)),"") ->  | L37: =IF(($A37="")*($B37<>""),INDEX('Загальний ввод'!$R$21:$Z$999,MATCH(SMALL('Загальний ввод'!$AA$21:$AA$999,SUM($A34:$A37)),'Загальний ввод'!$AA$21:$AA$999,),MATCH(L$9,'Загальний ввод'!$R$20:$Z$20,))*INDEX('Загальний ввод'!$K$21:$O$999,MATCH(SMALL('Загальний ввод'!$AA$21:$AA$999,SUM($A34:$A37)),'Загальний ввод'!$AA$21:$AA$999,),MATCH($B37&"*",'Загальний ввод'!$K$19:$O$19,)),"") ->  | M37: =IF(($A37="")*($B37<>""),INDEX('Загальний ввод'!$R$21:$Z$999,MATCH(SMALL('Загальний ввод'!$AA$21:$AA$999,SUM($A34:$A37)),'Загальний ввод'!$AA$21:$AA$999,),MATCH(M$9,'Загальний ввод'!$R$20:$Z$20,))*INDEX('Загальний ввод'!$K$21:$O$999,MATCH(SMALL('Загальний ввод'!$AA$21:$AA$999,SUM($A34:$A37)),'Загальний ввод'!$AA$21:$AA$999,),MATCH($B37&"*",'Загальний ввод'!$K$19:$O$19,)),"") ->  | N37: =IF(($A37="")*($B37<>""),INDEX('Загальний ввод'!$R$21:$Z$999,MATCH(SMALL('Загальний ввод'!$AA$21:$AA$999,SUM($A34:$A37)),'Загальний ввод'!$AA$21:$AA$999,),MATCH(N$9,'Загальний ввод'!$R$20:$Z$20,))*INDEX('Загальний ввод'!$K$21:$O$999,MATCH(SMALL('Загальний ввод'!$AA$21:$AA$999,SUM($A34:$A37)),'Загальний ввод'!$AA$21:$AA$999,),MATCH($B37&"*",'Загальний ввод'!$K$19:$O$19,)),"") ->  | O37: =IF(($A37="")*($B37<>""),INDEX('Загальний ввод'!$R$21:$Z$999,MATCH(SMALL('Загальний ввод'!$AA$21:$AA$999,SUM($A34:$A37)),'Загальний ввод'!$AA$21:$AA$999,),MATCH(O$9,'Загальний ввод'!$R$20:$Z$20,))*INDEX('Загальний ввод'!$K$21:$O$999,MATCH(SMALL('Загальний ввод'!$AA$21:$AA$999,SUM($A34:$A37)),'Загальний ввод'!$AA$21:$AA$999,),MATCH($B37&"*",'Загальний ввод'!$K$19:$O$19,)),"") ->  | P37: =IF(($A37="")*($B37<>""),INDEX('Загальний ввод'!$R$21:$Z$999,MATCH(SMALL('Загальний ввод'!$AA$21:$AA$999,SUM($A34:$A37)),'Загальний ввод'!$AA$21:$AA$999,),MATCH(P$9,'Загальний ввод'!$R$20:$Z$20,))*INDEX('Загальний ввод'!$K$21:$O$999,MATCH(SMALL('Загальний ввод'!$AA$21:$AA$999,SUM($A34:$A37)),'Загальний ввод'!$AA$21:$AA$999,),MATCH($B37&"*",'Загальний ввод'!$K$19:$O$19,)),"") ->  | Q37: =IF(($A37="")*($B37<>""),INDEX('Загальний ввод'!$R$21:$Z$999,MATCH(SMALL('Загальний ввод'!$AA$21:$AA$999,SUM($A34:$A37)),'Загальний ввод'!$AA$21:$AA$999,),MATCH(Q$9,'Загальний ввод'!$R$20:$Z$20,))*INDEX('Загальний ввод'!$K$21:$O$999,MATCH(SMALL('Загальний ввод'!$AA$21:$AA$999,SUM($A34:$A37)),'Загальний ввод'!$AA$21:$AA$999,),MATCH($B37&"*",'Загальний ввод'!$K$19:$O$19,)),"") ->  | R37: =IF(($A37="")*($B37<>""),INDEX('Загальний ввод'!$R$21:$Z$999,MATCH(SMALL('Загальний ввод'!$AA$21:$AA$999,SUM($A34:$A37)),'Загальний ввод'!$AA$21:$AA$999,),MATCH(R$9,'Загальний ввод'!$R$20:$Z$20,))*INDEX('Загальний ввод'!$K$21:$O$999,MATCH(SMALL('Загальний ввод'!$AA$21:$AA$999,SUM($A34:$A37)),'Загальний ввод'!$AA$21:$AA$999,),MATCH($B37&"*",'Загальний ввод'!$K$19:$O$19,)),"") -> 
A38: =IF(B38="","",IF(MOD(ROW()-1,4),"",COUNT(A$10:A37)+1)) ->  | B38: =IF(MOD(ROW()-1,4),IF(B37="","",INDEX({"Циркуляція";"Інтервал роботи";"Час нижче ротора"},MOD(ROW()-1,4))),IFERROR(INDEX('Загальний ввод'!B:B,SMALL('Загальний ввод'!AA$21:AA$999,(ROW()-1)/4)),"")) -> Циркуляція | C38: =IF($A38="","",INDEX('Загальний ввод'!C$21:C$999,MATCH(SMALL('Загальний ввод'!$AA$21:$AA$999,SUM($A35:$A38)),'Загальний ввод'!$AA$21:$AA$999,))) ->  | D38: =IF($A38="","",INDEX('Загальний ввод'!D$21:D$999,MATCH(SMALL('Загальний ввод'!$AA$21:$AA$999,SUM($A35:$A38)),'Загальний ввод'!$AA$21:$AA$999,))) ->  | E38: =IF($A38="","",INDEX('Загальний ввод'!E$21:E$999,MATCH(SMALL('Загальний ввод'!$AA$21:$AA$999,SUM($A35:$A38)),'Загальний ввод'!$AA$21:$AA$999,))) ->  | F38: =IF($A38="","",INDEX('Загальний ввод'!F$21:F$999,MATCH(SMALL('Загальний ввод'!$AA$21:$AA$999,SUM($A35:$A38)),'Загальний ввод'!$AA$21:$AA$999,))) ->  | G38: =IF($A38="","",INDEX('Загальний ввод'!G$21:G$999,MATCH(SMALL('Загальний ввод'!$AA$21:$AA$999,SUM($A35:$A38)),'Загальний ввод'!$AA$21:$AA$999,))) ->  | H38: =IF($A38="","",INDEX('Загальний ввод'!H$21:H$999,MATCH(SMALL('Загальний ввод'!$AA$21:$AA$999,SUM($A35:$A38)),'Загальний ввод'!$AA$21:$AA$999,))) ->  | J38: =IF(($A38="")*($B38<>""),INDEX('Загальний ввод'!$R$21:$Z$999,MATCH(SMALL('Загальний ввод'!$AA$21:$AA$999,SUM($A35:$A38)),'Загальний ввод'!$AA$21:$AA$999,),MATCH(J$9,'Загальний ввод'!$R$20:$Z$20,))*INDEX('Загальний ввод'!$K$21:$O$999,MATCH(SMALL('Загальний ввод'!$AA$21:$AA$999,SUM($A35:$A38)),'Загальний ввод'!$AA$21:$AA$999,),MATCH($B38&"*",'Загальний ввод'!$K$19:$O$19,)),"") -> 10.89791667 | K38: =IF(($A38="")*($B38<>""),INDEX('Загальний ввод'!$R$21:$Z$999,MATCH(SMALL('Загальний ввод'!$AA$21:$AA$999,SUM($A35:$A38)),'Загальний ввод'!$AA$21:$AA$999,),MATCH(K$9,'Загальний ввод'!$R$20:$Z$20,))*INDEX('Загальний ввод'!$K$21:$O$999,MATCH(SMALL('Загальний ввод'!$AA$21:$AA$999,SUM($A35:$A38)),'Загальний ввод'!$AA$21:$AA$999,),MATCH($B38&"*",'Загальний ввод'!$K$19:$O$19,)),"") -> 10.89791667 | L38: =IF(($A38="")*($B38<>""),INDEX('Загальний ввод'!$R$21:$Z$999,MATCH(SMALL('Загальний ввод'!$AA$21:$AA$999,SUM($A35:$A38)),'Загальний ввод'!$AA$21:$AA$999,),MATCH(L$9,'Загальний ввод'!$R$20:$Z$20,))*INDEX('Загальний ввод'!$K$21:$O$999,MATCH(SMALL('Загальний ввод'!$AA$21:$AA$999,SUM($A35:$A38)),'Загальний ввод'!$AA$21:$AA$999,),MATCH($B38&"*",'Загальний ввод'!$K$19:$O$19,)),"") -> 0 | M38: =IF(($A38="")*($B38<>""),INDEX('Загальний ввод'!$R$21:$Z$999,MATCH(SMALL('Загальний ввод'!$AA$21:$AA$999,SUM($A35:$A38)),'Загальний ввод'!$AA$21:$AA$999,),MATCH(M$9,'Загальний ввод'!$R$20:$Z$20,))*INDEX('Загальний ввод'!$K$21:$O$999,MATCH(SMALL('Загальний ввод'!$AA$21:$AA$999,SUM($A35:$A38)),'Загальний ввод'!$AA$21:$AA$999,),MATCH($B38&"*",'Загальний ввод'!$K$19:$O$19,)),"") -> 0 | N38: =IF(($A38="")*($B38<>""),INDEX('Загальний ввод'!$R$21:$Z$999,MATCH(SMALL('Загальний ввод'!$AA$21:$AA$999,SUM($A35:$A38)),'Загальний ввод'!$AA$21:$AA$999,),MATCH(N$9,'Загальний ввод'!$R$20:$Z$20,))*INDEX('Загальний ввод'!$K$21:$O$999,MATCH(SMALL('Загальний ввод'!$AA$21:$AA$999,SUM($A35:$A38)),'Загальний ввод'!$AA$21:$AA$999,),MATCH($B38&"*",'Загальний ввод'!$K$19:$O$19,)),"") -> 0 | O38: =IF(($A38="")*($B38<>""),INDEX('Загальний ввод'!$R$21:$Z$999,MATCH(SMALL('Загальний ввод'!$AA$21:$AA$999,SUM($A35:$A38)),'Загальний ввод'!$AA$21:$AA$999,),MATCH(O$9,'Загальний ввод'!$R$20:$Z$20,))*INDEX('Загальний ввод'!$K$21:$O$999,MATCH(SMALL('Загальний ввод'!$AA$21:$AA$999,SUM($A35:$A38)),'Загальний ввод'!$AA$21:$AA$999,),MATCH($B38&"*",'Загальний ввод'!$K$19:$O$19,)),"") -> 0 | P38: =IF(($A38="")*($B38<>""),INDEX('Загальний ввод'!$R$21:$Z$999,MATCH(SMALL('Загальний ввод'!$AA$21:$AA$999,SUM($A35:$A38)),'Загальний ввод'!$AA$21:$AA$999,),MATCH(P$9,'Загальний ввод'!$R$20:$Z$20,))*INDEX('Загальний ввод'!$K$21:$O$999,MATCH(SMALL('Загальний ввод'!$AA$21:$AA$999,SUM($A35:$A38)),'Загальний ввод'!$AA$21:$AA$999,),MATCH($B38&"*",'Загальний ввод'!$K$19:$O$19,)),"") -> 0 | Q38: =IF(($A38="")*($B38<>""),INDEX('Загальний ввод'!$R$21:$Z$999,MATCH(SMALL('Загальний ввод'!$AA$21:$AA$999,SUM($A35:$A38)),'Загальний ввод'!$AA$21:$AA$999,),MATCH(Q$9,'Загальний ввод'!$R$20:$Z$20,))*INDEX('Загальний ввод'!$K$21:$O$999,MATCH(SMALL('Загальний ввод'!$AA$21:$AA$999,SUM($A35:$A38)),'Загальний ввод'!$AA$21:$AA$999,),MATCH($B38&"*",'Загальний ввод'!$K$19:$O$19,)),"") -> 0 | R38: =IF(($A38="")*($B38<>""),INDEX('Загальний ввод'!$R$21:$Z$999,MATCH(SMALL('Загальний ввод'!$AA$21:$AA$999,SUM($A35:$A38)),'Загальний ввод'!$AA$21:$AA$999,),MATCH(R$9,'Загальний ввод'!$R$20:$Z$20,))*INDEX('Загальний ввод'!$K$21:$O$999,MATCH(SMALL('Загальний ввод'!$AA$21:$AA$999,SUM($A35:$A38)),'Загальний ввод'!$AA$21:$AA$999,),MATCH($B38&"*",'Загальний ввод'!$K$19:$O$19,)),"") -> 0
A39: =IF(B39="","",IF(MOD(ROW()-1,4),"",COUNT(A$10:A38)+1)) ->  | B39: =IF(MOD(ROW()-1,4),IF(B38="","",INDEX({"Циркуляція";"Інтервал роботи";"Час нижче ротора"},MOD(ROW()-1,4))),IFERROR(INDEX('Загальний ввод'!B:B,SMALL('Загальний ввод'!AA$21:AA$999,(ROW()-1)/4)),"")) -> Інтервал роботи | C39: =IF($A39="","",INDEX('Загальний ввод'!C$21:C$999,MATCH(SMALL('Загальний ввод'!$AA$21:$AA$999,SUM($A36:$A39)),'Загальний ввод'!$AA$21:$AA$999,))) ->  | D39: =IF($A39="","",INDEX('Загальний ввод'!D$21:D$999,MATCH(SMALL('Загальний ввод'!$AA$21:$AA$999,SUM($A36:$A39)),'Загальний ввод'!$AA$21:$AA$999,))) ->  | E39: =IF($A39="","",INDEX('Загальний ввод'!E$21:E$999,MATCH(SMALL('Загальний ввод'!$AA$21:$AA$999,SUM($A36:$A39)),'Загальний ввод'!$AA$21:$AA$999,))) ->  | F39: =IF($A39="","",INDEX('Загальний ввод'!F$21:F$999,MATCH(SMALL('Загальний ввод'!$AA$21:$AA$999,SUM($A36:$A39)),'Загальний ввод'!$AA$21:$AA$999,))) ->  | G39: =IF($A39="","",INDEX('Загальний ввод'!G$21:G$999,MATCH(SMALL('Загальний ввод'!$AA$21:$AA$999,SUM($A36:$A39)),'Загальний ввод'!$AA$21:$AA$999,))) ->  | H39: =IF($A39="","",INDEX('Загальний ввод'!H$21:H$999,MATCH(SMALL('Загальний ввод'!$AA$21:$AA$999,SUM($A36:$A39)),'Загальний ввод'!$AA$21:$AA$999,))) ->  | J39: =IF(($A39="")*($B39<>""),INDEX('Загальний ввод'!$R$21:$Z$999,MATCH(SMALL('Загальний ввод'!$AA$21:$AA$999,SUM($A36:$A39)),'Загальний ввод'!$AA$21:$AA$999,),MATCH(J$9,'Загальний ввод'!$R$20:$Z$20,))*INDEX('Загальний ввод'!$K$21:$O$999,MATCH(SMALL('Загальний ввод'!$AA$21:$AA$999,SUM($A36:$A39)),'Загальний ввод'!$AA$21:$AA$999,),MATCH($B39&"*",'Загальний ввод'!$K$19:$O$19,)),"") -> 230 | K39: =IF(($A39="")*($B39<>""),INDEX('Загальний ввод'!$R$21:$Z$999,MATCH(SMALL('Загальний ввод'!$AA$21:$AA$999,SUM($A36:$A39)),'Загальний ввод'!$AA$21:$AA$999,),MATCH(K$9,'Загальний ввод'!$R$20:$Z$20,))*INDEX('Загальний ввод'!$K$21:$O$999,MATCH(SMALL('Загальний ввод'!$AA$21:$AA$999,SUM($A36:$A39)),'Загальний ввод'!$AA$21:$AA$999,),MATCH($B39&"*",'Загальний ввод'!$K$19:$O$19,)),"") -> 230 | L39: =IF(($A39="")*($B39<>""),INDEX('Загальний ввод'!$R$21:$Z$999,MATCH(SMALL('Загальний ввод'!$AA$21:$AA$999,SUM($A36:$A39)),'Загальний ввод'!$AA$21:$AA$999,),MATCH(L$9,'Загальний ввод'!$R$20:$Z$20,))*INDEX('Загальний ввод'!$K$21:$O$999,MATCH(SMALL('Загальний ввод'!$AA$21:$AA$999,SUM($A36:$A39)),'Загальний ввод'!$AA$21:$AA$999,),MATCH($B39&"*",'Загальний ввод'!$K$19:$O$19,)),"") -> 0 | M39: =IF(($A39="")*($B39<>""),INDEX('Загальний ввод'!$R$21:$Z$999,MATCH(SMALL('Загальний ввод'!$AA$21:$AA$999,SUM($A36:$A39)),'Загальний ввод'!$AA$21:$AA$999,),MATCH(M$9,'Загальний ввод'!$R$20:$Z$20,))*INDEX('Загальний ввод'!$K$21:$O$999,MATCH(SMALL('Загальний ввод'!$AA$21:$AA$999,SUM($A36:$A39)),'Загальний ввод'!$AA$21:$AA$999,),MATCH($B39&"*",'Загальний ввод'!$K$19:$O$19,)),"") -> 0 | N39: =IF(($A39="")*($B39<>""),INDEX('Загальний ввод'!$R$21:$Z$999,MATCH(SMALL('Загальний ввод'!$AA$21:$AA$999,SUM($A36:$A39)),'Загальний ввод'!$AA$21:$AA$999,),MATCH(N$9,'Загальний ввод'!$R$20:$Z$20,))*INDEX('Загальний ввод'!$K$21:$O$999,MATCH(SMALL('Загальний ввод'!$AA$21:$AA$999,SUM($A36:$A39)),'Загальний ввод'!$AA$21:$AA$999,),MATCH($B39&"*",'Загальний ввод'!$K$19:$O$19,)),"") -> 0 | O39: =IF(($A39="")*($B39<>""),INDEX('Загальний ввод'!$R$21:$Z$999,MATCH(SMALL('Загальний ввод'!$AA$21:$AA$999,SUM($A36:$A39)),'Загальний ввод'!$AA$21:$AA$999,),MATCH(O$9,'Загальний ввод'!$R$20:$Z$20,))*INDEX('Загальний ввод'!$K$21:$O$999,MATCH(SMALL('Загальний ввод'!$AA$21:$AA$999,SUM($A36:$A39)),'Загальний ввод'!$AA$21:$AA$999,),MATCH($B39&"*",'Загальний ввод'!$K$19:$O$19,)),"") -> 0 | P39: =IF(($A39="")*($B39<>""),INDEX('Загальний ввод'!$R$21:$Z$999,MATCH(SMALL('Загальний ввод'!$AA$21:$AA$999,SUM($A36:$A39)),'Загальний ввод'!$AA$21:$AA$999,),MATCH(P$9,'Загальний ввод'!$R$20:$Z$20,))*INDEX('Загальний ввод'!$K$21:$O$999,MATCH(SMALL('Загальний ввод'!$AA$21:$AA$999,SUM($A36:$A39)),'Загальний ввод'!$AA$21:$AA$999,),MATCH($B39&"*",'Загальний ввод'!$K$19:$O$19,)),"") -> 0 | Q39: =IF(($A39="")*($B39<>""),INDEX('Загальний ввод'!$R$21:$Z$999,MATCH(SMALL('Загальний ввод'!$AA$21:$AA$999,SUM($A36:$A39)),'Загальний ввод'!$AA$21:$AA$999,),MATCH(Q$9,'Загальний ввод'!$R$20:$Z$20,))*INDEX('Загальний ввод'!$K$21:$O$999,MATCH(SMALL('Загальний ввод'!$AA$21:$AA$999,SUM($A36:$A39)),'Загальний ввод'!$AA$21:$AA$999,),MATCH($B39&"*",'Загальний ввод'!$K$19:$O$19,)),"") -> 0 | R39: =IF(($A39="")*($B39<>""),INDEX('Загальний ввод'!$R$21:$Z$999,MATCH(SMALL('Загальний ввод'!$AA$21:$AA$999,SUM($A36:$A39)),'Загальний ввод'!$AA$21:$AA$999,),MATCH(R$9,'Загальний ввод'!$R$20:$Z$20,))*INDEX('Загальний ввод'!$K$21:$O$999,MATCH(SMALL('Загальний ввод'!$AA$21:$AA$999,SUM($A36:$A39)),'Загальний ввод'!$AA$21:$AA$999,),MATCH($B39&"*",'Загальний ввод'!$K$19:$O$19,)),"") -> 0
A40: =IF(B40="","",IF(MOD(ROW()-1,4),"",COUNT(A$10:A39)+1)) ->  | B40: =IF(MOD(ROW()-1,4),IF(B39="","",INDEX({"Циркуляція";"Інтервал роботи";"Час нижче ротора"},MOD(ROW()-1,4))),IFERROR(INDEX('Загальний ввод'!B:B,SMALL('Загальний ввод'!AA$21:AA$999,(ROW()-1)/4)),"")) -> Час нижче ротора | C40: =IF($A40="","",INDEX('Загальний ввод'!C$21:C$999,MATCH(SMALL('Загальний ввод'!$AA$21:$AA$999,SUM($A37:$A40)),'Загальний ввод'!$AA$21:$AA$999,))) ->  | D40: =IF($A40="","",INDEX('Загальний ввод'!D$21:D$999,MATCH(SMALL('Загальний ввод'!$AA$21:$AA$999,SUM($A37:$A40)),'Загальний ввод'!$AA$21:$AA$999,))) ->  | E40: =IF($A40="","",INDEX('Загальний ввод'!E$21:E$999,MATCH(SMALL('Загальний ввод'!$AA$21:$AA$999,SUM($A37:$A40)),'Загальний ввод'!$AA$21:$AA$999,))) ->  | F40: =IF($A40="","",INDEX('Загальний ввод'!F$21:F$999,MATCH(SMALL('Загальний ввод'!$AA$21:$AA$999,SUM($A37:$A40)),'Загальний ввод'!$AA$21:$AA$999,))) ->  | G40: =IF($A40="","",INDEX('Загальний ввод'!G$21:G$999,MATCH(SMALL('Загальний ввод'!$AA$21:$AA$999,SUM($A37:$A40)),'Загальний ввод'!$AA$21:$AA$999,))) ->  | H40: =IF($A40="","",INDEX('Загальний ввод'!H$21:H$999,MATCH(SMALL('Загальний ввод'!$AA$21:$AA$999,SUM($A37:$A40)),'Загальний ввод'!$AA$21:$AA$999,))) ->  | J40: =IF(($A40="")*($B40<>""),INDEX('Загальний ввод'!$R$21:$Z$999,MATCH(SMALL('Загальний ввод'!$AA$21:$AA$999,SUM($A37:$A40)),'Загальний ввод'!$AA$21:$AA$999,),MATCH(J$9,'Загальний ввод'!$R$20:$Z$20,))*INDEX('Загальний ввод'!$K$21:$O$999,MATCH(SMALL('Загальний ввод'!$AA$21:$AA$999,SUM($A37:$A40)),'Загальний ввод'!$AA$21:$AA$999,),MATCH($B40&"*",'Загальний ввод'!$K$19:$O$19,)),"") -> 17.22916667 | K40: =IF(($A40="")*($B40<>""),INDEX('Загальний ввод'!$R$21:$Z$999,MATCH(SMALL('Загальний ввод'!$AA$21:$AA$999,SUM($A37:$A40)),'Загальний ввод'!$AA$21:$AA$999,),MATCH(K$9,'Загальний ввод'!$R$20:$Z$20,))*INDEX('Загальний ввод'!$K$21:$O$999,MATCH(SMALL('Загальний ввод'!$AA$21:$AA$999,SUM($A37:$A40)),'Загальний ввод'!$AA$21:$AA$999,),MATCH($B40&"*",'Загальний ввод'!$K$19:$O$19,)),"") -> 17.22916667 | L40: =IF(($A40="")*($B40<>""),INDEX('Загальний ввод'!$R$21:$Z$999,MATCH(SMALL('Загальний ввод'!$AA$21:$AA$999,SUM($A37:$A40)),'Загальний ввод'!$AA$21:$AA$999,),MATCH(L$9,'Загальний ввод'!$R$20:$Z$20,))*INDEX('Загальний ввод'!$K$21:$O$999,MATCH(SMALL('Загальний ввод'!$AA$21:$AA$999,SUM($A37:$A40)),'Загальний ввод'!$AA$21:$AA$999,),MATCH($B40&"*",'Загальний ввод'!$K$19:$O$19,)),"") -> 0 | M40: =IF(($A40="")*($B40<>""),INDEX('Загальний ввод'!$R$21:$Z$999,MATCH(SMALL('Загальний ввод'!$AA$21:$AA$999,SUM($A37:$A40)),'Загальний ввод'!$AA$21:$AA$999,),MATCH(M$9,'Загальний ввод'!$R$20:$Z$20,))*INDEX('Загальний ввод'!$K$21:$O$999,MATCH(SMALL('Загальний ввод'!$AA$21:$AA$999,SUM($A37:$A40)),'Загальний ввод'!$AA$21:$AA$999,),MATCH($B40&"*",'Загальний ввод'!$K$19:$O$19,)),"") -> 0 | N40: =IF(($A40="")*($B40<>""),INDEX('Загальний ввод'!$R$21:$Z$999,MATCH(SMALL('Загальний ввод'!$AA$21:$AA$999,SUM($A37:$A40)),'Загальний ввод'!$AA$21:$AA$999,),MATCH(N$9,'Загальний ввод'!$R$20:$Z$20,))*INDEX('Загальний ввод'!$K$21:$O$999,MATCH(SMALL('Загальний ввод'!$AA$21:$AA$999,SUM($A37:$A40)),'Загальний ввод'!$AA$21:$AA$999,),MATCH($B40&"*",'Загальний ввод'!$K$19:$O$19,)),"") -> 0 | O40: =IF(($A40="")*($B40<>""),INDEX('Загальний ввод'!$R$21:$Z$999,MATCH(SMALL('Загальний ввод'!$AA$21:$AA$999,SUM($A37:$A40)),'Загальний ввод'!$AA$21:$AA$999,),MATCH(O$9,'Загальний ввод'!$R$20:$Z$20,))*INDEX('Загальний ввод'!$K$21:$O$999,MATCH(SMALL('Загальний ввод'!$AA$21:$AA$999,SUM($A37:$A40)),'Загальний ввод'!$AA$21:$AA$999,),MATCH($B40&"*",'Загальний ввод'!$K$19:$O$19,)),"") -> 0 | P40: =IF(($A40="")*($B40<>""),INDEX('Загальний ввод'!$R$21:$Z$999,MATCH(SMALL('Загальний ввод'!$AA$21:$AA$999,SUM($A37:$A40)),'Загальний ввод'!$AA$21:$AA$999,),MATCH(P$9,'Загальний ввод'!$R$20:$Z$20,))*INDEX('Загальний ввод'!$K$21:$O$999,MATCH(SMALL('Загальний ввод'!$AA$21:$AA$999,SUM($A37:$A40)),'Загальний ввод'!$AA$21:$AA$999,),MATCH($B40&"*",'Загальний ввод'!$K$19:$O$19,)),"") -> 0 | Q40: =IF(($A40="")*($B40<>""),INDEX('Загальний ввод'!$R$21:$Z$999,MATCH(SMALL('Загальний ввод'!$AA$21:$AA$999,SUM($A37:$A40)),'Загальний ввод'!$AA$21:$AA$999,),MATCH(Q$9,'Загальний ввод'!$R$20:$Z$20,))*INDEX('Загальний ввод'!$K$21:$O$999,MATCH(SMALL('Загальний ввод'!$AA$21:$AA$999,SUM($A37:$A40)),'Загальний ввод'!$AA$21:$AA$999,),MATCH($B40&"*",'Загальний ввод'!$K$19:$O$19,)),"") -> 0 | R40: =IF(($A40="")*($B40<>""),INDEX('Загальний ввод'!$R$21:$Z$999,MATCH(SMALL('Загальний ввод'!$AA$21:$AA$999,SUM($A37:$A40)),'Загальний ввод'!$AA$21:$AA$999,),MATCH(R$9,'Загальний ввод'!$R$20:$Z$20,))*INDEX('Загальний ввод'!$K$21:$O$999,MATCH(SMALL('Загальний ввод'!$AA$21:$AA$999,SUM($A37:$A40)),'Загальний ввод'!$AA$21:$AA$999,),MATCH($B40&"*",'Загальний ввод'!$K$19:$O$19,)),"") -> 0
A41: =IF(B41="","",IF(MOD(ROW()-1,4),"",COUNT(A$10:A40)+1)) -> 8 | B41: =IF(MOD(ROW()-1,4),IF(B40="","",INDEX({"Циркуляція";"Інтервал роботи";"Час нижче ротора"},MOD(ROW()-1,4))),IFERROR(INDEX('Загальний ввод'!B:B,SMALL('Загальний ввод'!AA$21:AA$999,(ROW()-1)/4)),"")) -> 33 Краснокутська | C41: =IF($A41="","",INDEX('Загальний ввод'!C$21:C$999,MATCH(SMALL('Загальний ввод'!$AA$21:$AA$999,SUM($A38:$A41)),'Загальний ввод'!$AA$21:$AA$999,))) -> 2018-09-16 | D41: =IF($A41="","",INDEX('Загальний ввод'!D$21:D$999,MATCH(SMALL('Загальний ввод'!$AA$21:$AA$999,SUM($A38:$A41)),'Загальний ввод'!$AA$21:$AA$999,))) -> 09:30:00 | E41: =IF($A41="","",INDEX('Загальний ввод'!E$21:E$999,MATCH(SMALL('Загальний ввод'!$AA$21:$AA$999,SUM($A38:$A41)),'Загальний ввод'!$AA$21:$AA$999,))) -> 3095 | F41: =IF($A41="","",INDEX('Загальний ввод'!F$21:F$999,MATCH(SMALL('Загальний ввод'!$AA$21:$AA$999,SUM($A38:$A41)),'Загальний ввод'!$AA$21:$AA$999,))) -> 2018-10-13 | G41: =IF($A41="","",INDEX('Загальний ввод'!G$21:G$999,MATCH(SMALL('Загальний ввод'!$AA$21:$AA$999,SUM($A38:$A41)),'Загальний ввод'!$AA$21:$AA$999,))) -> 08:00:00 | H41: =IF($A41="","",INDEX('Загальний ввод'!H$21:H$999,MATCH(SMALL('Загальний ввод'!$AA$21:$AA$999,SUM($A38:$A41)),'Загальний ввод'!$AA$21:$AA$999,))) -> 3314.8 | I41: 219.8 | J41: =IF(($A41="")*($B41<>""),INDEX('Загальний ввод'!$R$21:$Z$999,MATCH(SMALL('Загальний ввод'!$AA$21:$AA$999,SUM($A38:$A41)),'Загальний ввод'!$AA$21:$AA$999,),MATCH(J$9,'Загальний ввод'!$R$20:$Z$20,))*INDEX('Загальний ввод'!$K$21:$O$999,MATCH(SMALL('Загальний ввод'!$AA$21:$AA$999,SUM($A38:$A41)),'Загальний ввод'!$AA$21:$AA$999,),MATCH($B41&"*",'Загальний ввод'!$K$19:$O$19,)),"") ->  | K41: =IF(($A41="")*($B41<>""),INDEX('Загальний ввод'!$R$21:$Z$999,MATCH(SMALL('Загальний ввод'!$AA$21:$AA$999,SUM($A38:$A41)),'Загальний ввод'!$AA$21:$AA$999,),MATCH(K$9,'Загальний ввод'!$R$20:$Z$20,))*INDEX('Загальний ввод'!$K$21:$O$999,MATCH(SMALL('Загальний ввод'!$AA$21:$AA$999,SUM($A38:$A41)),'Загальний ввод'!$AA$21:$AA$999,),MATCH($B41&"*",'Загальний ввод'!$K$19:$O$19,)),"") ->  | L41: =IF(($A41="")*($B41<>""),INDEX('Загальний ввод'!$R$21:$Z$999,MATCH(SMALL('Загальний ввод'!$AA$21:$AA$999,SUM($A38:$A41)),'Загальний ввод'!$AA$21:$AA$999,),MATCH(L$9,'Загальний ввод'!$R$20:$Z$20,))*INDEX('Загальний ввод'!$K$21:$O$999,MATCH(SMALL('Загальний ввод'!$AA$21:$AA$999,SUM($A38:$A41)),'Загальний ввод'!$AA$21:$AA$999,),MATCH($B41&"*",'Загальний ввод'!$K$19:$O$19,)),"") ->  | M41: =IF(($A41="")*($B41<>""),INDEX('Загальний ввод'!$R$21:$Z$999,MATCH(SMALL('Загальний ввод'!$AA$21:$AA$999,SUM($A38:$A41)),'Загальний ввод'!$AA$21:$AA$999,),MATCH(M$9,'Загальний ввод'!$R$20:$Z$20,))*INDEX('Загальний ввод'!$K$21:$O$999,MATCH(SMALL('Загальний ввод'!$AA$21:$AA$999,SUM($A38:$A41)),'Загальний ввод'!$AA$21:$AA$999,),MATCH($B41&"*",'Загальний ввод'!$K$19:$O$19,)),"") ->  | N41: =IF(($A41="")*($B41<>""),INDEX('Загальний ввод'!$R$21:$Z$999,MATCH(SMALL('Загальний ввод'!$AA$21:$AA$999,SUM($A38:$A41)),'Загальний ввод'!$AA$21:$AA$999,),MATCH(N$9,'Загальний ввод'!$R$20:$Z$20,))*INDEX('Загальний ввод'!$K$21:$O$999,MATCH(SMALL('Загальний ввод'!$AA$21:$AA$999,SUM($A38:$A41)),'Загальний ввод'!$AA$21:$AA$999,),MATCH($B41&"*",'Загальний ввод'!$K$19:$O$19,)),"") ->  | O41: =IF(($A41="")*($B41<>""),INDEX('Загальний ввод'!$R$21:$Z$999,MATCH(SMALL('Загальний ввод'!$AA$21:$AA$999,SUM($A38:$A41)),'Загальний ввод'!$AA$21:$AA$999,),MATCH(O$9,'Загальний ввод'!$R$20:$Z$20,))*INDEX('Загальний ввод'!$K$21:$O$999,MATCH(SMALL('Загальний ввод'!$AA$21:$AA$999,SUM($A38:$A41)),'Загальний ввод'!$AA$21:$AA$999,),MATCH($B41&"*",'Загальний ввод'!$K$19:$O$19,)),"") ->  | P41: =IF(($A41="")*($B41<>""),INDEX('Загальний ввод'!$R$21:$Z$999,MATCH(SMALL('Загальний ввод'!$AA$21:$AA$999,SUM($A38:$A41)),'Загальний ввод'!$AA$21:$AA$999,),MATCH(P$9,'Загальний ввод'!$R$20:$Z$20,))*INDEX('Загальний ввод'!$K$21:$O$999,MATCH(SMALL('Загальний ввод'!$AA$21:$AA$999,SUM($A38:$A41)),'Загальний ввод'!$AA$21:$AA$999,),MATCH($B41&"*",'Загальний ввод'!$K$19:$O$19,)),"") ->  | Q41: =IF(($A41="")*($B41<>""),INDEX('Загальний ввод'!$R$21:$Z$999,MATCH(SMALL('Загальний ввод'!$AA$21:$AA$999,SUM($A38:$A41)),'Загальний ввод'!$AA$21:$AA$999,),MATCH(Q$9,'Загальний ввод'!$R$20:$Z$20,))*INDEX('Загальний ввод'!$K$21:$O$999,MATCH(SMALL('Загальний ввод'!$AA$21:$AA$999,SUM($A38:$A41)),'Загальний ввод'!$AA$21:$AA$999,),MATCH($B41&"*",'Загальний ввод'!$K$19:$O$19,)),"") ->  | R41: =IF(($A41="")*($B41<>""),INDEX('Загальний ввод'!$R$21:$Z$999,MATCH(SMALL('Загальний ввод'!$AA$21:$AA$999,SUM($A38:$A41)),'Загальний ввод'!$AA$21:$AA$999,),MATCH(R$9,'Загальний ввод'!$R$20:$Z$20,))*INDEX('Загальний ввод'!$K$21:$O$999,MATCH(SMALL('Загальний ввод'!$AA$21:$AA$999,SUM($A38:$A41)),'Загальний ввод'!$AA$21:$AA$999,),MATCH($B41&"*",'Загальний ввод'!$K$19:$O$19,)),"") -> 
A42: =IF(B42="","",IF(MOD(ROW()-1,4),"",COUNT(A$10:A41)+1)) ->  | B42: =IF(MOD(ROW()-1,4),IF(B41="","",INDEX({"Циркуляція";"Інтервал роботи";"Час нижче ротора"},MOD(ROW()-1,4))),IFERROR(INDEX('Загальний ввод'!B:B,SMALL('Загальний ввод'!AA$21:AA$999,(ROW()-1)/4)),"")) -> Циркуляція | C42: =IF($A42="","",INDEX('Загальний ввод'!C$21:C$999,MATCH(SMALL('Загальний ввод'!$AA$21:$AA$999,SUM($A39:$A42)),'Загальний ввод'!$AA$21:$AA$999,))) ->  | D42: =IF($A42="","",INDEX('Загальний ввод'!D$21:D$999,MATCH(SMALL('Загальний ввод'!$AA$21:$AA$999,SUM($A39:$A42)),'Загальний ввод'!$AA$21:$AA$999,))) ->  | E42: =IF($A42="","",INDEX('Загальний ввод'!E$21:E$999,MATCH(SMALL('Загальний ввод'!$AA$21:$AA$999,SUM($A39:$A42)),'Загальний ввод'!$AA$21:$AA$999,))) ->  | F42: =IF($A42="","",INDEX('Загальний ввод'!F$21:F$999,MATCH(SMALL('Загальний ввод'!$AA$21:$AA$999,SUM($A39:$A42)),'Загальний ввод'!$AA$21:$AA$999,))) ->  | G42: =IF($A42="","",INDEX('Загальний ввод'!G$21:G$999,MATCH(SMALL('Загальний ввод'!$AA$21:$AA$999,SUM($A39:$A42)),'Загальний ввод'!$AA$21:$AA$999,))) ->  | H42: =IF($A42="","",INDEX('Загальний ввод'!H$21:H$999,MATCH(SMALL('Загальний ввод'!$AA$21:$AA$999,SUM($A39:$A42)),'Загальний ввод'!$AA$21:$AA$999,))) ->  | J42: =IF(($A42="")*($B42<>""),INDEX('Загальний ввод'!$R$21:$Z$999,MATCH(SMALL('Загальний ввод'!$AA$21:$AA$999,SUM($A39:$A42)),'Загальний ввод'!$AA$21:$AA$999,),MATCH(J$9,'Загальний ввод'!$R$20:$Z$20,))*INDEX('Загальний ввод'!$K$21:$O$999,MATCH(SMALL('Загальний ввод'!$AA$21:$AA$999,SUM($A39:$A42)),'Загальний ввод'!$AA$21:$AA$999,),MATCH($B42&"*",'Загальний ввод'!$K$19:$O$19,)),"") -> 0 | K42: =IF(($A42="")*($B42<>""),INDEX('Загальний ввод'!$R$21:$Z$999,MATCH(SMALL('Загальний ввод'!$AA$21:$AA$999,SUM($A39:$A42)),'Загальний ввод'!$AA$21:$AA$999,),MATCH(K$9,'Загальний ввод'!$R$20:$Z$20,))*INDEX('Загальний ввод'!$K$21:$O$999,MATCH(SMALL('Загальний ввод'!$AA$21:$AA$999,SUM($A39:$A42)),'Загальний ввод'!$AA$21:$AA$999,),MATCH($B42&"*",'Загальний ввод'!$K$19:$O$19,)),"") -> 0 | L42: =IF(($A42="")*($B42<>""),INDEX('Загальний ввод'!$R$21:$Z$999,MATCH(SMALL('Загальний ввод'!$AA$21:$AA$999,SUM($A39:$A42)),'Загальний ввод'!$AA$21:$AA$999,),MATCH(L$9,'Загальний ввод'!$R$20:$Z$20,))*INDEX('Загальний ввод'!$K$21:$O$999,MATCH(SMALL('Загальний ввод'!$AA$21:$AA$999,SUM($A39:$A42)),'Загальний ввод'!$AA$21:$AA$999,),MATCH($B42&"*",'Загальний ввод'!$K$19:$O$19,)),"") -> 0 | M42: =IF(($A42="")*($B42<>""),INDEX('Загальний ввод'!$R$21:$Z$999,MATCH(SMALL('Загальний ввод'!$AA$21:$AA$999,SUM($A39:$A42)),'Загальний ввод'!$AA$21:$AA$999,),MATCH(M$9,'Загальний ввод'!$R$20:$Z$20,))*INDEX('Загальний ввод'!$K$21:$O$999,MATCH(SMALL('Загальний ввод'!$AA$21:$AA$999,SUM($A39:$A42)),'Загальний ввод'!$AA$21:$AA$999,),MATCH($B42&"*",'Загальний ввод'!$K$19:$O$19,)),"") -> 0 | N42: =IF(($A42="")*($B42<>""),INDEX('Загальний ввод'!$R$21:$Z$999,MATCH(SMALL('Загальний ввод'!$AA$21:$AA$999,SUM($A39:$A42)),'Загальний ввод'!$AA$21:$AA$999,),MATCH(N$9,'Загальний ввод'!$R$20:$Z$20,))*INDEX('Загальний ввод'!$K$21:$O$999,MATCH(SMALL('Загальний ввод'!$AA$21:$AA$999,SUM($A39:$A42)),'Загальний ввод'!$AA$21:$AA$999,),MATCH($B42&"*",'Загальний ввод'!$K$19:$O$19,)),"") -> 11.78125 | O42: =IF(($A42="")*($B42<>""),INDEX('Загальний ввод'!$R$21:$Z$999,MATCH(SMALL('Загальний ввод'!$AA$21:$AA$999,SUM($A39:$A42)),'Загальний ввод'!$AA$21:$AA$999,),MATCH(O$9,'Загальний ввод'!$R$20:$Z$20,))*INDEX('Загальний ввод'!$K$21:$O$999,MATCH(SMALL('Загальний ввод'!$AA$21:$AA$999,SUM($A39:$A42)),'Загальний ввод'!$AA$21:$AA$999,),MATCH($B42&"*",'Загальний ввод'!$K$19:$O$19,)),"") -> 11.78125 | P42: =IF(($A42="")*($B42<>""),INDEX('Загальний ввод'!$R$21:$Z$999,MATCH(SMALL('Загальний ввод'!$AA$21:$AA$999,SUM($A39:$A42)),'Загальний ввод'!$AA$21:$AA$999,),MATCH(P$9,'Загальний ввод'!$R$20:$Z$20,))*INDEX('Загальний ввод'!$K$21:$O$999,MATCH(SMALL('Загальний ввод'!$AA$21:$AA$999,SUM($A39:$A42)),'Загальний ввод'!$AA$21:$AA$999,),MATCH($B42&"*",'Загальний ввод'!$K$19:$O$19,)),"") -> 0 | Q42: =IF(($A42="")*($B42<>""),INDEX('Загальний ввод'!$R$21:$Z$999,MATCH(SMALL('Загальний ввод'!$AA$21:$AA$999,SUM($A39:$A42)),'Загальний ввод'!$AA$21:$AA$999,),MATCH(Q$9,'Загальний ввод'!$R$20:$Z$20,))*INDEX('Загальний ввод'!$K$21:$O$999,MATCH(SMALL('Загальний ввод'!$AA$21:$AA$999,SUM($A39:$A42)),'Загальний ввод'!$AA$21:$AA$999,),MATCH($B42&"*",'Загальний ввод'!$K$19:$O$19,)),"") -> 0 | R42: =IF(($A42="")*($B42<>""),INDEX('Загальний ввод'!$R$21:$Z$999,MATCH(SMALL('Загальний ввод'!$AA$21:$AA$999,SUM($A39:$A42)),'Загальний ввод'!$AA$21:$AA$999,),MATCH(R$9,'Загальний ввод'!$R$20:$Z$20,))*INDEX('Загальний ввод'!$K$21:$O$999,MATCH(SMALL('Загальний ввод'!$AA$21:$AA$999,SUM($A39:$A42)),'Загальний ввод'!$AA$21:$AA$999,),MATCH($B42&"*",'Загальний ввод'!$K$19:$O$19,)),"") -> 0
A43: =IF(B43="","",IF(MOD(ROW()-1,4),"",COUNT(A$10:A42)+1)) ->  | B43: =IF(MOD(ROW()-1,4),IF(B42="","",INDEX({"Циркуляція";"Інтервал роботи";"Час нижче ротора"},MOD(ROW()-1,4))),IFERROR(INDEX('Загальний ввод'!B:B,SMALL('Загальний ввод'!AA$21:AA$999,(ROW()-1)/4)),"")) -> Інтервал роботи | C43: =IF($A43="","",INDEX('Загальний ввод'!C$21:C$999,MATCH(SMALL('Загальний ввод'!$AA$21:$AA$999,SUM($A40:$A43)),'Загальний ввод'!$AA$21:$AA$999,))) ->  | D43: =IF($A43="","",INDEX('Загальний ввод'!D$21:D$999,MATCH(SMALL('Загальний ввод'!$AA$21:$AA$999,SUM($A40:$A43)),'Загальний ввод'!$AA$21:$AA$999,))) ->  | E43: =IF($A43="","",INDEX('Загальний ввод'!E$21:E$999,MATCH(SMALL('Загальний ввод'!$AA$21:$AA$999,SUM($A40:$A43)),'Загальний ввод'!$AA$21:$AA$999,))) ->  | F43: =IF($A43="","",INDEX('Загальний ввод'!F$21:F$999,MATCH(SMALL('Загальний ввод'!$AA$21:$AA$999,SUM($A40:$A43)),'Загальний ввод'!$AA$21:$AA$999,))) ->  | G43: =IF($A43="","",INDEX('Загальний ввод'!G$21:G$999,MATCH(SMALL('Загальний ввод'!$AA$21:$AA$999,SUM($A40:$A43)),'Загальний ввод'!$AA$21:$AA$999,))) ->  | H43: =IF($A43="","",INDEX('Загальний ввод'!H$21:H$999,MATCH(SMALL('Загальний ввод'!$AA$21:$AA$999,SUM($A40:$A43)),'Загальний ввод'!$AA$21:$AA$999,))) ->  | J43: =IF(($A43="")*($B43<>""),INDEX('Загальний ввод'!$R$21:$Z$999,MATCH(SMALL('Загальний ввод'!$AA$21:$AA$999,SUM($A40:$A43)),'Загальний ввод'!$AA$21:$AA$999,),MATCH(J$9,'Загальний ввод'!$R$20:$Z$20,))*INDEX('Загальний ввод'!$K$21:$O$999,MATCH(SMALL('Загальний ввод'!$AA$21:$AA$999,SUM($A40:$A43)),'Загальний ввод'!$AA$21:$AA$999,),MATCH($B43&"*",'Загальний ввод'!$K$19:$O$19,)),"") -> 0 | K43: =IF(($A43="")*($B43<>""),INDEX('Загальний ввод'!$R$21:$Z$999,MATCH(SMALL('Загальний ввод'!$AA$21:$AA$999,SUM($A40:$A43)),'Загальний ввод'!$AA$21:$AA$999,),MATCH(K$9,'Загальний ввод'!$R$20:$Z$20,))*INDEX('Загальний ввод'!$K$21:$O$999,MATCH(SMALL('Загальний ввод'!$AA$21:$AA$999,SUM($A40:$A43)),'Загальний ввод'!$AA$21:$AA$999,),MATCH($B43&"*",'Загальний ввод'!$K$19:$O$19,)),"") -> 0 | L43: =IF(($A43="")*($B43<>""),INDEX('Загальний ввод'!$R$21:$Z$999,MATCH(SMALL('Загальний ввод'!$AA$21:$AA$999,SUM($A40:$A43)),'Загальний ввод'!$AA$21:$AA$999,),MATCH(L$9,'Загальний ввод'!$R$20:$Z$20,))*INDEX('Загальний ввод'!$K$21:$O$999,MATCH(SMALL('Загальний ввод'!$AA$21:$AA$999,SUM($A40:$A43)),'Загальний ввод'!$AA$21:$AA$999,),MATCH($B43&"*",'Загальний ввод'!$K$19:$O$19,)),"") -> 0 | M43: =IF(($A43="")*($B43<>""),INDEX('Загальний ввод'!$R$21:$Z$999,MATCH(SMALL('Загальний ввод'!$AA$21:$AA$999,SUM($A40:$A43)),'Загальний ввод'!$AA$21:$AA$999,),MATCH(M$9,'Загальний ввод'!$R$20:$Z$20,))*INDEX('Загальний ввод'!$K$21:$O$999,MATCH(SMALL('Загальний ввод'!$AA$21:$AA$999,SUM($A40:$A43)),'Загальний ввод'!$AA$21:$AA$999,),MATCH($B43&"*",'Загальний ввод'!$K$19:$O$19,)),"") -> 0 | N43: =IF(($A43="")*($B43<>""),INDEX('Загальний ввод'!$R$21:$Z$999,MATCH(SMALL('Загальний ввод'!$AA$21:$AA$999,SUM($A40:$A43)),'Загальний ввод'!$AA$21:$AA$999,),MATCH(N$9,'Загальний ввод'!$R$20:$Z$20,))*INDEX('Загальний ввод'!$K$21:$O$999,MATCH(SMALL('Загальний ввод'!$AA$21:$AA$999,SUM($A40:$A43)),'Загальний ввод'!$AA$21:$AA$999,),MATCH($B43&"*",'Загальний ввод'!$K$19:$O$19,)),"") -> 219.8 | O43: =IF(($A43="")*($B43<>""),INDEX('Загальний ввод'!$R$21:$Z$999,MATCH(SMALL('Загальний ввод'!$AA$21:$AA$999,SUM($A40:$A43)),'Загальний ввод'!$AA$21:$AA$999,),MATCH(O$9,'Загальний ввод'!$R$20:$Z$20,))*INDEX('Загальний ввод'!$K$21:$O$999,MATCH(SMALL('Загальний ввод'!$AA$21:$AA$999,SUM($A40:$A43)),'Загальний ввод'!$AA$21:$AA$999,),MATCH($B43&"*",'Загальний ввод'!$K$19:$O$19,)),"") -> 219.8 | P43: =IF(($A43="")*($B43<>""),INDEX('Загальний ввод'!$R$21:$Z$999,MATCH(SMALL('Загальний ввод'!$AA$21:$AA$999,SUM($A40:$A43)),'Загальний ввод'!$AA$21:$AA$999,),MATCH(P$9,'Загальний ввод'!$R$20:$Z$20,))*INDEX('Загальний ввод'!$K$21:$O$999,MATCH(SMALL('Загальний ввод'!$AA$21:$AA$999,SUM($A40:$A43)),'Загальний ввод'!$AA$21:$AA$999,),MATCH($B43&"*",'Загальний ввод'!$K$19:$O$19,)),"") -> 0 | Q43: =IF(($A43="")*($B43<>""),INDEX('Загальний ввод'!$R$21:$Z$999,MATCH(SMALL('Загальний ввод'!$AA$21:$AA$999,SUM($A40:$A43)),'Загальний ввод'!$AA$21:$AA$999,),MATCH(Q$9,'Загальний ввод'!$R$20:$Z$20,))*INDEX('Загальний ввод'!$K$21:$O$999,MATCH(SMALL('Загальний ввод'!$AA$21:$AA$999,SUM($A40:$A43)),'Загальний ввод'!$AA$21:$AA$999,),MATCH($B43&"*",'Загальний ввод'!$K$19:$O$19,)),"") -> 0 | R43: =IF(($A43="")*($B43<>""),INDEX('Загальний ввод'!$R$21:$Z$999,MATCH(SMALL('Загальний ввод'!$AA$21:$AA$999,SUM($A40:$A43)),'Загальний ввод'!$AA$21:$AA$999,),MATCH(R$9,'Загальний ввод'!$R$20:$Z$20,))*INDEX('Загальний ввод'!$K$21:$O$999,MATCH(SMALL('Загальний ввод'!$AA$21:$AA$999,SUM($A40:$A43)),'Загальний ввод'!$AA$21:$AA$999,),MATCH($B43&"*",'Загальний ввод'!$K$19:$O$19,)),"") -> 0
A44: =IF(B44="","",IF(MOD(ROW()-1,4),"",COUNT(A$10:A43)+1)) ->  | B44: =IF(MOD(ROW()-1,4),IF(B43="","",INDEX({"Циркуляція";"Інтервал роботи";"Час нижче ротора"},MOD(ROW()-1,4))),IFERROR(INDEX('Загальний ввод'!B:B,SMALL('Загальний ввод'!AA$21:AA$999,(ROW()-1)/4)),"")) -> Час нижче ротора | C44: =IF($A44="","",INDEX('Загальний ввод'!C$21:C$999,MATCH(SMALL('Загальний ввод'!$AA$21:$AA$999,SUM($A41:$A44)),'Загальний ввод'!$AA$21:$AA$999,))) ->  | D44: =IF($A44="","",INDEX('Загальний ввод'!D$21:D$999,MATCH(SMALL('Загальний ввод'!$AA$21:$AA$999,SUM($A41:$A44)),'Загальний ввод'!$AA$21:$AA$999,))) ->  | E44: =IF($A44="","",INDEX('Загальний ввод'!E$21:E$999,MATCH(SMALL('Загальний ввод'!$AA$21:$AA$999,SUM($A41:$A44)),'Загальний ввод'!$AA$21:$AA$999,))) ->  | F44: =IF($A44="","",INDEX('Загальний ввод'!F$21:F$999,MATCH(SMALL('Загальний ввод'!$AA$21:$AA$999,SUM($A41:$A44)),'Загальний ввод'!$AA$21:$AA$999,))) ->  | G44: =IF($A44="","",INDEX('Загальний ввод'!G$21:G$999,MATCH(SMALL('Загальний ввод'!$AA$21:$AA$999,SUM($A41:$A44)),'Загальний ввод'!$AA$21:$AA$999,))) ->  | H44: =IF($A44="","",INDEX('Загальний ввод'!H$21:H$999,MATCH(SMALL('Загальний ввод'!$AA$21:$AA$999,SUM($A41:$A44)),'Загальний ввод'!$AA$21:$AA$999,))) ->  | J44: =IF(($A44="")*($B44<>""),INDEX('Загальний ввод'!$R$21:$Z$999,MATCH(SMALL('Загальний ввод'!$AA$21:$AA$999,SUM($A41:$A44)),'Загальний ввод'!$AA$21:$AA$999,),MATCH(J$9,'Загальний ввод'!$R$20:$Z$20,))*INDEX('Загальний ввод'!$K$21:$O$999,MATCH(SMALL('Загальний ввод'!$AA$21:$AA$999,SUM($A41:$A44)),'Загальний ввод'!$AA$21:$AA$999,),MATCH($B44&"*",'Загальний ввод'!$K$19:$O$19,)),"") -> 0 | K44: =IF(($A44="")*($B44<>""),INDEX('Загальний ввод'!$R$21:$Z$999,MATCH(SMALL('Загальний ввод'!$AA$21:$AA$999,SUM($A41:$A44)),'Загальний ввод'!$AA$21:$AA$999,),MATCH(K$9,'Загальний ввод'!$R$20:$Z$20,))*INDEX('Загальний ввод'!$K$21:$O$999,MATCH(SMALL('Загальний ввод'!$AA$21:$AA$999,SUM($A41:$A44)),'Загальний ввод'!$AA$21:$AA$999,),MATCH($B44&"*",'Загальний ввод'!$K$19:$O$19,)),"") -> 0 | L44: =IF(($A44="")*($B44<>""),INDEX('Загальний ввод'!$R$21:$Z$999,MATCH(SMALL('Загальний ввод'!$AA$21:$AA$999,SUM($A41:$A44)),'Загальний ввод'!$AA$21:$AA$999,),MATCH(L$9,'Загальний ввод'!$R$20:$Z$20,))*INDEX('Загальний ввод'!$K$21:$O$999,MATCH(SMALL('Загальний ввод'!$AA$21:$AA$999,SUM($A41:$A44)),'Загальний ввод'!$AA$21:$AA$999,),MATCH($B44&"*",'Загальний ввод'!$K$19:$O$19,)),"") -> 0 | M44: =IF(($A44="")*($B44<>""),INDEX('Загальний ввод'!$R$21:$Z$999,MATCH(SMALL('Загальний ввод'!$AA$21:$AA$999,SUM($A41:$A44)),'Загальний ввод'!$AA$21:$AA$999,),MATCH(M$9,'Загальний ввод'!$R$20:$Z$20,))*INDEX('Загальний ввод'!$K$21:$O$999,MATCH(SMALL('Загальний ввод'!$AA$21:$AA$999,SUM($A41:$A44)),'Загальний ввод'!$AA$21:$AA$999,),MATCH($B44&"*",'Загальний ввод'!$K$19:$O$19,)),"") -> 0 | N44: =IF(($A44="")*($B44<>""),INDEX('Загальний ввод'!$R$21:$Z$999,MATCH(SMALL('Загальний ввод'!$AA$21:$AA$999,SUM($A41:$A44)),'Загальний ввод'!$AA$21:$AA$999,),MATCH(N$9,'Загальний ввод'!$R$20:$Z$20,))*INDEX('Загальний ввод'!$K$21:$O$999,MATCH(SMALL('Загальний ввод'!$AA$21:$AA$999,SUM($A41:$A44)),'Загальний ввод'!$AA$21:$AA$999,),MATCH($B44&"*",'Загальний ввод'!$K$19:$O$19,)),"") -> 22.24305556 | O44: =IF(($A44="")*($B44<>""),INDEX('Загальний ввод'!$R$21:$Z$999,MATCH(SMALL('Загальний ввод'!$AA$21:$AA$999,SUM($A41:$A44)),'Загальний ввод'!$AA$21:$AA$999,),MATCH(O$9,'Загальний ввод'!$R$20:$Z$20,))*INDEX('Загальний ввод'!$K$21:$O$999,MATCH(SMALL('Загальний ввод'!$AA$21:$AA$999,SUM($A41:$A44)),'Загальний ввод'!$AA$21:$AA$999,),MATCH($B44&"*",'Загальний ввод'!$K$19:$O$19,)),"") -> 22.24305556 | P44: =IF(($A44="")*($B44<>""),INDEX('Загальний ввод'!$R$21:$Z$999,MATCH(SMALL('Загальний ввод'!$AA$21:$AA$999,SUM($A41:$A44)),'Загальний ввод'!$AA$21:$AA$999,),MATCH(P$9,'Загальний ввод'!$R$20:$Z$20,))*INDEX('Загальний ввод'!$K$21:$O$999,MATCH(SMALL('Загальний ввод'!$AA$21:$AA$999,SUM($A41:$A44)),'Загальний ввод'!$AA$21:$AA$999,),MATCH($B44&"*",'Загальний ввод'!$K$19:$O$19,)),"") -> 0 | Q44: =IF(($A44="")*($B44<>""),INDEX('Загальний ввод'!$R$21:$Z$999,MATCH(SMALL('Загальний ввод'!$AA$21:$AA$999,SUM($A41:$A44)),'Загальний ввод'!$AA$21:$AA$999,),MATCH(Q$9,'Загальний ввод'!$R$20:$Z$20,))*INDEX('Загальний ввод'!$K$21:$O$999,MATCH(SMALL('Загальний ввод'!$AA$21:$AA$999,SUM($A41:$A44)),'Загальний ввод'!$AA$21:$AA$999,),MATCH($B44&"*",'Загальний ввод'!$K$19:$O$19,)),"") -> 0 | R44: =IF(($A44="")*($B44<>""),INDEX('Загальний ввод'!$R$21:$Z$999,MATCH(SMALL('Загальний ввод'!$AA$21:$AA$999,SUM($A41:$A44)),'Загальний ввод'!$AA$21:$AA$999,),MATCH(R$9,'Загальний ввод'!$R$20:$Z$20,))*INDEX('Загальний ввод'!$K$21:$O$999,MATCH(SMALL('Загальний ввод'!$AA$21:$AA$999,SUM($A41:$A44)),'Загальний ввод'!$AA$21:$AA$999,),MATCH($B44&"*",'Загальний ввод'!$K$19:$O$19,)),"") -> 0
A45: =IF(B45="","",IF(MOD(ROW()-1,4),"",COUNT(A$10:A44)+1)) -> 9 | B45: =IF(MOD(ROW()-1,4),IF(B44="","",INDEX({"Циркуляція";"Інтервал роботи";"Час нижче ротора"},MOD(ROW()-1,4))),IFERROR(INDEX('Загальний ввод'!B:B,SMALL('Загальний ввод'!AA$21:AA$999,(ROW()-1)/4)),"")) -> 117Медведівка | C45: =IF($A45="","",INDEX('Загальний ввод'!C$21:C$999,MATCH(SMALL('Загальний ввод'!$AA$21:$AA$999,SUM($A42:$A45)),'Загальний ввод'!$AA$21:$AA$999,))) -> 2018-10-16 | D45: =IF($A45="","",INDEX('Загальний ввод'!D$21:D$999,MATCH(SMALL('Загальний ввод'!$AA$21:$AA$999,SUM($A42:$A45)),'Загальний ввод'!$AA$21:$AA$999,))) -> 08:18:00 | E45: =IF($A45="","",INDEX('Загальний ввод'!E$21:E$999,MATCH(SMALL('Загальний ввод'!$AA$21:$AA$999,SUM($A42:$A45)),'Загальний ввод'!$AA$21:$AA$999,))) -> 2055.4 | F45: =IF($A45="","",INDEX('Загальний ввод'!F$21:F$999,MATCH(SMALL('Загальний ввод'!$AA$21:$AA$999,SUM($A42:$A45)),'Загальний ввод'!$AA$21:$AA$999,))) -> 2018-10-25 | G45: =IF($A45="","",INDEX('Загальний ввод'!G$21:G$999,MATCH(SMALL('Загальний ввод'!$AA$21:$AA$999,SUM($A42:$A45)),'Загальний ввод'!$AA$21:$AA$999,))) -> 04:00:00 | H45: =IF($A45="","",INDEX('Загальний ввод'!H$21:H$999,MATCH(SMALL('Загальний ввод'!$AA$21:$AA$999,SUM($A42:$A45)),'Загальний ввод'!$AA$21:$AA$999,))) -> 2163.5 | I45: 108.1 | J45: =IF(($A45="")*($B45<>""),INDEX('Загальний ввод'!$R$21:$Z$999,MATCH(SMALL('Загальний ввод'!$AA$21:$AA$999,SUM($A42:$A45)),'Загальний ввод'!$AA$21:$AA$999,),MATCH(J$9,'Загальний ввод'!$R$20:$Z$20,))*INDEX('Загальний ввод'!$K$21:$O$999,MATCH(SMALL('Загальний ввод'!$AA$21:$AA$999,SUM($A42:$A45)),'Загальний ввод'!$AA$21:$AA$999,),MATCH($B45&"*",'Загальний ввод'!$K$19:$O$19,)),"") ->  | K45: =IF(($A45="")*($B45<>""),INDEX('Загальний ввод'!$R$21:$Z$999,MATCH(SMALL('Загальний ввод'!$AA$21:$AA$999,SUM($A42:$A45)),'Загальний ввод'!$AA$21:$AA$999,),MATCH(K$9,'Загальний ввод'!$R$20:$Z$20,))*INDEX('Загальний ввод'!$K$21:$O$999,MATCH(SMALL('Загальний ввод'!$AA$21:$AA$999,SUM($A42:$A45)),'Загальний ввод'!$AA$21:$AA$999,),MATCH($B45&"*",'Загальний ввод'!$K$19:$O$19,)),"") ->  | L45: =IF(($A45="")*($B45<>""),INDEX('Загальний ввод'!$R$21:$Z$999,MATCH(SMALL('Загальний ввод'!$AA$21:$AA$999,SUM($A42:$A45)),'Загальний ввод'!$AA$21:$AA$999,),MATCH(L$9,'Загальний ввод'!$R$20:$Z$20,))*INDEX('Загальний ввод'!$K$21:$O$999,MATCH(SMALL('Загальний ввод'!$AA$21:$AA$999,SUM($A42:$A45)),'Загальний ввод'!$AA$21:$AA$999,),MATCH($B45&"*",'Загальний ввод'!$K$19:$O$19,)),"") ->  | M45: =IF(($A45="")*($B45<>""),INDEX('Загальний ввод'!$R$21:$Z$999,MATCH(SMALL('Загальний ввод'!$AA$21:$AA$999,SUM($A42:$A45)),'Загальний ввод'!$AA$21:$AA$999,),MATCH(M$9,'Загальний ввод'!$R$20:$Z$20,))*INDEX('Загальний ввод'!$K$21:$O$999,MATCH(SMALL('Загальний ввод'!$AA$21:$AA$999,SUM($A42:$A45)),'Загальний ввод'!$AA$21:$AA$999,),MATCH($B45&"*",'Загальний ввод'!$K$19:$O$19,)),"") ->  | N45: =IF(($A45="")*($B45<>""),INDEX('Загальний ввод'!$R$21:$Z$999,MATCH(SMALL('Загальний ввод'!$AA$21:$AA$999,SUM($A42:$A45)),'Загальний ввод'!$AA$21:$AA$999,),MATCH(N$9,'Загальний ввод'!$R$20:$Z$20,))*INDEX('Загальний ввод'!$K$21:$O$999,MATCH(SMALL('Загальний ввод'!$AA$21:$AA$999,SUM($A42:$A45)),'Загальний ввод'!$AA$21:$AA$999,),MATCH($B45&"*",'Загальний ввод'!$K$19:$O$19,)),"") ->  | O45: =IF(($A45="")*($B45<>""),INDEX('Загальний ввод'!$R$21:$Z$999,MATCH(SMALL('Загальний ввод'!$AA$21:$AA$999,SUM($A42:$A45)),'Загальний ввод'!$AA$21:$AA$999,),MATCH(O$9,'Загальний ввод'!$R$20:$Z$20,))*INDEX('Загальний ввод'!$K$21:$O$999,MATCH(SMALL('Загальний ввод'!$AA$21:$AA$999,SUM($A42:$A45)),'Загальний ввод'!$AA$21:$AA$999,),MATCH($B45&"*",'Загальний ввод'!$K$19:$O$19,)),"") ->  | P45: =IF(($A45="")*($B45<>""),INDEX('Загальний ввод'!$R$21:$Z$999,MATCH(SMALL('Загальний ввод'!$AA$21:$AA$999,SUM($A42:$A45)),'Загальний ввод'!$AA$21:$AA$999,),MATCH(P$9,'Загальний ввод'!$R$20:$Z$20,))*INDEX('Загальний ввод'!$K$21:$O$999,MATCH(SMALL('Загальний ввод'!$AA$21:$AA$999,SUM($A42:$A45)),'Загальний ввод'!$AA$21:$AA$999,),MATCH($B45&"*",'Загальний ввод'!$K$19:$O$19,)),"") ->  | Q45: =IF(($A45="")*($B45<>""),INDEX('Загальний ввод'!$R$21:$Z$999,MATCH(SMALL('Загальний ввод'!$AA$21:$AA$999,SUM($A42:$A45)),'Загальний ввод'!$AA$21:$AA$999,),MATCH(Q$9,'Загальний ввод'!$R$20:$Z$20,))*INDEX('Загальний ввод'!$K$21:$O$999,MATCH(SMALL('Загальний ввод'!$AA$21:$AA$999,SUM($A42:$A45)),'Загальний ввод'!$AA$21:$AA$999,),MATCH($B45&"*",'Загальний ввод'!$K$19:$O$19,)),"") ->  | R45: =IF(($A45="")*($B45<>""),INDEX('Загальний ввод'!$R$21:$Z$999,MATCH(SMALL('Загальний ввод'!$AA$21:$AA$999,SUM($A42:$A45)),'Загальний ввод'!$AA$21:$AA$999,),MATCH(R$9,'Загальний ввод'!$R$20:$Z$20,))*INDEX('Загальний ввод'!$K$21:$O$999,MATCH(SMALL('Загальний ввод'!$AA$21:$AA$999,SUM($A42:$A45)),'Загальний ввод'!$AA$21:$AA$999,),MATCH($B45&"*",'Загальний ввод'!$K$19:$O$19,)),"") -> 
A46: =IF(B46="","",IF(MOD(ROW()-1,4),"",COUNT(A$10:A45)+1)) ->  | B46: =IF(MOD(ROW()-1,4),IF(B45="","",INDEX({"Циркуляція";"Інтервал роботи";"Час нижче ротора"},MOD(ROW()-1,4))),IFERROR(INDEX('Загальний ввод'!B:B,SMALL('Загальний ввод'!AA$21:AA$999,(ROW()-1)/4)),"")) -> Циркуляція | C46: =IF($A46="","",INDEX('Загальний ввод'!C$21:C$999,MATCH(SMALL('Загальний ввод'!$AA$21:$AA$999,SUM($A43:$A46)),'Загальний ввод'!$AA$21:$AA$999,))) ->  | D46: =IF($A46="","",INDEX('Загальний ввод'!D$21:D$999,MATCH(SMALL('Загальний ввод'!$AA$21:$AA$999,SUM($A43:$A46)),'Загальний ввод'!$AA$21:$AA$999,))) ->  | E46: =IF($A46="","",INDEX('Загальний ввод'!E$21:E$999,MATCH(SMALL('Загальний ввод'!$AA$21:$AA$999,SUM($A43:$A46)),'Загальний ввод'!$AA$21:$AA$999,))) ->  | F46: =IF($A46="","",INDEX('Загальний ввод'!F$21:F$999,MATCH(SMALL('Загальний ввод'!$AA$21:$AA$999,SUM($A43:$A46)),'Загальний ввод'!$AA$21:$AA$999,))) ->  | G46: =IF($A46="","",INDEX('Загальний ввод'!G$21:G$999,MATCH(SMALL('Загальний ввод'!$AA$21:$AA$999,SUM($A43:$A46)),'Загальний ввод'!$AA$21:$AA$999,))) ->  | H46: =IF($A46="","",INDEX('Загальний ввод'!H$21:H$999,MATCH(SMALL('Загальний ввод'!$AA$21:$AA$999,SUM($A43:$A46)),'Загальний ввод'!$AA$21:$AA$999,))) ->  | J46: =IF(($A46="")*($B46<>""),INDEX('Загальний ввод'!$R$21:$Z$999,MATCH(SMALL('Загальний ввод'!$AA$21:$AA$999,SUM($A43:$A46)),'Загальний ввод'!$AA$21:$AA$999,),MATCH(J$9,'Загальний ввод'!$R$20:$Z$20,))*INDEX('Загальний ввод'!$K$21:$O$999,MATCH(SMALL('Загальний ввод'!$AA$21:$AA$999,SUM($A43:$A46)),'Загальний ввод'!$AA$21:$AA$999,),MATCH($B46&"*",'Загальний ввод'!$K$19:$O$19,)),"") -> 0 | K46: =IF(($A46="")*($B46<>""),INDEX('Загальний ввод'!$R$21:$Z$999,MATCH(SMALL('Загальний ввод'!$AA$21:$AA$999,SUM($A43:$A46)),'Загальний ввод'!$AA$21:$AA$999,),MATCH(K$9,'Загальний ввод'!$R$20:$Z$20,))*INDEX('Загальний ввод'!$K$21:$O$999,MATCH(SMALL('Загальний ввод'!$AA$21:$AA$999,SUM($A43:$A46)),'Загальний ввод'!$AA$21:$AA$999,),MATCH($B46&"*",'Загальний ввод'!$K$19:$O$19,)),"") -> 0 | L46: =IF(($A46="")*($B46<>""),INDEX('Загальний ввод'!$R$21:$Z$999,MATCH(SMALL('Загальний ввод'!$AA$21:$AA$999,SUM($A43:$A46)),'Загальний ввод'!$AA$21:$AA$999,),MATCH(L$9,'Загальний ввод'!$R$20:$Z$20,))*INDEX('Загальний ввод'!$K$21:$O$999,MATCH(SMALL('Загальний ввод'!$AA$21:$AA$999,SUM($A43:$A46)),'Загальний ввод'!$AA$21:$AA$999,),MATCH($B46&"*",'Загальний ввод'!$K$19:$O$19,)),"") -> 0 | M46: =IF(($A46="")*($B46<>""),INDEX('Загальний ввод'!$R$21:$Z$999,MATCH(SMALL('Загальний ввод'!$AA$21:$AA$999,SUM($A43:$A46)),'Загальний ввод'!$AA$21:$AA$999,),MATCH(M$9,'Загальний ввод'!$R$20:$Z$20,))*INDEX('Загальний ввод'!$K$21:$O$999,MATCH(SMALL('Загальний ввод'!$AA$21:$AA$999,SUM($A43:$A46)),'Загальний ввод'!$AA$21:$AA$999,),MATCH($B46&"*",'Загальний ввод'!$K$19:$O$19,)),"") -> 0 | N46: =IF(($A46="")*($B46<>""),INDEX('Загальний ввод'!$R$21:$Z$999,MATCH(SMALL('Загальний ввод'!$AA$21:$AA$999,SUM($A43:$A46)),'Загальний ввод'!$AA$21:$AA$999,),MATCH(N$9,'Загальний ввод'!$R$20:$Z$20,))*INDEX('Загальний ввод'!$K$21:$O$999,MATCH(SMALL('Загальний ввод'!$AA$21:$AA$999,SUM($A43:$A46)),'Загальний ввод'!$AA$21:$AA$999,),MATCH($B46&"*",'Загальний ввод'!$K$19:$O$19,)),"") -> 4.763888889 | O46: =IF(($A46="")*($B46<>""),INDEX('Загальний ввод'!$R$21:$Z$999,MATCH(SMALL('Загальний ввод'!$AA$21:$AA$999,SUM($A43:$A46)),'Загальний ввод'!$AA$21:$AA$999,),MATCH(O$9,'Загальний ввод'!$R$20:$Z$20,))*INDEX('Загальний ввод'!$K$21:$O$999,MATCH(SMALL('Загальний ввод'!$AA$21:$AA$999,SUM($A43:$A46)),'Загальний ввод'!$AA$21:$AA$999,),MATCH($B46&"*",'Загальний ввод'!$K$19:$O$19,)),"") -> 4.763888889 | P46: =IF(($A46="")*($B46<>""),INDEX('Загальний ввод'!$R$21:$Z$999,MATCH(SMALL('Загальний ввод'!$AA$21:$AA$999,SUM($A43:$A46)),'Загальний ввод'!$AA$21:$AA$999,),MATCH(P$9,'Загальний ввод'!$R$20:$Z$20,))*INDEX('Загальний ввод'!$K$21:$O$999,MATCH(SMALL('Загальний ввод'!$AA$21:$AA$999,SUM($A43:$A46)),'Загальний ввод'!$AA$21:$AA$999,),MATCH($B46&"*",'Загальний ввод'!$K$19:$O$19,)),"") -> 0 | Q46: =IF(($A46="")*($B46<>""),INDEX('Загальний ввод'!$R$21:$Z$999,MATCH(SMALL('Загальний ввод'!$AA$21:$AA$999,SUM($A43:$A46)),'Загальний ввод'!$AA$21:$AA$999,),MATCH(Q$9,'Загальний ввод'!$R$20:$Z$20,))*INDEX('Загальний ввод'!$K$21:$O$999,MATCH(SMALL('Загальний ввод'!$AA$21:$AA$999,SUM($A43:$A46)),'Загальний ввод'!$AA$21:$AA$999,),MATCH($B46&"*",'Загальний ввод'!$K$19:$O$19,)),"") -> 0 | R46: =IF(($A46="")*($B46<>""),INDEX('Загальний ввод'!$R$21:$Z$999,MATCH(SMALL('Загальний ввод'!$AA$21:$AA$999,SUM($A43:$A46)),'Загальний ввод'!$AA$21:$AA$999,),MATCH(R$9,'Загальний ввод'!$R$20:$Z$20,))*INDEX('Загальний ввод'!$K$21:$O$999,MATCH(SMALL('Загальний ввод'!$AA$21:$AA$999,SUM($A43:$A46)),'Загальний ввод'!$AA$21:$AA$999,),MATCH($B46&"*",'Загальний ввод'!$K$19:$O$19,)),"") -> 0
A47: =IF(B47="","",IF(MOD(ROW()-1,4),"",COUNT(A$10:A46)+1)) ->  | B47: =IF(MOD(ROW()-1,4),IF(B46="","",INDEX({"Циркуляція";"Інтервал роботи";"Час нижче ротора"},MOD(ROW()-1,4))),IFERROR(INDEX('Загальний ввод'!B:B,SMALL('Загальний ввод'!AA$21:AA$999,(ROW()-1)/4)),"")) -> Інтервал роботи | C47: =IF($A47="","",INDEX('Загальний ввод'!C$21:C$999,MATCH(SMALL('Загальний ввод'!$AA$21:$AA$999,SUM($A44:$A47)),'Загальний ввод'!$AA$21:$AA$999,))) ->  | D47: =IF($A47="","",INDEX('Загальний ввод'!D$21:D$999,MATCH(SMALL('Загальний ввод'!$AA$21:$AA$999,SUM($A44:$A47)),'Загальний ввод'!$AA$21:$AA$999,))) ->  | E47: =IF($A47="","",INDEX('Загальний ввод'!E$21:E$999,MATCH(SMALL('Загальний ввод'!$AA$21:$AA$999,SUM($A44:$A47)),'Загальний ввод'!$AA$21:$AA$999,))) ->  | F47: =IF($A47="","",INDEX('Загальний ввод'!F$21:F$999,MATCH(SMALL('Загальний ввод'!$AA$21:$AA$999,SUM($A44:$A47)),'Загальний ввод'!$AA$21:$AA$999,))) ->  | G47: =IF($A47="","",INDEX('Загальний ввод'!G$21:G$999,MATCH(SMALL('Загальний ввод'!$AA$21:$AA$999,SUM($A44:$A47)),'Загальний ввод'!$AA$21:$AA$999,))) ->  | H47: =IF($A47="","",INDEX('Загальний ввод'!H$21:H$999,MATCH(SMALL('Загальний ввод'!$AA$21:$AA$999,SUM($A44:$A47)),'Загальний ввод'!$AA$21:$AA$999,))) ->  | J47: =IF(($A47="")*($B47<>""),INDEX('Загальний ввод'!$R$21:$Z$999,MATCH(SMALL('Загальний ввод'!$AA$21:$AA$999,SUM($A44:$A47)),'Загальний ввод'!$AA$21:$AA$999,),MATCH(J$9,'Загальний ввод'!$R$20:$Z$20,))*INDEX('Загальний ввод'!$K$21:$O$999,MATCH(SMALL('Загальний ввод'!$AA$21:$AA$999,SUM($A44:$A47)),'Загальний ввод'!$AA$21:$AA$999,),MATCH($B47&"*",'Загальний ввод'!$K$19:$O$19,)),"") -> 0 | K47: =IF(($A47="")*($B47<>""),INDEX('Загальний ввод'!$R$21:$Z$999,MATCH(SMALL('Загальний ввод'!$AA$21:$AA$999,SUM($A44:$A47)),'Загальний ввод'!$AA$21:$AA$999,),MATCH(K$9,'Загальний ввод'!$R$20:$Z$20,))*INDEX('Загальний ввод'!$K$21:$O$999,MATCH(SMALL('Загальний ввод'!$AA$21:$AA$999,SUM($A44:$A47)),'Загальний ввод'!$AA$21:$AA$999,),MATCH($B47&"*",'Загальний ввод'!$K$19:$O$19,)),"") -> 0 | L47: =IF(($A47="")*($B47<>""),INDEX('Загальний ввод'!$R$21:$Z$999,MATCH(SMALL('Загальний ввод'!$AA$21:$AA$999,SUM($A44:$A47)),'Загальний ввод'!$AA$21:$AA$999,),MATCH(L$9,'Загальний ввод'!$R$20:$Z$20,))*INDEX('Загальний ввод'!$K$21:$O$999,MATCH(SMALL('Загальний ввод'!$AA$21:$AA$999,SUM($A44:$A47)),'Загальний ввод'!$AA$21:$AA$999,),MATCH($B47&"*",'Загальний ввод'!$K$19:$O$19,)),"") -> 0 | M47: =IF(($A47="")*($B47<>""),INDEX('Загальний ввод'!$R$21:$Z$999,MATCH(SMALL('Загальний ввод'!$AA$21:$AA$999,SUM($A44:$A47)),'Загальний ввод'!$AA$21:$AA$999,),MATCH(M$9,'Загальний ввод'!$R$20:$Z$20,))*INDEX('Загальний ввод'!$K$21:$O$999,MATCH(SMALL('Загальний ввод'!$AA$21:$AA$999,SUM($A44:$A47)),'Загальний ввод'!$AA$21:$AA$999,),MATCH($B47&"*",'Загальний ввод'!$K$19:$O$19,)),"") -> 0 | N47: =IF(($A47="")*($B47<>""),INDEX('Загальний ввод'!$R$21:$Z$999,MATCH(SMALL('Загальний ввод'!$AA$21:$AA$999,SUM($A44:$A47)),'Загальний ввод'!$AA$21:$AA$999,),MATCH(N$9,'Загальний ввод'!$R$20:$Z$20,))*INDEX('Загальний ввод'!$K$21:$O$999,MATCH(SMALL('Загальний ввод'!$AA$21:$AA$999,SUM($A44:$A47)),'Загальний ввод'!$AA$21:$AA$999,),MATCH($B47&"*",'Загальний ввод'!$K$19:$O$19,)),"") -> 108.1 | O47: =IF(($A47="")*($B47<>""),INDEX('Загальний ввод'!$R$21:$Z$999,MATCH(SMALL('Загальний ввод'!$AA$21:$AA$999,SUM($A44:$A47)),'Загальний ввод'!$AA$21:$AA$999,),MATCH(O$9,'Загальний ввод'!$R$20:$Z$20,))*INDEX('Загальний ввод'!$K$21:$O$999,MATCH(SMALL('Загальний ввод'!$AA$21:$AA$999,SUM($A44:$A47)),'Загальний ввод'!$AA$21:$AA$999,),MATCH($B47&"*",'Загальний ввод'!$K$19:$O$19,)),"") -> 108.1 | P47: =IF(($A47="")*($B47<>""),INDEX('Загальний ввод'!$R$21:$Z$999,MATCH(SMALL('Загальний ввод'!$AA$21:$AA$999,SUM($A44:$A47)),'Загальний ввод'!$AA$21:$AA$999,),MATCH(P$9,'Загальний ввод'!$R$20:$Z$20,))*INDEX('Загальний ввод'!$K$21:$O$999,MATCH(SMALL('Загальний ввод'!$AA$21:$AA$999,SUM($A44:$A47)),'Загальний ввод'!$AA$21:$AA$999,),MATCH($B47&"*",'Загальний ввод'!$K$19:$O$19,)),"") -> 0 | Q47: =IF(($A47="")*($B47<>""),INDEX('Загальний ввод'!$R$21:$Z$999,MATCH(SMALL('Загальний ввод'!$AA$21:$AA$999,SUM($A44:$A47)),'Загальний ввод'!$AA$21:$AA$999,),MATCH(Q$9,'Загальний ввод'!$R$20:$Z$20,))*INDEX('Загальний ввод'!$K$21:$O$999,MATCH(SMALL('Загальний ввод'!$AA$21:$AA$999,SUM($A44:$A47)),'Загальний ввод'!$AA$21:$AA$999,),MATCH($B47&"*",'Загальний ввод'!$K$19:$O$19,)),"") -> 0 | R47: =IF(($A47="")*($B47<>""),INDEX('Загальний ввод'!$R$21:$Z$999,MATCH(SMALL('Загальний ввод'!$AA$21:$AA$999,SUM($A44:$A47)),'Загальний ввод'!$AA$21:$AA$999,),MATCH(R$9,'Загальний ввод'!$R$20:$Z$20,))*INDEX('Загальний ввод'!$K$21:$O$999,MATCH(SMALL('Загальний ввод'!$AA$21:$AA$999,SUM($A44:$A47)),'Загальний ввод'!$AA$21:$AA$999,),MATCH($B47&"*",'Загальний ввод'!$K$19:$O$19,)),"") -> 0
A48: =IF(B48="","",IF(MOD(ROW()-1,4),"",COUNT(A$10:A47)+1)) ->  | B48: =IF(MOD(ROW()-1,4),IF(B47="","",INDEX({"Циркуляція";"Інтервал роботи";"Час нижче ротора"},MOD(ROW()-1,4))),IFERROR(INDEX('Загальний ввод'!B:B,SMALL('Загальний ввод'!AA$21:AA$999,(ROW()-1)/4)),"")) -> Час нижче ротора | C48: =IF($A48="","",INDEX('Загальний ввод'!C$21:C$999,MATCH(SMALL('Загальний ввод'!$AA$21:$AA$999,SUM($A45:$A48)),'Загальний ввод'!$AA$21:$AA$999,))) ->  | D48: =IF($A48="","",INDEX('Загальний ввод'!D$21:D$999,MATCH(SMALL('Загальний ввод'!$AA$21:$AA$999,SUM($A45:$A48)),'Загальний ввод'!$AA$21:$AA$999,))) ->  | E48: =IF($A48="","",INDEX('Загальний ввод'!E$21:E$999,MATCH(SMALL('Загальний ввод'!$AA$21:$AA$999,SUM($A45:$A48)),'Загальний ввод'!$AA$21:$AA$999,))) ->  | F48: =IF($A48="","",INDEX('Загальний ввод'!F$21:F$999,MATCH(SMALL('Загальний ввод'!$AA$21:$AA$999,SUM($A45:$A48)),'Загальний ввод'!$AA$21:$AA$999,))) ->  | G48: =IF($A48="","",INDEX('Загальний ввод'!G$21:G$999,MATCH(SMALL('Загальний ввод'!$AA$21:$AA$999,SUM($A45:$A48)),'Загальний ввод'!$AA$21:$AA$999,))) ->  | H48: =IF($A48="","",INDEX('Загальний ввод'!H$21:H$999,MATCH(SMALL('Загальний ввод'!$AA$21:$AA$999,SUM($A45:$A48)),'Загальний ввод'!$AA$21:$AA$999,))) ->  | J48: =IF(($A48="")*($B48<>""),INDEX('Загальний ввод'!$R$21:$Z$999,MATCH(SMALL('Загальний ввод'!$AA$21:$AA$999,SUM($A45:$A48)),'Загальний ввод'!$AA$21:$AA$999,),MATCH(J$9,'Загальний ввод'!$R$20:$Z$20,))*INDEX('Загальний ввод'!$K$21:$O$999,MATCH(SMALL('Загальний ввод'!$AA$21:$AA$999,SUM($A45:$A48)),'Загальний ввод'!$AA$21:$AA$999,),MATCH($B48&"*",'Загальний ввод'!$K$19:$O$19,)),"") -> 0 | K48: =IF(($A48="")*($B48<>""),INDEX('Загальний ввод'!$R$21:$Z$999,MATCH(SMALL('Загальний ввод'!$AA$21:$AA$999,SUM($A45:$A48)),'Загальний ввод'!$AA$21:$AA$999,),MATCH(K$9,'Загальний ввод'!$R$20:$Z$20,))*INDEX('Загальний ввод'!$K$21:$O$999,MATCH(SMALL('Загальний ввод'!$AA$21:$AA$999,SUM($A45:$A48)),'Загальний ввод'!$AA$21:$AA$999,),MATCH($B48&"*",'Загальний ввод'!$K$19:$O$19,)),"") -> 0 | L48: =IF(($A48="")*($B48<>""),INDEX('Загальний ввод'!$R$21:$Z$999,MATCH(SMALL('Загальний ввод'!$AA$21:$AA$999,SUM($A45:$A48)),'Загальний ввод'!$AA$21:$AA$999,),MATCH(L$9,'Загальний ввод'!$R$20:$Z$20,))*INDEX('Загальний ввод'!$K$21:$O$999,MATCH(SMALL('Загальний ввод'!$AA$21:$AA$999,SUM($A45:$A48)),'Загальний ввод'!$AA$21:$AA$999,),MATCH($B48&"*",'Загальний ввод'!$K$19:$O$19,)),"") -> 0 | M48: =IF(($A48="")*($B48<>""),INDEX('Загальний ввод'!$R$21:$Z$999,MATCH(SMALL('Загальний ввод'!$AA$21:$AA$999,SUM($A45:$A48)),'Загальний ввод'!$AA$21:$AA$999,),MATCH(M$9,'Загальний ввод'!$R$20:$Z$20,))*INDEX('Загальний ввод'!$K$21:$O$999,MATCH(SMALL('Загальний ввод'!$AA$21:$AA$999,SUM($A45:$A48)),'Загальний ввод'!$AA$21:$AA$999,),MATCH($B48&"*",'Загальний ввод'!$K$19:$O$19,)),"") -> 0 | N48: =IF(($A48="")*($B48<>""),INDEX('Загальний ввод'!$R$21:$Z$999,MATCH(SMALL('Загальний ввод'!$AA$21:$AA$999,SUM($A45:$A48)),'Загальний ввод'!$AA$21:$AA$999,),MATCH(N$9,'Загальний ввод'!$R$20:$Z$20,))*INDEX('Загальний ввод'!$K$21:$O$999,MATCH(SMALL('Загальний ввод'!$AA$21:$AA$999,SUM($A45:$A48)),'Загальний ввод'!$AA$21:$AA$999,),MATCH($B48&"*",'Загальний ввод'!$K$19:$O$19,)),"") -> 9.125 | O48: =IF(($A48="")*($B48<>""),INDEX('Загальний ввод'!$R$21:$Z$999,MATCH(SMALL('Загальний ввод'!$AA$21:$AA$999,SUM($A45:$A48)),'Загальний ввод'!$AA$21:$AA$999,),MATCH(O$9,'Загальний ввод'!$R$20:$Z$20,))*INDEX('Загальний ввод'!$K$21:$O$999,MATCH(SMALL('Загальний ввод'!$AA$21:$AA$999,SUM($A45:$A48)),'Загальний ввод'!$AA$21:$AA$999,),MATCH($B48&"*",'Загальний ввод'!$K$19:$O$19,)),"") -> 9.125 | P48: =IF(($A48="")*($B48<>""),INDEX('Загальний ввод'!$R$21:$Z$999,MATCH(SMALL('Загальний ввод'!$AA$21:$AA$999,SUM($A45:$A48)),'Загальний ввод'!$AA$21:$AA$999,),MATCH(P$9,'Загальний ввод'!$R$20:$Z$20,))*INDEX('Загальний ввод'!$K$21:$O$999,MATCH(SMALL('Загальний ввод'!$AA$21:$AA$999,SUM($A45:$A48)),'Загальний ввод'!$AA$21:$AA$999,),MATCH($B48&"*",'Загальний ввод'!$K$19:$O$19,)),"") -> 0 | Q48: =IF(($A48="")*($B48<>""),INDEX('Загальний ввод'!$R$21:$Z$999,MATCH(SMALL('Загальний ввод'!$AA$21:$AA$999,SUM($A45:$A48)),'Загальний ввод'!$AA$21:$AA$999,),MATCH(Q$9,'Загальний ввод'!$R$20:$Z$20,))*INDEX('Загальний ввод'!$K$21:$O$999,MATCH(SMALL('Загальний ввод'!$AA$21:$AA$999,SUM($A45:$A48)),'Загальний ввод'!$AA$21:$AA$999,),MATCH($B48&"*",'Загальний ввод'!$K$19:$O$19,)),"") -> 0 | R48: =IF(($A48="")*($B48<>""),INDEX('Загальний ввод'!$R$21:$Z$999,MATCH(SMALL('Загальний ввод'!$AA$21:$AA$999,SUM($A45:$A48)),'Загальний ввод'!$AA$21:$AA$999,),MATCH(R$9,'Загальний ввод'!$R$20:$Z$20,))*INDEX('Загальний ввод'!$K$21:$O$999,MATCH(SMALL('Загальний ввод'!$AA$21:$AA$999,SUM($A45:$A48)),'Загальний ввод'!$AA$21:$AA$999,),MATCH($B48&"*",'Загальний ввод'!$K$19:$O$19,)),"") -> 0
A49: =IF(B49="","",IF(MOD(ROW()-1,4),"",COUNT(A$10:A48)+1)) -> 10 | B49: =IF(MOD(ROW()-1,4),IF(B48="","",INDEX({"Циркуляція";"Інтервал роботи";"Час нижче ротора"},MOD(ROW()-1,4))),IFERROR(INDEX('Загальний ввод'!B:B,SMALL('Загальний ввод'!AA$21:AA$999,(ROW()-1)/4)),"")) -> 160 Гадяч | C49: =IF($A49="","",INDEX('Загальний ввод'!C$21:C$999,MATCH(SMALL('Загальний ввод'!$AA$21:$AA$999,SUM($A46:$A49)),'Загальний ввод'!$AA$21:$AA$999,))) -> 2018-11-28 | D49: =IF($A49="","",INDEX('Загальний ввод'!D$21:D$999,MATCH(SMALL('Загальний ввод'!$AA$21:$AA$999,SUM($A46:$A49)),'Загальний ввод'!$AA$21:$AA$999,))) -> 05:00:00 | E49: =IF($A49="","",INDEX('Загальний ввод'!E$21:E$999,MATCH(SMALL('Загальний ввод'!$AA$21:$AA$999,SUM($A46:$A49)),'Загальний ввод'!$AA$21:$AA$999,))) -> 3545 | F49: =IF($A49="","",INDEX('Загальний ввод'!F$21:F$999,MATCH(SMALL('Загальний ввод'!$AA$21:$AA$999,SUM($A46:$A49)),'Загальний ввод'!$AA$21:$AA$999,))) -> 2018-12-17 | G49: =IF($A49="","",INDEX('Загальний ввод'!G$21:G$999,MATCH(SMALL('Загальний ввод'!$AA$21:$AA$999,SUM($A46:$A49)),'Загальний ввод'!$AA$21:$AA$999,))) -> 18:00:00 | H49: =IF($A49="","",INDEX('Загальний ввод'!H$21:H$999,MATCH(SMALL('Загальний ввод'!$AA$21:$AA$999,SUM($A46:$A49)),'Загальний ввод'!$AA$21:$AA$999,))) -> 3679.3 | I49: 134.3 | J49: =IF(($A49="")*($B49<>""),INDEX('Загальний ввод'!$R$21:$Z$999,MATCH(SMALL('Загальний ввод'!$AA$21:$AA$999,SUM($A46:$A49)),'Загальний ввод'!$AA$21:$AA$999,),MATCH(J$9,'Загальний ввод'!$R$20:$Z$20,))*INDEX('Загальний ввод'!$K$21:$O$999,MATCH(SMALL('Загальний ввод'!$AA$21:$AA$999,SUM($A46:$A49)),'Загальний ввод'!$AA$21:$AA$999,),MATCH($B49&"*",'Загальний ввод'!$K$19:$O$19,)),"") ->  | K49: =IF(($A49="")*($B49<>""),INDEX('Загальний ввод'!$R$21:$Z$999,MATCH(SMALL('Загальний ввод'!$AA$21:$AA$999,SUM($A46:$A49)),'Загальний ввод'!$AA$21:$AA$999,),MATCH(K$9,'Загальний ввод'!$R$20:$Z$20,))*INDEX('Загальний ввод'!$K$21:$O$999,MATCH(SMALL('Загальний ввод'!$AA$21:$AA$999,SUM($A46:$A49)),'Загальний ввод'!$AA$21:$AA$999,),MATCH($B49&"*",'Загальний ввод'!$K$19:$O$19,)),"") ->  | L49: =IF(($A49="")*($B49<>""),INDEX('Загальний ввод'!$R$21:$Z$999,MATCH(SMALL('Загальний ввод'!$AA$21:$AA$999,SUM($A46:$A49)),'Загальний ввод'!$AA$21:$AA$999,),MATCH(L$9,'Загальний ввод'!$R$20:$Z$20,))*INDEX('Загальний ввод'!$K$21:$O$999,MATCH(SMALL('Загальний ввод'!$AA$21:$AA$999,SUM($A46:$A49)),'Загальний ввод'!$AA$21:$AA$999,),MATCH($B49&"*",'Загальний ввод'!$K$19:$O$19,)),"") ->  | M49: =IF(($A49="")*($B49<>""),INDEX('Загальний ввод'!$R$21:$Z$999,MATCH(SMALL('Загальний ввод'!$AA$21:$AA$999,SUM($A46:$A49)),'Загальний ввод'!$AA$21:$AA$999,),MATCH(M$9,'Загальний ввод'!$R$20:$Z$20,))*INDEX('Загальний ввод'!$K$21:$O$999,MATCH(SMALL('Загальний ввод'!$AA$21:$AA$999,SUM($A46:$A49)),'Загальний ввод'!$AA$21:$AA$999,),MATCH($B49&"*",'Загальний ввод'!$K$19:$O$19,)),"") ->  | N49: =IF(($A49="")*($B49<>""),INDEX('Загальний ввод'!$R$21:$Z$999,MATCH(SMALL('Загальний ввод'!$AA$21:$AA$999,SUM($A46:$A49)),'Загальний ввод'!$AA$21:$AA$999,),MATCH(N$9,'Загальний ввод'!$R$20:$Z$20,))*INDEX('Загальний ввод'!$K$21:$O$999,MATCH(SMALL('Загальний ввод'!$AA$21:$AA$999,SUM($A46:$A49)),'Загальний ввод'!$AA$21:$AA$999,),MATCH($B49&"*",'Загальний ввод'!$K$19:$O$19,)),"") ->  | O49: =IF(($A49="")*($B49<>""),INDEX('Загальний ввод'!$R$21:$Z$999,MATCH(SMALL('Загальний ввод'!$AA$21:$AA$999,SUM($A46:$A49)),'Загальний ввод'!$AA$21:$AA$999,),MATCH(O$9,'Загальний ввод'!$R$20:$Z$20,))*INDEX('Загальний ввод'!$K$21:$O$999,MATCH(SMALL('Загальний ввод'!$AA$21:$AA$999,SUM($A46:$A49)),'Загальний ввод'!$AA$21:$AA$999,),MATCH($B49&"*",'Загальний ввод'!$K$19:$O$19,)),"") ->  | P49: =IF(($A49="")*($B49<>""),INDEX('Загальний ввод'!$R$21:$Z$999,MATCH(SMALL('Загальний ввод'!$AA$21:$AA$999,SUM($A46:$A49)),'Загальний ввод'!$AA$21:$AA$999,),MATCH(P$9,'Загальний ввод'!$R$20:$Z$20,))*INDEX('Загальний ввод'!$K$21:$O$999,MATCH(SMALL('Загальний ввод'!$AA$21:$AA$999,SUM($A46:$A49)),'Загальний ввод'!$AA$21:$AA$999,),MATCH($B49&"*",'Загальний ввод'!$K$19:$O$19,)),"") ->  | Q49: =IF(($A49="")*($B49<>""),INDEX('Загальний ввод'!$R$21:$Z$999,MATCH(SMALL('Загальний ввод'!$AA$21:$AA$999,SUM($A46:$A49)),'Загальний ввод'!$AA$21:$AA$999,),MATCH(Q$9,'Загальний ввод'!$R$20:$Z$20,))*INDEX('Загальний ввод'!$K$21:$O$999,MATCH(SMALL('Загальний ввод'!$AA$21:$AA$999,SUM($A46:$A49)),'Загальний ввод'!$AA$21:$AA$999,),MATCH($B49&"*",'Загальний ввод'!$K$19:$O$19,)),"") ->  | R49: =IF(($A49="")*($B49<>""),INDEX('Загальний ввод'!$R$21:$Z$999,MATCH(SMALL('Загальний ввод'!$AA$21:$AA$999,SUM($A46:$A49)),'Загальний ввод'!$AA$21:$AA$999,),MATCH(R$9,'Загальний ввод'!$R$20:$Z$20,))*INDEX('Загальний ввод'!$K$21:$O$999,MATCH(SMALL('Загальний ввод'!$AA$21:$AA$999,SUM($A46:$A49)),'Загальний ввод'!$AA$21:$AA$999,),MATCH($B49&"*",'Загальний ввод'!$K$19:$O$19,)),"") -> 
A50: =IF(B50="","",IF(MOD(ROW()-1,4),"",COUNT(A$10:A49)+1)) ->  | B50: =IF(MOD(ROW()-1,4),IF(B49="","",INDEX({"Циркуляція";"Інтервал роботи";"Час нижче ротора"},MOD(ROW()-1,4))),IFERROR(INDEX('Загальний ввод'!B:B,SMALL('Загальний ввод'!AA$21:AA$999,(ROW()-1)/4)),"")) -> Циркуляція | C50: =IF($A50="","",INDEX('Загальний ввод'!C$21:C$999,MATCH(SMALL('Загальний ввод'!$AA$21:$AA$999,SUM($A47:$A50)),'Загальний ввод'!$AA$21:$AA$999,))) ->  | D50: =IF($A50="","",INDEX('Загальний ввод'!D$21:D$999,MATCH(SMALL('Загальний ввод'!$AA$21:$AA$999,SUM($A47:$A50)),'Загальний ввод'!$AA$21:$AA$999,))) ->  | E50: =IF($A50="","",INDEX('Загальний ввод'!E$21:E$999,MATCH(SMALL('Загальний ввод'!$AA$21:$AA$999,SUM($A47:$A50)),'Загальний ввод'!$AA$21:$AA$999,))) ->  | F50: =IF($A50="","",INDEX('Загальний ввод'!F$21:F$999,MATCH(SMALL('Загальний ввод'!$AA$21:$AA$999,SUM($A47:$A50)),'Загальний ввод'!$AA$21:$AA$999,))) ->  | G50: =IF($A50="","",INDEX('Загальний ввод'!G$21:G$999,MATCH(SMALL('Загальний ввод'!$AA$21:$AA$999,SUM($A47:$A50)),'Загальний ввод'!$AA$21:$AA$999,))) ->  | H50: =IF($A50="","",INDEX('Загальний ввод'!H$21:H$999,MATCH(SMALL('Загальний ввод'!$AA$21:$AA$999,SUM($A47:$A50)),'Загальний ввод'!$AA$21:$AA$999,))) ->  | J50: =IF(($A50="")*($B50<>""),INDEX('Загальний ввод'!$R$21:$Z$999,MATCH(SMALL('Загальний ввод'!$AA$21:$AA$999,SUM($A47:$A50)),'Загальний ввод'!$AA$21:$AA$999,),MATCH(J$9,'Загальний ввод'!$R$20:$Z$20,))*INDEX('Загальний ввод'!$K$21:$O$999,MATCH(SMALL('Загальний ввод'!$AA$21:$AA$999,SUM($A47:$A50)),'Загальний ввод'!$AA$21:$AA$999,),MATCH($B50&"*",'Загальний ввод'!$K$19:$O$19,)),"") -> 0 | K50: =IF(($A50="")*($B50<>""),INDEX('Загальний ввод'!$R$21:$Z$999,MATCH(SMALL('Загальний ввод'!$AA$21:$AA$999,SUM($A47:$A50)),'Загальний ввод'!$AA$21:$AA$999,),MATCH(K$9,'Загальний ввод'!$R$20:$Z$20,))*INDEX('Загальний ввод'!$K$21:$O$999,MATCH(SMALL('Загальний ввод'!$AA$21:$AA$999,SUM($A47:$A50)),'Загальний ввод'!$AA$21:$AA$999,),MATCH($B50&"*",'Загальний ввод'!$K$19:$O$19,)),"") -> 0 | L50: =IF(($A50="")*($B50<>""),INDEX('Загальний ввод'!$R$21:$Z$999,MATCH(SMALL('Загальний ввод'!$AA$21:$AA$999,SUM($A47:$A50)),'Загальний ввод'!$AA$21:$AA$999,),MATCH(L$9,'Загальний ввод'!$R$20:$Z$20,))*INDEX('Загальний ввод'!$K$21:$O$999,MATCH(SMALL('Загальний ввод'!$AA$21:$AA$999,SUM($A47:$A50)),'Загальний ввод'!$AA$21:$AA$999,),MATCH($B50&"*",'Загальний ввод'!$K$19:$O$19,)),"") -> 0 | M50: =IF(($A50="")*($B50<>""),INDEX('Загальний ввод'!$R$21:$Z$999,MATCH(SMALL('Загальний ввод'!$AA$21:$AA$999,SUM($A47:$A50)),'Загальний ввод'!$AA$21:$AA$999,),MATCH(M$9,'Загальний ввод'!$R$20:$Z$20,))*INDEX('Загальний ввод'!$K$21:$O$999,MATCH(SMALL('Загальний ввод'!$AA$21:$AA$999,SUM($A47:$A50)),'Загальний ввод'!$AA$21:$AA$999,),MATCH($B50&"*",'Загальний ввод'!$K$19:$O$19,)),"") -> 0 | N50: =IF(($A50="")*($B50<>""),INDEX('Загальний ввод'!$R$21:$Z$999,MATCH(SMALL('Загальний ввод'!$AA$21:$AA$999,SUM($A47:$A50)),'Загальний ввод'!$AA$21:$AA$999,),MATCH(N$9,'Загальний ввод'!$R$20:$Z$20,))*INDEX('Загальний ввод'!$K$21:$O$999,MATCH(SMALL('Загальний ввод'!$AA$21:$AA$999,SUM($A47:$A50)),'Загальний ввод'!$AA$21:$AA$999,),MATCH($B50&"*",'Загальний ввод'!$K$19:$O$19,)),"") -> 11.20833333 | O50: =IF(($A50="")*($B50<>""),INDEX('Загальний ввод'!$R$21:$Z$999,MATCH(SMALL('Загальний ввод'!$AA$21:$AA$999,SUM($A47:$A50)),'Загальний ввод'!$AA$21:$AA$999,),MATCH(O$9,'Загальний ввод'!$R$20:$Z$20,))*INDEX('Загальний ввод'!$K$21:$O$999,MATCH(SMALL('Загальний ввод'!$AA$21:$AA$999,SUM($A47:$A50)),'Загальний ввод'!$AA$21:$AA$999,),MATCH($B50&"*",'Загальний ввод'!$K$19:$O$19,)),"") -> 11.20833333 | P50: =IF(($A50="")*($B50<>""),INDEX('Загальний ввод'!$R$21:$Z$999,MATCH(SMALL('Загальний ввод'!$AA$21:$AA$999,SUM($A47:$A50)),'Загальний ввод'!$AA$21:$AA$999,),MATCH(P$9,'Загальний ввод'!$R$20:$Z$20,))*INDEX('Загальний ввод'!$K$21:$O$999,MATCH(SMALL('Загальний ввод'!$AA$21:$AA$999,SUM($A47:$A50)),'Загальний ввод'!$AA$21:$AA$999,),MATCH($B50&"*",'Загальний ввод'!$K$19:$O$19,)),"") -> 0 | Q50: =IF(($A50="")*($B50<>""),INDEX('Загальний ввод'!$R$21:$Z$999,MATCH(SMALL('Загальний ввод'!$AA$21:$AA$999,SUM($A47:$A50)),'Загальний ввод'!$AA$21:$AA$999,),MATCH(Q$9,'Загальний ввод'!$R$20:$Z$20,))*INDEX('Загальний ввод'!$K$21:$O$999,MATCH(SMALL('Загальний ввод'!$AA$21:$AA$999,SUM($A47:$A50)),'Загальний ввод'!$AA$21:$AA$999,),MATCH($B50&"*",'Загальний ввод'!$K$19:$O$19,)),"") -> 0 | R50: =IF(($A50="")*($B50<>""),INDEX('Загальний ввод'!$R$21:$Z$999,MATCH(SMALL('Загальний ввод'!$AA$21:$AA$999,SUM($A47:$A50)),'Загальний ввод'!$AA$21:$AA$999,),MATCH(R$9,'Загальний ввод'!$R$20:$Z$20,))*INDEX('Загальний ввод'!$K$21:$O$999,MATCH(SMALL('Загальний ввод'!$AA$21:$AA$999,SUM($A47:$A50)),'Загальний ввод'!$AA$21:$AA$999,),MATCH($B50&"*",'Загальний ввод'!$K$19:$O$19,)),"") -> 0
A51: =IF(B51="","",IF(MOD(ROW()-1,4),"",COUNT(A$10:A50)+1)) ->  | B51: =IF(MOD(ROW()-1,4),IF(B50="","",INDEX({"Циркуляція";"Інтервал роботи";"Час нижче ротора"},MOD(ROW()-1,4))),IFERROR(INDEX('Загальний ввод'!B:B,SMALL('Загальний ввод'!AA$21:AA$999,(ROW()-1)/4)),"")) -> Інтервал роботи | C51: =IF($A51="","",INDEX('Загальний ввод'!C$21:C$999,MATCH(SMALL('Загальний ввод'!$AA$21:$AA$999,SUM($A48:$A51)),'Загальний ввод'!$AA$21:$AA$999,))) ->  | D51: =IF($A51="","",INDEX('Загальний ввод'!D$21:D$999,MATCH(SMALL('Загальний ввод'!$AA$21:$AA$999,SUM($A48:$A51)),'Загальний ввод'!$AA$21:$AA$999,))) ->  | E51: =IF($A51="","",INDEX('Загальний ввод'!E$21:E$999,MATCH(SMALL('Загальний ввод'!$AA$21:$AA$999,SUM($A48:$A51)),'Загальний ввод'!$AA$21:$AA$999,))) ->  | F51: =IF($A51="","",INDEX('Загальний ввод'!F$21:F$999,MATCH(SMALL('Загальний ввод'!$AA$21:$AA$999,SUM($A48:$A51)),'Загальний ввод'!$AA$21:$AA$999,))) ->  | G51: =IF($A51="","",INDEX('Загальний ввод'!G$21:G$999,MATCH(SMALL('Загальний ввод'!$AA$21:$AA$999,SUM($A48:$A51)),'Загальний ввод'!$AA$21:$AA$999,))) ->  | H51: =IF($A51="","",INDEX('Загальний ввод'!H$21:H$999,MATCH(SMALL('Загальний ввод'!$AA$21:$AA$999,SUM($A48:$A51)),'Загальний ввод'!$AA$21:$AA$999,))) ->  | J51: =IF(($A51="")*($B51<>""),INDEX('Загальний ввод'!$R$21:$Z$999,MATCH(SMALL('Загальний ввод'!$AA$21:$AA$999,SUM($A48:$A51)),'Загальний ввод'!$AA$21:$AA$999,),MATCH(J$9,'Загальний ввод'!$R$20:$Z$20,))*INDEX('Загальний ввод'!$K$21:$O$999,MATCH(SMALL('Загальний ввод'!$AA$21:$AA$999,SUM($A48:$A51)),'Загальний ввод'!$AA$21:$AA$999,),MATCH($B51&"*",'Загальний ввод'!$K$19:$O$19,)),"") -> 0 | K51: =IF(($A51="")*($B51<>""),INDEX('Загальний ввод'!$R$21:$Z$999,MATCH(SMALL('Загальний ввод'!$AA$21:$AA$999,SUM($A48:$A51)),'Загальний ввод'!$AA$21:$AA$999,),MATCH(K$9,'Загальний ввод'!$R$20:$Z$20,))*INDEX('Загальний ввод'!$K$21:$O$999,MATCH(SMALL('Загальний ввод'!$AA$21:$AA$999,SUM($A48:$A51)),'Загальний ввод'!$AA$21:$AA$999,),MATCH($B51&"*",'Загальний ввод'!$K$19:$O$19,)),"") -> 0 | L51: =IF(($A51="")*($B51<>""),INDEX('Загальний ввод'!$R$21:$Z$999,MATCH(SMALL('Загальний ввод'!$AA$21:$AA$999,SUM($A48:$A51)),'Загальний ввод'!$AA$21:$AA$999,),MATCH(L$9,'Загальний ввод'!$R$20:$Z$20,))*INDEX('Загальний ввод'!$K$21:$O$999,MATCH(SMALL('Загальний ввод'!$AA$21:$AA$999,SUM($A48:$A51)),'Загальний ввод'!$AA$21:$AA$999,),MATCH($B51&"*",'Загальний ввод'!$K$19:$O$19,)),"") -> 0 | M51: =IF(($A51="")*($B51<>""),INDEX('Загальний ввод'!$R$21:$Z$999,MATCH(SMALL('Загальний ввод'!$AA$21:$AA$999,SUM($A48:$A51)),'Загальний ввод'!$AA$21:$AA$999,),MATCH(M$9,'Загальний ввод'!$R$20:$Z$20,))*INDEX('Загальний ввод'!$K$21:$O$999,MATCH(SMALL('Загальний ввод'!$AA$21:$AA$999,SUM($A48:$A51)),'Загальний ввод'!$AA$21:$AA$999,),MATCH($B51&"*",'Загальний ввод'!$K$19:$O$19,)),"") -> 0 | N51: =IF(($A51="")*($B51<>""),INDEX('Загальний ввод'!$R$21:$Z$999,MATCH(SMALL('Загальний ввод'!$AA$21:$AA$999,SUM($A48:$A51)),'Загальний ввод'!$AA$21:$AA$999,),MATCH(N$9,'Загальний ввод'!$R$20:$Z$20,))*INDEX('Загальний ввод'!$K$21:$O$999,MATCH(SMALL('Загальний ввод'!$AA$21:$AA$999,SUM($A48:$A51)),'Загальний ввод'!$AA$21:$AA$999,),MATCH($B51&"*",'Загальний ввод'!$K$19:$O$19,)),"") -> 134.3 | O51: =IF(($A51="")*($B51<>""),INDEX('Загальний ввод'!$R$21:$Z$999,MATCH(SMALL('Загальний ввод'!$AA$21:$AA$999,SUM($A48:$A51)),'Загальний ввод'!$AA$21:$AA$999,),MATCH(O$9,'Загальний ввод'!$R$20:$Z$20,))*INDEX('Загальний ввод'!$K$21:$O$999,MATCH(SMALL('Загальний ввод'!$AA$21:$AA$999,SUM($A48:$A51)),'Загальний ввод'!$AA$21:$AA$999,),MATCH($B51&"*",'Загальний ввод'!$K$19:$O$19,)),"") -> 134.3 | P51: =IF(($A51="")*($B51<>""),INDEX('Загальний ввод'!$R$21:$Z$999,MATCH(SMALL('Загальний ввод'!$AA$21:$AA$999,SUM($A48:$A51)),'Загальний ввод'!$AA$21:$AA$999,),MATCH(P$9,'Загальний ввод'!$R$20:$Z$20,))*INDEX('Загальний ввод'!$K$21:$O$999,MATCH(SMALL('Загальний ввод'!$AA$21:$AA$999,SUM($A48:$A51)),'Загальний ввод'!$AA$21:$AA$999,),MATCH($B51&"*",'Загальний ввод'!$K$19:$O$19,)),"") -> 0 | Q51: =IF(($A51="")*($B51<>""),INDEX('Загальний ввод'!$R$21:$Z$999,MATCH(SMALL('Загальний ввод'!$AA$21:$AA$999,SUM($A48:$A51)),'Загальний ввод'!$AA$21:$AA$999,),MATCH(Q$9,'Загальний ввод'!$R$20:$Z$20,))*INDEX('Загальний ввод'!$K$21:$O$999,MATCH(SMALL('Загальний ввод'!$AA$21:$AA$999,SUM($A48:$A51)),'Загальний ввод'!$AA$21:$AA$999,),MATCH($B51&"*",'Загальний ввод'!$K$19:$O$19,)),"") -> 0 | R51: =IF(($A51="")*($B51<>""),INDEX('Загальний ввод'!$R$21:$Z$999,MATCH(SMALL('Загальний ввод'!$AA$21:$AA$999,SUM($A48:$A51)),'Загальний ввод'!$AA$21:$AA$999,),MATCH(R$9,'Загальний ввод'!$R$20:$Z$20,))*INDEX('Загальний ввод'!$K$21:$O$999,MATCH(SMALL('Загальний ввод'!$AA$21:$AA$999,SUM($A48:$A51)),'Загальний ввод'!$AA$21:$AA$999,),MATCH($B51&"*",'Загальний ввод'!$K$19:$O$19,)),"") -> 0
A52: =IF(B52="","",IF(MOD(ROW()-1,4),"",COUNT(A$10:A51)+1)) ->  | B52: =IF(MOD(ROW()-1,4),IF(B51="","",INDEX({"Циркуляція";"Інтервал роботи";"Час нижче ротора"},MOD(ROW()-1,4))),IFERROR(INDEX('Загальний ввод'!B:B,SMALL('Загальний ввод'!AA$21:AA$999,(ROW()-1)/4)),"")) -> Час нижче ротора | C52: =IF($A52="","",INDEX('Загальний ввод'!C$21:C$999,MATCH(SMALL('Загальний ввод'!$AA$21:$AA$999,SUM($A49:$A52)),'Загальний ввод'!$AA$21:$AA$999,))) ->  | D52: =IF($A52="","",INDEX('Загальний ввод'!D$21:D$999,MATCH(SMALL('Загальний ввод'!$AA$21:$AA$999,SUM($A49:$A52)),'Загальний ввод'!$AA$21:$AA$999,))) ->  | E52: =IF($A52="","",INDEX('Загальний ввод'!E$21:E$999,MATCH(SMALL('Загальний ввод'!$AA$21:$AA$999,SUM($A49:$A52)),'Загальний ввод'!$AA$21:$AA$999,))) ->  | F52: =IF($A52="","",INDEX('Загальний ввод'!F$21:F$999,MATCH(SMALL('Загальний ввод'!$AA$21:$AA$999,SUM($A49:$A52)),'Загальний ввод'!$AA$21:$AA$999,))) ->  | G52: =IF($A52="","",INDEX('Загальний ввод'!G$21:G$999,MATCH(SMALL('Загальний ввод'!$AA$21:$AA$999,SUM($A49:$A52)),'Загальний ввод'!$AA$21:$AA$999,))) ->  | H52: =IF($A52="","",INDEX('Загальний ввод'!H$21:H$999,MATCH(SMALL('Загальний ввод'!$AA$21:$AA$999,SUM($A49:$A52)),'Загальний ввод'!$AA$21:$AA$999,))) ->  | J52: =IF(($A52="")*($B52<>""),INDEX('Загальний ввод'!$R$21:$Z$999,MATCH(SMALL('Загальний ввод'!$AA$21:$AA$999,SUM($A49:$A52)),'Загальний ввод'!$AA$21:$AA$999,),MATCH(J$9,'Загальний ввод'!$R$20:$Z$20,))*INDEX('Загальний ввод'!$K$21:$O$999,MATCH(SMALL('Загальний ввод'!$AA$21:$AA$999,SUM($A49:$A52)),'Загальний ввод'!$AA$21:$AA$999,),MATCH($B52&"*",'Загальний ввод'!$K$19:$O$19,)),"") -> 0 | K52: =IF(($A52="")*($B52<>""),INDEX('Загальний ввод'!$R$21:$Z$999,MATCH(SMALL('Загальний ввод'!$AA$21:$AA$999,SUM($A49:$A52)),'Загальний ввод'!$AA$21:$AA$999,),MATCH(K$9,'Загальний ввод'!$R$20:$Z$20,))*INDEX('Загальний ввод'!$K$21:$O$999,MATCH(SMALL('Загальний ввод'!$AA$21:$AA$999,SUM($A49:$A52)),'Загальний ввод'!$AA$21:$AA$999,),MATCH($B52&"*",'Загальний ввод'!$K$19:$O$19,)),"") -> 0 | L52: =IF(($A52="")*($B52<>""),INDEX('Загальний ввод'!$R$21:$Z$999,MATCH(SMALL('Загальний ввод'!$AA$21:$AA$999,SUM($A49:$A52)),'Загальний ввод'!$AA$21:$AA$999,),MATCH(L$9,'Загальний ввод'!$R$20:$Z$20,))*INDEX('Загальний ввод'!$K$21:$O$999,MATCH(SMALL('Загальний ввод'!$AA$21:$AA$999,SUM($A49:$A52)),'Загальний ввод'!$AA$21:$AA$999,),MATCH($B52&"*",'Загальний ввод'!$K$19:$O$19,)),"") -> 0 | M52: =IF(($A52="")*($B52<>""),INDEX('Загальний ввод'!$R$21:$Z$999,MATCH(SMALL('Загальний ввод'!$AA$21:$AA$999,SUM($A49:$A52)),'Загальний ввод'!$AA$21:$AA$999,),MATCH(M$9,'Загальний ввод'!$R$20:$Z$20,))*INDEX('Загальний ввод'!$K$21:$O$999,MATCH(SMALL('Загальний ввод'!$AA$21:$AA$999,SUM($A49:$A52)),'Загальний ввод'!$AA$21:$AA$999,),MATCH($B52&"*",'Загальний ввод'!$K$19:$O$19,)),"") -> 0 | N52: =IF(($A52="")*($B52<>""),INDEX('Загальний ввод'!$R$21:$Z$999,MATCH(SMALL('Загальний ввод'!$AA$21:$AA$999,SUM($A49:$A52)),'Загальний ввод'!$AA$21:$AA$999,),MATCH(N$9,'Загальний ввод'!$R$20:$Z$20,))*INDEX('Загальний ввод'!$K$21:$O$999,MATCH(SMALL('Загальний ввод'!$AA$21:$AA$999,SUM($A49:$A52)),'Загальний ввод'!$AA$21:$AA$999,),MATCH($B52&"*",'Загальний ввод'!$K$19:$O$19,)),"") -> 15.07638889 | O52: =IF(($A52="")*($B52<>""),INDEX('Загальний ввод'!$R$21:$Z$999,MATCH(SMALL('Загальний ввод'!$AA$21:$AA$999,SUM($A49:$A52)),'Загальний ввод'!$AA$21:$AA$999,),MATCH(O$9,'Загальний ввод'!$R$20:$Z$20,))*INDEX('Загальний ввод'!$K$21:$O$999,MATCH(SMALL('Загальний ввод'!$AA$21:$AA$999,SUM($A49:$A52)),'Загальний ввод'!$AA$21:$AA$999,),MATCH($B52&"*",'Загальний ввод'!$K$19:$O$19,)),"") -> 15.07638889 | P52: =IF(($A52="")*($B52<>""),INDEX('Загальний ввод'!$R$21:$Z$999,MATCH(SMALL('Загальний ввод'!$AA$21:$AA$999,SUM($A49:$A52)),'Загальний ввод'!$AA$21:$AA$999,),MATCH(P$9,'Загальний ввод'!$R$20:$Z$20,))*INDEX('Загальний ввод'!$K$21:$O$999,MATCH(SMALL('Загальний ввод'!$AA$21:$AA$999,SUM($A49:$A52)),'Загальний ввод'!$AA$21:$AA$999,),MATCH($B52&"*",'Загальний ввод'!$K$19:$O$19,)),"") -> 0 | Q52: =IF(($A52="")*($B52<>""),INDEX('Загальний ввод'!$R$21:$Z$999,MATCH(SMALL('Загальний ввод'!$AA$21:$AA$999,SUM($A49:$A52)),'Загальний ввод'!$AA$21:$AA$999,),MATCH(Q$9,'Загальний ввод'!$R$20:$Z$20,))*INDEX('Загальний ввод'!$K$21:$O$999,MATCH(SMALL('Загальний ввод'!$AA$21:$AA$999,SUM($A49:$A52)),'Загальний ввод'!$AA$21:$AA$999,),MATCH($B52&"*",'Загальний ввод'!$K$19:$O$19,)),"") -> 0 | R52: =IF(($A52="")*($B52<>""),INDEX('Загальний ввод'!$R$21:$Z$999,MATCH(SMALL('Загальний ввод'!$AA$21:$AA$999,SUM($A49:$A52)),'Загальний ввод'!$AA$21:$AA$999,),MATCH(R$9,'Загальний ввод'!$R$20:$Z$20,))*INDEX('Загальний ввод'!$K$21:$O$999,MATCH(SMALL('Загальний ввод'!$AA$21:$AA$999,SUM($A49:$A52)),'Загальний ввод'!$AA$21:$AA$999,),MATCH($B52&"*",'Загальний ввод'!$K$19:$O$19,)),"") -> 0
A53: =IF(B53="","",IF(MOD(ROW()-1,4),"",COUNT(A$10:A52)+1)) -> 11 | B53: =IF(MOD(ROW()-1,4),IF(B52="","",INDEX({"Циркуляція";"Інтервал роботи";"Час нижче ротора"},MOD(ROW()-1,4))),IFERROR(INDEX('Загальний ввод'!B:B,SMALL('Загальний ввод'!AA$21:AA$999,(ROW()-1)/4)),"")) -> 50 Абазівка | C53: =IF($A53="","",INDEX('Загальний ввод'!C$21:C$999,MATCH(SMALL('Загальний ввод'!$AA$21:$AA$999,SUM($A50:$A53)),'Загальний ввод'!$AA$21:$AA$999,))) -> 2018-10-20 | D53: =IF($A53="","",INDEX('Загальний ввод'!D$21:D$999,MATCH(SMALL('Загальний ввод'!$AA$21:$AA$999,SUM($A50:$A53)),'Загальний ввод'!$AA$21:$AA$999,))) -> 08:00:00 | E53: =IF($A53="","",INDEX('Загальний ввод'!E$21:E$999,MATCH(SMALL('Загальний ввод'!$AA$21:$AA$999,SUM($A50:$A53)),'Загальний ввод'!$AA$21:$AA$999,))) -> 3380 | F53: =IF($A53="","",INDEX('Загальний ввод'!F$21:F$999,MATCH(SMALL('Загальний ввод'!$AA$21:$AA$999,SUM($A50:$A53)),'Загальний ввод'!$AA$21:$AA$999,))) -> 2018-10-29 | G53: =IF($A53="","",INDEX('Загальний ввод'!G$21:G$999,MATCH(SMALL('Загальний ввод'!$AA$21:$AA$999,SUM($A50:$A53)),'Загальний ввод'!$AA$21:$AA$999,))) -> 08:00:00 | H53: =IF($A53="","",INDEX('Загальний ввод'!H$21:H$999,MATCH(SMALL('Загальний ввод'!$AA$21:$AA$999,SUM($A50:$A53)),'Загальний ввод'!$AA$21:$AA$999,))) -> 3521.7 | I53: 141.7 | J53: =IF(($A53="")*($B53<>""),INDEX('Загальний ввод'!$R$21:$Z$999,MATCH(SMALL('Загальний ввод'!$AA$21:$AA$999,SUM($A50:$A53)),'Загальний ввод'!$AA$21:$AA$999,),MATCH(J$9,'Загальний ввод'!$R$20:$Z$20,))*INDEX('Загальний ввод'!$K$21:$O$999,MATCH(SMALL('Загальний ввод'!$AA$21:$AA$999,SUM($A50:$A53)),'Загальний ввод'!$AA$21:$AA$999,),MATCH($B53&"*",'Загальний ввод'!$K$19:$O$19,)),"") ->  | K53: =IF(($A53="")*($B53<>""),INDEX('Загальний ввод'!$R$21:$Z$999,MATCH(SMALL('Загальний ввод'!$AA$21:$AA$999,SUM($A50:$A53)),'Загальний ввод'!$AA$21:$AA$999,),MATCH(K$9,'Загальний ввод'!$R$20:$Z$20,))*INDEX('Загальний ввод'!$K$21:$O$999,MATCH(SMALL('Загальний ввод'!$AA$21:$AA$999,SUM($A50:$A53)),'Загальний ввод'!$AA$21:$AA$999,),MATCH($B53&"*",'Загальний ввод'!$K$19:$O$19,)),"") ->  | L53: =IF(($A53="")*($B53<>""),INDEX('Загальний ввод'!$R$21:$Z$999,MATCH(SMALL('Загальний ввод'!$AA$21:$AA$999,SUM($A50:$A53)),'Загальний ввод'!$AA$21:$AA$999,),MATCH(L$9,'Загальний ввод'!$R$20:$Z$20,))*INDEX('Загальний ввод'!$K$21:$O$999,MATCH(SMALL('Загальний ввод'!$AA$21:$AA$999,SUM($A50:$A53)),'Загальний ввод'!$AA$21:$AA$999,),MATCH($B53&"*",'Загальний ввод'!$K$19:$O$19,)),"") ->  | M53: =IF(($A53="")*($B53<>""),INDEX('Загальний ввод'!$R$21:$Z$999,MATCH(SMALL('Загальний ввод'!$AA$21:$AA$999,SUM($A50:$A53)),'Загальний ввод'!$AA$21:$AA$999,),MATCH(M$9,'Загальний ввод'!$R$20:$Z$20,))*INDEX('Загальний ввод'!$K$21:$O$999,MATCH(SMALL('Загальний ввод'!$AA$21:$AA$999,SUM($A50:$A53)),'Загальний ввод'!$AA$21:$AA$999,),MATCH($B53&"*",'Загальний ввод'!$K$19:$O$19,)),"") ->  | N53: =IF(($A53="")*($B53<>""),INDEX('Загальний ввод'!$R$21:$Z$999,MATCH(SMALL('Загальний ввод'!$AA$21:$AA$999,SUM($A50:$A53)),'Загальний ввод'!$AA$21:$AA$999,),MATCH(N$9,'Загальний ввод'!$R$20:$Z$20,))*INDEX('Загальний ввод'!$K$21:$O$999,MATCH(SMALL('Загальний ввод'!$AA$21:$AA$999,SUM($A50:$A53)),'Загальний ввод'!$AA$21:$AA$999,),MATCH($B53&"*",'Загальний ввод'!$K$19:$O$19,)),"") ->  | O53: =IF(($A53="")*($B53<>""),INDEX('Загальний ввод'!$R$21:$Z$999,MATCH(SMALL('Загальний ввод'!$AA$21:$AA$999,SUM($A50:$A53)),'Загальний ввод'!$AA$21:$AA$999,),MATCH(O$9,'Загальний ввод'!$R$20:$Z$20,))*INDEX('Загальний ввод'!$K$21:$O$999,MATCH(SMALL('Загальний ввод'!$AA$21:$AA$999,SUM($A50:$A53)),'Загальний ввод'!$AA$21:$AA$999,),MATCH($B53&"*",'Загальний ввод'!$K$19:$O$19,)),"") ->  | P53: =IF(($A53="")*($B53<>""),INDEX('Загальний ввод'!$R$21:$Z$999,MATCH(SMALL('Загальний ввод'!$AA$21:$AA$999,SUM($A50:$A53)),'Загальний ввод'!$AA$21:$AA$999,),MATCH(P$9,'Загальний ввод'!$R$20:$Z$20,))*INDEX('Загальний ввод'!$K$21:$O$999,MATCH(SMALL('Загальний ввод'!$AA$21:$AA$999,SUM($A50:$A53)),'Загальний ввод'!$AA$21:$AA$999,),MATCH($B53&"*",'Загальний ввод'!$K$19:$O$19,)),"") ->  | Q53: =IF(($A53="")*($B53<>""),INDEX('Загальний ввод'!$R$21:$Z$999,MATCH(SMALL('Загальний ввод'!$AA$21:$AA$999,SUM($A50:$A53)),'Загальний ввод'!$AA$21:$AA$999,),MATCH(Q$9,'Загальний ввод'!$R$20:$Z$20,))*INDEX('Загальний ввод'!$K$21:$O$999,MATCH(SMALL('Загальний ввод'!$AA$21:$AA$999,SUM($A50:$A53)),'Загальний ввод'!$AA$21:$AA$999,),MATCH($B53&"*",'Загальний ввод'!$K$19:$O$19,)),"") ->  | R53: =IF(($A53="")*($B53<>""),INDEX('Загальний ввод'!$R$21:$Z$999,MATCH(SMALL('Загальний ввод'!$AA$21:$AA$999,SUM($A50:$A53)),'Загальний ввод'!$AA$21:$AA$999,),MATCH(R$9,'Загальний ввод'!$R$20:$Z$20,))*INDEX('Загальний ввод'!$K$21:$O$999,MATCH(SMALL('Загальний ввод'!$AA$21:$AA$999,SUM($A50:$A53)),'Загальний ввод'!$AA$21:$AA$999,),MATCH($B53&"*",'Загальний ввод'!$K$19:$O$19,)),"") -> 
A54: =IF(B54="","",IF(MOD(ROW()-1,4),"",COUNT(A$10:A53)+1)) ->  | B54: =IF(MOD(ROW()-1,4),IF(B53="","",INDEX({"Циркуляція";"Інтервал роботи";"Час нижче ротора"},MOD(ROW()-1,4))),IFERROR(INDEX('Загальний ввод'!B:B,SMALL('Загальний ввод'!AA$21:AA$999,(ROW()-1)/4)),"")) -> Циркуляція | C54: =IF($A54="","",INDEX('Загальний ввод'!C$21:C$999,MATCH(SMALL('Загальний ввод'!$AA$21:$AA$999,SUM($A51:$A54)),'Загальний ввод'!$AA$21:$AA$999,))) ->  | D54: =IF($A54="","",INDEX('Загальний ввод'!D$21:D$999,MATCH(SMALL('Загальний ввод'!$AA$21:$AA$999,SUM($A51:$A54)),'Загальний ввод'!$AA$21:$AA$999,))) ->  | E54: =IF($A54="","",INDEX('Загальний ввод'!E$21:E$999,MATCH(SMALL('Загальний ввод'!$AA$21:$AA$999,SUM($A51:$A54)),'Загальний ввод'!$AA$21:$AA$999,))) ->  | F54: =IF($A54="","",INDEX('Загальний ввод'!F$21:F$999,MATCH(SMALL('Загальний ввод'!$AA$21:$AA$999,SUM($A51:$A54)),'Загальний ввод'!$AA$21:$AA$999,))) ->  | G54: =IF($A54="","",INDEX('Загальний ввод'!G$21:G$999,MATCH(SMALL('Загальний ввод'!$AA$21:$AA$999,SUM($A51:$A54)),'Загальний ввод'!$AA$21:$AA$999,))) ->  | H54: =IF($A54="","",INDEX('Загальний ввод'!H$21:H$999,MATCH(SMALL('Загальний ввод'!$AA$21:$AA$999,SUM($A51:$A54)),'Загальний ввод'!$AA$21:$AA$999,))) ->  | J54: =IF(($A54="")*($B54<>""),INDEX('Загальний ввод'!$R$21:$Z$999,MATCH(SMALL('Загальний ввод'!$AA$21:$AA$999,SUM($A51:$A54)),'Загальний ввод'!$AA$21:$AA$999,),MATCH(J$9,'Загальний ввод'!$R$20:$Z$20,))*INDEX('Загальний ввод'!$K$21:$O$999,MATCH(SMALL('Загальний ввод'!$AA$21:$AA$999,SUM($A51:$A54)),'Загальний ввод'!$AA$21:$AA$999,),MATCH($B54&"*",'Загальний ввод'!$K$19:$O$19,)),"") -> 5.770833333 | K54: =IF(($A54="")*($B54<>""),INDEX('Загальний ввод'!$R$21:$Z$999,MATCH(SMALL('Загальний ввод'!$AA$21:$AA$999,SUM($A51:$A54)),'Загальний ввод'!$AA$21:$AA$999,),MATCH(K$9,'Загальний ввод'!$R$20:$Z$20,))*INDEX('Загальний ввод'!$K$21:$O$999,MATCH(SMALL('Загальний ввод'!$AA$21:$AA$999,SUM($A51:$A54)),'Загальний ввод'!$AA$21:$AA$999,),MATCH($B54&"*",'Загальний ввод'!$K$19:$O$19,)),"") -> 5.770833333 | L54: =IF(($A54="")*($B54<>""),INDEX('Загальний ввод'!$R$21:$Z$999,MATCH(SMALL('Загальний ввод'!$AA$21:$AA$999,SUM($A51:$A54)),'Загальний ввод'!$AA$21:$AA$999,),MATCH(L$9,'Загальний ввод'!$R$20:$Z$20,))*INDEX('Загальний ввод'!$K$21:$O$999,MATCH(SMALL('Загальний ввод'!$AA$21:$AA$999,SUM($A51:$A54)),'Загальний ввод'!$AA$21:$AA$999,),MATCH($B54&"*",'Загальний ввод'!$K$19:$O$19,)),"") -> 0 | M54: =IF(($A54="")*($B54<>""),INDEX('Загальний ввод'!$R$21:$Z$999,MATCH(SMALL('Загальний ввод'!$AA$21:$AA$999,SUM($A51:$A54)),'Загальний ввод'!$AA$21:$AA$999,),MATCH(M$9,'Загальний ввод'!$R$20:$Z$20,))*INDEX('Загальний ввод'!$K$21:$O$999,MATCH(SMALL('Загальний ввод'!$AA$21:$AA$999,SUM($A51:$A54)),'Загальний ввод'!$AA$21:$AA$999,),MATCH($B54&"*",'Загальний ввод'!$K$19:$O$19,)),"") -> 0 | N54: =IF(($A54="")*($B54<>""),INDEX('Загальний ввод'!$R$21:$Z$999,MATCH(SMALL('Загальний ввод'!$AA$21:$AA$999,SUM($A51:$A54)),'Загальний ввод'!$AA$21:$AA$999,),MATCH(N$9,'Загальний ввод'!$R$20:$Z$20,))*INDEX('Загальний ввод'!$K$21:$O$999,MATCH(SMALL('Загальний ввод'!$AA$21:$AA$999,SUM($A51:$A54)),'Загальний ввод'!$AA$21:$AA$999,),MATCH($B54&"*",'Загальний ввод'!$K$19:$O$19,)),"") -> 0 | O54: =IF(($A54="")*($B54<>""),INDEX('Загальний ввод'!$R$21:$Z$999,MATCH(SMALL('Загальний ввод'!$AA$21:$AA$999,SUM($A51:$A54)),'Загальний ввод'!$AA$21:$AA$999,),MATCH(O$9,'Загальний ввод'!$R$20:$Z$20,))*INDEX('Загальний ввод'!$K$21:$O$999,MATCH(SMALL('Загальний ввод'!$AA$21:$AA$999,SUM($A51:$A54)),'Загальний ввод'!$AA$21:$AA$999,),MATCH($B54&"*",'Загальний ввод'!$K$19:$O$19,)),"") -> 0 | P54: =IF(($A54="")*($B54<>""),INDEX('Загальний ввод'!$R$21:$Z$999,MATCH(SMALL('Загальний ввод'!$AA$21:$AA$999,SUM($A51:$A54)),'Загальний ввод'!$AA$21:$AA$999,),MATCH(P$9,'Загальний ввод'!$R$20:$Z$20,))*INDEX('Загальний ввод'!$K$21:$O$999,MATCH(SMALL('Загальний ввод'!$AA$21:$AA$999,SUM($A51:$A54)),'Загальний ввод'!$AA$21:$AA$999,),MATCH($B54&"*",'Загальний ввод'!$K$19:$O$19,)),"") -> 0 | Q54: =IF(($A54="")*($B54<>""),INDEX('Загальний ввод'!$R$21:$Z$999,MATCH(SMALL('Загальний ввод'!$AA$21:$AA$999,SUM($A51:$A54)),'Загальний ввод'!$AA$21:$AA$999,),MATCH(Q$9,'Загальний ввод'!$R$20:$Z$20,))*INDEX('Загальний ввод'!$K$21:$O$999,MATCH(SMALL('Загальний ввод'!$AA$21:$AA$999,SUM($A51:$A54)),'Загальний ввод'!$AA$21:$AA$999,),MATCH($B54&"*",'Загальний ввод'!$K$19:$O$19,)),"") -> 0 | R54: =IF(($A54="")*($B54<>""),INDEX('Загальний ввод'!$R$21:$Z$999,MATCH(SMALL('Загальний ввод'!$AA$21:$AA$999,SUM($A51:$A54)),'Загальний ввод'!$AA$21:$AA$999,),MATCH(R$9,'Загальний ввод'!$R$20:$Z$20,))*INDEX('Загальний ввод'!$K$21:$O$999,MATCH(SMALL('Загальний ввод'!$AA$21:$AA$999,SUM($A51:$A54)),'Загальний ввод'!$AA$21:$AA$999,),MATCH($B54&"*",'Загальний ввод'!$K$19:$O$19,)),"") -> 0
A55: =IF(B55="","",IF(MOD(ROW()-1,4),"",COUNT(A$10:A54)+1)) ->  | B55: =IF(MOD(ROW()-1,4),IF(B54="","",INDEX({"Циркуляція";"Інтервал роботи";"Час нижче ротора"},MOD(ROW()-1,4))),IFERROR(INDEX('Загальний ввод'!B:B,SMALL('Загальний ввод'!AA$21:AA$999,(ROW()-1)/4)),"")) -> Інтервал роботи | C55: =IF($A55="","",INDEX('Загальний ввод'!C$21:C$999,MATCH(SMALL('Загальний ввод'!$AA$21:$AA$999,SUM($A52:$A55)),'Загальний ввод'!$AA$21:$AA$999,))) ->  | D55: =IF($A55="","",INDEX('Загальний ввод'!D$21:D$999,MATCH(SMALL('Загальний ввод'!$AA$21:$AA$999,SUM($A52:$A55)),'Загальний ввод'!$AA$21:$AA$999,))) ->  | E55: =IF($A55="","",INDEX('Загальний ввод'!E$21:E$999,MATCH(SMALL('Загальний ввод'!$AA$21:$AA$999,SUM($A52:$A55)),'Загальний ввод'!$AA$21:$AA$999,))) ->  | F55: =IF($A55="","",INDEX('Загальний ввод'!F$21:F$999,MATCH(SMALL('Загальний ввод'!$AA$21:$AA$999,SUM($A52:$A55)),'Загальний ввод'!$AA$21:$AA$999,))) ->  | G55: =IF($A55="","",INDEX('Загальний ввод'!G$21:G$999,MATCH(SMALL('Загальний ввод'!$AA$21:$AA$999,SUM($A52:$A55)),'Загальний ввод'!$AA$21:$AA$999,))) ->  | H55: =IF($A55="","",INDEX('Загальний ввод'!H$21:H$999,MATCH(SMALL('Загальний ввод'!$AA$21:$AA$999,SUM($A52:$A55)),'Загальний ввод'!$AA$21:$AA$999,))) ->  | J55: =IF(($A55="")*($B55<>""),INDEX('Загальний ввод'!$R$21:$Z$999,MATCH(SMALL('Загальний ввод'!$AA$21:$AA$999,SUM($A52:$A55)),'Загальний ввод'!$AA$21:$AA$999,),MATCH(J$9,'Загальний ввод'!$R$20:$Z$20,))*INDEX('Загальний ввод'!$K$21:$O$999,MATCH(SMALL('Загальний ввод'!$AA$21:$AA$999,SUM($A52:$A55)),'Загальний ввод'!$AA$21:$AA$999,),MATCH($B55&"*",'Загальний ввод'!$K$19:$O$19,)),"") -> 141.7 | K55: =IF(($A55="")*($B55<>""),INDEX('Загальний ввод'!$R$21:$Z$999,MATCH(SMALL('Загальний ввод'!$AA$21:$AA$999,SUM($A52:$A55)),'Загальний ввод'!$AA$21:$AA$999,),MATCH(K$9,'Загальний ввод'!$R$20:$Z$20,))*INDEX('Загальний ввод'!$K$21:$O$999,MATCH(SMALL('Загальний ввод'!$AA$21:$AA$999,SUM($A52:$A55)),'Загальний ввод'!$AA$21:$AA$999,),MATCH($B55&"*",'Загальний ввод'!$K$19:$O$19,)),"") -> 141.7 | L55: =IF(($A55="")*($B55<>""),INDEX('Загальний ввод'!$R$21:$Z$999,MATCH(SMALL('Загальний ввод'!$AA$21:$AA$999,SUM($A52:$A55)),'Загальний ввод'!$AA$21:$AA$999,),MATCH(L$9,'Загальний ввод'!$R$20:$Z$20,))*INDEX('Загальний ввод'!$K$21:$O$999,MATCH(SMALL('Загальний ввод'!$AA$21:$AA$999,SUM($A52:$A55)),'Загальний ввод'!$AA$21:$AA$999,),MATCH($B55&"*",'Загальний ввод'!$K$19:$O$19,)),"") -> 0 | M55: =IF(($A55="")*($B55<>""),INDEX('Загальний ввод'!$R$21:$Z$999,MATCH(SMALL('Загальний ввод'!$AA$21:$AA$999,SUM($A52:$A55)),'Загальний ввод'!$AA$21:$AA$999,),MATCH(M$9,'Загальний ввод'!$R$20:$Z$20,))*INDEX('Загальний ввод'!$K$21:$O$999,MATCH(SMALL('Загальний ввод'!$AA$21:$AA$999,SUM($A52:$A55)),'Загальний ввод'!$AA$21:$AA$999,),MATCH($B55&"*",'Загальний ввод'!$K$19:$O$19,)),"") -> 0 | N55: =IF(($A55="")*($B55<>""),INDEX('Загальний ввод'!$R$21:$Z$999,MATCH(SMALL('Загальний ввод'!$AA$21:$AA$999,SUM($A52:$A55)),'Загальний ввод'!$AA$21:$AA$999,),MATCH(N$9,'Загальний ввод'!$R$20:$Z$20,))*INDEX('Загальний ввод'!$K$21:$O$999,MATCH(SMALL('Загальний ввод'!$AA$21:$AA$999,SUM($A52:$A55)),'Загальний ввод'!$AA$21:$AA$999,),MATCH($B55&"*",'Загальний ввод'!$K$19:$O$19,)),"") -> 0 | O55: =IF(($A55="")*($B55<>""),INDEX('Загальний ввод'!$R$21:$Z$999,MATCH(SMALL('Загальний ввод'!$AA$21:$AA$999,SUM($A52:$A55)),'Загальний ввод'!$AA$21:$AA$999,),MATCH(O$9,'Загальний ввод'!$R$20:$Z$20,))*INDEX('Загальний ввод'!$K$21:$O$999,MATCH(SMALL('Загальний ввод'!$AA$21:$AA$999,SUM($A52:$A55)),'Загальний ввод'!$AA$21:$AA$999,),MATCH($B55&"*",'Загальний ввод'!$K$19:$O$19,)),"") -> 0 | P55: =IF(($A55="")*($B55<>""),INDEX('Загальний ввод'!$R$21:$Z$999,MATCH(SMALL('Загальний ввод'!$AA$21:$AA$999,SUM($A52:$A55)),'Загальний ввод'!$AA$21:$AA$999,),MATCH(P$9,'Загальний ввод'!$R$20:$Z$20,))*INDEX('Загальний ввод'!$K$21:$O$999,MATCH(SMALL('Загальний ввод'!$AA$21:$AA$999,SUM($A52:$A55)),'Загальний ввод'!$AA$21:$AA$999,),MATCH($B55&"*",'Загальний ввод'!$K$19:$O$19,)),"") -> 0 | Q55: =IF(($A55="")*($B55<>""),INDEX('Загальний ввод'!$R$21:$Z$999,MATCH(SMALL('Загальний ввод'!$AA$21:$AA$999,SUM($A52:$A55)),'Загальний ввод'!$AA$21:$AA$999,),MATCH(Q$9,'Загальний ввод'!$R$20:$Z$20,))*INDEX('Загальний ввод'!$K$21:$O$999,MATCH(SMALL('Загальний ввод'!$AA$21:$AA$999,SUM($A52:$A55)),'Загальний ввод'!$AA$21:$AA$999,),MATCH($B55&"*",'Загальний ввод'!$K$19:$O$19,)),"") -> 0 | R55: =IF(($A55="")*($B55<>""),INDEX('Загальний ввод'!$R$21:$Z$999,MATCH(SMALL('Загальний ввод'!$AA$21:$AA$999,SUM($A52:$A55)),'Загальний ввод'!$AA$21:$AA$999,),MATCH(R$9,'Загальний ввод'!$R$20:$Z$20,))*INDEX('Загальний ввод'!$K$21:$O$999,MATCH(SMALL('Загальний ввод'!$AA$21:$AA$999,SUM($A52:$A55)),'Загальний ввод'!$AA$21:$AA$999,),MATCH($B55&"*",'Загальний ввод'!$K$19:$O$19,)),"") -> 0
A56: =IF(B56="","",IF(MOD(ROW()-1,4),"",COUNT(A$10:A55)+1)) ->  | B56: =IF(MOD(ROW()-1,4),IF(B55="","",INDEX({"Циркуляція";"Інтервал роботи";"Час нижче ротора"},MOD(ROW()-1,4))),IFERROR(INDEX('Загальний ввод'!B:B,SMALL('Загальний ввод'!AA$21:AA$999,(ROW()-1)/4)),"")) -> Час нижче ротора | C56: =IF($A56="","",INDEX('Загальний ввод'!C$21:C$999,MATCH(SMALL('Загальний ввод'!$AA$21:$AA$999,SUM($A53:$A56)),'Загальний ввод'!$AA$21:$AA$999,))) ->  | D56: =IF($A56="","",INDEX('Загальний ввод'!D$21:D$999,MATCH(SMALL('Загальний ввод'!$AA$21:$AA$999,SUM($A53:$A56)),'Загальний ввод'!$AA$21:$AA$999,))) ->  | E56: =IF($A56="","",INDEX('Загальний ввод'!E$21:E$999,MATCH(SMALL('Загальний ввод'!$AA$21:$AA$999,SUM($A53:$A56)),'Загальний ввод'!$AA$21:$AA$999,))) ->  | F56: =IF($A56="","",INDEX('Загальний ввод'!F$21:F$999,MATCH(SMALL('Загальний ввод'!$AA$21:$AA$999,SUM($A53:$A56)),'Загальний ввод'!$AA$21:$AA$999,))) ->  | G56: =IF($A56="","",INDEX('Загальний ввод'!G$21:G$999,MATCH(SMALL('Загальний ввод'!$AA$21:$AA$999,SUM($A53:$A56)),'Загальний ввод'!$AA$21:$AA$999,))) ->  | H56: =IF($A56="","",INDEX('Загальний ввод'!H$21:H$999,MATCH(SMALL('Загальний ввод'!$AA$21:$AA$999,SUM($A53:$A56)),'Загальний ввод'!$AA$21:$AA$999,))) ->  | J56: =IF(($A56="")*($B56<>""),INDEX('Загальний ввод'!$R$21:$Z$999,MATCH(SMALL('Загальний ввод'!$AA$21:$AA$999,SUM($A53:$A56)),'Загальний ввод'!$AA$21:$AA$999,),MATCH(J$9,'Загальний ввод'!$R$20:$Z$20,))*INDEX('Загальний ввод'!$K$21:$O$999,MATCH(SMALL('Загальний ввод'!$AA$21:$AA$999,SUM($A53:$A56)),'Загальний ввод'!$AA$21:$AA$999,),MATCH($B56&"*",'Загальний ввод'!$K$19:$O$19,)),"") -> 8.083333333 | K56: =IF(($A56="")*($B56<>""),INDEX('Загальний ввод'!$R$21:$Z$999,MATCH(SMALL('Загальний ввод'!$AA$21:$AA$999,SUM($A53:$A56)),'Загальний ввод'!$AA$21:$AA$999,),MATCH(K$9,'Загальний ввод'!$R$20:$Z$20,))*INDEX('Загальний ввод'!$K$21:$O$999,MATCH(SMALL('Загальний ввод'!$AA$21:$AA$999,SUM($A53:$A56)),'Загальний ввод'!$AA$21:$AA$999,),MATCH($B56&"*",'Загальний ввод'!$K$19:$O$19,)),"") -> 8.083333333 | L56: =IF(($A56="")*($B56<>""),INDEX('Загальний ввод'!$R$21:$Z$999,MATCH(SMALL('Загальний ввод'!$AA$21:$AA$999,SUM($A53:$A56)),'Загальний ввод'!$AA$21:$AA$999,),MATCH(L$9,'Загальний ввод'!$R$20:$Z$20,))*INDEX('Загальний ввод'!$K$21:$O$999,MATCH(SMALL('Загальний ввод'!$AA$21:$AA$999,SUM($A53:$A56)),'Загальний ввод'!$AA$21:$AA$999,),MATCH($B56&"*",'Загальний ввод'!$K$19:$O$19,)),"") -> 0 | M56: =IF(($A56="")*($B56<>""),INDEX('Загальний ввод'!$R$21:$Z$999,MATCH(SMALL('Загальний ввод'!$AA$21:$AA$999,SUM($A53:$A56)),'Загальний ввод'!$AA$21:$AA$999,),MATCH(M$9,'Загальний ввод'!$R$20:$Z$20,))*INDEX('Загальний ввод'!$K$21:$O$999,MATCH(SMALL('Загальний ввод'!$AA$21:$AA$999,SUM($A53:$A56)),'Загальний ввод'!$AA$21:$AA$999,),MATCH($B56&"*",'Загальний ввод'!$K$19:$O$19,)),"") -> 0 | N56: =IF(($A56="")*($B56<>""),INDEX('Загальний ввод'!$R$21:$Z$999,MATCH(SMALL('Загальний ввод'!$AA$21:$AA$999,SUM($A53:$A56)),'Загальний ввод'!$AA$21:$AA$999,),MATCH(N$9,'Загальний ввод'!$R$20:$Z$20,))*INDEX('Загальний ввод'!$K$21:$O$999,MATCH(SMALL('Загальний ввод'!$AA$21:$AA$999,SUM($A53:$A56)),'Загальний ввод'!$AA$21:$AA$999,),MATCH($B56&"*",'Загальний ввод'!$K$19:$O$19,)),"") -> 0 | O56: =IF(($A56="")*($B56<>""),INDEX('Загальний ввод'!$R$21:$Z$999,MATCH(SMALL('Загальний ввод'!$AA$21:$AA$999,SUM($A53:$A56)),'Загальний ввод'!$AA$21:$AA$999,),MATCH(O$9,'Загальний ввод'!$R$20:$Z$20,))*INDEX('Загальний ввод'!$K$21:$O$999,MATCH(SMALL('Загальний ввод'!$AA$21:$AA$999,SUM($A53:$A56)),'Загальний ввод'!$AA$21:$AA$999,),MATCH($B56&"*",'Загальний ввод'!$K$19:$O$19,)),"") -> 0 | P56: =IF(($A56="")*($B56<>""),INDEX('Загальний ввод'!$R$21:$Z$999,MATCH(SMALL('Загальний ввод'!$AA$21:$AA$999,SUM($A53:$A56)),'Загальний ввод'!$AA$21:$AA$999,),MATCH(P$9,'Загальний ввод'!$R$20:$Z$20,))*INDEX('Загальний ввод'!$K$21:$O$999,MATCH(SMALL('Загальний ввод'!$AA$21:$AA$999,SUM($A53:$A56)),'Загальний ввод'!$AA$21:$AA$999,),MATCH($B56&"*",'Загальний ввод'!$K$19:$O$19,)),"") -> 0 | Q56: =IF(($A56="")*($B56<>""),INDEX('Загальний ввод'!$R$21:$Z$999,MATCH(SMALL('Загальний ввод'!$AA$21:$AA$999,SUM($A53:$A56)),'Загальний ввод'!$AA$21:$AA$999,),MATCH(Q$9,'Загальний ввод'!$R$20:$Z$20,))*INDEX('Загальний ввод'!$K$21:$O$999,MATCH(SMALL('Загальний ввод'!$AA$21:$AA$999,SUM($A53:$A56)),'Загальний ввод'!$AA$21:$AA$999,),MATCH($B56&"*",'Загальний ввод'!$K$19:$O$19,)),"") -> 0 | R56: =IF(($A56="")*($B56<>""),INDEX('Загальний ввод'!$R$21:$Z$999,MATCH(SMALL('Загальний ввод'!$AA$21:$AA$999,SUM($A53:$A56)),'Загальний ввод'!$AA$21:$AA$999,),MATCH(R$9,'Загальний ввод'!$R$20:$Z$20,))*INDEX('Загальний ввод'!$K$21:$O$999,MATCH(SMALL('Загальний ввод'!$AA$21:$AA$999,SUM($A53:$A56)),'Загальний ввод'!$AA$21:$AA$999,),MATCH($B56&"*",'Загальний ввод'!$K$19:$O$19,)),"") -> 0
A57: =IF(B57="","",IF(MOD(ROW()-1,4),"",COUNT(A$10:A56)+1)) -> 12 | B57: =IF(MOD(ROW()-1,4),IF(B56="","",INDEX({"Циркуляція";"Інтервал роботи";"Час нижче ротора"},MOD(ROW()-1,4))),IFERROR(INDEX('Загальний ввод'!B:B,SMALL('Загальний ввод'!AA$21:AA$999,(ROW()-1)/4)),"")) -> 410 Біляївська | C57: =IF($A57="","",INDEX('Загальний ввод'!C$21:C$999,MATCH(SMALL('Загальний ввод'!$AA$21:$AA$999,SUM($A54:$A57)),'Загальний ввод'!$AA$21:$AA$999,))) -> 2018-11-03 | D57: =IF($A57="","",INDEX('Загальний ввод'!D$21:D$999,MATCH(SMALL('Загальний ввод'!$AA$21:$AA$999,SUM($A54:$A57)),'Загальний ввод'!$AA$21:$AA$999,))) -> 08:00:00 | E57: =IF($A57="","",INDEX('Загальний ввод'!E$21:E$999,MATCH(SMALL('Загальний ввод'!$AA$21:$AA$999,SUM($A54:$A57)),'Загальний ввод'!$AA$21:$AA$999,))) -> 3073 | F57: =IF($A57="","",INDEX('Загальний ввод'!F$21:F$999,MATCH(SMALL('Загальний ввод'!$AA$21:$AA$999,SUM($A54:$A57)),'Загальний ввод'!$AA$21:$AA$999,))) -> 2018-11-14 | G57: =IF($A57="","",INDEX('Загальний ввод'!G$21:G$999,MATCH(SMALL('Загальний ввод'!$AA$21:$AA$999,SUM($A54:$A57)),'Загальний ввод'!$AA$21:$AA$999,))) -> 00:00:00 | H57: =IF($A57="","",INDEX('Загальний ввод'!H$21:H$999,MATCH(SMALL('Загальний ввод'!$AA$21:$AA$999,SUM($A54:$A57)),'Загальний ввод'!$AA$21:$AA$999,))) -> 3296 | I57: 223 | J57: =IF(($A57="")*($B57<>""),INDEX('Загальний ввод'!$R$21:$Z$999,MATCH(SMALL('Загальний ввод'!$AA$21:$AA$999,SUM($A54:$A57)),'Загальний ввод'!$AA$21:$AA$999,),MATCH(J$9,'Загальний ввод'!$R$20:$Z$20,))*INDEX('Загальний ввод'!$K$21:$O$999,MATCH(SMALL('Загальний ввод'!$AA$21:$AA$999,SUM($A54:$A57)),'Загальний ввод'!$AA$21:$AA$999,),MATCH($B57&"*",'Загальний ввод'!$K$19:$O$19,)),"") ->  | K57: =IF(($A57="")*($B57<>""),INDEX('Загальний ввод'!$R$21:$Z$999,MATCH(SMALL('Загальний ввод'!$AA$21:$AA$999,SUM($A54:$A57)),'Загальний ввод'!$AA$21:$AA$999,),MATCH(K$9,'Загальний ввод'!$R$20:$Z$20,))*INDEX('Загальний ввод'!$K$21:$O$999,MATCH(SMALL('Загальний ввод'!$AA$21:$AA$999,SUM($A54:$A57)),'Загальний ввод'!$AA$21:$AA$999,),MATCH($B57&"*",'Загальний ввод'!$K$19:$O$19,)),"") ->  | L57: =IF(($A57="")*($B57<>""),INDEX('Загальний ввод'!$R$21:$Z$999,MATCH(SMALL('Загальний ввод'!$AA$21:$AA$999,SUM($A54:$A57)),'Загальний ввод'!$AA$21:$AA$999,),MATCH(L$9,'Загальний ввод'!$R$20:$Z$20,))*INDEX('Загальний ввод'!$K$21:$O$999,MATCH(SMALL('Загальний ввод'!$AA$21:$AA$999,SUM($A54:$A57)),'Загальний ввод'!$AA$21:$AA$999,),MATCH($B57&"*",'Загальний ввод'!$K$19:$O$19,)),"") ->  | M57: =IF(($A57="")*($B57<>""),INDEX('Загальний ввод'!$R$21:$Z$999,MATCH(SMALL('Загальний ввод'!$AA$21:$AA$999,SUM($A54:$A57)),'Загальний ввод'!$AA$21:$AA$999,),MATCH(M$9,'Загальний ввод'!$R$20:$Z$20,))*INDEX('Загальний ввод'!$K$21:$O$999,MATCH(SMALL('Загальний ввод'!$AA$21:$AA$999,SUM($A54:$A57)),'Загальний ввод'!$AA$21:$AA$999,),MATCH($B57&"*",'Загальний ввод'!$K$19:$O$19,)),"") ->  | N57: =IF(($A57="")*($B57<>""),INDEX('Загальний ввод'!$R$21:$Z$999,MATCH(SMALL('Загальний ввод'!$AA$21:$AA$999,SUM($A54:$A57)),'Загальний ввод'!$AA$21:$AA$999,),MATCH(N$9,'Загальний ввод'!$R$20:$Z$20,))*INDEX('Загальний ввод'!$K$21:$O$999,MATCH(SMALL('Загальний ввод'!$AA$21:$AA$999,SUM($A54:$A57)),'Загальний ввод'!$AA$21:$AA$999,),MATCH($B57&"*",'Загальний ввод'!$K$19:$O$19,)),"") ->  | O57: =IF(($A57="")*($B57<>""),INDEX('Загальний ввод'!$R$21:$Z$999,MATCH(SMALL('Загальний ввод'!$AA$21:$AA$999,SUM($A54:$A57)),'Загальний ввод'!$AA$21:$AA$999,),MATCH(O$9,'Загальний ввод'!$R$20:$Z$20,))*INDEX('Загальний ввод'!$K$21:$O$999,MATCH(SMALL('Загальний ввод'!$AA$21:$AA$999,SUM($A54:$A57)),'Загальний ввод'!$AA$21:$AA$999,),MATCH($B57&"*",'Загальний ввод'!$K$19:$O$19,)),"") ->  | P57: =IF(($A57="")*($B57<>""),INDEX('Загальний ввод'!$R$21:$Z$999,MATCH(SMALL('Загальний ввод'!$AA$21:$AA$999,SUM($A54:$A57)),'Загальний ввод'!$AA$21:$AA$999,),MATCH(P$9,'Загальний ввод'!$R$20:$Z$20,))*INDEX('Загальний ввод'!$K$21:$O$999,MATCH(SMALL('Загальний ввод'!$AA$21:$AA$999,SUM($A54:$A57)),'Загальний ввод'!$AA$21:$AA$999,),MATCH($B57&"*",'Загальний ввод'!$K$19:$O$19,)),"") ->  | Q57: =IF(($A57="")*($B57<>""),INDEX('Загальний ввод'!$R$21:$Z$999,MATCH(SMALL('Загальний ввод'!$AA$21:$AA$999,SUM($A54:$A57)),'Загальний ввод'!$AA$21:$AA$999,),MATCH(Q$9,'Загальний ввод'!$R$20:$Z$20,))*INDEX('Загальний ввод'!$K$21:$O$999,MATCH(SMALL('Загальний ввод'!$AA$21:$AA$999,SUM($A54:$A57)),'Загальний ввод'!$AA$21:$AA$999,),MATCH($B57&"*",'Загальний ввод'!$K$19:$O$19,)),"") ->  | R57: =IF(($A57="")*($B57<>""),INDEX('Загальний ввод'!$R$21:$Z$999,MATCH(SMALL('Загальний ввод'!$AA$21:$AA$999,SUM($A54:$A57)),'Загальний ввод'!$AA$21:$AA$999,),MATCH(R$9,'Загальний ввод'!$R$20:$Z$20,))*INDEX('Загальний ввод'!$K$21:$O$999,MATCH(SMALL('Загальний ввод'!$AA$21:$AA$999,SUM($A54:$A57)),'Загальний ввод'!$AA$21:$AA$999,),MATCH($B57&"*",'Загальний ввод'!$K$19:$O$19,)),"") -> 
A58: =IF(B58="","",IF(MOD(ROW()-1,4),"",COUNT(A$10:A57)+1)) ->  | B58: =IF(MOD(ROW()-1,4),IF(B57="","",INDEX({"Циркуляція";"Інтервал роботи";"Час нижче ротора"},MOD(ROW()-1,4))),IFERROR(INDEX('Загальний ввод'!B:B,SMALL('Загальний ввод'!AA$21:AA$999,(ROW()-1)/4)),"")) -> Циркуляція | C58: =IF($A58="","",INDEX('Загальний ввод'!C$21:C$999,MATCH(SMALL('Загальний ввод'!$AA$21:$AA$999,SUM($A55:$A58)),'Загальний ввод'!$AA$21:$AA$999,))) ->  | D58: =IF($A58="","",INDEX('Загальний ввод'!D$21:D$999,MATCH(SMALL('Загальний ввод'!$AA$21:$AA$999,SUM($A55:$A58)),'Загальний ввод'!$AA$21:$AA$999,))) ->  | E58: =IF($A58="","",INDEX('Загальний ввод'!E$21:E$999,MATCH(SMALL('Загальний ввод'!$AA$21:$AA$999,SUM($A55:$A58)),'Загальний ввод'!$AA$21:$AA$999,))) ->  | F58: =IF($A58="","",INDEX('Загальний ввод'!F$21:F$999,MATCH(SMALL('Загальний ввод'!$AA$21:$AA$999,SUM($A55:$A58)),'Загальний ввод'!$AA$21:$AA$999,))) ->  | G58: =IF($A58="","",INDEX('Загальний ввод'!G$21:G$999,MATCH(SMALL('Загальний ввод'!$AA$21:$AA$999,SUM($A55:$A58)),'Загальний ввод'!$AA$21:$AA$999,))) ->  | H58: =IF($A58="","",INDEX('Загальний ввод'!H$21:H$999,MATCH(SMALL('Загальний ввод'!$AA$21:$AA$999,SUM($A55:$A58)),'Загальний ввод'!$AA$21:$AA$999,))) ->  | J58: =IF(($A58="")*($B58<>""),INDEX('Загальний ввод'!$R$21:$Z$999,MATCH(SMALL('Загальний ввод'!$AA$21:$AA$999,SUM($A55:$A58)),'Загальний ввод'!$AA$21:$AA$999,),MATCH(J$9,'Загальний ввод'!$R$20:$Z$20,))*INDEX('Загальний ввод'!$K$21:$O$999,MATCH(SMALL('Загальний ввод'!$AA$21:$AA$999,SUM($A55:$A58)),'Загальний ввод'!$AA$21:$AA$999,),MATCH($B58&"*",'Загальний ввод'!$K$19:$O$19,)),"") -> 0 | K58: =IF(($A58="")*($B58<>""),INDEX('Загальний ввод'!$R$21:$Z$999,MATCH(SMALL('Загальний ввод'!$AA$21:$AA$999,SUM($A55:$A58)),'Загальний ввод'!$AA$21:$AA$999,),MATCH(K$9,'Загальний ввод'!$R$20:$Z$20,))*INDEX('Загальний ввод'!$K$21:$O$999,MATCH(SMALL('Загальний ввод'!$AA$21:$AA$999,SUM($A55:$A58)),'Загальний ввод'!$AA$21:$AA$999,),MATCH($B58&"*",'Загальний ввод'!$K$19:$O$19,)),"") -> 6.648611111 | L58: =IF(($A58="")*($B58<>""),INDEX('Загальний ввод'!$R$21:$Z$999,MATCH(SMALL('Загальний ввод'!$AA$21:$AA$999,SUM($A55:$A58)),'Загальний ввод'!$AA$21:$AA$999,),MATCH(L$9,'Загальний ввод'!$R$20:$Z$20,))*INDEX('Загальний ввод'!$K$21:$O$999,MATCH(SMALL('Загальний ввод'!$AA$21:$AA$999,SUM($A55:$A58)),'Загальний ввод'!$AA$21:$AA$999,),MATCH($B58&"*",'Загальний ввод'!$K$19:$O$19,)),"") -> 6.648611111 | M58: =IF(($A58="")*($B58<>""),INDEX('Загальний ввод'!$R$21:$Z$999,MATCH(SMALL('Загальний ввод'!$AA$21:$AA$999,SUM($A55:$A58)),'Загальний ввод'!$AA$21:$AA$999,),MATCH(M$9,'Загальний ввод'!$R$20:$Z$20,))*INDEX('Загальний ввод'!$K$21:$O$999,MATCH(SMALL('Загальний ввод'!$AA$21:$AA$999,SUM($A55:$A58)),'Загальний ввод'!$AA$21:$AA$999,),MATCH($B58&"*",'Загальний ввод'!$K$19:$O$19,)),"") -> 0 | N58: =IF(($A58="")*($B58<>""),INDEX('Загальний ввод'!$R$21:$Z$999,MATCH(SMALL('Загальний ввод'!$AA$21:$AA$999,SUM($A55:$A58)),'Загальний ввод'!$AA$21:$AA$999,),MATCH(N$9,'Загальний ввод'!$R$20:$Z$20,))*INDEX('Загальний ввод'!$K$21:$O$999,MATCH(SMALL('Загальний ввод'!$AA$21:$AA$999,SUM($A55:$A58)),'Загальний ввод'!$AA$21:$AA$999,),MATCH($B58&"*",'Загальний ввод'!$K$19:$O$19,)),"") -> 0 | O58: =IF(($A58="")*($B58<>""),INDEX('Загальний ввод'!$R$21:$Z$999,MATCH(SMALL('Загальний ввод'!$AA$21:$AA$999,SUM($A55:$A58)),'Загальний ввод'!$AA$21:$AA$999,),MATCH(O$9,'Загальний ввод'!$R$20:$Z$20,))*INDEX('Загальний ввод'!$K$21:$O$999,MATCH(SMALL('Загальний ввод'!$AA$21:$AA$999,SUM($A55:$A58)),'Загальний ввод'!$AA$21:$AA$999,),MATCH($B58&"*",'Загальний ввод'!$K$19:$O$19,)),"") -> 0 | P58: =IF(($A58="")*($B58<>""),INDEX('Загальний ввод'!$R$21:$Z$999,MATCH(SMALL('Загальний ввод'!$AA$21:$AA$999,SUM($A55:$A58)),'Загальний ввод'!$AA$21:$AA$999,),MATCH(P$9,'Загальний ввод'!$R$20:$Z$20,))*INDEX('Загальний ввод'!$K$21:$O$999,MATCH(SMALL('Загальний ввод'!$AA$21:$AA$999,SUM($A55:$A58)),'Загальний ввод'!$AA$21:$AA$999,),MATCH($B58&"*",'Загальний ввод'!$K$19:$O$19,)),"") -> 0 | Q58: =IF(($A58="")*($B58<>""),INDEX('Загальний ввод'!$R$21:$Z$999,MATCH(SMALL('Загальний ввод'!$AA$21:$AA$999,SUM($A55:$A58)),'Загальний ввод'!$AA$21:$AA$999,),MATCH(Q$9,'Загальний ввод'!$R$20:$Z$20,))*INDEX('Загальний ввод'!$K$21:$O$999,MATCH(SMALL('Загальний ввод'!$AA$21:$AA$999,SUM($A55:$A58)),'Загальний ввод'!$AA$21:$AA$999,),MATCH($B58&"*",'Загальний ввод'!$K$19:$O$19,)),"") -> 0 | R58: =IF(($A58="")*($B58<>""),INDEX('Загальний ввод'!$R$21:$Z$999,MATCH(SMALL('Загальний ввод'!$AA$21:$AA$999,SUM($A55:$A58)),'Загальний ввод'!$AA$21:$AA$999,),MATCH(R$9,'Загальний ввод'!$R$20:$Z$20,))*INDEX('Загальний ввод'!$K$21:$O$999,MATCH(SMALL('Загальний ввод'!$AA$21:$AA$999,SUM($A55:$A58)),'Загальний ввод'!$AA$21:$AA$999,),MATCH($B58&"*",'Загальний ввод'!$K$19:$O$19,)),"") -> 0
A59: =IF(B59="","",IF(MOD(ROW()-1,4),"",COUNT(A$10:A58)+1)) ->  | B59: =IF(MOD(ROW()-1,4),IF(B58="","",INDEX({"Циркуляція";"Інтервал роботи";"Час нижче ротора"},MOD(ROW()-1,4))),IFERROR(INDEX('Загальний ввод'!B:B,SMALL('Загальний ввод'!AA$21:AA$999,(ROW()-1)/4)),"")) -> Інтервал роботи | C59: =IF($A59="","",INDEX('Загальний ввод'!C$21:C$999,MATCH(SMALL('Загальний ввод'!$AA$21:$AA$999,SUM($A56:$A59)),'Загальний ввод'!$AA$21:$AA$999,))) ->  | D59: =IF($A59="","",INDEX('Загальний ввод'!D$21:D$999,MATCH(SMALL('Загальний ввод'!$AA$21:$AA$999,SUM($A56:$A59)),'Загальний ввод'!$AA$21:$AA$999,))) ->  | E59: =IF($A59="","",INDEX('Загальний ввод'!E$21:E$999,MATCH(SMALL('Загальний ввод'!$AA$21:$AA$999,SUM($A56:$A59)),'Загальний ввод'!$AA$21:$AA$999,))) ->  | F59: =IF($A59="","",INDEX('Загальний ввод'!F$21:F$999,MATCH(SMALL('Загальний ввод'!$AA$21:$AA$999,SUM($A56:$A59)),'Загальний ввод'!$AA$21:$AA$999,))) ->  | G59: =IF($A59="","",INDEX('Загальний ввод'!G$21:G$999,MATCH(SMALL('Загальний ввод'!$AA$21:$AA$999,SUM($A56:$A59)),'Загальний ввод'!$AA$21:$AA$999,))) ->  | H59: =IF($A59="","",INDEX('Загальний ввод'!H$21:H$999,MATCH(SMALL('Загальний ввод'!$AA$21:$AA$999,SUM($A56:$A59)),'Загальний ввод'!$AA$21:$AA$999,))) ->  | J59: =IF(($A59="")*($B59<>""),INDEX('Загальний ввод'!$R$21:$Z$999,MATCH(SMALL('Загальний ввод'!$AA$21:$AA$999,SUM($A56:$A59)),'Загальний ввод'!$AA$21:$AA$999,),MATCH(J$9,'Загальний ввод'!$R$20:$Z$20,))*INDEX('Загальний ввод'!$K$21:$O$999,MATCH(SMALL('Загальний ввод'!$AA$21:$AA$999,SUM($A56:$A59)),'Загальний ввод'!$AA$21:$AA$999,),MATCH($B59&"*",'Загальний ввод'!$K$19:$O$19,)),"") -> 0 | K59: =IF(($A59="")*($B59<>""),INDEX('Загальний ввод'!$R$21:$Z$999,MATCH(SMALL('Загальний ввод'!$AA$21:$AA$999,SUM($A56:$A59)),'Загальний ввод'!$AA$21:$AA$999,),MATCH(K$9,'Загальний ввод'!$R$20:$Z$20,))*INDEX('Загальний ввод'!$K$21:$O$999,MATCH(SMALL('Загальний ввод'!$AA$21:$AA$999,SUM($A56:$A59)),'Загальний ввод'!$AA$21:$AA$999,),MATCH($B59&"*",'Загальний ввод'!$K$19:$O$19,)),"") -> 223 | L59: =IF(($A59="")*($B59<>""),INDEX('Загальний ввод'!$R$21:$Z$999,MATCH(SMALL('Загальний ввод'!$AA$21:$AA$999,SUM($A56:$A59)),'Загальний ввод'!$AA$21:$AA$999,),MATCH(L$9,'Загальний ввод'!$R$20:$Z$20,))*INDEX('Загальний ввод'!$K$21:$O$999,MATCH(SMALL('Загальний ввод'!$AA$21:$AA$999,SUM($A56:$A59)),'Загальний ввод'!$AA$21:$AA$999,),MATCH($B59&"*",'Загальний ввод'!$K$19:$O$19,)),"") -> 223 | M59: =IF(($A59="")*($B59<>""),INDEX('Загальний ввод'!$R$21:$Z$999,MATCH(SMALL('Загальний ввод'!$AA$21:$AA$999,SUM($A56:$A59)),'Загальний ввод'!$AA$21:$AA$999,),MATCH(M$9,'Загальний ввод'!$R$20:$Z$20,))*INDEX('Загальний ввод'!$K$21:$O$999,MATCH(SMALL('Загальний ввод'!$AA$21:$AA$999,SUM($A56:$A59)),'Загальний ввод'!$AA$21:$AA$999,),MATCH($B59&"*",'Загальний ввод'!$K$19:$O$19,)),"") -> 0 | N59: =IF(($A59="")*($B59<>""),INDEX('Загальний ввод'!$R$21:$Z$999,MATCH(SMALL('Загальний ввод'!$AA$21:$AA$999,SUM($A56:$A59)),'Загальний ввод'!$AA$21:$AA$999,),MATCH(N$9,'Загальний ввод'!$R$20:$Z$20,))*INDEX('Загальний ввод'!$K$21:$O$999,MATCH(SMALL('Загальний ввод'!$AA$21:$AA$999,SUM($A56:$A59)),'Загальний ввод'!$AA$21:$AA$999,),MATCH($B59&"*",'Загальний ввод'!$K$19:$O$19,)),"") -> 0 | O59: =IF(($A59="")*($B59<>""),INDEX('Загальний ввод'!$R$21:$Z$999,MATCH(SMALL('Загальний ввод'!$AA$21:$AA$999,SUM($A56:$A59)),'Загальний ввод'!$AA$21:$AA$999,),MATCH(O$9,'Загальний ввод'!$R$20:$Z$20,))*INDEX('Загальний ввод'!$K$21:$O$999,MATCH(SMALL('Загальний ввод'!$AA$21:$AA$999,SUM($A56:$A59)),'Загальний ввод'!$AA$21:$AA$999,),MATCH($B59&"*",'Загальний ввод'!$K$19:$O$19,)),"") -> 0 | P59: =IF(($A59="")*($B59<>""),INDEX('Загальний ввод'!$R$21:$Z$999,MATCH(SMALL('Загальний ввод'!$AA$21:$AA$999,SUM($A56:$A59)),'Загальний ввод'!$AA$21:$AA$999,),MATCH(P$9,'Загальний ввод'!$R$20:$Z$20,))*INDEX('Загальний ввод'!$K$21:$O$999,MATCH(SMALL('Загальний ввод'!$AA$21:$AA$999,SUM($A56:$A59)),'Загальний ввод'!$AA$21:$AA$999,),MATCH($B59&"*",'Загальний ввод'!$K$19:$O$19,)),"") -> 0 | Q59: =IF(($A59="")*($B59<>""),INDEX('Загальний ввод'!$R$21:$Z$999,MATCH(SMALL('Загальний ввод'!$AA$21:$AA$999,SUM($A56:$A59)),'Загальний ввод'!$AA$21:$AA$999,),MATCH(Q$9,'Загальний ввод'!$R$20:$Z$20,))*INDEX('Загальний ввод'!$K$21:$O$999,MATCH(SMALL('Загальний ввод'!$AA$21:$AA$999,SUM($A56:$A59)),'Загальний ввод'!$AA$21:$AA$999,),MATCH($B59&"*",'Загальний ввод'!$K$19:$O$19,)),"") -> 0 | R59: =IF(($A59="")*($B59<>""),INDEX('Загальний ввод'!$R$21:$Z$999,MATCH(SMALL('Загальний ввод'!$AA$21:$AA$999,SUM($A56:$A59)),'Загальний ввод'!$AA$21:$AA$999,),MATCH(R$9,'Загальний ввод'!$R$20:$Z$20,))*INDEX('Загальний ввод'!$K$21:$O$999,MATCH(SMALL('Загальний ввод'!$AA$21:$AA$999,SUM($A56:$A59)),'Загальний ввод'!$AA$21:$AA$999,),MATCH($B59&"*",'Загальний ввод'!$K$19:$O$19,)),"") -> 0
A60: =IF(B60="","",IF(MOD(ROW()-1,4),"",COUNT(A$10:A59)+1)) ->  | B60: =IF(MOD(ROW()-1,4),IF(B59="","",INDEX({"Циркуляція";"Інтервал роботи";"Час нижче ротора"},MOD(ROW()-1,4))),IFERROR(INDEX('Загальний ввод'!B:B,SMALL('Загальний ввод'!AA$21:AA$999,(ROW()-1)/4)),"")) -> Час нижче ротора | C60: =IF($A60="","",INDEX('Загальний ввод'!C$21:C$999,MATCH(SMALL('Загальний ввод'!$AA$21:$AA$999,SUM($A57:$A60)),'Загальний ввод'!$AA$21:$AA$999,))) ->  | D60: =IF($A60="","",INDEX('Загальний ввод'!D$21:D$999,MATCH(SMALL('Загальний ввод'!$AA$21:$AA$999,SUM($A57:$A60)),'Загальний ввод'!$AA$21:$AA$999,))) ->  | E60: =IF($A60="","",INDEX('Загальний ввод'!E$21:E$999,MATCH(SMALL('Загальний ввод'!$AA$21:$AA$999,SUM($A57:$A60)),'Загальний ввод'!$AA$21:$AA$999,))) ->  | F60: =IF($A60="","",INDEX('Загальний ввод'!F$21:F$999,MATCH(SMALL('Загальний ввод'!$AA$21:$AA$999,SUM($A57:$A60)),'Загальний ввод'!$AA$21:$AA$999,))) ->  | G60: =IF($A60="","",INDEX('Загальний ввод'!G$21:G$999,MATCH(SMALL('Загальний ввод'!$AA$21:$AA$999,SUM($A57:$A60)),'Загальний ввод'!$AA$21:$AA$999,))) ->  | H60: =IF($A60="","",INDEX('Загальний ввод'!H$21:H$999,MATCH(SMALL('Загальний ввод'!$AA$21:$AA$999,SUM($A57:$A60)),'Загальний ввод'!$AA$21:$AA$999,))) ->  | J60: =IF(($A60="")*($B60<>""),INDEX('Загальний ввод'!$R$21:$Z$999,MATCH(SMALL('Загальний ввод'!$AA$21:$AA$999,SUM($A57:$A60)),'Загальний ввод'!$AA$21:$AA$999,),MATCH(J$9,'Загальний ввод'!$R$20:$Z$20,))*INDEX('Загальний ввод'!$K$21:$O$999,MATCH(SMALL('Загальний ввод'!$AA$21:$AA$999,SUM($A57:$A60)),'Загальний ввод'!$AA$21:$AA$999,),MATCH($B60&"*",'Загальний ввод'!$K$19:$O$19,)),"") -> 0 | K60: =IF(($A60="")*($B60<>""),INDEX('Загальний ввод'!$R$21:$Z$999,MATCH(SMALL('Загальний ввод'!$AA$21:$AA$999,SUM($A57:$A60)),'Загальний ввод'!$AA$21:$AA$999,),MATCH(K$9,'Загальний ввод'!$R$20:$Z$20,))*INDEX('Загальний ввод'!$K$21:$O$999,MATCH(SMALL('Загальний ввод'!$AA$21:$AA$999,SUM($A57:$A60)),'Загальний ввод'!$AA$21:$AA$999,),MATCH($B60&"*",'Загальний ввод'!$K$19:$O$19,)),"") -> 9.895833333 | L60: =IF(($A60="")*($B60<>""),INDEX('Загальний ввод'!$R$21:$Z$999,MATCH(SMALL('Загальний ввод'!$AA$21:$AA$999,SUM($A57:$A60)),'Загальний ввод'!$AA$21:$AA$999,),MATCH(L$9,'Загальний ввод'!$R$20:$Z$20,))*INDEX('Загальний ввод'!$K$21:$O$999,MATCH(SMALL('Загальний ввод'!$AA$21:$AA$999,SUM($A57:$A60)),'Загальний ввод'!$AA$21:$AA$999,),MATCH($B60&"*",'Загальний ввод'!$K$19:$O$19,)),"") -> 9.895833333 | M60: =IF(($A60="")*($B60<>""),INDEX('Загальний ввод'!$R$21:$Z$999,MATCH(SMALL('Загальний ввод'!$AA$21:$AA$999,SUM($A57:$A60)),'Загальний ввод'!$AA$21:$AA$999,),MATCH(M$9,'Загальний ввод'!$R$20:$Z$20,))*INDEX('Загальний ввод'!$K$21:$O$999,MATCH(SMALL('Загальний ввод'!$AA$21:$AA$999,SUM($A57:$A60)),'Загальний ввод'!$AA$21:$AA$999,),MATCH($B60&"*",'Загальний ввод'!$K$19:$O$19,)),"") -> 0 | N60: =IF(($A60="")*($B60<>""),INDEX('Загальний ввод'!$R$21:$Z$999,MATCH(SMALL('Загальний ввод'!$AA$21:$AA$999,SUM($A57:$A60)),'Загальний ввод'!$AA$21:$AA$999,),MATCH(N$9,'Загальний ввод'!$R$20:$Z$20,))*INDEX('Загальний ввод'!$K$21:$O$999,MATCH(SMALL('Загальний ввод'!$AA$21:$AA$999,SUM($A57:$A60)),'Загальний ввод'!$AA$21:$AA$999,),MATCH($B60&"*",'Загальний ввод'!$K$19:$O$19,)),"") -> 0 | O60: =IF(($A60="")*($B60<>""),INDEX('Загальний ввод'!$R$21:$Z$999,MATCH(SMALL('Загальний ввод'!$AA$21:$AA$999,SUM($A57:$A60)),'Загальний ввод'!$AA$21:$AA$999,),MATCH(O$9,'Загальний ввод'!$R$20:$Z$20,))*INDEX('Загальний ввод'!$K$21:$O$999,MATCH(SMALL('Загальний ввод'!$AA$21:$AA$999,SUM($A57:$A60)),'Загальний ввод'!$AA$21:$AA$999,),MATCH($B60&"*",'Загальний ввод'!$K$19:$O$19,)),"") -> 0 | P60: =IF(($A60="")*($B60<>""),INDEX('Загальний ввод'!$R$21:$Z$999,MATCH(SMALL('Загальний ввод'!$AA$21:$AA$999,SUM($A57:$A60)),'Загальний ввод'!$AA$21:$AA$999,),MATCH(P$9,'Загальний ввод'!$R$20:$Z$20,))*INDEX('Загальний ввод'!$K$21:$O$999,MATCH(SMALL('Загальний ввод'!$AA$21:$AA$999,SUM($A57:$A60)),'Загальний ввод'!$AA$21:$AA$999,),MATCH($B60&"*",'Загальний ввод'!$K$19:$O$19,)),"") -> 0 | Q60: =IF(($A60="")*($B60<>""),INDEX('Загальний ввод'!$R$21:$Z$999,MATCH(SMALL('Загальний ввод'!$AA$21:$AA$999,SUM($A57:$A60)),'Загальний ввод'!$AA$21:$AA$999,),MATCH(Q$9,'Загальний ввод'!$R$20:$Z$20,))*INDEX('Загальний ввод'!$K$21:$O$999,MATCH(SMALL('Загальний ввод'!$AA$21:$AA$999,SUM($A57:$A60)),'Загальний ввод'!$AA$21:$AA$999,),MATCH($B60&"*",'Загальний ввод'!$K$19:$O$19,)),"") -> 0 | R60: =IF(($A60="")*($B60<>""),INDEX('Загальний ввод'!$R$21:$Z$999,MATCH(SMALL('Загальний ввод'!$AA$21:$AA$999,SUM($A57:$A60)),'Загальний ввод'!$AA$21:$AA$999,),MATCH(R$9,'Загальний ввод'!$R$20:$Z$20,))*INDEX('Загальний ввод'!$K$21:$O$999,MATCH(SMALL('Загальний ввод'!$AA$21:$AA$999,SUM($A57:$A60)),'Загальний ввод'!$AA$21:$AA$999,),MATCH($B60&"*",'Загальний ввод'!$K$19:$O$19,)),"") -> 0
A61: =IF(B61="","",IF(MOD(ROW()-1,4),"",COUNT(A$10:A60)+1)) -> 13 | B61: =IF(MOD(ROW()-1,4),IF(B60="","",INDEX({"Циркуляція";"Інтервал роботи";"Час нижче ротора"},MOD(ROW()-1,4))),IFERROR(INDEX('Загальний ввод'!B:B,SMALL('Загальний ввод'!AA$21:AA$999,(ROW()-1)/4)),"")) -> 22 Зах Борисівська | C61: =IF($A61="","",INDEX('Загальний ввод'!C$21:C$999,MATCH(SMALL('Загальний ввод'!$AA$21:$AA$999,SUM($A58:$A61)),'Загальний ввод'!$AA$21:$AA$999,))) -> 2018-11-24 | D61: =IF($A61="","",INDEX('Загальний ввод'!D$21:D$999,MATCH(SMALL('Загальний ввод'!$AA$21:$AA$999,SUM($A58:$A61)),'Загальний ввод'!$AA$21:$AA$999,))) -> 08:00:00 | E61: =IF($A61="","",INDEX('Загальний ввод'!E$21:E$999,MATCH(SMALL('Загальний ввод'!$AA$21:$AA$999,SUM($A58:$A61)),'Загальний ввод'!$AA$21:$AA$999,))) -> 4005.6 | F61: =IF($A61="","",INDEX('Загальний ввод'!F$21:F$999,MATCH(SMALL('Загальний ввод'!$AA$21:$AA$999,SUM($A58:$A61)),'Загальний ввод'!$AA$21:$AA$999,))) -> 2018-12-02 | G61: =IF($A61="","",INDEX('Загальний ввод'!G$21:G$999,MATCH(SMALL('Загальний ввод'!$AA$21:$AA$999,SUM($A58:$A61)),'Загальний ввод'!$AA$21:$AA$999,))) -> 08:00:00 | H61: =IF($A61="","",INDEX('Загальний ввод'!H$21:H$999,MATCH(SMALL('Загальний ввод'!$AA$21:$AA$999,SUM($A58:$A61)),'Загальний ввод'!$AA$21:$AA$999,))) -> 4161.5 | I61: 155.9 | J61: =IF(($A61="")*($B61<>""),INDEX('Загальний ввод'!$R$21:$Z$999,MATCH(SMALL('Загальний ввод'!$AA$21:$AA$999,SUM($A58:$A61)),'Загальний ввод'!$AA$21:$AA$999,),MATCH(J$9,'Загальний ввод'!$R$20:$Z$20,))*INDEX('Загальний ввод'!$K$21:$O$999,MATCH(SMALL('Загальний ввод'!$AA$21:$AA$999,SUM($A58:$A61)),'Загальний ввод'!$AA$21:$AA$999,),MATCH($B61&"*",'Загальний ввод'!$K$19:$O$19,)),"") ->  | K61: =IF(($A61="")*($B61<>""),INDEX('Загальний ввод'!$R$21:$Z$999,MATCH(SMALL('Загальний ввод'!$AA$21:$AA$999,SUM($A58:$A61)),'Загальний ввод'!$AA$21:$AA$999,),MATCH(K$9,'Загальний ввод'!$R$20:$Z$20,))*INDEX('Загальний ввод'!$K$21:$O$999,MATCH(SMALL('Загальний ввод'!$AA$21:$AA$999,SUM($A58:$A61)),'Загальний ввод'!$AA$21:$AA$999,),MATCH($B61&"*",'Загальний ввод'!$K$19:$O$19,)),"") ->  | L61: =IF(($A61="")*($B61<>""),INDEX('Загальний ввод'!$R$21:$Z$999,MATCH(SMALL('Загальний ввод'!$AA$21:$AA$999,SUM($A58:$A61)),'Загальний ввод'!$AA$21:$AA$999,),MATCH(L$9,'Загальний ввод'!$R$20:$Z$20,))*INDEX('Загальний ввод'!$K$21:$O$999,MATCH(SMALL('Загальний ввод'!$AA$21:$AA$999,SUM($A58:$A61)),'Загальний ввод'!$AA$21:$AA$999,),MATCH($B61&"*",'Загальний ввод'!$K$19:$O$19,)),"") ->  | M61: =IF(($A61="")*($B61<>""),INDEX('Загальний ввод'!$R$21:$Z$999,MATCH(SMALL('Загальний ввод'!$AA$21:$AA$999,SUM($A58:$A61)),'Загальний ввод'!$AA$21:$AA$999,),MATCH(M$9,'Загальний ввод'!$R$20:$Z$20,))*INDEX('Загальний ввод'!$K$21:$O$999,MATCH(SMALL('Загальний ввод'!$AA$21:$AA$999,SUM($A58:$A61)),'Загальний ввод'!$AA$21:$AA$999,),MATCH($B61&"*",'Загальний ввод'!$K$19:$O$19,)),"") ->  | N61: =IF(($A61="")*($B61<>""),INDEX('Загальний ввод'!$R$21:$Z$999,MATCH(SMALL('Загальний ввод'!$AA$21:$AA$999,SUM($A58:$A61)),'Загальний ввод'!$AA$21:$AA$999,),MATCH(N$9,'Загальний ввод'!$R$20:$Z$20,))*INDEX('Загальний ввод'!$K$21:$O$999,MATCH(SMALL('Загальний ввод'!$AA$21:$AA$999,SUM($A58:$A61)),'Загальний ввод'!$AA$21:$AA$999,),MATCH($B61&"*",'Загальний ввод'!$K$19:$O$19,)),"") ->  | O61: =IF(($A61="")*($B61<>""),INDEX('Загальний ввод'!$R$21:$Z$999,MATCH(SMALL('Загальний ввод'!$AA$21:$AA$999,SUM($A58:$A61)),'Загальний ввод'!$AA$21:$AA$999,),MATCH(O$9,'Загальний ввод'!$R$20:$Z$20,))*INDEX('Загальний ввод'!$K$21:$O$999,MATCH(SMALL('Загальний ввод'!$AA$21:$AA$999,SUM($A58:$A61)),'Загальний ввод'!$AA$21:$AA$999,),MATCH($B61&"*",'Загальний ввод'!$K$19:$O$19,)),"") ->  | P61: =IF(($A61="")*($B61<>""),INDEX('Загальний ввод'!$R$21:$Z$999,MATCH(SMALL('Загальний ввод'!$AA$21:$AA$999,SUM($A58:$A61)),'Загальний ввод'!$AA$21:$AA$999,),MATCH(P$9,'Загальний ввод'!$R$20:$Z$20,))*INDEX('Загальний ввод'!$K$21:$O$999,MATCH(SMALL('Загальний ввод'!$AA$21:$AA$999,SUM($A58:$A61)),'Загальний ввод'!$AA$21:$AA$999,),MATCH($B61&"*",'Загальний ввод'!$K$19:$O$19,)),"") ->  | Q61: =IF(($A61="")*($B61<>""),INDEX('Загальний ввод'!$R$21:$Z$999,MATCH(SMALL('Загальний ввод'!$AA$21:$AA$999,SUM($A58:$A61)),'Загальний ввод'!$AA$21:$AA$999,),MATCH(Q$9,'Загальний ввод'!$R$20:$Z$20,))*INDEX('Загальний ввод'!$K$21:$O$999,MATCH(SMALL('Загальний ввод'!$AA$21:$AA$999,SUM($A58:$A61)),'Загальний ввод'!$AA$21:$AA$999,),MATCH($B61&"*",'Загальний ввод'!$K$19:$O$19,)),"") ->  | R61: =IF(($A61="")*($B61<>""),INDEX('Загальний ввод'!$R$21:$Z$999,MATCH(SMALL('Загальний ввод'!$AA$21:$AA$999,SUM($A58:$A61)),'Загальний ввод'!$AA$21:$AA$999,),MATCH(R$9,'Загальний ввод'!$R$20:$Z$20,))*INDEX('Загальний ввод'!$K$21:$O$999,MATCH(SMALL('Загальний ввод'!$AA$21:$AA$999,SUM($A58:$A61)),'Загальний ввод'!$AA$21:$AA$999,),MATCH($B61&"*",'Загальний ввод'!$K$19:$O$19,)),"") -> 
A62: =IF(B62="","",IF(MOD(ROW()-1,4),"",COUNT(A$10:A61)+1)) ->  | B62: =IF(MOD(ROW()-1,4),IF(B61="","",INDEX({"Циркуляція";"Інтервал роботи";"Час нижче ротора"},MOD(ROW()-1,4))),IFERROR(INDEX('Загальний ввод'!B:B,SMALL('Загальний ввод'!AA$21:AA$999,(ROW()-1)/4)),"")) -> Циркуляція | C62: =IF($A62="","",INDEX('Загальний ввод'!C$21:C$999,MATCH(SMALL('Загальний ввод'!$AA$21:$AA$999,SUM($A59:$A62)),'Загальний ввод'!$AA$21:$AA$999,))) ->  | D62: =IF($A62="","",INDEX('Загальний ввод'!D$21:D$999,MATCH(SMALL('Загальний ввод'!$AA$21:$AA$999,SUM($A59:$A62)),'Загальний ввод'!$AA$21:$AA$999,))) ->  | E62: =IF($A62="","",INDEX('Загальний ввод'!E$21:E$999,MATCH(SMALL('Загальний ввод'!$AA$21:$AA$999,SUM($A59:$A62)),'Загальний ввод'!$AA$21:$AA$999,))) ->  | F62: =IF($A62="","",INDEX('Загальний ввод'!F$21:F$999,MATCH(SMALL('Загальний ввод'!$AA$21:$AA$999,SUM($A59:$A62)),'Загальний ввод'!$AA$21:$AA$999,))) ->  | G62: =IF($A62="","",INDEX('Загальний ввод'!G$21:G$999,MATCH(SMALL('Загальний ввод'!$AA$21:$AA$999,SUM($A59:$A62)),'Загальний ввод'!$AA$21:$AA$999,))) ->  | H62: =IF($A62="","",INDEX('Загальний ввод'!H$21:H$999,MATCH(SMALL('Загальний ввод'!$AA$21:$AA$999,SUM($A59:$A62)),'Загальний ввод'!$AA$21:$AA$999,))) ->  | J62: =IF(($A62="")*($B62<>""),INDEX('Загальний ввод'!$R$21:$Z$999,MATCH(SMALL('Загальний ввод'!$AA$21:$AA$999,SUM($A59:$A62)),'Загальний ввод'!$AA$21:$AA$999,),MATCH(J$9,'Загальний ввод'!$R$20:$Z$20,))*INDEX('Загальний ввод'!$K$21:$O$999,MATCH(SMALL('Загальний ввод'!$AA$21:$AA$999,SUM($A59:$A62)),'Загальний ввод'!$AA$21:$AA$999,),MATCH($B62&"*",'Загальний ввод'!$K$19:$O$19,)),"") -> 0 | K62: =IF(($A62="")*($B62<>""),INDEX('Загальний ввод'!$R$21:$Z$999,MATCH(SMALL('Загальний ввод'!$AA$21:$AA$999,SUM($A59:$A62)),'Загальний ввод'!$AA$21:$AA$999,),MATCH(K$9,'Загальний ввод'!$R$20:$Z$20,))*INDEX('Загальний ввод'!$K$21:$O$999,MATCH(SMALL('Загальний ввод'!$AA$21:$AA$999,SUM($A59:$A62)),'Загальний ввод'!$AA$21:$AA$999,),MATCH($B62&"*",'Загальний ввод'!$K$19:$O$19,)),"") -> 3.223611111 | L62: =IF(($A62="")*($B62<>""),INDEX('Загальний ввод'!$R$21:$Z$999,MATCH(SMALL('Загальний ввод'!$AA$21:$AA$999,SUM($A59:$A62)),'Загальний ввод'!$AA$21:$AA$999,),MATCH(L$9,'Загальний ввод'!$R$20:$Z$20,))*INDEX('Загальний ввод'!$K$21:$O$999,MATCH(SMALL('Загальний ввод'!$AA$21:$AA$999,SUM($A59:$A62)),'Загальний ввод'!$AA$21:$AA$999,),MATCH($B62&"*",'Загальний ввод'!$K$19:$O$19,)),"") -> 3.223611111 | M62: =IF(($A62="")*($B62<>""),INDEX('Загальний ввод'!$R$21:$Z$999,MATCH(SMALL('Загальний ввод'!$AA$21:$AA$999,SUM($A59:$A62)),'Загальний ввод'!$AA$21:$AA$999,),MATCH(M$9,'Загальний ввод'!$R$20:$Z$20,))*INDEX('Загальний ввод'!$K$21:$O$999,MATCH(SMALL('Загальний ввод'!$AA$21:$AA$999,SUM($A59:$A62)),'Загальний ввод'!$AA$21:$AA$999,),MATCH($B62&"*",'Загальний ввод'!$K$19:$O$19,)),"") -> 0 | N62: =IF(($A62="")*($B62<>""),INDEX('Загальний ввод'!$R$21:$Z$999,MATCH(SMALL('Загальний ввод'!$AA$21:$AA$999,SUM($A59:$A62)),'Загальний ввод'!$AA$21:$AA$999,),MATCH(N$9,'Загальний ввод'!$R$20:$Z$20,))*INDEX('Загальний ввод'!$K$21:$O$999,MATCH(SMALL('Загальний ввод'!$AA$21:$AA$999,SUM($A59:$A62)),'Загальний ввод'!$AA$21:$AA$999,),MATCH($B62&"*",'Загальний ввод'!$K$19:$O$19,)),"") -> 0 | O62: =IF(($A62="")*($B62<>""),INDEX('Загальний ввод'!$R$21:$Z$999,MATCH(SMALL('Загальний ввод'!$AA$21:$AA$999,SUM($A59:$A62)),'Загальний ввод'!$AA$21:$AA$999,),MATCH(O$9,'Загальний ввод'!$R$20:$Z$20,))*INDEX('Загальний ввод'!$K$21:$O$999,MATCH(SMALL('Загальний ввод'!$AA$21:$AA$999,SUM($A59:$A62)),'Загальний ввод'!$AA$21:$AA$999,),MATCH($B62&"*",'Загальний ввод'!$K$19:$O$19,)),"") -> 0 | P62: =IF(($A62="")*($B62<>""),INDEX('Загальний ввод'!$R$21:$Z$999,MATCH(SMALL('Загальний ввод'!$AA$21:$AA$999,SUM($A59:$A62)),'Загальний ввод'!$AA$21:$AA$999,),MATCH(P$9,'Загальний ввод'!$R$20:$Z$20,))*INDEX('Загальний ввод'!$K$21:$O$999,MATCH(SMALL('Загальний ввод'!$AA$21:$AA$999,SUM($A59:$A62)),'Загальний ввод'!$AA$21:$AA$999,),MATCH($B62&"*",'Загальний ввод'!$K$19:$O$19,)),"") -> 0 | Q62: =IF(($A62="")*($B62<>""),INDEX('Загальний ввод'!$R$21:$Z$999,MATCH(SMALL('Загальний ввод'!$AA$21:$AA$999,SUM($A59:$A62)),'Загальний ввод'!$AA$21:$AA$999,),MATCH(Q$9,'Загальний ввод'!$R$20:$Z$20,))*INDEX('Загальний ввод'!$K$21:$O$999,MATCH(SMALL('Загальний ввод'!$AA$21:$AA$999,SUM($A59:$A62)),'Загальний ввод'!$AA$21:$AA$999,),MATCH($B62&"*",'Загальний ввод'!$K$19:$O$19,)),"") -> 0 | R62: =IF(($A62="")*($B62<>""),INDEX('Загальний ввод'!$R$21:$Z$999,MATCH(SMALL('Загальний ввод'!$AA$21:$AA$999,SUM($A59:$A62)),'Загальний ввод'!$AA$21:$AA$999,),MATCH(R$9,'Загальний ввод'!$R$20:$Z$20,))*INDEX('Загальний ввод'!$K$21:$O$999,MATCH(SMALL('Загальний ввод'!$AA$21:$AA$999,SUM($A59:$A62)),'Загальний ввод'!$AA$21:$AA$999,),MATCH($B62&"*",'Загальний ввод'!$K$19:$O$19,)),"") -> 0
A63: =IF(B63="","",IF(MOD(ROW()-1,4),"",COUNT(A$10:A62)+1)) ->  | B63: =IF(MOD(ROW()-1,4),IF(B62="","",INDEX({"Циркуляція";"Інтервал роботи";"Час нижче ротора"},MOD(ROW()-1,4))),IFERROR(INDEX('Загальний ввод'!B:B,SMALL('Загальний ввод'!AA$21:AA$999,(ROW()-1)/4)),"")) -> Інтервал роботи | C63: =IF($A63="","",INDEX('Загальний ввод'!C$21:C$999,MATCH(SMALL('Загальний ввод'!$AA$21:$AA$999,SUM($A60:$A63)),'Загальний ввод'!$AA$21:$AA$999,))) ->  | D63: =IF($A63="","",INDEX('Загальний ввод'!D$21:D$999,MATCH(SMALL('Загальний ввод'!$AA$21:$AA$999,SUM($A60:$A63)),'Загальний ввод'!$AA$21:$AA$999,))) ->  | E63: =IF($A63="","",INDEX('Загальний ввод'!E$21:E$999,MATCH(SMALL('Загальний ввод'!$AA$21:$AA$999,SUM($A60:$A63)),'Загальний ввод'!$AA$21:$AA$999,))) ->  | F63: =IF($A63="","",INDEX('Загальний ввод'!F$21:F$999,MATCH(SMALL('Загальний ввод'!$AA$21:$AA$999,SUM($A60:$A63)),'Загальний ввод'!$AA$21:$AA$999,))) ->  | G63: =IF($A63="","",INDEX('Загальний ввод'!G$21:G$999,MATCH(SMALL('Загальний ввод'!$AA$21:$AA$999,SUM($A60:$A63)),'Загальний ввод'!$AA$21:$AA$999,))) ->  | H63: =IF($A63="","",INDEX('Загальний ввод'!H$21:H$999,MATCH(SMALL('Загальний ввод'!$AA$21:$AA$999,SUM($A60:$A63)),'Загальний ввод'!$AA$21:$AA$999,))) ->  | J63: =IF(($A63="")*($B63<>""),INDEX('Загальний ввод'!$R$21:$Z$999,MATCH(SMALL('Загальний ввод'!$AA$21:$AA$999,SUM($A60:$A63)),'Загальний ввод'!$AA$21:$AA$999,),MATCH(J$9,'Загальний ввод'!$R$20:$Z$20,))*INDEX('Загальний ввод'!$K$21:$O$999,MATCH(SMALL('Загальний ввод'!$AA$21:$AA$999,SUM($A60:$A63)),'Загальний ввод'!$AA$21:$AA$999,),MATCH($B63&"*",'Загальний ввод'!$K$19:$O$19,)),"") -> 0 | K63: =IF(($A63="")*($B63<>""),INDEX('Загальний ввод'!$R$21:$Z$999,MATCH(SMALL('Загальний ввод'!$AA$21:$AA$999,SUM($A60:$A63)),'Загальний ввод'!$AA$21:$AA$999,),MATCH(K$9,'Загальний ввод'!$R$20:$Z$20,))*INDEX('Загальний ввод'!$K$21:$O$999,MATCH(SMALL('Загальний ввод'!$AA$21:$AA$999,SUM($A60:$A63)),'Загальний ввод'!$AA$21:$AA$999,),MATCH($B63&"*",'Загальний ввод'!$K$19:$O$19,)),"") -> 155.9 | L63: =IF(($A63="")*($B63<>""),INDEX('Загальний ввод'!$R$21:$Z$999,MATCH(SMALL('Загальний ввод'!$AA$21:$AA$999,SUM($A60:$A63)),'Загальний ввод'!$AA$21:$AA$999,),MATCH(L$9,'Загальний ввод'!$R$20:$Z$20,))*INDEX('Загальний ввод'!$K$21:$O$999,MATCH(SMALL('Загальний ввод'!$AA$21:$AA$999,SUM($A60:$A63)),'Загальний ввод'!$AA$21:$AA$999,),MATCH($B63&"*",'Загальний ввод'!$K$19:$O$19,)),"") -> 155.9 | M63: =IF(($A63="")*($B63<>""),INDEX('Загальний ввод'!$R$21:$Z$999,MATCH(SMALL('Загальний ввод'!$AA$21:$AA$999,SUM($A60:$A63)),'Загальний ввод'!$AA$21:$AA$999,),MATCH(M$9,'Загальний ввод'!$R$20:$Z$20,))*INDEX('Загальний ввод'!$K$21:$O$999,MATCH(SMALL('Загальний ввод'!$AA$21:$AA$999,SUM($A60:$A63)),'Загальний ввод'!$AA$21:$AA$999,),MATCH($B63&"*",'Загальний ввод'!$K$19:$O$19,)),"") -> 0 | N63: =IF(($A63="")*($B63<>""),INDEX('Загальний ввод'!$R$21:$Z$999,MATCH(SMALL('Загальний ввод'!$AA$21:$AA$999,SUM($A60:$A63)),'Загальний ввод'!$AA$21:$AA$999,),MATCH(N$9,'Загальний ввод'!$R$20:$Z$20,))*INDEX('Загальний ввод'!$K$21:$O$999,MATCH(SMALL('Загальний ввод'!$AA$21:$AA$999,SUM($A60:$A63)),'Загальний ввод'!$AA$21:$AA$999,),MATCH($B63&"*",'Загальний ввод'!$K$19:$O$19,)),"") -> 0 | O63: =IF(($A63="")*($B63<>""),INDEX('Загальний ввод'!$R$21:$Z$999,MATCH(SMALL('Загальний ввод'!$AA$21:$AA$999,SUM($A60:$A63)),'Загальний ввод'!$AA$21:$AA$999,),MATCH(O$9,'Загальний ввод'!$R$20:$Z$20,))*INDEX('Загальний ввод'!$K$21:$O$999,MATCH(SMALL('Загальний ввод'!$AA$21:$AA$999,SUM($A60:$A63)),'Загальний ввод'!$AA$21:$AA$999,),MATCH($B63&"*",'Загальний ввод'!$K$19:$O$19,)),"") -> 0 | P63: =IF(($A63="")*($B63<>""),INDEX('Загальний ввод'!$R$21:$Z$999,MATCH(SMALL('Загальний ввод'!$AA$21:$AA$999,SUM($A60:$A63)),'Загальний ввод'!$AA$21:$AA$999,),MATCH(P$9,'Загальний ввод'!$R$20:$Z$20,))*INDEX('Загальний ввод'!$K$21:$O$999,MATCH(SMALL('Загальний ввод'!$AA$21:$AA$999,SUM($A60:$A63)),'Загальний ввод'!$AA$21:$AA$999,),MATCH($B63&"*",'Загальний ввод'!$K$19:$O$19,)),"") -> 0 | Q63: =IF(($A63="")*($B63<>""),INDEX('Загальний ввод'!$R$21:$Z$999,MATCH(SMALL('Загальний ввод'!$AA$21:$AA$999,SUM($A60:$A63)),'Загальний ввод'!$AA$21:$AA$999,),MATCH(Q$9,'Загальний ввод'!$R$20:$Z$20,))*INDEX('Загальний ввод'!$K$21:$O$999,MATCH(SMALL('Загальний ввод'!$AA$21:$AA$999,SUM($A60:$A63)),'Загальний ввод'!$AA$21:$AA$999,),MATCH($B63&"*",'Загальний ввод'!$K$19:$O$19,)),"") -> 0 | R63: =IF(($A63="")*($B63<>""),INDEX('Загальний ввод'!$R$21:$Z$999,MATCH(SMALL('Загальний ввод'!$AA$21:$AA$999,SUM($A60:$A63)),'Загальний ввод'!$AA$21:$AA$999,),MATCH(R$9,'Загальний ввод'!$R$20:$Z$20,))*INDEX('Загальний ввод'!$K$21:$O$999,MATCH(SMALL('Загальний ввод'!$AA$21:$AA$999,SUM($A60:$A63)),'Загальний ввод'!$AA$21:$AA$999,),MATCH($B63&"*",'Загальний ввод'!$K$19:$O$19,)),"") -> 0
A64: =IF(B64="","",IF(MOD(ROW()-1,4),"",COUNT(A$10:A63)+1)) ->  | B64: =IF(MOD(ROW()-1,4),IF(B63="","",INDEX({"Циркуляція";"Інтервал роботи";"Час нижче ротора"},MOD(ROW()-1,4))),IFERROR(INDEX('Загальний ввод'!B:B,SMALL('Загальний ввод'!AA$21:AA$999,(ROW()-1)/4)),"")) -> Час нижче ротора | C64: =IF($A64="","",INDEX('Загальний ввод'!C$21:C$999,MATCH(SMALL('Загальний ввод'!$AA$21:$AA$999,SUM($A61:$A64)),'Загальний ввод'!$AA$21:$AA$999,))) ->  | D64: =IF($A64="","",INDEX('Загальний ввод'!D$21:D$999,MATCH(SMALL('Загальний ввод'!$AA$21:$AA$999,SUM($A61:$A64)),'Загальний ввод'!$AA$21:$AA$999,))) ->  | E64: =IF($A64="","",INDEX('Загальний ввод'!E$21:E$999,MATCH(SMALL('Загальний ввод'!$AA$21:$AA$999,SUM($A61:$A64)),'Загальний ввод'!$AA$21:$AA$999,))) ->  | F64: =IF($A64="","",INDEX('Загальний ввод'!F$21:F$999,MATCH(SMALL('Загальний ввод'!$AA$21:$AA$999,SUM($A61:$A64)),'Загальний ввод'!$AA$21:$AA$999,))) ->  | G64: =IF($A64="","",INDEX('Загальний ввод'!G$21:G$999,MATCH(SMALL('Загальний ввод'!$AA$21:$AA$999,SUM($A61:$A64)),'Загальний ввод'!$AA$21:$AA$999,))) ->  | H64: =IF($A64="","",INDEX('Загальний ввод'!H$21:H$999,MATCH(SMALL('Загальний ввод'!$AA$21:$AA$999,SUM($A61:$A64)),'Загальний ввод'!$AA$21:$AA$999,))) ->  | J64: =IF(($A64="")*($B64<>""),INDEX('Загальний ввод'!$R$21:$Z$999,MATCH(SMALL('Загальний ввод'!$AA$21:$AA$999,SUM($A61:$A64)),'Загальний ввод'!$AA$21:$AA$999,),MATCH(J$9,'Загальний ввод'!$R$20:$Z$20,))*INDEX('Загальний ввод'!$K$21:$O$999,MATCH(SMALL('Загальний ввод'!$AA$21:$AA$999,SUM($A61:$A64)),'Загальний ввод'!$AA$21:$AA$999,),MATCH($B64&"*",'Загальний ввод'!$K$19:$O$19,)),"") -> 0 | K64: =IF(($A64="")*($B64<>""),INDEX('Загальний ввод'!$R$21:$Z$999,MATCH(SMALL('Загальний ввод'!$AA$21:$AA$999,SUM($A61:$A64)),'Загальний ввод'!$AA$21:$AA$999,),MATCH(K$9,'Загальний ввод'!$R$20:$Z$20,))*INDEX('Загальний ввод'!$K$21:$O$999,MATCH(SMALL('Загальний ввод'!$AA$21:$AA$999,SUM($A61:$A64)),'Загальний ввод'!$AA$21:$AA$999,),MATCH($B64&"*",'Загальний ввод'!$K$19:$O$19,)),"") -> 10.1875 | L64: =IF(($A64="")*($B64<>""),INDEX('Загальний ввод'!$R$21:$Z$999,MATCH(SMALL('Загальний ввод'!$AA$21:$AA$999,SUM($A61:$A64)),'Загальний ввод'!$AA$21:$AA$999,),MATCH(L$9,'Загальний ввод'!$R$20:$Z$20,))*INDEX('Загальний ввод'!$K$21:$O$999,MATCH(SMALL('Загальний ввод'!$AA$21:$AA$999,SUM($A61:$A64)),'Загальний ввод'!$AA$21:$AA$999,),MATCH($B64&"*",'Загальний ввод'!$K$19:$O$19,)),"") -> 10.1875 | M64: =IF(($A64="")*($B64<>""),INDEX('Загальний ввод'!$R$21:$Z$999,MATCH(SMALL('Загальний ввод'!$AA$21:$AA$999,SUM($A61:$A64)),'Загальний ввод'!$AA$21:$AA$999,),MATCH(M$9,'Загальний ввод'!$R$20:$Z$20,))*INDEX('Загальний ввод'!$K$21:$O$999,MATCH(SMALL('Загальний ввод'!$AA$21:$AA$999,SUM($A61:$A64)),'Загальний ввод'!$AA$21:$AA$999,),MATCH($B64&"*",'Загальний ввод'!$K$19:$O$19,)),"") -> 0 | N64: =IF(($A64="")*($B64<>""),INDEX('Загальний ввод'!$R$21:$Z$999,MATCH(SMALL('Загальний ввод'!$AA$21:$AA$999,SUM($A61:$A64)),'Загальний ввод'!$AA$21:$AA$999,),MATCH(N$9,'Загальний ввод'!$R$20:$Z$20,))*INDEX('Загальний ввод'!$K$21:$O$999,MATCH(SMALL('Загальний ввод'!$AA$21:$AA$999,SUM($A61:$A64)),'Загальний ввод'!$AA$21:$AA$999,),MATCH($B64&"*",'Загальний ввод'!$K$19:$O$19,)),"") -> 0 | O64: =IF(($A64="")*($B64<>""),INDEX('Загальний ввод'!$R$21:$Z$999,MATCH(SMALL('Загальний ввод'!$AA$21:$AA$999,SUM($A61:$A64)),'Загальний ввод'!$AA$21:$AA$999,),MATCH(O$9,'Загальний ввод'!$R$20:$Z$20,))*INDEX('Загальний ввод'!$K$21:$O$999,MATCH(SMALL('Загальний ввод'!$AA$21:$AA$999,SUM($A61:$A64)),'Загальний ввод'!$AA$21:$AA$999,),MATCH($B64&"*",'Загальний ввод'!$K$19:$O$19,)),"") -> 0 | P64: =IF(($A64="")*($B64<>""),INDEX('Загальний ввод'!$R$21:$Z$999,MATCH(SMALL('Загальний ввод'!$AA$21:$AA$999,SUM($A61:$A64)),'Загальний ввод'!$AA$21:$AA$999,),MATCH(P$9,'Загальний ввод'!$R$20:$Z$20,))*INDEX('Загальний ввод'!$K$21:$O$999,MATCH(SMALL('Загальний ввод'!$AA$21:$AA$999,SUM($A61:$A64)),'Загальний ввод'!$AA$21:$AA$999,),MATCH($B64&"*",'Загальний ввод'!$K$19:$O$19,)),"") -> 0 | Q64: =IF(($A64="")*($B64<>""),INDEX('Загальний ввод'!$R$21:$Z$999,MATCH(SMALL('Загальний ввод'!$AA$21:$AA$999,SUM($A61:$A64)),'Загальний ввод'!$AA$21:$AA$999,),MATCH(Q$9,'Загальний ввод'!$R$20:$Z$20,))*INDEX('Загальний ввод'!$K$21:$O$999,MATCH(SMALL('Загальний ввод'!$AA$21:$AA$999,SUM($A61:$A64)),'Загальний ввод'!$AA$21:$AA$999,),MATCH($B64&"*",'Загальний ввод'!$K$19:$O$19,)),"") -> 0 | R64: =IF(($A64="")*($B64<>""),INDEX('Загальний ввод'!$R$21:$Z$999,MATCH(SMALL('Загальний ввод'!$AA$21:$AA$999,SUM($A61:$A64)),'Загальний ввод'!$AA$21:$AA$999,),MATCH(R$9,'Загальний ввод'!$R$20:$Z$20,))*INDEX('Загальний ввод'!$K$21:$O$999,MATCH(SMALL('Загальний ввод'!$AA$21:$AA$999,SUM($A61:$A64)),'Загальний ввод'!$AA$21:$AA$999,),MATCH($B64&"*",'Загальний ввод'!$K$19:$O$19,)),"") -> 0
